Workbook

Sheet Introduction
B2: Market Share Calculator
A4: Authors: Phil Kenkel, Amy Hagerman
G5: Provided By: Bill Fitzwater Cooperative Chair Program OSU
G27: Click for Input Page

Sheet Inputs
A3: Enter 1 below if you want to revert to USDA averages for per acre fertilization rates
A4: Enter 0 if you would like to use your inputed per acre fertilization rates
A6: USDA=1, Company=0 | B6: 0 | D6: Lastest Year | E6: 2017 | F6: type in the four digits for the latest year of your data
B8: Wheat | D8: Soybean | F8: Corn | H8: Sorgum | J8: Alfalfa | L8: All Other Hay
A9: Lbs per Acre | C9: Default values | D9: Lbs per Acre | E9: Default values | F9: Lbs per Acre | G9: Default values | H9: Lbs per Acre | I9: Default values | J9: Lbs per Acre | K9: Default values | L9: Lbs per Acre | M9: Default values
A10: Nitrogen | B10: 95 | C10: 85 | D10: 9 | E10: ='Fertilizer Numbers 05-10'!B4 -> 10 | F10: 100 | G10: varies by county | H10: 60 | I10: varies by county | J10: 0 | K10: 0 | L10: 85 | M10: varies by county
A11: Phosphorous | B11: 25 | C11: 25 | D11: 0 | E11: ='Fertilizer Numbers 05-10'!C4 -> 0 | F11: 25 | G11: ='Fertilizer Numbers 05-10'!R4 -> 25 | H11: 20 | I11: 20 | J11: 0 | K11: 0 | L11: 0 | M11: 0
A12: Potassium | B12: 0 | D12: 0 | E12: ='Fertilizer Numbers 05-10'!D4 -> 0 | F12: 5 | G12: ='Fertilizer Numbers 05-10'!S4 -> 5 | H12: 0 | I12: 0 | J12: 125 | K12: 150 | L12: 5 | M12: 0
A13: Wheat pasture Nitrogen | B13: 20 | C13: 20
E14: Price/
A15: Common Name | B15: %N | C15: %P | D15: %K | E15: Ton
A16: Liquid Fertilizer | B16: 0.28 | C16: 0 | D16: 0 | E16: 125
A17: Urea | B17: 0.46 | C17: 0 | D17: 0 | E17: 185
A18: Potash | B18: 0 | C18: 0 | D18: 0.6 | E18: 165
A19: DAP | B19: 0.18 | C19: 0.46 | D19: 0 | E19: 208
A20: Another fertilizer | B20: 0.1 | C20: 0.34 | D20: 0 | E20: 210
A21: Anhydrous (NH3) | B21: 0.82 | C21: 0 | D21: 0 | E21: 245
A24: Fertilizer type | B24: =C24-1 -> 2013 | C24: 2014 | D24: 2015 | E24: =F24-1 -> 2016 | F24: =E6 -> 2017
A25: =A16 -> Liquid Fertilizer | B25: 879 | C25: 1503 | D25: 1087 | E25: 1349 | F25: 1116
A26: Urea | B26: 3279 | C26: 3189 | D26: 2753 | E26: 2903 | F26: 3316
A27: Potash
A28: DAP
A29: Another fertilizer | D29: 0 | E29: 0 | F29: 0
A30: Anhydrous (NH3) | B30: 870 | C30: 915 | D30: 488 | E30: 645 | F30: 795
A31: Total Tons Fertilizer Sold | B31: =SUM(B25:B30) -> 5028 | C31: =SUM(C25:C30) -> 5607 | D31: =SUM(D25:D30) -> 4328 | E31: =SUM(E25:E30) -> 4897 | F31: =SUM(F25:F30) -> 5227
B33: Bushels Sold
A34: Wheat Receipts | B34: =C34-1 -> 2013 | C34: 2014 | D34: 2015 | E34: =F34-1 -> 2016 | F34: =E6 -> 2017
A35: Total Bushels | B35: 1718628 | C35: 1789024 | D35: 1534454 | E35: 2457593 | F35: 2319291
B37: Fuel Sales-Off Road Diesel
B38: =C38-1 -> 2013 | C38: 2014 | D38: 2015 | E38: =F38-1 -> 2016 | F38: =E6 -> 2017
A39: Gallons | B39: 834165 | C39: 966826 | D39: 872703 | E39: 1306316 | F39: 1446516
B42: =B24 -> 2013 | C42: =C24 -> 2014 | D42: 2015 | E42: 2016 | F42: 2017
A43: Soybean Reciepts (bushels) | B43: 35408 | C43: 17248 | D43: 79283 | E43: 181444 | F43: 184672
A44: Corn Reciepts (bushels) | B44: 81614 | C44: 30207 | D44: 0 | E44: 0 | F44: 72300
A45: Sorghum (bushels) | B45: 195943 | C45: 233100 | D45: 3161 | E45: 32028 | F45: 275505
A50: Estimated Market Share
B51: =C51-1 -> 2013 | C51: 2014 | D51: 2015 | E51: =F51-1 -> 2016 | F51: =E6 -> 2017
B52: % of County | C52: % of County | D52: % of County | E52: % of County | F52: % of County
A53: County | B53: Marketed In | C53: Marketed In | D53: Marketed In | E53: Marketed In | F53: Marketed In
A54: Adair | B54: 0 | C54: 0 | D54: 0 | E54: 0 | F54: 0
A55: Alfalfa | B55: 0.75 | C55: 0.75 | D55: 0.75 | E55: 0.75 | F55: 0.75
A56: Atoka | B56: 0 | C56: 0 | D56: 0 | E56: 0 | F56: 0
A57: Beaver | B57: 0 | C57: 0 | D57: 0 | E57: 0 | F57: 0
A58: Beckham | B58: 0 | C58: 0 | D58: 0 | E58: 0 | F58: 0
A59: Blaine | B59: 0.1 | C59: 0.1 | D59: 0.1 | E59: 0.1 | F59: 0.1
A60: Bryan | B60: 0 | C60: 0 | D60: 0 | E60: 0 | F60: 0
A61: Caddo | B61: 0 | C61: 0 | D61: 0 | E61: 0 | F61: 0
A62: Canadian | B62: 0 | C62: 0 | D62: 0 | E62: 0 | F62: 0
A63: Carter | B63: 0 | C63: 0 | D63: 0 | E63: 0 | F63: 0
A64: Cherokee | B64: 0.15 | C64: 0.15 | D64: 0.15 | E64: 0.15 | F64: 0.15
A65: Choctaw | B65: 0 | C65: 0 | D65: 0 | E65: 0 | F65: 0
A66: Cimarron | B66: 0 | C66: 0 | D66: 0 | E66: 0 | F66: 0
A67: Cleveland | B67: 0 | C67: 0 | D67: 0 | E67: 0 | F67: 0
A68: Coal | B68: 0 | C68: 0 | D68: 0 | E68: 0 | F68: 0
A69: Comanche | B69: 0 | C69: 0 | D69: 0 | E69: 0 | F69: 0
A70: Cotton | B70: 0 | C70: 0 | D70: 0 | E70: 0 | F70: 0
A71: Craig | B71: 0 | C71: 0 | D71: 0 | E71: 0 | F71: 0
A72: Creek | B72: 0 | C72: 0 | D72: 0 | E72: 0 | F72: 0
A73: Custer | B73: 0 | C73: 0 | D73: 0 | E73: 0 | F73: 0
A74: Delaware | B74: 0 | C74: 0 | D74: 0 | E74: 0 | F74: 0
A75: Dewey | B75: 0 | C75: 0 | D75: 0 | E75: 0 | F75: 0
A76: Ellis | B76: 0 | C76: 0 | D76: 0 | E76: 0 | F76: 0
A77: Garfield | B77: 0 | C77: 0 | D77: 0 | E77: 0 | F77: 0
A78: Garvin | B78: 0 | C78: 0 | D78: 0 | E78: 0 | F78: 0
A79: Grady | B79: 0 | C79: 0 | D79: 0 | E79: 0 | F79: 0
A80: Grant | B80: 0 | C80: 0 | D80: 0 | E80: 0 | F80: 0
A81: Greer | B81: 0 | C81: 0 | D81: 0 | E81: 0 | F81: 0
A82: Harmon | B82: 0 | C82: 0 | D82: 0 | E82: 0 | F82: 0
A83: Harper | B83: 0 | C83: 0 | D83: 0 | E83: 0 | F83: 0
A84: Haskell | B84: 0 | C84: 0 | D84: 0 | E84: 0 | F84: 0
A85: Hughes | B85: 0 | C85: 0 | D85: 0 | E85: 0 | F85: 0
A86: Jackson | B86: 0 | C86: 0 | D86: 0 | E86: 0 | F86: 0
A87: Jefferson | B87: 0 | C87: 0 | D87: 0 | E87: 0 | F87: 0
A88: Johnston | B88: 0 | C88: 0 | D88: 0 | E88: 0 | F88: 0
A89: Kay | B89: 0 | C89: 0 | D89: 0 | E89: 0 | F89: 0
A90: Kingfisher | B90: 0 | C90: 0 | D90: 0 | E90: 0 | F90: 0
A91: Kiowa | B91: 0 | C91: 0 | D91: 0 | E91: 0 | F91: 0
A92: Latimer & Pushmataha | B92: 0 | C92: 0 | D92: 0 | E92: 0 | F92: 0
A93: Le Flore | B93: 0 | C93: 0 | D93: 0 | E93: 0 | F93: 0
A94: Lincoln | B94: 0 | C94: 0 | D94: 0 | E94: 0 | F94: 0
A95: Logan | B95: 0 | C95: 0 | D95: 0 | E95: 0 | F95: 0
A96: Love | B96: 0 | C96: 0 | D96: 0 | E96: 0 | F96: 0
A97: Major | B97: 0 | C97: 0 | D97: 0 | E97: 0 | F97: 0
A98: Marshall | B98: 0 | C98: 0 | D98: 0 | E98: 0 | F98: 0
A99: Mayes | B99: 0 | C99: 0 | D99: 0 | E99: 0 | F99: 0
A100: McClain | B100: 0 | C100: 0 | D100: 0 | E100: 0 | F100: 0
A101: McCurtain | B101: 0 | C101: 0 | D101: 0 | E101: 0 | F101: 0
A102: McIntosh | B102: 0 | C102: 0 | D102: 0 | E102: 0 | F102: 0
A103: Murray | B103: 0 | C103: 0 | D103: 0 | E103: 0 | F103: 0
A104: Muskogee | B104: 0 | C104: 0 | D104: 0 | E104: 0 | F104: 0
A105: Noble | B105: 0 | C105: 0 | D105: 0 | E105: 0 | F105: 0
A106: Nowata | B106: 0 | C106: 0 | D106: 0 | E106: 0 | F106: 0
A107: Okfuskee | B107: 0 | C107: 0 | D107: 0 | E107: 0 | F107: 0
A108: Oklahoma | B108: 0 | C108: 0 | D108: 0 | E108: 0 | F108: 0
A109: Okmulgee | B109: 0 | C109: 0 | D109: 0 | E109: 0 | F109: 0
A110: Osage | B110: 0 | C110: 0 | D110: 0 | E110: 0 | F110: 0
A111: Ottawa | B111: 0 | C111: 0 | D111: 0 | E111: 0 | F111: 0
A112: Pawnee | B112: 0 | C112: 0 | D112: 0 | E112: 0 | F112: 0
A113: Payne | B113: 0 | C113: 0 | D113: 0 | E113: 0 | F113: 0
A114: Pittsburg | B114: 0 | C114: 0 | D114: 0 | E114: 0 | F114: 0
A115: Pontotoc | B115: 0 | C115: 0 | D115: 0 | E115: 0 | F115: 0
A116: Pottawatomie | B116: 0 | C116: 0 | D116: 0 | E116: 0 | F116: 0
A117: Roger Mills | B117: 0 | C117: 0 | D117: 0 | E117: 0 | F117: 0
A118: Rogers | B118: 0 | C118: 0 | D118: 0 | E118: 0 | F118: 0
A119: Seminole | B119: 0 | C119: 0 | D119: 0 | E119: 0 | F119: 0
A120: Sequoyah | B120: 0 | C120: 0 | D120: 0 | E120: 0 | F120: 0
A121: Stephens | B121: 0 | C121: 0 | D121: 0 | E121: 0 | F121: 0
A122: Texas | B122: 0 | C122: 0 | D122: 0 | E122: 0 | F122: 0
A123: Tillman | B123: 0 | C123: 0 | D123: 0 | E123: 0 | F123: 0
A124: Tulsa | B124: 0 | C124: 0 | D124: 0 | E124: 0 | F124: 0
A125: Wagoner | B125: 0 | C125: 0 | D125: 0 | E125: 0 | F125: 0
A126: Washington | B126: 0 | C126: 0 | D126: 0 | E126: 0 | F126: 0
A127: Washita | B127: 0 | C127: 0 | D127: 0 | E127: 0 | F127: 0
A128: Woods | B128: 0 | C128: 0 | D128: 0 | E128: 0 | F128: 0
A129: Woodward | B129: 0 | C129: 0 | D129: 0 | E129: 0 | F129: 0

Sheet Market Share 2008-2012
E2: Market Share Information
E3: Back to Inputs | I3: for the years | J3: =C8 -> 2013 | K3: to | L3: =G8 -> 2017
E6: Back to Inputs
B7: Fertilizer Sales: Total Tons Active Ingredients | I7: Estimated Wheat Volume Based on Service Area
C8: =Inputs!B$24 -> 2013 | D8: =Inputs!C$24 -> 2014 | E8: =Inputs!D$24 -> 2015 | F8: =Inputs!E$24 -> 2016 | G8: =Inputs!F$24 -> 2017 | J8: =Inputs!B$24 -> 2013 | K8: =Inputs!C$24 -> 2014 | L8: =Inputs!D$24 -> 2015 | M8: =Inputs!E$24 -> 2016 | N8: =Inputs!F$24 -> 2017 | O8: Average
B9: Total N | C9: =Fertilizer!C19 -> 2467.86 | D9: =Fertilizer!D19 -> 2638.08 | E9: =Fertilizer!E19 -> 1970.9 | F9: =Fertilizer!F19 -> 2242 | G9: =Fertilizer!G19 -> 2489.74 | I9: Bushels | J9: ='Wheat Est. Share'!I81 -> 7295000 | K9: ='Wheat Est. Share'!L81 -> 4288750 | L9: ='Wheat Est. Share'!O81 -> 5746000 | M9: ='Wheat Est. Share'!R81 -> 4997500 | N9: ='Wheat Est. Share'!U81 -> 7715000 | O9: =AVERAGE(J9:N9) -> 6008450
B10: Total P | C10: =Fertilizer!C29 -> 0 | D10: =Fertilizer!D29 -> 0 | E10: =Fertilizer!E29 -> 0 | F10: =Fertilizer!F29 -> 0 | G10: =Fertilizer!G29 -> 0
B11: Total K | C11: =Fertilizer!C39 -> 0 | D11: =Fertilizer!D39 -> 0 | E11: =Fertilizer!E39 -> 0 | F11: =Fertilizer!F39 -> 0 | G11: =Fertilizer!G39 -> 0 | I11: Actual Wheat Volume
B12: Total Tons | C12: =SUM(C9:C11) -> 2467.86 | D12: =SUM(D9:D11) -> 2638.08 | E12: 1970.9 | F12: 2242 | G12: 2489.74 | J12: =Inputs!B51 -> 2013 | K12: =Inputs!C51 -> 2014 | L12: =Inputs!D51 -> 2015 | M12: =Inputs!E51 -> 2016 | N12: 2012 | O12: Average
I13: Bushels | J13: =Inputs!B35 -> 1718628 | K13: =Inputs!C35 -> 1789024 | L13: =Inputs!D35 -> 1534454 | M13: =Inputs!E35 -> 2457593 | N13: =Inputs!F35 -> 2319291 | O13: =AVERAGE(J13:N13) -> 1963798
B14: Fertilizer Sales: Projected County Total Tons Active Ingredients
C15: =Inputs!B$24 -> 2013 | D15: =Inputs!C$24 -> 2014 | E15: =Inputs!D$24 -> 2015 | F15: =Inputs!E$24 -> 2016 | G15: =Inputs!F$24 -> 2017 | I15: Market Share | J15: =IF(AND(J13>0,J9>0),J13/J9,"") -> 0.2355898561 | K15: =IF(AND(K13>0,K9>0),K13/K9,"") -> 0.4171434567 | L15: =IF(AND(L13>0,L9>0),L13/L9,"") -> 0.2670473373 | M15: =IF(AND(M13>0,M9>0),M13/M9,"") -> 0.4917644822 | N15: =IF(AND(N13>0,N9>0),N13/N9,"") -> 0.3006209981
B16: Total N | C16: =INDEX('Fertilizer Numbers 05-10'!$A$1:$OK$81,81,(MATCH(C$15,'Fertilizer Numbers 05-10'!$A$1:$OK$1,0)+0)) -> 10012.25 | D16: =INDEX('Fertilizer Numbers 05-10'!$A$1:$OK$81,81,(MATCH(D$15,'Fertilizer Numbers 05-10'!$A$1:$OK$1,0)+0)) -> 0 | E16: =INDEX('Fertilizer Numbers 05-10'!$A$1:$OK$81,81,(MATCH(E$15,'Fertilizer Numbers 05-10'!$A$1:$OK$1,0)+0)) ->  | F16: =INDEX('Fertilizer Numbers 05-10'!$A$1:$OK$81,81,(MATCH(F$15,'Fertilizer Numbers 05-10'!$A$1:$OK$1,0)+0)) ->  | G16: =INDEX('Fertilizer Numbers 05-10'!$A$1:$OK$81,81,(MATCH(G$15,'Fertilizer Numbers 05-10'!$A$1:$OK$1,0)+0)) -> 
B17: Total P | C17: =INDEX('Fertilizer Numbers 05-10'!$A$1:$OK$81,81,(MATCH(C$15,'Fertilizer Numbers 05-10'!$A$1:$OK$1,0)+1)) -> 1888.75 | D17: =INDEX('Fertilizer Numbers 05-10'!$A$1:$OK$81,81,(MATCH(D$15,'Fertilizer Numbers 05-10'!$A$1:$OK$1,0)+1)) -> 0 | E17: =INDEX('Fertilizer Numbers 05-10'!$A$1:$OK$81,81,(MATCH(E$15,'Fertilizer Numbers 05-10'!$A$1:$OK$1,0)+1)) ->  | F17: =INDEX('Fertilizer Numbers 05-10'!$A$1:$OK$81,81,(MATCH(F$15,'Fertilizer Numbers 05-10'!$A$1:$OK$1,0)+1)) ->  | G17: =INDEX('Fertilizer Numbers 05-10'!$A$1:$OK$81,81,(MATCH(G$15,'Fertilizer Numbers 05-10'!$A$1:$OK$1,0)+1)) ->  | I17: Five Year Average | J17: =AVERAGE(J15:N15) -> 0.3424332261 | L17: Wheat Market Share
B18: Total K | C18: =INDEX('Fertilizer Numbers 05-10'!$A$1:$OK$81,81,(MATCH(C$15,'Fertilizer Numbers 05-10'!$A$1:$OK$1,0)+2)) -> 2254.6875 | D18: =INDEX('Fertilizer Numbers 05-10'!$A$1:$OK$81,81,(MATCH(D$15,'Fertilizer Numbers 05-10'!$A$1:$OK$1,0)+2)) -> 0 | E18: =INDEX('Fertilizer Numbers 05-10'!$A$1:$OK$81,81,(MATCH(E$15,'Fertilizer Numbers 05-10'!$A$1:$OK$1,0)+2)) ->  | F18: =INDEX('Fertilizer Numbers 05-10'!$A$1:$OK$81,81,(MATCH(F$15,'Fertilizer Numbers 05-10'!$A$1:$OK$1,0)+2)) ->  | G18: =INDEX('Fertilizer Numbers 05-10'!$A$1:$OK$81,81,(MATCH(G$15,'Fertilizer Numbers 05-10'!$A$1:$OK$1,0)+2)) -> 
B19: Total Tons | C19: =SUM(C16:C18) -> 14155.6875 | D19: =SUM(D16:D18) -> 0 | E19: =SUM(E16:E18) ->  | F19: =SUM(F16:F18) ->  | G19: =SUM(G16:G18) ->  | I19: The Table above calculates your wheat market share
B21: Market Share | C21: =IF(AND(C12>0,C19>0),C12/C19,"") -> 0.1743369935 | D21: =IF(AND(D12>0,D19>0),D12/D19,"") ->  | E21: =IF(AND(E12>0,E19>0),E12/E19,"") ->  | F21: =IF(AND(F12>0,F19>0),F12/F19,"") ->  | G21: =IF(AND(G12>0,G19>0),G12/G19,"") -> 
B23: Five Year Average | C23: =AVERAGE(C21:G21) ->  | E23: Fertilizer Market Share | I23: The table below provides an indication of whether you are selling sufficient fertilizer
I24: based on your wheat volume
B25: The Table above calculates your fertilizer market share | I25: Projected Fertilizer Sales Based on Wheat Receipts
J26: =Inputs!B$24 -> 2013 | K26: =Inputs!C$24 -> 2014 | L26: =Inputs!D$24 -> 2015 | M26: =Inputs!E$24 -> 2016 | N26: =Inputs!F$24 -> 2017
I27: Actual Bushels | J27: =J13 -> 1718628 | K27: =K13 -> 1789024 | L27: =L13 -> 1534454 | M27: =M13 -> 2457593 | N27: =N13 -> 2319291
D28: Projected Wheat Receipts Based on Fertilizer Sales | I28: Weighted Avg Yield | J28: ='Wheat Est. Share'!J81 -> 30.75595238 | K28: ='Wheat Est. Share'!M81 -> 18.38700052 | L28: ='Wheat Est. Share'!P81 -> 23.69710489 | M28: ='Wheat Est. Share'!S81 -> 20.97172619 | N28: ='Wheat Est. Share'!V81 -> 30.1480322
C29: =Inputs!B$24 -> 2013 | D29: =Inputs!C$24 -> 2014 | E29: =Inputs!D$24 -> 2015 | F29: =Inputs!E$24 -> 2016 | G29: =Inputs!F$24 -> 2017 | I29: Acres Treated | J29: =J27/J28 -> 55879.52468 | K29: =K27/K28 -> 97298.30584 | L29: =L27/L28 -> 64752.8045 | M29: =M27/M28 -> 117186.014 | N29: =N27/N28 -> 76930.09562
B30: Total Tons | C30: =C12 -> 2467.86 | D30: =D12 -> 2638.08 | E30: =E12 -> 1970.9 | F30: =F12 -> 2242 | G30: =G12 -> 2489.74 | I30: Projected Fertilzer | J30: =((IF(Inputs!$B$6=1,Fertilizer!$C$4,+Fertilizer!$C$5)*J29)+(IF(Inputs!$B$6=1,Fertilizer!$D$4,+Fertilizer!$D$5)*J29)+(IF(Inputs!$B$6=1,Fertilizer!$E$4,+Fertilizer!$E$5)*J29))/2000 -> 3352.771481 | K30: =((IF(Inputs!$B$6=1,Fertilizer!$C$4,+Fertilizer!$C$5)*K29)+(IF(Inputs!$B$6=1,Fertilizer!$D$4,+Fertilizer!$D$5)*K29)+(IF(Inputs!$B$6=1,Fertilizer!$E$4,+Fertilizer!$E$5)*K29))/2000 -> 5837.89835 | L30: =((IF(Inputs!$B$6=1,Fertilizer!$C$4,+Fertilizer!$C$5)*L29)+(IF(Inputs!$B$6=1,Fertilizer!$D$4,+Fertilizer!$D$5)*L29)+(IF(Inputs!$B$6=1,Fertilizer!$E$4,+Fertilizer!$E$5)*L29))/2000 -> 3885.16827 | M30: =((IF(Inputs!$B$6=1,Fertilizer!$C$4,+Fertilizer!$C$5)*M29)+(IF(Inputs!$B$6=1,Fertilizer!$D$4,+Fertilizer!$D$5)*M29)+(IF(Inputs!$B$6=1,Fertilizer!$E$4,+Fertilizer!$E$5)*M29))/2000 -> 7031.160843 | N30: =((IF(Inputs!$B$6=1,Fertilizer!$C$4,+Fertilizer!$C$5)*N29)+(IF(Inputs!$B$6=1,Fertilizer!$D$4,+Fertilizer!$D$5)*N29)+(IF(Inputs!$B$6=1,Fertilizer!$E$4,+Fertilizer!$E$5)*N29))/2000 -> 4615.805737
B31: Total Lbs. | C31: =C30*2000 -> 4935720 | D31: =D30*2000 -> 5276160 | E31: =E30*2000 -> 3941800 | F31: =F30*2000 -> 4484000 | G31: =G30*2000 -> 4979480
B32: Projected Acres | C32: =C31/IF(Inputs!$B$6=1,(Fertilizer!$C$4+Fertilizer!$D$4+Fertilizer!$E$4),(Fertilizer!$C$5+Fertilizer!$D$5+Fertilizer!$E$5)) -> 41131 | D32: =D31/IF(Inputs!$B$6=1,(Fertilizer!$C$4+Fertilizer!$D$4+Fertilizer!$E$4),(Fertilizer!$C$5+Fertilizer!$D$5+Fertilizer!$E$5)) -> 43968 | E32: =E31/IF(Inputs!$B$6=1,(Fertilizer!$C$4+Fertilizer!$D$4+Fertilizer!$E$4),(Fertilizer!$C$5+Fertilizer!$D$5+Fertilizer!$E$5)) -> 32848.33333 | F32: =F31/IF(Inputs!$B$6=1,(Fertilizer!$C$4+Fertilizer!$D$4+Fertilizer!$E$4),(Fertilizer!$C$5+Fertilizer!$D$5+Fertilizer!$E$5)) -> 37366.66667 | G32: =G31/IF(Inputs!$B$6=1,(Fertilizer!$C$4+Fertilizer!$D$4+Fertilizer!$E$4),(Fertilizer!$C$5+Fertilizer!$D$5+Fertilizer!$E$5)) -> 41495.66667 | I32: Actual Fertilizer vs | J32: =IF(AND(C12>0,J30>0),C12/J30,"") -> 0.7360656741 | K32: =IF(AND(D12>0,K30>0),D12/K30,"") -> 0.4518886492 | L32: =IF(AND(E12>0,L30>0),E12/L30,"") -> 0.5072881953 | M32: =IF(AND(F12>0,M30>0),F12/M30,"") -> 0.3188662655 | N32: =IF(AND(G12>0,N30>0),G12/N30,"") -> 0.5393944506
B33: Projected Bushels | C33: =C32*'Wheat Est. Share'!J81 -> 1265023.077 | D33: =D32*'Wheat Est. Share'!M81 -> 808439.6388 | E33: =E32*'Wheat Est. Share'!P81 -> 778410.4004 | F33: =F32*'Wheat Est. Share'!S81 -> 783643.502 | G33: =G32*'Wheat Est. Share'!V81 -> 1251012.695 | I33: Fertilizer Projected from Wheat Receipts
B34: Actual Bushels Received | C34: =Inputs!B35 -> 1718628 | D34: =Inputs!C35 -> 1789024 | E34: =Inputs!D35 -> 1534454 | F34: =Inputs!E35 -> 2457593 | G34: =Inputs!F35 -> 2319291
I35: Five Year Average | J35: =AVERAGE(J32:N32) -> 0.510700647
B36: Actual Wheat vs | C36: =IF(AND(C34>0,C33>0),C34/C33,"") -> 1.358574425 | D36: =IF(AND(D34>0,D33>0),D34/D33,"") -> 2.21293454 | E36: =IF(AND(E34>0,E33>0),E34/E33,"") -> 1.971266056 | F36: =IF(AND(F34>0,F33>0),F34/F33,"") -> 3.136110992 | G36: =IF(AND(G34>0,G33>0),G34/G33,"") -> 1.853930827
B37: Wheat Projected from Fertilizer Sales | I37: The table below provides an indication of your market share in off-road diesel fuel based on crop
I38: acreage and projected use
B39: Five Year Average | C39: =AVERAGE(C36:F36) -> 2.169721503 | I39: Fuel Market Share
B40: The above table provides an indication of whether you are receiving sufficient wheat | J40: =Inputs!B$24 -> 2013 | K40: =Inputs!C$24 -> 2014 | L40: =Inputs!D$24 -> 2015 | M40: =Inputs!E$24 -> 2016 | N40: =Inputs!F$24 -> 2017 | O40: Average
B41: based on your fertilizer volume | I41: Gallons Sold | J41: =+Inputs!B39 -> 834165 | K41: =+Inputs!C39 -> 966826 | L41: =+Inputs!D39 -> 872703 | M41: =+Inputs!E39 -> 1306316 | N41: =+Inputs!F39 -> 1446516 | O41: =AVERAGE(J41:N41) -> 1085305.2
I42: Gallons used in Market | J42: ='Fuel Use'!AE81 -> 1458035.75 | K42: ='Fuel Use'!AO81 -> 1366931.305 | L42: ='Fuel Use'!AY81 -> 1498731.57 | M42: ='Fuel Use'!BI81 -> 1342253.8 | N42: ='Fuel Use'!BS81 -> 1562380.8 | O42: =AVERAGE(J42:N42) -> 1445666.645
J43: =IF(J41>0,J41/J42,"") -> 0.5721156014 | K43: =IF(K41>0,K41/K42,"") -> 0.7072966992 | L43: =IF(L41>0,L41/L42,"") -> 0.5822943998 | M43: 0.9732257789 | N43: 0.9258408705 | O43: 0.7507299167
I45: Five Year Average | J45: =AVERAGE(J43:N43) -> 0.75215467 | L45: Fuel Market Share
I47: Soybeans | J47: =Inputs!B$24 -> 2013 | K47: =Inputs!C$24 -> 2014 | L47: =Inputs!D$24 -> 2015 | M47: =Inputs!E$24 -> 2016 | N47: =Inputs!F$24 -> 2017 | O47: Average
I48: Est. Market | J48: =INDEX('Est. Market'!$A$1:$AS$79,79,(MATCH(C$15,'Est. Market'!$A$1:$AQ$1,0)-2)) -> 0 | K48: =INDEX('Est. Market'!$A$1:$AS$79,79,(MATCH(D$15,'Est. Market'!$A$1:$AQ$1,0)-2)) ->  | L48: =INDEX('Est. Market'!$A$1:$AS$79,79,(MATCH(E$15,'Est. Market'!$A$1:$AQ$1,0)-2)) ->  | M48: =INDEX('Est. Market'!$A$1:$AS$79,79,(MATCH(F$15,'Est. Market'!$A$1:$AQ$1,0)-2)) ->  | N48: =INDEX('Est. Market'!$A$1:$AS$79,79,(MATCH(G$15,'Est. Market'!$A$1:$AQ$1,0)-2)) ->  | O48: =AVERAGE(J48:N48) -> 
I49: Actual | J49: =Inputs!B43 -> 35408 | K49: =Inputs!C43 -> 17248 | L49: =Inputs!D43 -> 79283 | M49: =Inputs!E43 -> 181444 | N49: =Inputs!F43 -> 184672 | O49: =AVERAGE(J49:N49) -> 99611
I50: Market Share | J50: =IF(AND(J49>0,J48>0),J49/J48,"") ->  | N50: =IF(AND(N49>0,N48>0),N49/N48,"") ->  | O50: =IF(O48>0,O48/O49,"") -> 
I52: Corn | J52: =Inputs!B$24 -> 2013 | K52: =Inputs!C$24 -> 2014 | L52: =Inputs!D$24 -> 2015 | M52: =Inputs!E$24 -> 2016 | N52: =Inputs!F$24 -> 2017 | O52: Average
I53: Est. Market | J53: =INDEX('Est. Market'!$A$1:$AS$79,79,(MATCH(C$15,'Est. Market'!$A$1:$AQ$1,0)+2)) -> 0 | K53: =INDEX('Est. Market'!$A$1:$AS$79,79,(MATCH(D$15,'Est. Market'!$A$1:$AQ$1,0)+2)) ->  | L53: =INDEX('Est. Market'!$A$1:$AS$79,79,(MATCH(E$15,'Est. Market'!$A$1:$AQ$1,0)+2)) ->  | M53: =INDEX('Est. Market'!$A$1:$AS$79,79,(MATCH(F$15,'Est. Market'!$A$1:$AQ$1,0)+2)) ->  | N53: =INDEX('Est. Market'!$A$1:$AS$79,79,(MATCH(G$15,'Est. Market'!$A$1:$AQ$1,0)+2)) ->  | O53: =AVERAGE(J53:N53) -> 
I54: Actual | J54: =Inputs!B44 -> 81614 | K54: =Inputs!C44 -> 30207 | L54: =Inputs!D44 -> 0 | M54: =Inputs!E44 -> 0 | N54: =Inputs!F44 -> 72300 | O54: =AVERAGE(J54:N54) -> 36824.2
I55: Market Share | J55: =IFERROR(J54/J53,0) -> 0 | K55: 0 | L55: =IFERROR(L54/L53,0) -> 0 | M55: =IFERROR(M54/M53,0) -> 0 | N55: =IFERROR(N54/N53,0) -> 0 | O55: =IF(O53>0,O53/O54,"") -> 
I57: Sorghum | J57: =Inputs!B$24 -> 2013 | K57: =Inputs!C$24 -> 2014 | L57: =Inputs!D$24 -> 2015 | M57: =Inputs!E$24 -> 2016 | N57: =Inputs!F$24 -> 2017 | O57: Average
I58: Est. Market | J58: =INDEX('Est. Market'!$A$1:$AS$79,79,(MATCH(C$15,'Est. Market'!$A$1:$AQ$1,0)+1)) -> 84750 | K58: =INDEX('Est. Market'!$A$1:$AS$79,79,(MATCH(D$15,'Est. Market'!$A$1:$AQ$1,0)+1)) ->  | L58: =INDEX('Est. Market'!$A$1:$AS$79,79,(MATCH(E$15,'Est. Market'!$A$1:$AQ$1,0)+1)) ->  | M58: =INDEX('Est. Market'!$A$1:$AS$79,79,(MATCH(F$15,'Est. Market'!$A$1:$AQ$1,0)+1)) ->  | N58: =INDEX('Est. Market'!$A$1:$AS$79,79,(MATCH(G$15,'Est. Market'!$A$1:$AQ$1,0)+1)) ->  | O58: =AVERAGE(J58:N58) -> 
I59: Actual | J59: =Inputs!B45 -> 195943 | K59: =Inputs!C45 -> 233100 | L59: =Inputs!D45 -> 3161 | M59: =Inputs!E45 -> 32028 | N59: =Inputs!F45 -> 275505 | O59: =AVERAGE(J59:N59) -> 147947.4
I60: Market Share | J60: =IFERROR(J59/J58,0) -> 2.312011799 | K60: =IFERROR(K59/K58,0) -> 0 | L60: =IFERROR(L59/L58,0) -> 0 | M60: =IFERROR(M59/M58,0) -> 0 | N60: =IFERROR(N59/N58,0) -> 0 | O60: =IF(O58>0,O58/O59,"") -> 

Sheet Fertilizer Numbers 05-10
B1: USDA estimae | E1: company estimate | H1: Estimate used | K1: USDA estimae | N1: company estimate | Q1: Estimate used | T1: USDA estimae | W1: company estimate | Z1: Estimate used | AC1: USDA estimae | AF1: company estimate | AI1: Estimate used | AM1: Company estimates for wheat fertilization | AS1: USDA estimae | AV1: company estimate | AY1: Estimate used | BB1: USDA estimae | BE1: company estimate | BH1: Estimate used | BK1: Crop Acreage | CM1: 2005 | CP1: Crop Acreage | DR1: Nitrogen | DS1: Phosphorous | DT1: Potassium | DU1: 2006 | DX1: Crop Acreage | EZ1: Nitrogen | FA1: Phosphorous | FB1: Potassium | FC1: 2007 | FF1: Crop Acreage | GH1: Nitrogen | GI1: Phosphorous | GJ1: Potassium | GK1: 2008 | GO1: Crop Acreage | HQ1: Nitrogen | HR1: Phosphorous | HS1: Potassium | HT1: 2009 | HX1: Crop Acreage | IZ1: Nitrogen | JA1: Phosphorous | JB1: Potassium | JC1: 2010 | JF1: Crop Acreage | KK1: 2011 | KN1: Crop Acreage | LS1: 2012 | LV1: Crop Acreage | NA1: 2013 | ND1: Crop Acreage | OI1: 2014
B2: Soybean | E2: Soybean | H2: Soybean | K2: Corn | N2: Corn | Q2: Corn | T2: Sorghum | W2: Sorghum | Z2: Sorghum | AC2: Wheat | AF2: Wheat | AI2: Wheat | AL2: Wh/pasture | AM2: Wheat-Company | AP2: Wh/pasture | AS2: Alfalfa | AV2: Alfalfa | AY2: Alfalfa | BB2: All other hay | BE2: All other hay | BH2: All other hay | BL2: lbs | BM2: lbs | BN2: lbs | BP2: lbs | BQ2: lbs | BR2: lbs | BT2: lbs | BU2: lbs | BV2: lbs | BX2: lbs | BY2: lbs | BZ2: lbs | CB2: lbs | CC2: lbs | CD2: lbs | CF2: lbs | CG2: lbs | CH2: lbs | CJ2: lbs | CK2: lbs | CL2: lbs | CM2: Nitrogen | CN2: Phosphorous | CO2: Potassium | CQ2: lbs | CR2: lbs | CS2: lbs | CU2: lbs | CV2: lbs | CW2: lbs | CY2: lbs | CZ2: lbs | DA2: lbs | DC2: lbs | DD2: lbs | DE2: lbs | DG2: lbs | DH2: lbs | DI2: lbs | DK2: lbs | DL2: lbs | DM2: lbs | DO2: lbs | DP2: lbs | DQ2: lbs | DR2: Tons | DS2: Tons | DT2: Tons | DU2: Adjusted per County | DY2: lbs | DZ2: lbs | EA2: lbs | EC2: lbs | ED2: lbs | EE2: lbs | EG2: lbs | EH2: lbs | EI2: lbs | EK2: lbs | EL2: lbs | EM2: lbs | EO2: lbs | EP2: lbs | EQ2: lbs | ES2: lbs | ET2: lbs | EU2: lbs | EW2: lbs | EX2: lbs | EY2: lbs | EZ2: Tons | FA2: Tons | FB2: Tons | FC2: Adjusted per County | FG2: lbs | FH2: lbs | FI2: lbs | FK2: lbs | FL2: lbs | FM2: lbs | FO2: lbs | FP2: lbs | FQ2: lbs | FS2: lbs | FT2: lbs | FU2: lbs | FW2: lbs | FX2: lbs | FY2: lbs | GA2: lbs | GB2: lbs | GC2: lbs | GE2: lbs | GF2: lbs | GG2: lbs | GH2: Tons | GI2: Tons | GJ2: Tons | GK2: Adjusted per County | GL2: Phosphorous | GM2: Potassium | GP2: lbs | GQ2: lbs | GR2: lbs | GT2: lbs | GU2: lbs | GV2: lbs | GX2: lbs | GY2: lbs | GZ2: lbs | HB2: lbs | HC2: lbs | HD2: lbs | HF2: lbs | HG2: lbs | HH2: lbs | HJ2: lbs | HK2: lbs | HL2: lbs | HN2: lbs | HO2: lbs | HP2: lbs | HQ2: Tons | HR2: Tons | HS2: Tons | HT2: Adjusted per County | HU2: Phosphorous | HV2: Potassium | HY2: lbs | HZ2: lbs | IA2: lbs | IC2: lbs | ID2: lbs | IE2: lbs | IG2: lbs | IH2: lbs | II2: lbs | IK2: lbs | IL2: lbs | IM2: lbs | IO2: lbs | IP2: lbs | IQ2: lbs | IS2: lbs | IT2: lbs | IU2: lbs | IW2: lbs | IX2: lbs | IY2: lbs | IZ2: Tons | JA2: Tons | JB2: Tons | JC2: Adjusted per County | JD2: Phosphorous | JE2: Potassium | JG2: lbs | JH2: lbs | JI2: lbs | JK2: lbs | JL2: lbs | JM2: lbs | JO2: lbs | JP2: lbs | JQ2: lbs | JS2: lbs | JT2: lbs | JU2: lbs | JW2: lbs | JX2: lbs | JY2: lbs | KA2: lbs | KB2: lbs | KC2: lbs | KE2: lbs | KF2: lbs | KG2: lbs | KH2: Nitrogen | KI2: Phosphorous | KJ2: Potassium | KK2: Adjusted per County | KL2: Phosphorous | KM2: Potassium | KO2: lbs | KP2: lbs | KQ2: lbs | KS2: lbs | KT2: lbs | KU2: lbs | KW2: lbs | KX2: lbs | KY2: lbs | LA2: lbs | LB2: lbs | LC2: lbs | LE2: lbs | LF2: lbs | LG2: lbs | LI2: lbs | LJ2: lbs | LK2: lbs | LM2: lbs | LN2: lbs | LO2: lbs | LP2: Nitrogen | LQ2: Phosphorous | LR2: Potassium | LS2: Adjusted per County | LT2: Phosphorous | LU2: Potassium | LW2: lbs | LX2: lbs | LY2: lbs | MA2: lbs | MB2: lbs | MC2: lbs | ME2: lbs | MF2: lbs | MG2: lbs | MI2: lbs | MJ2: lbs | MK2: lbs | MM2: lbs | MN2: lbs | MO2: lbs | MQ2: lbs | MR2: lbs | MS2: lbs | MU2: lbs | MV2: lbs | MW2: lbs | MX2: Nitrogen | MY2: Phosphorous | MZ2: Potassium | NA2: Adjusted per County | NB2: Phosphorous | NC2: Potassium | NE2: lbs | NF2: lbs | NG2: lbs | NI2: lbs | NJ2: lbs | NK2: lbs | NM2: lbs | NN2: lbs | NO2: lbs | NQ2: lbs | NR2: lbs | NS2: lbs | NU2: lbs | NV2: lbs | NW2: lbs | NY2: lbs | NZ2: lbs | OA2: lbs | OC2: lbs | OD2: lbs | OE2: lbs | OF2: Nitrogen | OG2: Phosphorous | OH2: Potassium | OI2: Adjusted per County | OJ2: Phosphorous | OK2: Potassium
A3: County | B3: Nitrogen | C3: Phophorus | D3: Potassium | E3: Nitrogen | F3: Phophorus | G3: Potassium | H3: Nitrogen | I3: Phophorus | J3: Potassium | K3: Nitrogen | L3: Phophorus | M3: Potassium | N3: Nitrogen | O3: Phophorus | P3: Potassium | Q3: Nitrogen | R3: Phophorus | S3: Potassium | T3: Nitrogen | U3: Phophorus | V3: Potassium | W3: Nitrogen | X3: Phophorus | Y3: Potassium | Z3: Nitrogen | AA3: Phophorus | AB3: Potassium | AC3: Nitrogen | AD3: Phophorus | AE3: Potassium | AF3: Nitrogen | AG3: Phophorus | AH3: Potassium | AI3: Nitrogen | AJ3: Phophorus | AK3: Potassium | AL3: Nitrogen | AM3: Nitrogen | AN3: Phophorus | AO3: Potassium | AP3: Nitrogen | AQ3: Phophorus | AR3: Potassium | AS3: Nitrogen | AT3: Phophorus | AU3: Potassium | AV3: Nitrogen | AW3: Phophorus | AX3: Potassium | AY3: Nitrogen | AZ3: Phophorus | BA3: Potassium | BB3: Nitrogen | BC3: Phophorus | BD3: Potassium | BE3: Nitrogen | BF3: Phophorus | BG3: Potassium | BH3: Nitrogen | BI3: Phophorus | BJ3: Potassium | BK3: Soybean | BL3: Nitrogen | BM3: Phosphorous | BN3: Potassium | BO3: Corn | BP3: Nitrogen | BQ3: Phosphorous | BR3: Potassium | BS3: Sorghum | BT3: Nitrogen | BU3: Phosphorous | BV3: Potassium | BW3: Wheat | BX3: Nitrogen | BY3: Phosphorous | BZ3: Potassium | CA3: Wh/pasture | CB3: Nitrogen | CC3: Phosphorous | CD3: Potassium | CE3: Alfalfa | CF3: Nitrogen | CG3: Phosphorous | CH3: Potassium | CI3: All other hay | CJ3: Nitrogen | CK3: Phosphorous | CL3: Potassium | CM3: Tons | CN3: Tons | CO3: Tons | CP3: Soybean | CQ3: Nitrogen | CR3: Phosphorous | CS3: Potassium | CT3: Corn | CU3: Nitrogen | CV3: Phosphorous | CW3: Potassium | CX3: Sorghum | CY3: Nitrogen | CZ3: Phosphorous | DA3: Potassium | DB3: Wheat | DC3: Nitrogen | DD3: Phosphorous | DE3: Potassium | DF3: Wh/pasture | DG3: Nitrogen | DH3: Phosphorous | DI3: Potassium | DJ3: Alfalfa | DK3: Nitrogen | DL3: Phosphorous | DM3: Potassium | DN3: All other hay | DO3: Nitrogen | DP3: Phosphorous | DQ3: Potassium | DU3: Nitrogen | DV3: Phosphorous | DW3: Potassuim | DX3: Soybean | DY3: Nitrogen | DZ3: Phosphorous | EA3: Potassium | EB3: Corn | EC3: Nitrogen | ED3: Phosphorous | EE3: Potassium | EF3: Sorghum | EG3: Nitrogen | EH3: Phosphorous | EI3: Potassium | EJ3: Wheat | EK3: Nitrogen | EL3: Phosphorous | EM3: Potassium | EN3: Wh/pasture | EO3: Nitrogen | EP3: Phosphorous | EQ3: Potassium | ER3: Alfalfa | ES3: Nitrogen | ET3: Phosphorous | EU3: Potassium | EV3: All other hay | EW3: Nitrogen | EX3: Phosphorous | EY3: Potassium | FC3: Nitrogen | FD3: Phosphorous | FE3: Potassium | FF3: Soybean | FG3: Nitrogen | FH3: Phosphorous | FI3: Potassium | FJ3: Corn | FK3: Nitrogen | FL3: Phosphorous | FM3: Potassium | FN3: Sorghum | FO3: Nitrogen | FP3: Phosphorous | FQ3: Potassium | FR3: Wheat | FS3: Nitrogen | FT3: Phosphorous | FU3: Potassium | FV3: Wh/pasture | FW3: Nitrogen | FX3: Phosphorous | FY3: Potassium | FZ3: Alfalfa | GA3: Nitrogen | GB3: Phosphorous | GC3: Potassium | GD3: All other hay | GE3: Nitrogen | GF3: Phosphorous | GG3: Potassium | GK3: Nitrogen | GO3: Soybean | GP3: Nitrogen | GQ3: Phosphorous | GR3: Potassium | GS3: Corn | GT3: Nitrogen | GU3: Phosphorous | GV3: Potassium | GW3: Sorghum | GX3: Nitrogen | GY3: Phosphorous | GZ3: Potassium | HA3: Wheat | HB3: Nitrogen | HC3: Phosphorous | HD3: Potassium | HE3: Wh/pasture | HF3: Nitrogen | HG3: Phosphorous | HH3: Potassium | HI3: Alfalfa | HJ3: Nitrogen | HK3: Phosphorous | HL3: Potassium | HM3: All other hay | HN3: Nitrogen | HO3: Phosphorous | HP3: Potassium | HT3: Nitrogen | HX3: Soybean | HY3: Nitrogen | HZ3: Phosphorous | IA3: Potassium | IB3: Corn | IC3: Nitrogen | ID3: Phosphorous | IE3: Potassium | IF3: Sorghum | IG3: Nitrogen | IH3: Phosphorous | II3: Potassium | IJ3: Wheat | IK3: Nitrogen | IL3: Phosphorous | IM3: Potassium | IN3: Wh/pasture | IO3: Nitrogen | IP3: Phosphorous | IQ3: Potassium | IR3: Alfalfa | IS3: Nitrogen | IT3: Phosphorous | IU3: Potassium | IV3: All other hay | IW3: Nitrogen | IX3: Phosphorous | IY3: Potassium | JC3: Nitrogen | JF3: Soybean | JG3: Nitrogen | JH3: Phosphorous | JI3: Potassium | JJ3: Corn | JK3: Nitrogen | JL3: Phosphorous | JM3: Potassium | JN3: Sorghum | JO3: Nitrogen | JP3: Phosphorous | JQ3: Potassium | JR3: Wheat | JS3: Nitrogen | JT3: Phosphorous | JU3: Potassium | JV3: Wh/pasture | JW3: Nitrogen | JX3: Phosphorous | JY3: Potassium | JZ3: Alfalfa | KA3: Nitrogen | KB3: Phosphorous | KC3: Potassium | KD3: All other hay | KE3: Nitrogen | KF3: Phosphorous | KG3: Potassium | KH3: Tons | KI3: Tons | KJ3: Tons | KK3: Nitrogen | KN3: Soybean | KO3: Nitrogen | KP3: Phosphorous | KQ3: Potassium | KR3: Corn | KS3: Nitrogen | KT3: Phosphorous | KU3: Potassium | KV3: Sorghum | KW3: Nitrogen | KX3: Phosphorous | KY3: Potassium | KZ3: Wheat | LA3: Nitrogen | LB3: Phosphorous | LC3: Potassium | LD3: Wh/pasture | LE3: Nitrogen | LF3: Phosphorous | LG3: Potassium | LH3: Alfalfa | LI3: Nitrogen | LJ3: Phosphorous | LK3: Potassium | LL3: All other hay | LM3: Nitrogen | LN3: Phosphorous | LO3: Potassium | LP3: Tons | LQ3: Tons | LR3: Tons | LS3: Nitrogen | LV3: Soybean | LW3: Nitrogen | LX3: Phosphorous | LY3: Potassium | LZ3: Corn | MA3: Nitrogen | MB3: Phosphorous | MC3: Potassium | MD3: Sorghum | ME3: Nitrogen | MF3: Phosphorous | MG3: Potassium | MH3: Wheat | MI3: Nitrogen | MJ3: Phosphorous | MK3: Potassium | ML3: Wh/pasture | MM3: Nitrogen | MN3: Phosphorous | MO3: Potassium | MP3: Alfalfa | MQ3: Nitrogen | MR3: Phosphorous | MS3: Potassium | MT3: All other hay | MU3: Nitrogen | MV3: Phosphorous | MW3: Potassium | MX3: Tons | MY3: Tons | MZ3: Tons | NA3: Nitrogen | ND3: Soybean | NE3: Nitrogen | NF3: Phosphorous | NG3: Potassium | NH3: Corn | NI3: Nitrogen | NJ3: Phosphorous | NK3: Potassium | NL3: Sorghum | NM3: Nitrogen | NN3: Phosphorous | NO3: Potassium | NP3: Wheat | NQ3: Nitrogen | NR3: Phosphorous | NS3: Potassium | NT3: Wh/pasture | NU3: Nitrogen | NV3: Phosphorous | NW3: Potassium | NX3: Alfalfa | NY3: Nitrogen | NZ3: Phosphorous | OA3: Potassium | OB3: All other hay | OC3: Nitrogen | OD3: Phosphorous | OE3: Potassium | OF3: Tons | OG3: Tons | OH3: Tons | OI3: Nitrogen
A4: Adair | B4: 10 | C4: 0 | D4: 0 | E4: =IF(Inputs!$B$6=0,Inputs!$D$10,) -> 9 | F4: =IF(Inputs!$B$6=0,Inputs!$D$11,) -> 0 | G4: =IF(Inputs!$B$6=0,Inputs!$D$12,) -> 0 | H4: =IF(Inputs!$B$6=0,'Fertilizer Numbers 05-10'!E4,'Fertilizer Numbers 05-10'!B4) -> 9 | I4: =IF(Inputs!$B$6=0,'Fertilizer Numbers 05-10'!F4,'Fertilizer Numbers 05-10'!C4) -> 0 | J4: =IF(Inputs!$B$6=0,'Fertilizer Numbers 05-10'!G4,'Fertilizer Numbers 05-10'!D4) -> 0 | K4: 106 | L4: 20 | M4: 0 | N4: =Inputs!$F$10 -> 100 | O4: =Inputs!$F$11 -> 25 | P4: =Inputs!$F$12 -> 5 | Q4: =IF(Inputs!$B$6=0,N4,K4) -> 100 | R4: =IF(Inputs!$B$6=0,O4,L4) -> 25 | S4: =IF(Inputs!$B$6=0,P4,M4) -> 5 | T4: 42 | U4: 20 | V4: 0 | W4: =Inputs!$H$10 -> 60 | X4: =Inputs!$H$11 -> 20 | Y4: =Inputs!$H$12 -> 0 | Z4: =IF(Inputs!$B$6=0,W4,T4) -> 60 | AA4: =IF(Inputs!$B$6=0,X4,U4) -> 20 | AB4: =IF(Inputs!$B$6=0,Y4,V4) -> 0 | AC4: =Inputs!$C$10 -> 85 | AD4: =Inputs!$C$11 -> 25 | AE4: =Inputs!$C$12 -> 0 | AF4: =Inputs!$C$10 -> 85 | AG4: =Inputs!$C$11 -> 25 | AH4: =Inputs!$C$12 -> 0 | AI4: =IF(Inputs!$B$6=0,'Fertilizer Numbers 05-10'!AF4,AC4) -> 85 | AJ4: =IF(Inputs!$B$6=0,'Fertilizer Numbers 05-10'!AG4,AD4) -> 25 | AK4: =IF(Inputs!$B$6=0,'Fertilizer Numbers 05-10'!AH4,AE4) -> 0 | AL4: =Inputs!$C$13 -> 20 | AM4: =Inputs!$B$10 -> 95 | AN4: =Inputs!$B$11 -> 25 | AO4: =Inputs!$B$12 -> 0 | AP4: =Inputs!$B$13 -> 20 | AQ4: 0 | AR4: 0 | AS4: =Inputs!$K$10 -> 0 | AT4: =Inputs!$K$11 -> 0 | AU4: =Inputs!$K$12 -> 150 | AV4: =Inputs!$J$10 -> 0 | AW4: =Inputs!J$11 -> 0 | AX4: =Inputs!$J$12 -> 125 | AY4: =IF(Inputs!$B$6=0,AV4,AS4) -> 0 | AZ4: =IF(Inputs!$B$6=0,AW4,AT4) -> 0 | BA4: =IF(Inputs!$B$6=0,AX4,AU4) -> 125 | BB4: 86 | BC4: 0 | BD4: 0 | BE4: =Inputs!$L$10 -> 85 | BF4: =Inputs!$L$11 -> 0 | BG4: =Inputs!$L$12 -> 5 | BH4: =IF(Inputs!$B$6=0,'Fertilizer Numbers 05-10'!BE4,BB4) -> 85 | BI4: =IF(Inputs!$B$6=0,'Fertilizer Numbers 05-10'!BF4,BC4) -> 0 | BJ4: =IF(Inputs!$B$6=0,'Fertilizer Numbers 05-10'!BG4,BD4) -> 5 | BK4: =Soybean!J4 -> 0 | BL4: =BK4*H4 -> 0 | BM4: =BK4*I4 -> 0 | BN4: =BK4*J4 -> 0 | BO4: =Corn!J4 -> 0 | BP4: =BO4*Q4 -> 0 | BQ4: =BO4*R4 -> 0 | BR4: =BO4*S4 -> 0 | BS4: =Sorghum!J4 -> 0 | BT4: =BS4*Z4 -> 0 | BU4: =BS4*AA4 -> 0 | BV4: =BS4*AB4 -> 0 | BW4: =Wheat!Q4 -> 400 | BX4: =IF(AJ85=1,AI4*BW4,AM4*BW4) -> 38000 | BY4: =IF(AJ85=1,AJ4*BW4,AN4*BW4) -> 10000 | BZ4: =IF(AJ85=1,AK4*BW4,AO4*BW4) -> 0 | CA4: =Wheat!AP4 -> 800 | CB4: =CA4*IF(Inputs!$B$6=1,AL4,AP4) -> 16000 | CC4: =CA4*AQ4 -> 0 | CD4: =CA4*AR4 -> 0 | CE4: =Alfalfa!J4 -> 0 | CF4: =CE4*AY4 -> 0 | CG4: =CE4*AZ4 -> 0 | CH4: =CE4*BA4 -> 0 | CI4: ='All Other Hay'!I4 -> 0 | CJ4: =CI4*BH4 -> 0 | CK4: =CI4*BI4 -> 0 | CL4: =CI4*BJ4 -> 0 | CM4: =(BK4+BP4+BT4+BX4+CF4+CJ4)/2000 -> 19 | CN4: =(BL4+BQ4+BU4+BY4+CC4+CG4+CK4)/2000 -> 5 | CO4: =(BM4+BR4+BV4+BZ4+CD4+CH4+CL4)/2000 -> 0 | CP4: =Soybean!E4 -> 0 | CQ4: =CP4*H4 -> 0 | CR4: =CP4*I4 -> 0 | CS4: =CP4*J4 -> 0 | CT4: =Corn!L4 -> 0 | CU4: =CT4*Q4 -> 0 | CV4: =CT4*R4 -> 0 | CW4: =CT4*S4 -> 0 | CX4: =Sorghum!L4 -> 0 | CY4: =CX4*Z4 -> 0 | CZ4: =CX4*AA4 -> 0 | DA4: =CX4*AB4 -> 0 | DB4: =Wheat!S4 -> 0 | DC4: =IF($AJ$85=1,AI4*DB4,AM4*DB4) -> 0 | DD4: =IF($AJ$85=1,AJ4*DB4,AN4*DB4) -> 0 | DE4: =IF($AJ$85=1,AK4*DB4,AO4*DB4) -> 0 | DF4: =Wheat!AQ4 -> 0 | DG4: =DF4*IF(Inputs!$B$6=1,AL4,AP4) -> 0 | DH4: =DF4*AQ4 -> 0 | DI4: =DF4*AR4 -> 0 | DJ4: =Alfalfa!M4 -> 0 | DK4: =DJ4*AY4 -> 0 | DL4: =DJ4*AZ4 -> 0 | DM4: =DJ4*BA4 -> 0 | DN4: ='All Other Hay'!J4 -> 0 | DO4: =DN4*BH4 -> 0 | DP4: =DN4*BI4 -> 0 | DQ4: =DN4*BJ4 -> 0 | DR4: =(CQ4+CU4+CY4+DC4+DG4+DK4+DO4)/2000 -> 0 | DS4: =(CR4+CV4+CZ4+DD4+DH4+DL4+DP4)/2000 -> 0 | DT4: =(CS4+CW4+DA4+DE4+DI4+DM4+DQ4)/2000 -> 0 | DU4: =IF(Inputs!B54>0,Inputs!B54*'Fertilizer Numbers 05-10'!DR4,0) -> 0 | DV4: =IF(Inputs!B54>0,Inputs!B54*'Fertilizer Numbers 05-10'!DS4,0) -> 0 | DW4: =IF(Inputs!B54>0,Inputs!B54*'Fertilizer Numbers 05-10'!DT4,0) -> 0 | DX4: =Soybean!N4 -> 0 | DY4: =DX4*H4 -> 0 | DZ4: =DX4*I4 -> 0 | EA4: =DX4*J4 -> 0 | EB4: =Corn!N4 -> 0 | EC4: =Q4 -> 100 | ED4: =EB4*R4 -> 0 | EE4: =EB4*S4 -> 0 | EF4: =Sorghum!N4 -> 0 | EG4: =EF4*Z4 -> 0 | EH4: =EF4*AA4 -> 0 | EI4: =EF4*AB4 -> 0 | EJ4: =Wheat!U4 -> 0 | EK4: =IF($AJ$85=1,AI4*EJ4,AM4*EJ4) -> 0 | EL4: =IF(AJ85=1,AJ4*EJ4,AN4*EJ4) -> 0 | EM4: =IF(AJ85=1,AK4*EJ4,AO4*EJ4) -> 0 | EN4: =Wheat!AR4 -> 0 | EO4: =EN4*AP4 -> 0 | EP4: =EN4*AQ4 -> 0 | EQ4: =EN4*AR4 -> 0 | ER4: =Alfalfa!F4 -> 0 | ES4: =ER4*AY4 -> 0 | ET4: =ER4*AZ4 -> 0 | EU4: =ER4*BA4 -> 0 | EV4: ='All Other Hay'!F4 -> 0 | EW4: =EV4*BH4 -> 0 | EX4: =EV4*BI4 -> 0 | EY4: =EV4*BJ4 -> 0 | EZ4: =(DY4+EC4+EG4+EK4+EO4+ES4+EW4)/2000 -> 0.05 | FA4: =(DZ4+ED4+EH4+EL4+EP4+ET4+EX4)/2000 -> 0 | FB4: =(EA4+EE4+EI4+EM4+EQ4+EU4+EY4)/2000 -> 0 | FC4: =IF(Inputs!C54>0,Inputs!C54*'Fertilizer Numbers 05-10'!EZ4,0) -> 0 | FD4: =IF(Inputs!C54>0,Inputs!C54*'Fertilizer Numbers 05-10'!FA4,0) -> 0 | FE4: =IF(Inputs!C54>0,Inputs!C54*'Fertilizer Numbers 05-10'!FB4,0) -> 0 | FF4: =Soybean!Q4 -> 0 | FG4: =FF4*H4 -> 0 | FH4: =FF4*I4 -> 0 | FI4: =FF4*J4 -> 0 | FJ4: =Corn!Q4 -> 0 | FK4: =FJ4*Q4 -> 0 | FL4: =FJ4*R4 -> 0 | FM4: =FJ4*S4 -> 0 | FN4: =Sorghum!Q4 -> 0 | FO4: =FN4*Z4 -> 0 | FP4: =FN4*AA4 -> 0 | FQ4: =FN4*AB4 -> 0 | FR4: =Wheat!W4 -> 0 | FS4: =IF($AJ$85=1,AI4*FR4,AM4*FR4) -> 0 | FT4: =IF(AJ85=1,AJ4*FR4,AN4*FR4) -> 0 | FU4: =IF(AJ85=1,AK4*FR4,AO4*FR4) -> 0 | FV4: =Wheat!AS4 -> 0 | FW4: =FV4*IF(Inputs!$B$6=1,AL4,AP4) -> 0 | FX4: =FV4*AQ4 -> 0 | FY4: =FV4*AR4 -> 0 | FZ4: =Alfalfa!O4 -> 0 | GA4: =FZ4*AY4 -> 0 | GB4: =FZ4*AZ4 -> 0 | GC4: =FZ4*BA4 -> 0 | GD4: ='All Other Hay'!L4 -> 0 | GE4: 0 | GF4: =GD4*BI4 -> 0 | GG4: =GD4*BJ4 -> 0 | GH4: =(FG4+FK4+FO4+FS4+FW4+GA4+GE4)/2000 -> 0 | GI4: =(FH4+FL4+FP4+FT4+FX4+GB4+GF4)/2000 -> 0 | GJ4: =(FI4+FM4+FQ4+FU4+FY4+GC4+GG4)/2000 -> 0 | GK4: =IF(Inputs!D54>0,Inputs!D54*'Fertilizer Numbers 05-10'!GH4,0) -> 0 | GL4: =IF(Inputs!D54>0,Inputs!D54*'Fertilizer Numbers 05-10'!GI4,0) -> 0 | GM4: =IF(Inputs!D54>0,Inputs!D54*'Fertilizer Numbers 05-10'!GJ4,0) -> 0 | GO4: =Soybean!T4 -> 0 | GP4: =+GO4*H4 -> 0 | GQ4: =+GO4*I4 -> 0 | GR4: =+GO4*J4 -> 0 | GS4: =Corn!T4 -> 0 | GT4: =+GS4*Q4 -> 0 | GU4: =+GS4*R4 -> 0 | GV4: =+GS4*S4 -> 0 | GW4: =Sorghum!T4 -> 0 | GX4: =+GW4*Z4 -> 0 | GY4: =+GW4*AA4 -> 0 | GZ4: =+GW4*AB4 -> 0 | HA4: =Wheat!Y4 -> 0 | HB4: =IF($AJ$85=1,AI4*HA4,AM4*HA4) -> 0 | HC4: =+HA4*AQ4 -> 0 | HD4: =+HA4*AR4 -> 0 | HE4: =Wheat!AT4 -> 0 | HF4: =+HE4*IF(Inputs!$B$6=1,AL4,AP4) -> 0 | HG4: =+HE4*AQ4 -> 0 | HH4: =+HE4*AR4 -> 0 | HI4: =Alfalfa!Q4 -> 0 | HJ4: =+HI4*AY4 -> 0 | HK4: =+HI4*BI4 -> 0 | HL4: =+HI4*BA4 -> 0 | HM4: ='All Other Hay'!N4 -> 0 | HN4: =+HM4*BH4 -> 0 | HO4: =+HM4*BI4 -> 0 | HP4: =+HM4*BJ4 -> 0 | HQ4: =(GP4+GT4+GX4+HB4+HF4+HJ4+HN4)/2000 -> 0 | HR4: =(GQ4+GU4+GY4+HC4+HG4+HK4+HO4)/2000 -> 0 | HS4: =(GR4+GV4+GZ4+HD4+HH4+HL4+HP4)/2000 -> 0 | HT4: =IF(Inputs!E54>0,Inputs!E54*'Fertilizer Numbers 05-10'!HQ4,0) -> 0 | HU4: =IF(Inputs!E54>0,Inputs!E54*'Fertilizer Numbers 05-10'!HR4,0) -> 0 | HV4: =IF(Inputs!E54>0,Inputs!E54*'Fertilizer Numbers 05-10'!HS4,0) -> 0 | HX4: =Soybean!W4 -> 0 | HY4: =HX4*$H4 -> 0 | HZ4: =HX4*$I4 -> 0 | IA4: =HX4*$J4 -> 0 | IB4: =Corn!W4 -> 0 | IC4: =IB4*$Q4 -> 0 | ID4: =IB4*$R4 -> 0 | IE4: =IB4*$S4 -> 0 | IF4: =Sorghum!W4 -> 0 | IG4: =IF4*$Z4 -> 0 | IH4: =IF4*$AA4 -> 0 | II4: =IF4*$AB4 -> 0 | IJ4: =Wheat!AA4 -> 0 | IK4: =IF($AJ$85=1,$AI4*IJ4,$AM4*IJ4) -> 0 | IL4: =IJ4*$AJ4 -> 0 | IM4: =IJ4*$AK4 -> 0 | IN4: =Wheat!AU4 -> 0 | IO4: =IN4*IF(Inputs!$B$6=1,$AL4,$AP4) -> 0 | IP4: =IN4*$AQ4 -> 0 | IQ4: =IN4*$AR4 -> 0 | IR4: =Alfalfa!S4 -> 0 | IS4: =IR4*$AY4 -> 0 | IT4: =IR4*$AZ4 -> 0 | IU4: =IR4*$BA4 -> 0 | IV4: ='All Other Hay'!P4 -> 0 | IW4: =IV4*$BH4 -> 0 | IX4: =IV4*$BI4 -> 0 | IY4: =IV4*BJ4 -> 0 | IZ4: =(HY4+IC4+IG4+IK4+IO4+IS4+IW4)/2000 -> 0 | JA4: =(HZ4+ID4+IH4+IL4+IP4+IT4+IX4)/2000 -> 0 | JB4: =(IA4+IE4+II4+IM4+IQ4+IU4+IY4)/2000 -> 0 | JC4: =IF(Inputs!$F54>0,Inputs!$F54*IZ4,0) -> 0 | JD4: =IF(Inputs!$F54>0,Inputs!$F54*JA4,0) -> 0 | JE4: =IF(Inputs!$F54>0,Inputs!$F54*JB4,0) -> 0 | JF4: =Soybean!Z4 -> 0 | JG4: =JF4*$H4 -> 0 | JH4: =JF4*$I4 -> 0 | JI4: =JF4*$J4 -> 0 | JJ4: =Corn!Z4 -> 0 | JK4: =JJ4*$Q4 -> 0 | JL4: =JJ4*$R4 -> 0 | JM4: =JJ4*$S4 -> 0 | JN4: =Sorghum!BE4 -> 0 | JO4: =JN4*$Z4 -> 0 | JP4: =JN4*$AA4 -> 0 | JQ4: =JN4*$AB4 -> 0 | JR4: =Wheat!AC4 -> 0 | JS4: =IF($AJ$85=1,$AI4*JR4,$AM4*JR4) -> 0 | JT4: =JR4*$AJ4 -> 0 | JU4: =JR4*$AK4 -> 0 | JV4: =Wheat!AV4 -> 0 | JW4: =JV4*IF(Inputs!$B$6=1,$AL4,$AP4) -> 0 | JX4: =JV4*$AQ4 -> 0 | JY4: =JV4*$AR4 -> 0 | JZ4: =Alfalfa!U4 -> 0 | KA4: =JZ4*$AY4 -> 0 | KB4: =JZ4*$AZ4 -> 0 | KC4: =JZ4*$BA4 -> 0 | KD4: ='All Other Hay'!R4 -> 50000 | KE4: =KD4*$BH4 -> 4250000 | KF4: =KD4*$BI4 -> 0 | KG4: =KD4*CR4 -> 0 | KH4: =(JG4+JK4+JO4+JS4+JW4+KA4+KE4)/2000 -> 2125 | KI4: =(JH4+JL4+JP4+JT4+JX4+KB4+KF4)/2000 -> 0 | KJ4: =(JI4+JM4+JQ4+JU4+JY4+KC4+KG4)/2000 -> 0 | KK4: =IF(Inputs!$F54>0,Inputs!$F54*KH4,0) -> 0 | KL4: =IF(Inputs!$F54>0,Inputs!$F54*KI4,0) -> 0 | KM4: =IF(Inputs!$F54>0,Inputs!$F54*KJ4,0) -> 0 | KN4: =Soybean!AC4 -> 0 | KO4: =KN4*$H4 -> 0 | KP4: =KN4*$I4 -> 0 | KQ4: =KN4*$J4 -> 0 | KR4: =Corn!BH4 -> 0 | KS4: =KR4*$Q4 -> 0 | KT4: =KR4*$R4 -> 0 | KU4: =KR4*$S4 -> 0 | KV4: =Sorghum!AC4 -> 0 | KW4: =KV4*$Z4 -> 0 | KX4: =KV4*$AA4 -> 0 | KY4: =KV4*$AB4 -> 0 | KZ4: =Wheat!AE4 -> 0 | LA4: =IF($AJ$85=1,$AI4*KZ4,$AM4*KZ4) -> 0 | LB4: =KZ4*$AJ4 -> 0 | LC4: =KZ4*$AK4 -> 0 | LD4: =Wheat!AW4 -> 0 | LE4: =LD4*IF(Inputs!$B$6=1,$AL4,$AP4) -> 0 | LF4: =LD4*$AQ4 -> 0 | LG4: =LD4*$AR4 -> 0 | LH4: =Alfalfa!W4 -> 0 | LI4: =LH4*$AY4 -> 0 | LJ4: =LH4*$AZ4 -> 0 | LK4: =LH4*$BA4 -> 0 | LL4: ='All Other Hay'!T4 -> 0 | LM4: =LL4*$BH4 -> 0 | LN4: =LL4*$BI4 -> 0 | LO4: =LL4*DZ4 -> 0 | LP4: =(KO4+KS4+KW4+LA4+LE4+LI4+LM4)/2000 -> 0 | LQ4: =(KP4+KT4+KX4+LB4+LF4+LJ4+LN4)/2000 -> 0 | LR4: =(KQ4+KU4+KY4+LC4+LG4+LK4+LO4)/2000 -> 0 | LS4: =IF(Inputs!$F54>0,Inputs!$F54*LP4,0) -> 0 | LT4: =IF(Inputs!$F54>0,Inputs!$F54*LQ4,0) -> 0 | LU4: =IF(Inputs!$F54>0,Inputs!$F54*LR4,0) -> 0 | LV4: =Soybean!AF4 -> 0 | LW4: =LV4*$H4 -> 0 | LX4: =LV4*$I4 -> 0 | LY4: =LV4*$J4 -> 0 | LZ4: =Corn!CP4 -> 0 | MA4: =LZ4*$Q4 -> 0 | MB4: =LZ4*$R4 -> 0 | MC4: =LZ4*$S4 -> 0 | MD4: =Sorghum!AF4 -> 0 | ME4: =MD4*$Z4 -> 0 | MF4: =MD4*$AA4 -> 0 | MG4: =MD4*$AB4 -> 0 | MH4: =Wheat!AG4 -> 0 | MI4: =IF($AJ$85=1,$AI4*MH4,$AM4*MH4) -> 0 | MJ4: =MH4*$AJ4 -> 0 | MK4: =MH4*$AK4 -> 0 | ML4: =Wheat!AX4 -> 0 | MM4: =ML4*IF(Inputs!$B$6=1,$AL4,$AP4) -> 0 | MN4: =ML4*$AQ4 -> 0 | MO4: =ML4*$AR4 -> 0 | MP4: =Alfalfa!Z4 -> 0 | MQ4: =MP4*$AY4 -> 0 | MR4: =MP4*$AZ4 -> 0 | MS4: =MP4*$BA4 -> 0 | MT4: ='All Other Hay'!W4 -> 0 | MU4: =MT4*$BH4 -> 0 | MV4: =MT4*$BI4 -> 0 | MW4: =MT4*FH4 -> 0 | MX4: =(LW4+MA4+ME4+MI4+MM4+MQ4+MU4)/2000 -> 0 | MY4: =(LX4+MB4+MF4+MJ4+MN4+MR4+MV4)/2000 -> 0 | MZ4: =(LY4+MC4+MG4+MK4+MO4+MS4+MW4)/2000 -> 0 | NA4: =IF(Inputs!$F54>0,Inputs!$F54*MX4,0) -> 0 | NB4: =IF(Inputs!$F54>0,Inputs!$F54*MY4,0) -> 0 | NC4: =IF(Inputs!$F54>0,Inputs!$F54*MZ4,0) -> 0
A5: Alfalfa | B5: 10 | C5: 0 | D5: 0 | E5: =IF(Inputs!$B$6=0,Inputs!$D$10,) -> 9 | F5: =IF(Inputs!$B$6=0,Inputs!$D$11,) -> 0 | G5: =IF(Inputs!$B$6=0,Inputs!$D$12,) -> 0 | H5: =IF(Inputs!$B$6=0,'Fertilizer Numbers 05-10'!E5,'Fertilizer Numbers 05-10'!B5) -> 9 | I5: =IF(Inputs!$B$6=0,'Fertilizer Numbers 05-10'!F5,'Fertilizer Numbers 05-10'!C5) -> 0 | J5: =IF(Inputs!$B$6=0,'Fertilizer Numbers 05-10'!G5,'Fertilizer Numbers 05-10'!D5) -> 0 | K5: 91 | L5: 20 | M5: 0 | N5: =Inputs!$F$10 -> 100 | O5: =Inputs!$F$11 -> 25 | P5: =Inputs!$F$12 -> 5 | Q5: =IF(Inputs!$B$6=0,N5,K5) -> 100 | R5: =IF(Inputs!$B$6=0,O5,L5) -> 25 | S5: =IF(Inputs!$B$6=0,P5,M5) -> 5 | T5: 39 | U5: 20 | V5: 0 | W5: =Inputs!$H$10 -> 60 | X5: =Inputs!$H$11 -> 20 | Y5: =Inputs!$H$12 -> 0 | Z5: =IF(Inputs!$B$6=0,W5,T5) -> 60 | AA5: =IF(Inputs!$B$6=0,X5,U5) -> 20 | AB5: =IF(Inputs!$B$6=0,Y5,V5) -> 0 | AC5: =Inputs!$C$10 -> 85 | AD5: =Inputs!$C$11 -> 25 | AE5: =Inputs!$C$12 -> 0 | AF5: =Inputs!$C$10 -> 85 | AG5: =Inputs!$C$11 -> 25 | AH5: =Inputs!$C$12 -> 0 | AI5: =IF(Inputs!$B$6=0,'Fertilizer Numbers 05-10'!AF5,AC5) -> 85 | AJ5: =IF(Inputs!$B$6=0,'Fertilizer Numbers 05-10'!AG5,AD5) -> 25 | AK5: =IF(Inputs!$B$6=0,'Fertilizer Numbers 05-10'!AH5,AE5) -> 0 | AL5: =Inputs!$C$13 -> 20 | AM5: =Inputs!$B$10 -> 95 | AN5: =Inputs!$B$11 -> 25 | AO5: =Inputs!$B$12 -> 0 | AP5: =Inputs!$B$13 -> 20 | AQ5: 0 | AR5: 0 | AS5: =Inputs!$K$10 -> 0 | AT5: =Inputs!$K$11 -> 0 | AU5: =Inputs!$K$12 -> 150 | AV5: =Inputs!$J$10 -> 0 | AW5: =Inputs!J$11 -> 0 | AX5: =Inputs!$J$12 -> 125 | AY5: =IF(Inputs!$B$6=0,AV5,AS5) -> 0 | AZ5: =IF(Inputs!$B$6=0,AW5,AT5) -> 0 | BA5: =IF(Inputs!$B$6=0,AX5,AU5) -> 125 | BB5: 58 | BC5: 0 | BD5: 0 | BE5: =Inputs!$L$10 -> 85 | BF5: =Inputs!$L$11 -> 0 | BG5: =Inputs!$L$12 -> 5 | BH5: =IF(Inputs!$B$6=0,'Fertilizer Numbers 05-10'!BE5,BB5) -> 85 | BI5: =IF(Inputs!$B$6=0,'Fertilizer Numbers 05-10'!BF5,BC5) -> 0 | BJ5: =IF(Inputs!$B$6=0,'Fertilizer Numbers 05-10'!BG5,BD5) -> 5 | BK5: =Soybean!J5 -> 1700 | BL5: 15300 | BM5: 0 | BN5: 0 | BO5: =Corn!J5 -> 900 | BP5: 90000 | BQ5: 22500 | BR5: 4500 | BS5: =Sorghum!J5 -> 3200 | BT5: 192000 | BU5: 64000 | BV5: 0 | BW5: =Wheat!Q5 -> 215000 | BX5: =IF(AJ2=1,AI5*BW5,AM5*BW5) -> 20425000 | BY5: =IF(AJ2=1,AJ5*BW5,AN5*BW5) -> 5375000 | BZ5: =IF(AJ2=1,AK5*BW5,AO5*BW5) -> 0 | CA5: =Wheat!AP5 -> 40000 | CB5: =CA5*IF(Inputs!$B$6=1,AL5,AP5) -> 800000 | CC5: 0 | CD5: 0 | CE5: =Alfalfa!J5 -> 27500 | CF5: 0 | CG5: 0 | CH5: 3437500 | CI5: ='All Other Hay'!I5 -> 7000 | CJ5: 595000 | CK5: 0 | CL5: 35000 | CM5: =(BK5+BP5+BT5+BX5+CF5+CJ5)/2000 -> 10651.85 | CN5: =(BL5+BQ5+BU5+BY5+CC5+CG5+CK5)/2000 -> 2738.4 | CO5: =(BM5+BR5+BV5+BZ5+CD5+CH5+CL5)/2000 -> 1738.5 | CP5: =Soybean!E5 -> 900 | CQ5: 8100 | CR5: 0 | CS5: 0 | CT5: =Corn!L5 -> 1400 | CU5: 140000 | CV5: 35000 | CW5: 7000 | CX5: =Sorghum!L5 -> 2300 | CY5: 138000 | CZ5: 46000 | DA5: 0 | DB5: =Wheat!S5 -> 165000 | DC5: 15675000 | DD5: 4125000 | DE5: 0 | DF5: =Wheat!AQ5 -> 35000 | DG5: =DF5*IF(Inputs!$B$6=1,AL5,AP5) -> 700000 | DH5: 0 | DI5: 0 | DJ5: =Alfalfa!M5 -> 29000 | DK5: 0 | DL5: 0 | DM5: 3625000 | DN5: ='All Other Hay'!J5 -> 11000 | DO5: 935000 | DP5: 0 | DQ5: 55000 | DR5: 8798.05 | DS5: 2103 | DT5: 1843.5 | DU5: =IF(Inputs!B55>0,Inputs!B55*'Fertilizer Numbers 05-10'!DR5,0) -> 6598.5375 | DV5: =IF(Inputs!B55>0,Inputs!B55*'Fertilizer Numbers 05-10'!DS5,0) -> 1577.25 | DW5: =IF(Inputs!B55>0,Inputs!B55*'Fertilizer Numbers 05-10'!DT5,0) -> 1382.625 | DX5: =Soybean!N5 -> 3200 | DY5: 28800 | DZ5: 0 | EA5: 0 | EB5: =Corn!N5 -> 0 | EC5: 100 | ED5: 0 | EE5: 0 | EF5: =Sorghum!N5 -> 8000 | EG5: 480000 | EH5: 160000 | EI5: 0 | EJ5: =Wheat!U5 -> 125000 | EK5: 11875000 | EL5: =IF(AJ2=1,AJ5*EJ5,AN5*EJ5) -> 3125000 | EM5: =IF(AJ2=1,AK5*EJ5,AO5*EJ5) -> 0 | EN5: =Wheat!AR5 -> 120000 | EO5: 2400000 | EP5: 0 | EQ5: 0 | ER5: =Alfalfa!F5 -> 26000 | ES5: 0 | ET5: 0 | EU5: 3250000 | EV5: ='All Other Hay'!F5 -> 8000 | EW5: 680000 | EX5: 0 | EY5: 40000 | EZ5: 7731.95 | FA5: 1642.5 | FB5: 1645 | FC5: =IF(Inputs!C55>0,Inputs!C55*'Fertilizer Numbers 05-10'!EZ5,0) -> 5798.9625 | FD5: =IF(Inputs!C55>0,Inputs!C55*'Fertilizer Numbers 05-10'!FA5,0) -> 1231.875 | FE5: =IF(Inputs!C55>0,Inputs!C55*'Fertilizer Numbers 05-10'!FB5,0) -> 1233.75 | FF5: =Soybean!Q5 -> 8200 | FG5: 73800 | FH5: 0 | FI5: 0 | FJ5: =Corn!Q5 -> 0 | FK5: 0 | FL5: 0 | FM5: 0 | FN5: =Sorghum!Q5 -> 0 | FO5: 0 | FP5: 0 | FQ5: 0 | FR5: =Wheat!W5 -> 215000 | FS5: 20425000 | FT5: =IF(AJ2=1,AJ5*FR5,AN5*FR5) -> 5375000 | FU5: =IF(AJ2=1,AK5*FR5,AO5*FR5) -> 0 | FV5: =Wheat!AS5 -> 25000 | FW5: =FV5*IF(Inputs!$B$6=1,AL5,AP5) -> 500000 | FX5: 0 | FY5: 0 | FZ5: =Alfalfa!O5 -> 0 | GA5: 0 | GB5: 0 | GC5: 0 | GD5: ='All Other Hay'!L5 -> 30000 | GE5: =GD5*BH5 -> 2550000 | GF5: 0 | GG5: 150000 | GH5: 11774.4 | GI5: 2687.5 | GJ5: 75 | GK5: =IF(Inputs!D55>0,Inputs!D55*'Fertilizer Numbers 05-10'!GH5,0) -> 8830.8 | GL5: =IF(Inputs!D55>0,Inputs!D55*'Fertilizer Numbers 05-10'!GI5,0) -> 2015.625 | GM5: =IF(Inputs!D55>0,Inputs!D55*'Fertilizer Numbers 05-10'!GJ5,0) -> 56.25 | GO5: =Soybean!T5 -> 8000 | GP5: 72000 | GQ5: 0 | GR5: 0 | GS5: =Corn!T5 -> 0 | GT5: 0 | GU5: 0 | GV5: 0 | GW5: =Sorghum!T5 -> 9000 | GX5: 540000 | GY5: 180000 | GZ5: 0 | HA5: =Wheat!Y5 -> 180000 | HB5: 17100000 | HC5: 0 | HD5: 0 | HE5: =Wheat!AT5 -> 55000 | HF5: =+HE5*IF(Inputs!$B$6=1,AL5,AP5) -> 1100000 | HG5: 0 | HH5: 0 | HI5: =Alfalfa!Q5 -> 0 | HJ5: 0 | HK5: 0 | HL5: 0 | HM5: ='All Other Hay'!N5 -> 0 | HN5: 0 | HO5: 0 | HP5: 0 | HQ5: 9406 | HR5: 90 | HS5: 0 | HT5: =IF(Inputs!E55>0,Inputs!E55*'Fertilizer Numbers 05-10'!HQ5,0) -> 7054.5 | HU5: =IF(Inputs!E55>0,Inputs!E55*'Fertilizer Numbers 05-10'!HR5,0) -> 67.5 | HV5: =IF(Inputs!E55>0,Inputs!E55*'Fertilizer Numbers 05-10'!HS5,0) -> 0 | HX5: =Soybean!W5 -> 11500 | HY5: =HX5*H5 -> 103500 | HZ5: =$HX5*I5 -> 0 | IA5: =$HX5*J5 -> 0 | IB5: =Corn!W5 -> 3600 | IC5: =$IB5*Q5 -> 360000 | ID5: =$IB5*R5 -> 90000 | IE5: =$IB5*S5 -> 18000 | IF5: =Sorghum!W5 -> 7600 | IG5: =$IF5*Z5 -> 456000 | IH5: =$IF5*AA5 -> 152000 | II5: =$IF5*AB5 -> 0 | IJ5: =Wheat!AA5 -> 200000 | IK5: =IF($AJ$85=1,AI5*IJ5,AM5*IJ5) -> 19000000 | IL5: =$IJ5*AJ5 -> 5000000 | IM5: =$IJ5*AK5 -> 0 | IN5: =Wheat!AU5 -> 45000 | IO5: =$IN5*IF(Inputs!$B$6=1,AL5,AP5) -> 900000 | IP5: =$IN5*AQ5 -> 0 | IQ5: =$IN5*AR5 -> 0 | IR5: =Alfalfa!S5 -> 0 | IS5: =$IR5*AY5 -> 0 | IT5: =$IR5*AZ5 -> 0 | IU5: =$IR5*BA5 -> 0 | IV5: ='All Other Hay'!P5 -> 17000 | IW5: =$IV5*BH5 -> 1445000 | IX5: =$IV5*BI5 -> 0 | IY5: =$IV5*BJ5 -> 85000 | IZ5: 11132.25 | JA5: 2621 | JB5: 51.5 | JC5: =IF(Inputs!$F55>0,Inputs!$F55*IZ5,0) -> 8349.1875 | JD5: =IF(Inputs!$F55>0,Inputs!$F55*JA5,0) -> 1965.75 | JE5: =IF(Inputs!$F55>0,Inputs!$F55*JB5,0) -> 38.625 | JF5: =Soybean!Z5 -> 0 | JG5: =JF5*$H5 -> 0 | JH5: =JF5*$I5 -> 0 | JI5: =JF5*$J5 -> 0 | JJ5: =Corn!Z5 -> 0 | JK5: =JJ5*$Q5 -> 0 | JL5: =JJ5*$R5 -> 0 | JM5: =JJ5*$S5 -> 0 | JN5: =Sorghum!BE5 -> 0 | JO5: =JN5*$Z5 -> 0 | JP5: =JN5*$AA5 -> 0 | JQ5: =JN5*$AB5 -> 0 | JR5: =Wheat!AC5 -> 195000 | JS5: 18525000 | JT5: =JR5*$AJ5 -> 4875000 | JU5: =JR5*$AK5 -> 0 | JV5: =Wheat!AV5 -> 45000 | JW5: =JV5*IF(Inputs!$B$6=1,$AL5,$AP5) -> 900000 | JX5: =JV5*$AQ5 -> 0 | JY5: =JV5*$AR5 -> 0 | JZ5: =Alfalfa!U5 -> 0 | KA5: =JZ5*$AY5 -> 0 | KB5: =JZ5*$AZ5 -> 0 | KC5: =JZ5*$BA5 -> 0 | KD5: ='All Other Hay'!R5 -> 0 | KE5: =KD5*$BH5 -> 0 | KF5: =KD5*$BI5 -> 0 | KG5: =KD5*CR5 -> 0 | KH5: =(JG5+JK5+JO5+JS5+JW5+KA5+KE5)/2000 -> 9712.5 | KI5: =(JH5+JL5+JP5+JT5+JX5+KB5+KF5)/2000 -> 2437.5 | KJ5: =(JI5+JM5+JQ5+JU5+JY5+KC5+KG5)/2000 -> 0 | KK5: =IF(Inputs!$F55>0,Inputs!$F55*KH5,0) -> 7284.375 | KL5: =IF(Inputs!$F55>0,Inputs!$F55*KI5,0) -> 1828.125 | KM5: ` | KN5: =Soybean!AC5 -> 0 | KO5: =KN5*$H5 -> 0 | KP5: =KN5*$I5 -> 0 | KQ5: =KN5*$J5 -> 0 | KR5: =Corn!BH5 -> 0 | KS5: =KR5*$Q5 -> 0 | KT5: =KR5*$R5 -> 0 | KU5: =KR5*$S5 -> 0 | KV5: =Sorghum!AC5 -> 3500 | KW5: =KV5*$Z5 -> 210000 | KX5: =KV5*$AA5 -> 70000 | KY5: =KV5*$AB5 -> 0 | KZ5: =Wheat!AE5 -> 230000 | LA5: 21850000 | LB5: =KZ5*$AJ5 -> 5750000 | LC5: =KZ5*$AK5 -> 0 | LD5: =Wheat!AW5 -> 30000 | LE5: =LD5*IF(Inputs!$B$6=1,$AL5,$AP5) -> 600000 | LF5: =LD5*$AQ5 -> 0 | LG5: =LD5*$AR5 -> 0 | LH5: =Alfalfa!W5 -> 17000 | LI5: =LH5*$AY5 -> 0 | LJ5: =LH5*$AZ5 -> 0 | LK5: =LH5*$BA5 -> 2125000 | LL5: ='All Other Hay'!T5 -> 0 | LM5: =LL5*$BH5 -> 0 | LN5: =LL5*$BI5 -> 0 | LO5: =LL5*DZ5 -> 0 | LP5: =(KO5+KS5+KW5+LA5+LE5+LI5+LM5)/2000 -> 11330 | LQ5: =(KP5+KT5+KX5+LB5+LF5+LJ5+LN5)/2000 -> 2910 | LR5: =(KQ5+KU5+KY5+LC5+LG5+LK5+LO5)/2000 -> 1062.5 | LS5: =IF(Inputs!$F55>0,Inputs!$F55*LP5,0) -> 8497.5 | LT5: =IF(Inputs!$F55>0,Inputs!$F55*LQ5,0) -> 2182.5 | LU5: =IF(Inputs!$F55>0,Inputs!$F55*LR5,0) -> 796.875 | LV5: =Soybean!AF5 -> 0 | LW5: =LV5*$H5 -> 0 | LX5: =LV5*$I5 -> 0 | LY5: =LV5*$J5 -> 0 | LZ5: =Corn!CP5 -> 0 | MA5: =LZ5*$Q5 -> 0 | MB5: =LZ5*$R5 -> 0 | MC5: =LZ5*$S5 -> 0 | MD5: =Sorghum!AF5 -> 3500 | ME5: =MD5*$Z5 -> 210000 | MF5: =MD5*$AA5 -> 70000 | MG5: =MD5*$AB5 -> 0 | MH5: =Wheat!AG5 -> 180000 | MI5: 17100000 | MJ5: =MH5*$AJ5 -> 4500000 | MK5: =MH5*$AK5 -> 0 | ML5: =Wheat!AX5 -> 65000 | MM5: =ML5*IF(Inputs!$B$6=1,$AL5,$AP5) -> 1300000 | MN5: =ML5*$AQ5 -> 0 | MO5: =ML5*$AR5 -> 0 | MP5: =Alfalfa!Z5 -> 38000 | MQ5: =MP5*$AY5 -> 0 | MR5: =MP5*$AZ5 -> 0 | MS5: =MP5*$BA5 -> 4750000 | MT5: ='All Other Hay'!W5 -> 63000 | MU5: =MT5*$BH5 -> 5355000 | MV5: =MT5*$BI5 -> 0 | MW5: =MT5*FH5 -> 0 | MX5: =(LW5+MA5+ME5+MI5+MM5+MQ5+MU5)/2000 -> 11982.5 | MY5: =(LX5+MB5+MF5+MJ5+MN5+MR5+MV5)/2000 -> 2285 | MZ5: =(LY5+MC5+MG5+MK5+MO5+MS5+MW5)/2000 -> 2375 | NA5: =IF(Inputs!$F55>0,Inputs!$F55*MX5,0) -> 8986.875 | NB5: =IF(Inputs!$F55>0,Inputs!$F55*MY5,0) -> 1713.75 | NC5: =IF(Inputs!$F55>0,Inputs!$F55*MZ5,0) -> 1781.25
A6: Atoka | B6: 10 | C6: 0 | D6: 0 | E6: =IF(Inputs!$B$6=0,Inputs!$D$10,) -> 9 | F6: =IF(Inputs!$B$6=0,Inputs!$D$11,) -> 0 | G6: =IF(Inputs!$B$6=0,Inputs!$D$12,) -> 0 | H6: =IF(Inputs!$B$6=0,'Fertilizer Numbers 05-10'!E6,'Fertilizer Numbers 05-10'!B6) -> 9 | I6: =IF(Inputs!$B$6=0,'Fertilizer Numbers 05-10'!F6,'Fertilizer Numbers 05-10'!C6) -> 0 | J6: =IF(Inputs!$B$6=0,'Fertilizer Numbers 05-10'!G6,'Fertilizer Numbers 05-10'!D6) -> 0 | K6: 89 | L6: 20 | M6: 0 | N6: =Inputs!$F$10 -> 100 | O6: =Inputs!$F$11 -> 25 | P6: =Inputs!$F$12 -> 5 | Q6: =IF(Inputs!$B$6=0,N6,K6) -> 100 | R6: =IF(Inputs!$B$6=0,O6,L6) -> 25 | S6: =IF(Inputs!$B$6=0,P6,M6) -> 5 | T6: 39 | U6: 20 | V6: 0 | W6: =Inputs!$H$10 -> 60 | X6: =Inputs!$H$11 -> 20 | Y6: =Inputs!$H$12 -> 0 | Z6: =IF(Inputs!$B$6=0,W6,T6) -> 60 | AA6: =IF(Inputs!$B$6=0,X6,U6) -> 20 | AB6: =IF(Inputs!$B$6=0,Y6,V6) -> 0 | AC6: =Inputs!$C$10 -> 85 | AD6: =Inputs!$C$11 -> 25 | AE6: =Inputs!$C$12 -> 0 | AF6: =Inputs!$C$10 -> 85 | AG6: =Inputs!$C$11 -> 25 | AH6: =Inputs!$C$12 -> 0 | AI6: =IF(Inputs!$B$6=0,'Fertilizer Numbers 05-10'!AF6,AC6) -> 85 | AJ6: =IF(Inputs!$B$6=0,'Fertilizer Numbers 05-10'!AG6,AD6) -> 25 | AK6: =IF(Inputs!$B$6=0,'Fertilizer Numbers 05-10'!AH6,AE6) -> 0 | AL6: =Inputs!$C$13 -> 20 | AM6: =Inputs!$B$10 -> 95 | AN6: =Inputs!$B$11 -> 25 | AO6: =Inputs!$B$12 -> 0 | AP6: =Inputs!$B$13 -> 20 | AQ6: 0 | AR6: 0 | AS6: =Inputs!$K$10 -> 0 | AT6: =Inputs!$K$11 -> 0 | AU6: =Inputs!$K$12 -> 150 | AV6: =Inputs!$J$10 -> 0 | AW6: =Inputs!J$11 -> 0 | AX6: =Inputs!$J$12 -> 125 | AY6: =IF(Inputs!$B$6=0,AV6,AS6) -> 0 | AZ6: =IF(Inputs!$B$6=0,AW6,AT6) -> 0 | BA6: =IF(Inputs!$B$6=0,AX6,AU6) -> 125 | BB6: 72 | BC6: 0 | BD6: 0 | BE6: =Inputs!$L$10 -> 85 | BF6: =Inputs!$L$11 -> 0 | BG6: =Inputs!$L$12 -> 5 | BH6: =IF(Inputs!$B$6=0,'Fertilizer Numbers 05-10'!BE6,BB6) -> 85 | BI6: =IF(Inputs!$B$6=0,'Fertilizer Numbers 05-10'!BF6,BC6) -> 0 | BJ6: =IF(Inputs!$B$6=0,'Fertilizer Numbers 05-10'!BG6,BD6) -> 5 | BK6: =Soybean!J6 -> 0 | BL6: 0 | BM6: 0 | BN6: 0 | BO6: =Corn!J6 -> 0 | BP6: 0 | BQ6: 0 | BR6: 0 | BS6: =Sorghum!J6 -> 0 | BT6: 0 | BU6: 0 | BV6: 0 | BW6: =Wheat!Q6 -> 0 | BX6: 0 | BY6: 0 | BZ6: 0 | CA6: =Wheat!AP6 -> 0 | CB6: =CA6*IF(Inputs!$B$6=1,AL6,AP6) -> 0 | CC6: 0 | CD6: 0 | CE6: =Alfalfa!J6 -> 800 | CF6: 0 | CG6: 0 | CH6: 100000 | CI6: ='All Other Hay'!I6 -> 65000 | CJ6: 5525000 | CK6: 0 | CL6: 325000 | CM6: 2762.5 | CN6: 0 | CO6: 212.5 | CP6: =Soybean!E6 -> 0 | CQ6: 0 | CR6: 0 | CS6: 0 | CT6: =Corn!L6 -> 0 | CU6: 0 | CV6: 0 | CW6: 0 | CX6: =Sorghum!L6 -> 0 | CY6: 0 | CZ6: 0 | DA6: 0 | DB6: =Wheat!S6 -> 0 | DC6: 0 | DD6: 0 | DE6: 0 | DF6: =Wheat!AQ6 -> 0 | DG6: =DF6*IF(Inputs!$B$6=1,AL6,AP6) -> 0 | DH6: 0 | DI6: 0 | DJ6: =Alfalfa!M6 -> 0 | DK6: 0 | DL6: 0 | DM6: 0 | DN6: ='All Other Hay'!J6 -> 0 | DO6: 0 | DP6: 0 | DQ6: 0 | DR6: 0 | DS6: 0 | DT6: 0 | DU6: =IF(Inputs!B56>0,Inputs!B56*'Fertilizer Numbers 05-10'!DR6,0) -> 0 | DV6: =IF(Inputs!B56>0,Inputs!B56*'Fertilizer Numbers 05-10'!DS6,0) -> 0 | DW6: =IF(Inputs!B56>0,Inputs!B56*'Fertilizer Numbers 05-10'!DT6,0) -> 0 | DX6: =Soybean!N6 -> 0 | DY6: 0 | DZ6: 0 | EA6: 0 | EB6: =Corn!N6 -> 0 | EC6: 100 | ED6: 0 | EE6: 0 | EF6: =Sorghum!N6 -> 0 | EG6: 0 | EH6: 0 | EI6: 0 | EJ6: =Wheat!U6 -> 0 | EK6: 0 | EL6: 0 | EM6: 0 | EN6: =Wheat!AR6 -> 0 | EO6: 0 | EP6: 0 | EQ6: 0 | ER6: =Alfalfa!F6 -> 0 | ES6: 0 | ET6: 0 | EU6: 0 | EV6: ='All Other Hay'!F6 -> 0 | EW6: 0 | EX6: 0 | EY6: 0 | EZ6: 0.05 | FA6: 0 | FB6: 0 | FC6: =IF(Inputs!C56>0,Inputs!C56*'Fertilizer Numbers 05-10'!EZ6,0) -> 0 | FD6: =IF(Inputs!C56>0,Inputs!C56*'Fertilizer Numbers 05-10'!FA6,0) -> 0 | FE6: =IF(Inputs!C56>0,Inputs!C56*'Fertilizer Numbers 05-10'!FB6,0) -> 0 | FF6: =Soybean!Q6 -> 0 | FG6: 0 | FH6: 0 | FI6: 0 | FJ6: =Corn!Q6 -> 0 | FK6: 0 | FL6: 0 | FM6: 0 | FN6: =Sorghum!Q6 -> 0 | FO6: 0 | FP6: 0 | FQ6: 0 | FR6: =Wheat!W6 -> 0 | FS6: 0 | FT6: 0 | FU6: 0 | FV6: =Wheat!AS6 -> 0 | FW6: =FV6*IF(Inputs!$B$6=1,AL6,AP6) -> 0 | FX6: 0 | FY6: 0 | FZ6: =Alfalfa!O6 -> 0 | GA6: 0 | GB6: 0 | GC6: 0 | GD6: ='All Other Hay'!L6 -> 0 | GE6: 0 | GF6: 0 | GG6: 0 | GH6: 0 | GI6: 0 | GJ6: 0 | GK6: =IF(Inputs!D56>0,Inputs!D56*'Fertilizer Numbers 05-10'!GH6,0) -> 0 | GL6: =IF(Inputs!D56>0,Inputs!D56*'Fertilizer Numbers 05-10'!GI6,0) -> 0 | GM6: =IF(Inputs!D56>0,Inputs!D56*'Fertilizer Numbers 05-10'!GJ6,0) -> 0 | GO6: =Soybean!T6 -> 0 | GP6: 0 | GQ6: 0 | GR6: 0 | GS6: =Corn!T6 -> 0 | GT6: 0 | GU6: 0 | GV6: 0 | GW6: =Sorghum!T6 -> 0 | GX6: 0 | GY6: 0 | GZ6: 0 | HA6: =Wheat!Y6 -> 0 | HB6: 0 | HC6: 0 | HD6: 0 | HE6: =Wheat!AT6 -> 0 | HF6: =+HE6*IF(Inputs!$B$6=1,AL6,AP6) -> 0 | HG6: 0 | HH6: 0 | HI6: =Alfalfa!Q6 -> 0 | HJ6: 0 | HK6: 0 | HL6: 0 | HM6: ='All Other Hay'!N6 -> 0 | HN6: 0 | HO6: 0 | HP6: 0 | HQ6: 0 | HR6: 0 | HS6: 0 | HT6: =IF(Inputs!E56>0,Inputs!E56*'Fertilizer Numbers 05-10'!HQ6,0) -> 0 | HU6: =IF(Inputs!E56>0,Inputs!E56*'Fertilizer Numbers 05-10'!HR6,0) -> 0 | HV6: =IF(Inputs!E56>0,Inputs!E56*'Fertilizer Numbers 05-10'!HS6,0) -> 0 | HX6: =Soybean!W6 -> 0 | HY6: 0 | HZ6: 0 | IA6: 0 | IB6: =Corn!W6 -> 0 | IC6: 0 | ID6: 0 | IE6: 0 | IF6: =Sorghum!W6 -> 0 | IG6: 0 | IH6: 0 | II6: 0 | IJ6: =Wheat!AA6 -> 0 | IK6: 0 | IL6: 0 | IM6: 0 | IN6: =Wheat!AU6 -> 0 | IO6: =$IN6*IF(Inputs!$B$6=1,AL6,AP6) -> 0 | IP6: 0 | IQ6: 0 | IR6: =Alfalfa!S6 -> 0 | IS6: 0 | IT6: 0 | IU6: 0 | IV6: ='All Other Hay'!P6 -> 0 | IW6: 0 | IX6: 0 | IY6: 0 | IZ6: 0 | JA6: 0 | JB6: 0 | JC6: =IF(Inputs!$F56>0,Inputs!$F56*IZ6,0) -> 0 | JD6: =IF(Inputs!$F56>0,Inputs!$F56*JA6,0) -> 0 | JE6: =IF(Inputs!$F56>0,Inputs!$F56*JB6,0) -> 0 | JF6: =Soybean!Z6 -> 0 | JG6: 0 | JH6: 0 | JI6: 0 | JJ6: =Corn!Z6 -> 0 | JK6: 0 | JL6: 0 | JM6: 0 | JN6: =Sorghum!BE6 -> 0 | JO6: 0 | JP6: 0 | JQ6: 0 | JR6: =Wheat!AC6 -> 0 | JS6: 0 | JT6: 0 | JU6: 0 | JV6: =Wheat!AV6 -> 0 | JW6: =JV6*IF(Inputs!$B$6=1,$AL6,$AP6) -> 0 | JX6: 0 | JY6: 0 | JZ6: =Alfalfa!U6 -> 0 | KA6: 0 | KB6: 0 | KC6: 0 | KD6: ='All Other Hay'!R6 -> 0 | KE6: 0 | KF6: 0 | KG6: 0 | KH6: 0 | KI6: 0 | KJ6: 0 | KK6: =IF(Inputs!$F56>0,Inputs!$F56*KH6,0) -> 0 | KL6: =IF(Inputs!$F56>0,Inputs!$F56*KI6,0) -> 0 | KM6: =IF(Inputs!$F56>0,Inputs!$F56*KJ6,0) -> 0 | KN6: =Soybean!AC6 -> 0 | KO6: 0 | KP6: 0 | KQ6: 0 | KR6: =Corn!BH6 -> 0 | KS6: 0 | KT6: 0 | KU6: 0 | KV6: =Sorghum!AC6 -> 0 | KW6: 0 | KX6: 0 | KY6: 0 | KZ6: =Wheat!AE6 -> 0 | LA6: 0 | LB6: 0 | LC6: 0 | LD6: =Wheat!AW6 -> 0 | LE6: =LD6*IF(Inputs!$B$6=1,$AL6,$AP6) -> 0 | LF6: 0 | LG6: 0 | LH6: =Alfalfa!W6 -> 0 | LI6: 0 | LJ6: 0 | LK6: 0 | LL6: ='All Other Hay'!T6 -> 0 | LM6: 0 | LN6: 0 | LO6: 0 | LP6: 0 | LQ6: 0 | LR6: 0 | LS6: =IF(Inputs!$F56>0,Inputs!$F56*LP6,0) -> 0 | LT6: =IF(Inputs!$F56>0,Inputs!$F56*LQ6,0) -> 0 | LU6: =IF(Inputs!$F56>0,Inputs!$F56*LR6,0) -> 0 | LV6: =Soybean!AF6 -> 0 | LW6: 0 | LX6: 0 | LY6: 0 | LZ6: =Corn!CP6 -> 0 | MA6: 0 | MB6: 0 | MC6: 0 | MD6: =Sorghum!AF6 -> 0 | ME6: 0 | MF6: 0 | MG6: 0 | MH6: =Wheat!AG6 -> 0 | MI6: 0 | MJ6: 0 | MK6: 0 | ML6: =Wheat!AX6 -> 0 | MM6: =ML6*IF(Inputs!$B$6=1,$AL6,$AP6) -> 0 | MN6: 0 | MO6: 0 | MP6: =Alfalfa!Z6 -> 0 | MQ6: 0 | MR6: 0 | MS6: 0 | MT6: ='All Other Hay'!W6 -> 0 | MU6: 0 | MV6: 0 | MW6: 0 | MX6: 0 | MY6: 0 | MZ6: 0 | NA6: =IF(Inputs!$F56>0,Inputs!$F56*MX6,0) -> 0 | NB6: =IF(Inputs!$F56>0,Inputs!$F56*MY6,0) -> 0 | NC6: =IF(Inputs!$F56>0,Inputs!$F56*MZ6,0) -> 0
A7: Beaver | B7: 10 | C7: 0 | D7: 0 | E7: =IF(Inputs!$B$6=0,Inputs!$D$10,) -> 9 | F7: =IF(Inputs!$B$6=0,Inputs!$D$11,) -> 0 | G7: =IF(Inputs!$B$6=0,Inputs!$D$12,) -> 0 | H7: =IF(Inputs!$B$6=0,'Fertilizer Numbers 05-10'!E7,'Fertilizer Numbers 05-10'!B7) -> 9 | I7: =IF(Inputs!$B$6=0,'Fertilizer Numbers 05-10'!F7,'Fertilizer Numbers 05-10'!C7) -> 0 | J7: =IF(Inputs!$B$6=0,'Fertilizer Numbers 05-10'!G7,'Fertilizer Numbers 05-10'!D7) -> 0 | K7: 70 | L7: 20 | M7: 0 | N7: =Inputs!$F$10 -> 100 | O7: =Inputs!$F$11 -> 25 | P7: =Inputs!$F$12 -> 5 | Q7: =IF(Inputs!$B$6=0,N7,K7) -> 100 | R7: =IF(Inputs!$B$6=0,O7,L7) -> 25 | S7: =IF(Inputs!$B$6=0,P7,M7) -> 5 | T7: 18 | U7: 20 | V7: 0 | W7: =Inputs!$H$10 -> 60 | X7: =Inputs!$H$11 -> 20 | Y7: =Inputs!$H$12 -> 0 | Z7: =IF(Inputs!$B$6=0,W7,T7) -> 60 | AA7: =IF(Inputs!$B$6=0,X7,U7) -> 20 | AB7: =IF(Inputs!$B$6=0,Y7,V7) -> 0 | AC7: =Inputs!$C$10 -> 85 | AD7: =Inputs!$C$11 -> 25 | AE7: =Inputs!$C$12 -> 0 | AF7: =Inputs!$C$10 -> 85 | AG7: =Inputs!$C$11 -> 25 | AH7: =Inputs!$C$12 -> 0 | AI7: =IF(Inputs!$B$6=0,'Fertilizer Numbers 05-10'!AF7,AC7) -> 85 | AJ7: =IF(Inputs!$B$6=0,'Fertilizer Numbers 05-10'!AG7,AD7) -> 25 | AK7: =IF(Inputs!$B$6=0,'Fertilizer Numbers 05-10'!AH7,AE7) -> 0 | AL7: =Inputs!$C$13 -> 20 | AM7: =Inputs!$B$10 -> 95 | AN7: =Inputs!$B$11 -> 25 | AO7: =Inputs!$B$12 -> 0 | AP7: =Inputs!$B$13 -> 20 | AQ7: 0 | AR7: 0 | AS7: =Inputs!$K$10 -> 0 | AT7: =Inputs!$K$11 -> 0 | AU7: =Inputs!$K$12 -> 150 | AV7: =Inputs!$J$10 -> 0 | AW7: =Inputs!J$11 -> 0 | AX7: =Inputs!$J$12 -> 125 | AY7: =IF(Inputs!$B$6=0,AV7,AS7) -> 0 | AZ7: =IF(Inputs!$B$6=0,AW7,AT7) -> 0 | BA7: =IF(Inputs!$B$6=0,AX7,AU7) -> 125 | BB7: 58 | BC7: 0 | BD7: 0 | BE7: =Inputs!$L$10 -> 85 | BF7: =Inputs!$L$11 -> 0 | BG7: =Inputs!$L$12 -> 5 | BH7: =IF(Inputs!$B$6=0,'Fertilizer Numbers 05-10'!BE7,BB7) -> 85 | BI7: =IF(Inputs!$B$6=0,'Fertilizer Numbers 05-10'!BF7,BC7) -> 0 | BJ7: =IF(Inputs!$B$6=0,'Fertilizer Numbers 05-10'!BG7,BD7) -> 5 | BK7: =Soybean!J7 -> 1000 | BL7: 9000 | BM7: 0 | BN7: 0 | BO7: =Corn!J7 -> 5100 | BP7: 510000 | BQ7: 127500 | BR7: 25500 | BS7: =Sorghum!J7 -> 18000 | BT7: 1080000 | BU7: 360000 | BV7: 0 | BW7: =Wheat!Q7 -> 115000 | BX7: 10925000 | BY7: 2875000 | BZ7: 0 | CA7: =Wheat!AP7 -> 45000 | CB7: =CA7*IF(Inputs!$B$6=1,AL7,AP7) -> 900000 | CC7: 0 | CD7: 0 | CE7: =Alfalfa!J7 -> 3000 | CF7: 0 | CG7: 0 | CH7: 375000 | CI7: ='All Other Hay'!I7 -> 26000 | CJ7: 2210000 | CK7: 0 | CL7: 130000 | CM7: 7363 | CN7: 1685.75 | CO7: 265.25 | CP7: =Soybean!E7 -> 700 | CQ7: 6300 | CR7: 0 | CS7: 0 | CT7: =Corn!L7 -> 4200 | CU7: 420000 | CV7: 105000 | CW7: 21000 | CX7: =Sorghum!L7 -> 11000 | CY7: 660000 | CZ7: 220000 | DA7: 0 | DB7: =Wheat!S7 -> 75000 | DC7: 7125000 | DD7: 1875000 | DE7: 0 | DF7: =Wheat!AQ7 -> 85000 | DG7: =DF7*IF(Inputs!$B$6=1,AL7,AP7) -> 1700000 | DH7: 0 | DI7: 0 | DJ7: =Alfalfa!M7 -> 2500 | DK7: 0 | DL7: 0 | DM7: 312500 | DN7: ='All Other Hay'!J7 -> 21000 | DO7: 1785000 | DP7: 0 | DQ7: 105000 | DR7: 5848.15 | DS7: 1100 | DT7: 219.25 | DU7: =IF(Inputs!B57>0,Inputs!B57*'Fertilizer Numbers 05-10'!DR7,0) -> 0 | DV7: =IF(Inputs!B57>0,Inputs!B57*'Fertilizer Numbers 05-10'!DS7,0) -> 0 | DW7: =IF(Inputs!B57>0,Inputs!B57*'Fertilizer Numbers 05-10'!DT7,0) -> 0 | DX7: =Soybean!N7 -> 0 | DY7: 0 | DZ7: 0 | EA7: 0 | EB7: =Corn!N7 -> 7000 | EC7: 100 | ED7: 175000 | EE7: 35000 | EF7: =Sorghum!N7 -> 17200 | EG7: 1032000 | EH7: 344000 | EI7: 0 | EJ7: =Wheat!U7 -> 115000 | EK7: 10925000 | EL7: 2875000 | EM7: 0 | EN7: =Wheat!AR7 -> 45000 | EO7: 900000 | EP7: 0 | EQ7: 0 | ER7: =Alfalfa!F7 -> 4500 | ES7: 0 | ET7: 0 | EU7: 562500 | EV7: ='All Other Hay'!F7 -> 18000 | EW7: 1530000 | EX7: 0 | EY7: 90000 | EZ7: 7193.55 | FA7: 1697 | FB7: 343.75 | FC7: =IF(Inputs!C57>0,Inputs!C57*'Fertilizer Numbers 05-10'!EZ7,0) -> 0 | FD7: =IF(Inputs!C57>0,Inputs!C57*'Fertilizer Numbers 05-10'!FA7,0) -> 0 | FE7: =IF(Inputs!C57>0,Inputs!C57*'Fertilizer Numbers 05-10'!FB7,0) -> 0 | FF7: =Soybean!Q7 -> 0 | FG7: 0 | FH7: 0 | FI7: 0 | FJ7: =Corn!Q7 -> 7000 | FK7: 700000 | FL7: 175000 | FM7: 35000 | FN7: =Sorghum!Q7 -> 22300 | FO7: 1338000 | FP7: 446000 | FQ7: 0 | FR7: =Wheat!W7 -> 123000 | FS7: 11685000 | FT7: 3075000 | FU7: 0 | FV7: =Wheat!AS7 -> 27000 | FW7: =FV7*IF(Inputs!$B$6=1,AL7,AP7) -> 540000 | FX7: 0 | FY7: 0 | FZ7: =Alfalfa!O7 -> 0 | GA7: 0 | GB7: 0 | GC7: 0 | GD7: ='All Other Hay'!L7 -> 0 | GE7: 0 | GF7: 0 | GG7: 0 | GH7: 7131.5 | GI7: 1848 | GJ7: 17.5 | GK7: =IF(Inputs!D57>0,Inputs!D57*'Fertilizer Numbers 05-10'!GH7,0) -> 0 | GL7: =IF(Inputs!D57>0,Inputs!D57*'Fertilizer Numbers 05-10'!GI7,0) -> 0 | GM7: =IF(Inputs!D57>0,Inputs!D57*'Fertilizer Numbers 05-10'!GJ7,0) -> 0 | GO7: =Soybean!T7 -> 0 | GP7: 0 | GQ7: 0 | GR7: 0 | GS7: =Corn!T7 -> 0 | GT7: 0 | GU7: 0 | GV7: 0 | GW7: =Sorghum!T7 -> 16900 | GX7: 1014000 | GY7: 338000 | GZ7: 0 | HA7: =Wheat!Y7 -> 0 | HB7: 0 | HC7: 0 | HD7: 0 | HE7: =Wheat!AT7 -> 0 | HF7: =+HE7*IF(Inputs!$B$6=1,AL7,AP7) -> 0 | HG7: 0 | HH7: 0 | HI7: =Alfalfa!Q7 -> 0 | HJ7: 0 | HK7: 0 | HL7: 0 | HM7: ='All Other Hay'!N7 -> 23000 | HN7: 1955000 | HO7: 0 | HP7: 115000 | HQ7: 1484.5 | HR7: 169 | HS7: 57.5 | HT7: =IF(Inputs!E57>0,Inputs!E57*'Fertilizer Numbers 05-10'!HQ7,0) -> 0 | HU7: =IF(Inputs!E57>0,Inputs!E57*'Fertilizer Numbers 05-10'!HR7,0) -> 0 | HV7: =IF(Inputs!E57>0,Inputs!E57*'Fertilizer Numbers 05-10'!HS7,0) -> 0 | HX7: =Soybean!W7 -> 0 | HY7: 0 | HZ7: 0 | IA7: 0 | IB7: =Corn!W7 -> 0 | IC7: 0 | ID7: 0 | IE7: 0 | IF7: =Sorghum!W7 -> 21000 | IG7: 1260000 | IH7: 420000 | II7: 0 | IJ7: =Wheat!AA7 -> 90000 | IK7: 8550000 | IL7: 2250000 | IM7: 0 | IN7: =Wheat!AU7 -> 50000 | IO7: =$IN7*IF(Inputs!$B$6=1,AL7,AP7) -> 1000000 | IP7: 0 | IQ7: 0 | IR7: =Alfalfa!S7 -> 0 | IS7: 0 | IT7: 0 | IU7: 0 | IV7: ='All Other Hay'!P7 -> 0 | IW7: 0 | IX7: 0 | IY7: 0 | IZ7: 5405 | JA7: 1335 | JB7: 0 | JC7: =IF(Inputs!$F57>0,Inputs!$F57*IZ7,0) -> 0 | JD7: =IF(Inputs!$F57>0,Inputs!$F57*JA7,0) -> 0 | JE7: =IF(Inputs!$F57>0,Inputs!$F57*JB7,0) -> 0 | JF7: =Soybean!Z7 -> 0 | JG7: 0 | JH7: 0 | JI7: 0 | JJ7: =Corn!Z7 -> 0 | JK7: 0 | JL7: 0 | JM7: 0 | JN7: =Sorghum!BE7 -> 0 | JO7: 0 | JP7: 0 | JQ7: 0 | JR7: =Wheat!AC7 -> 80000 | JS7: 7600000 | JT7: 2000000 | JU7: 0 | JV7: =Wheat!AV7 -> 40000 | JW7: =JV7*IF(Inputs!$B$6=1,$AL7,$AP7) -> 800000 | JX7: 0 | JY7: 0 | JZ7: =Alfalfa!U7 -> 0 | KA7: 0 | KB7: 0 | KC7: 0 | KD7: ='All Other Hay'!R7 -> 0 | KE7: 0 | KF7: 0 | KG7: 0 | KH7: 4200 | KI7: 1000 | KJ7: 0 | KK7: =IF(Inputs!$F57>0,Inputs!$F57*KH7,0) -> 0 | KL7: =IF(Inputs!$F57>0,Inputs!$F57*KI7,0) -> 0 | KM7: =IF(Inputs!$F57>0,Inputs!$F57*KJ7,0) -> 0 | KN7: =Soybean!AC7 -> 0 | KO7: 0 | KP7: 0 | KQ7: 0 | KR7: =Corn!BH7 -> 0 | KS7: 0 | KT7: 0 | KU7: 0 | KV7: =Sorghum!AC7 -> 13000 | KW7: 780000 | KX7: 260000 | KY7: 0 | KZ7: =Wheat!AE7 -> 85000 | LA7: 8075000 | LB7: 2125000 | LC7: 0 | LD7: =Wheat!AW7 -> 40000 | LE7: =LD7*IF(Inputs!$B$6=1,$AL7,$AP7) -> 800000 | LF7: 0 | LG7: 0 | LH7: =Alfalfa!W7 -> 0 | LI7: 0 | LJ7: 0 | LK7: 0 | LL7: ='All Other Hay'!T7 -> 0 | LM7: 0 | LN7: 0 | LO7: 0 | LP7: 4827.5 | LQ7: 1192.5 | LR7: 0 | LS7: =IF(Inputs!$F57>0,Inputs!$F57*LP7,0) -> 0 | LT7: =IF(Inputs!$F57>0,Inputs!$F57*LQ7,0) -> 0 | LU7: =IF(Inputs!$F57>0,Inputs!$F57*LR7,0) -> 0 | LV7: =Soybean!AF7 -> 0 | LW7: 0 | LX7: 0 | LY7: 0 | LZ7: =Corn!CP7 -> 0 | MA7: 0 | MB7: 0 | MC7: 0 | MD7: =Sorghum!AF7 -> 13000 | ME7: 780000 | MF7: 260000 | MG7: 0 | MH7: =Wheat!AG7 -> 31000 | MI7: 2945000 | MJ7: 775000 | MK7: 0 | ML7: =Wheat!AX7 -> 90000 | MM7: =ML7*IF(Inputs!$B$6=1,$AL7,$AP7) -> 1800000 | MN7: 0 | MO7: 0 | MP7: =Alfalfa!Z7 -> 0 | MQ7: 0 | MR7: 0 | MS7: 0 | MT7: ='All Other Hay'!W7 -> 0 | MU7: 0 | MV7: 0 | MW7: 0 | MX7: 2762.5 | MY7: 517.5 | MZ7: 0 | NA7: =IF(Inputs!$F57>0,Inputs!$F57*MX7,0) -> 0 | NB7: =IF(Inputs!$F57>0,Inputs!$F57*MY7,0) -> 0 | NC7: =IF(Inputs!$F57>0,Inputs!$F57*MZ7,0) -> 0
A8: Beckham | B8: 10 | C8: 0 | D8: 0 | E8: =IF(Inputs!$B$6=0,Inputs!$D$10,) -> 9 | F8: =IF(Inputs!$B$6=0,Inputs!$D$11,) -> 0 | G8: =IF(Inputs!$B$6=0,Inputs!$D$12,) -> 0 | H8: =IF(Inputs!$B$6=0,'Fertilizer Numbers 05-10'!E8,'Fertilizer Numbers 05-10'!B8) -> 9 | I8: =IF(Inputs!$B$6=0,'Fertilizer Numbers 05-10'!F8,'Fertilizer Numbers 05-10'!C8) -> 0 | J8: =IF(Inputs!$B$6=0,'Fertilizer Numbers 05-10'!G8,'Fertilizer Numbers 05-10'!D8) -> 0 | K8: 73 | L8: 20 | M8: 0 | N8: =Inputs!$F$10 -> 100 | O8: =Inputs!$F$11 -> 25 | P8: =Inputs!$F$12 -> 5 | Q8: =IF(Inputs!$B$6=0,N8,K8) -> 100 | R8: =IF(Inputs!$B$6=0,O8,L8) -> 25 | S8: =IF(Inputs!$B$6=0,P8,M8) -> 5 | T8: 22 | U8: 20 | V8: 0 | W8: =Inputs!$H$10 -> 60 | X8: =Inputs!$H$11 -> 20 | Y8: =Inputs!$H$12 -> 0 | Z8: =IF(Inputs!$B$6=0,W8,T8) -> 60 | AA8: =IF(Inputs!$B$6=0,X8,U8) -> 20 | AB8: =IF(Inputs!$B$6=0,Y8,V8) -> 0 | AC8: =Inputs!$C$10 -> 85 | AD8: =Inputs!$C$11 -> 25 | AE8: =Inputs!$C$12 -> 0 | AF8: =Inputs!$C$10 -> 85 | AG8: =Inputs!$C$11 -> 25 | AH8: =Inputs!$C$12 -> 0 | AI8: =IF(Inputs!$B$6=0,'Fertilizer Numbers 05-10'!AF8,AC8) -> 85 | AJ8: =IF(Inputs!$B$6=0,'Fertilizer Numbers 05-10'!AG8,AD8) -> 25 | AK8: =IF(Inputs!$B$6=0,'Fertilizer Numbers 05-10'!AH8,AE8) -> 0 | AL8: =Inputs!$C$13 -> 20 | AM8: =Inputs!$B$10 -> 95 | AN8: =Inputs!$B$11 -> 25 | AO8: =Inputs!$B$12 -> 0 | AP8: =Inputs!$B$13 -> 20 | AQ8: 0 | AR8: 0 | AS8: =Inputs!$K$10 -> 0 | AT8: =Inputs!$K$11 -> 0 | AU8: =Inputs!$K$12 -> 150 | AV8: =Inputs!$J$10 -> 0 | AW8: =Inputs!J$11 -> 0 | AX8: =Inputs!$J$12 -> 125 | AY8: =IF(Inputs!$B$6=0,AV8,AS8) -> 0 | AZ8: =IF(Inputs!$B$6=0,AW8,AT8) -> 0 | BA8: =IF(Inputs!$B$6=0,AX8,AU8) -> 125 | BB8: 58 | BC8: 0 | BD8: 0 | BE8: =Inputs!$L$10 -> 85 | BF8: =Inputs!$L$11 -> 0 | BG8: =Inputs!$L$12 -> 5 | BH8: =IF(Inputs!$B$6=0,'Fertilizer Numbers 05-10'!BE8,BB8) -> 85 | BI8: =IF(Inputs!$B$6=0,'Fertilizer Numbers 05-10'!BF8,BC8) -> 0 | BJ8: =IF(Inputs!$B$6=0,'Fertilizer Numbers 05-10'!BG8,BD8) -> 5 | BK8: =Soybean!J8 -> 0 | BL8: 0 | BM8: 0 | BN8: 0 | BO8: =Corn!J8 -> 0 | BP8: 0 | BQ8: 0 | BR8: 0 | BS8: =Sorghum!J8 -> 800 | BT8: 48000 | BU8: 16000 | BV8: 0 | BW8: =Wheat!Q8 -> 35000 | BX8: 3325000 | BY8: 875000 | BZ8: 0 | CA8: =Wheat!AP8 -> 25000 | CB8: =CA8*IF(Inputs!$B$6=1,AL8,AP8) -> 500000 | CC8: 0 | CD8: 0 | CE8: =Alfalfa!J8 -> 4500 | CF8: 0 | CG8: 0 | CH8: 562500 | CI8: ='All Other Hay'!I8 -> 20000 | CJ8: 1700000 | CK8: 0 | CL8: 100000 | CM8: 2536.5 | CN8: 445.5 | CO8: 331.25 | CP8: =Soybean!E8 -> 0 | CQ8: 0 | CR8: 0 | CS8: 0 | CT8: =Corn!L8 -> 0 | CU8: 0 | CV8: 0 | CW8: 0 | CX8: =Sorghum!L8 -> 300 | CY8: 18000 | CZ8: 6000 | DA8: 0 | DB8: =Wheat!S8 -> 40000 | DC8: 3800000 | DD8: 1000000 | DE8: 0 | DF8: =Wheat!AQ8 -> 40000 | DG8: =DF8*IF(Inputs!$B$6=1,AL8,AP8) -> 800000 | DH8: 0 | DI8: 0 | DJ8: =Alfalfa!M8 -> 4500 | DK8: 0 | DL8: 0 | DM8: 562500 | DN8: ='All Other Hay'!J8 -> 22000 | DO8: 1870000 | DP8: 0 | DQ8: 110000 | DR8: 3244 | DS8: 503 | DT8: 336.25 | DU8: =IF(Inputs!B58>0,Inputs!B58*'Fertilizer Numbers 05-10'!DR8,0) -> 0 | DV8: =IF(Inputs!B58>0,Inputs!B58*'Fertilizer Numbers 05-10'!DS8,0) -> 0 | DW8: =IF(Inputs!B58>0,Inputs!B58*'Fertilizer Numbers 05-10'!DT8,0) -> 0 | DX8: =Soybean!N8 -> 0 | DY8: 0 | DZ8: 0 | EA8: 0 | EB8: =Corn!N8 -> 400 | EC8: 100 | ED8: 10000 | EE8: 2000 | EF8: =Sorghum!N8 -> 1100 | EG8: 66000 | EH8: 22000 | EI8: 0 | EJ8: =Wheat!U8 -> 45000 | EK8: 4275000 | EL8: 1125000 | EM8: 0 | EN8: =Wheat!AR8 -> 28000 | EO8: 560000 | EP8: 0 | EQ8: 0 | ER8: =Alfalfa!F8 -> 6000 | ES8: 0 | ET8: 0 | EU8: 750000 | EV8: ='All Other Hay'!F8 -> 35000 | EW8: 2975000 | EX8: 0 | EY8: 175000 | EZ8: 3938.05 | FA8: 578.5 | FB8: 463.5 | FC8: =IF(Inputs!C58>0,Inputs!C58*'Fertilizer Numbers 05-10'!EZ8,0) -> 0 | FD8: =IF(Inputs!C58>0,Inputs!C58*'Fertilizer Numbers 05-10'!FA8,0) -> 0 | FE8: =IF(Inputs!C58>0,Inputs!C58*'Fertilizer Numbers 05-10'!FB8,0) -> 0 | FF8: =Soybean!Q8 -> 0 | FG8: 0 | FH8: 0 | FI8: 0 | FJ8: =Corn!Q8 -> 0 | FK8: 0 | FL8: 0 | FM8: 0 | FN8: =Sorghum!Q8 -> 0 | FO8: 0 | FP8: 0 | FQ8: 0 | FR8: =Wheat!W8 -> 58000 | FS8: 5510000 | FT8: 1450000 | FU8: 0 | FV8: =Wheat!AS8 -> 12000 | FW8: =FV8*IF(Inputs!$B$6=1,AL8,AP8) -> 240000 | FX8: 0 | FY8: 0 | FZ8: =Alfalfa!O8 -> 0 | GA8: 0 | GB8: 0 | GC8: 0 | GD8: ='All Other Hay'!L8 -> 23500 | GE8: 1997500 | GF8: 0 | GG8: 117500 | GH8: 3873.75 | GI8: 725 | GJ8: 58.75 | GK8: =IF(Inputs!D58>0,Inputs!D58*'Fertilizer Numbers 05-10'!GH8,0) -> 0 | GL8: =IF(Inputs!D58>0,Inputs!D58*'Fertilizer Numbers 05-10'!GI8,0) -> 0 | GM8: =IF(Inputs!D58>0,Inputs!D58*'Fertilizer Numbers 05-10'!GJ8,0) -> 0 | GO8: =Soybean!T8 -> 0 | GP8: 0 | GQ8: 0 | GR8: 0 | GS8: =Corn!T8 -> 0 | GT8: 0 | GU8: 0 | GV8: 0 | GW8: =Sorghum!T8 -> 0 | GX8: 0 | GY8: 0 | GZ8: 0 | HA8: =Wheat!Y8 -> 30000 | HB8: 2850000 | HC8: 0 | HD8: 0 | HE8: =Wheat!AT8 -> 40000 | HF8: =+HE8*IF(Inputs!$B$6=1,AL8,AP8) -> 800000 | HG8: 0 | HH8: 0 | HI8: =Alfalfa!Q8 -> 5500 | HJ8: 0 | HK8: 0 | HL8: 687500 | HM8: ='All Other Hay'!N8 -> 22000 | HN8: 1870000 | HO8: 0 | HP8: 110000 | HQ8: 2760 | HR8: 0 | HS8: 398.75 | HT8: =IF(Inputs!E58>0,Inputs!E58*'Fertilizer Numbers 05-10'!HQ8,0) -> 0 | HU8: =IF(Inputs!E58>0,Inputs!E58*'Fertilizer Numbers 05-10'!HR8,0) -> 0 | HV8: =IF(Inputs!E58>0,Inputs!E58*'Fertilizer Numbers 05-10'!HS8,0) -> 0 | HX8: =Soybean!W8 -> 0 | HY8: 0 | HZ8: 0 | IA8: 0 | IB8: =Corn!W8 -> 0 | IC8: 0 | ID8: 0 | IE8: 0 | IF8: =Sorghum!W8 -> 0 | IG8: 0 | IH8: 0 | II8: 0 | IJ8: =Wheat!AA8 -> 40000 | IK8: 3800000 | IL8: 1000000 | IM8: 0 | IN8: =Wheat!AU8 -> 25000 | IO8: =$IN8*IF(Inputs!$B$6=1,AL8,AP8) -> 500000 | IP8: 0 | IQ8: 0 | IR8: =Alfalfa!S8 -> 4500 | IS8: 0 | IT8: 0 | IU8: 562500 | IV8: ='All Other Hay'!P8 -> 20000 | IW8: 1700000 | IX8: 0 | IY8: 100000 | IZ8: 3000 | JA8: 500 | JB8: 331.25 | JC8: =IF(Inputs!$F58>0,Inputs!$F58*IZ8,0) -> 0 | JD8: =IF(Inputs!$F58>0,Inputs!$F58*JA8,0) -> 0 | JE8: =IF(Inputs!$F58>0,Inputs!$F58*JB8,0) -> 0 | JF8: =Soybean!Z8 -> 0 | JG8: 0 | JH8: 0 | JI8: 0 | JJ8: =Corn!Z8 -> 0 | JK8: 0 | JL8: 0 | JM8: 0 | JN8: =Sorghum!BE8 -> 0 | JO8: 0 | JP8: 0 | JQ8: 0 | JR8: =Wheat!AC8 -> 30000 | JS8: 2850000 | JT8: 750000 | JU8: 0 | JV8: =Wheat!AV8 -> 30000 | JW8: =JV8*IF(Inputs!$B$6=1,$AL8,$AP8) -> 600000 | JX8: 0 | JY8: 0 | JZ8: =Alfalfa!U8 -> 0 | KA8: 0 | KB8: 0 | KC8: 0 | KD8: ='All Other Hay'!R8 -> 17000 | KE8: 1445000 | KF8: 0 | KG8: 0 | KH8: 2447.5 | KI8: 375 | KJ8: 0 | KK8: =IF(Inputs!$F58>0,Inputs!$F58*KH8,0) -> 0 | KL8: =IF(Inputs!$F58>0,Inputs!$F58*KI8,0) -> 0 | KM8: =IF(Inputs!$F58>0,Inputs!$F58*KJ8,0) -> 0 | KN8: =Soybean!AC8 -> 0 | KO8: 0 | KP8: 0 | KQ8: 0 | KR8: =Corn!BH8 -> 0 | KS8: 0 | KT8: 0 | KU8: 0 | KV8: =Sorghum!AC8 -> 0 | KW8: 0 | KX8: 0 | KY8: 0 | KZ8: =Wheat!AE8 -> 43000 | LA8: 4085000 | LB8: 1075000 | LC8: 0 | LD8: =Wheat!AW8 -> 22000 | LE8: =LD8*IF(Inputs!$B$6=1,$AL8,$AP8) -> 440000 | LF8: 0 | LG8: 0 | LH8: =Alfalfa!W8 -> 0 | LI8: 0 | LJ8: 0 | LK8: 0 | LL8: ='All Other Hay'!T8 -> 27000 | LM8: 2295000 | LN8: 0 | LO8: 0 | LP8: 3410 | LQ8: 537.5 | LR8: 0 | LS8: =IF(Inputs!$F58>0,Inputs!$F58*LP8,0) -> 0 | LT8: =IF(Inputs!$F58>0,Inputs!$F58*LQ8,0) -> 0 | LU8: =IF(Inputs!$F58>0,Inputs!$F58*LR8,0) -> 0 | LV8: =Soybean!AF8 -> 0 | LW8: 0 | LX8: 0 | LY8: 0 | LZ8: =Corn!CP8 -> 0 | MA8: 0 | MB8: 0 | MC8: 0 | MD8: =Sorghum!AF8 -> 0 | ME8: 0 | MF8: 0 | MG8: 0 | MH8: =Wheat!AG8 -> 0 | MI8: 0 | MJ8: 0 | MK8: 0 | ML8: =Wheat!AX8 -> 0 | MM8: =ML8*IF(Inputs!$B$6=1,$AL8,$AP8) -> 0 | MN8: 0 | MO8: 0 | MP8: =Alfalfa!Z8 -> 0 | MQ8: 0 | MR8: 0 | MS8: 0 | MT8: ='All Other Hay'!W8 -> 36000 | MU8: 3060000 | MV8: 0 | MW8: 0 | MX8: 1530 | MY8: 0 | MZ8: 0 | NA8: =IF(Inputs!$F58>0,Inputs!$F58*MX8,0) -> 0 | NB8: =IF(Inputs!$F58>0,Inputs!$F58*MY8,0) -> 0 | NC8: =IF(Inputs!$F58>0,Inputs!$F58*MZ8,0) -> 0
A9: Blaine | B9: 10 | C9: 0 | D9: 0 | E9: =IF(Inputs!$B$6=0,Inputs!$D$10,) -> 9 | F9: =IF(Inputs!$B$6=0,Inputs!$D$11,) -> 0 | G9: =IF(Inputs!$B$6=0,Inputs!$D$12,) -> 0 | H9: =IF(Inputs!$B$6=0,'Fertilizer Numbers 05-10'!E9,'Fertilizer Numbers 05-10'!B9) -> 9 | I9: =IF(Inputs!$B$6=0,'Fertilizer Numbers 05-10'!F9,'Fertilizer Numbers 05-10'!C9) -> 0 | J9: =IF(Inputs!$B$6=0,'Fertilizer Numbers 05-10'!G9,'Fertilizer Numbers 05-10'!D9) -> 0 | K9: 73 | L9: 20 | M9: 0 | N9: =Inputs!$F$10 -> 100 | O9: =Inputs!$F$11 -> 25 | P9: =Inputs!$F$12 -> 5 | Q9: =IF(Inputs!$B$6=0,N9,K9) -> 100 | R9: =IF(Inputs!$B$6=0,O9,L9) -> 25 | S9: =IF(Inputs!$B$6=0,P9,M9) -> 5 | T9: 22 | U9: 20 | V9: 0 | W9: =Inputs!$H$10 -> 60 | X9: =Inputs!$H$11 -> 20 | Y9: =Inputs!$H$12 -> 0 | Z9: =IF(Inputs!$B$6=0,W9,T9) -> 60 | AA9: =IF(Inputs!$B$6=0,X9,U9) -> 20 | AB9: =IF(Inputs!$B$6=0,Y9,V9) -> 0 | AC9: =Inputs!$C$10 -> 85 | AD9: =Inputs!$C$11 -> 25 | AE9: =Inputs!$C$12 -> 0 | AF9: =Inputs!$C$10 -> 85 | AG9: =Inputs!$C$11 -> 25 | AH9: =Inputs!$C$12 -> 0 | AI9: =IF(Inputs!$B$6=0,'Fertilizer Numbers 05-10'!AF9,AC9) -> 85 | AJ9: =IF(Inputs!$B$6=0,'Fertilizer Numbers 05-10'!AG9,AD9) -> 25 | AK9: =IF(Inputs!$B$6=0,'Fertilizer Numbers 05-10'!AH9,AE9) -> 0 | AL9: =Inputs!$C$13 -> 20 | AM9: =Inputs!$B$10 -> 95 | AN9: =Inputs!$B$11 -> 25 | AO9: =Inputs!$B$12 -> 0 | AP9: =Inputs!$B$13 -> 20 | AQ9: 0 | AR9: 0 | AS9: =Inputs!$K$10 -> 0 | AT9: =Inputs!$K$11 -> 0 | AU9: =Inputs!$K$12 -> 150 | AV9: =Inputs!$J$10 -> 0 | AW9: =Inputs!J$11 -> 0 | AX9: =Inputs!$J$12 -> 125 | AY9: =IF(Inputs!$B$6=0,AV9,AS9) -> 0 | AZ9: =IF(Inputs!$B$6=0,AW9,AT9) -> 0 | BA9: =IF(Inputs!$B$6=0,AX9,AU9) -> 125 | BB9: 58 | BC9: 0 | BD9: 0 | BE9: =Inputs!$L$10 -> 85 | BF9: =Inputs!$L$11 -> 0 | BG9: =Inputs!$L$12 -> 5 | BH9: =IF(Inputs!$B$6=0,'Fertilizer Numbers 05-10'!BE9,BB9) -> 85 | BI9: =IF(Inputs!$B$6=0,'Fertilizer Numbers 05-10'!BF9,BC9) -> 0 | BJ9: =IF(Inputs!$B$6=0,'Fertilizer Numbers 05-10'!BG9,BD9) -> 5 | BK9: =Soybean!J9 -> 900 | BL9: 8100 | BM9: 0 | BN9: 0 | BO9: =Corn!J9 -> 0 | BP9: 0 | BQ9: 0 | BR9: 0 | BS9: =Sorghum!J9 -> 1200 | BT9: 72000 | BU9: 24000 | BV9: 0 | BW9: =Wheat!Q9 -> 135000 | BX9: 12825000 | BY9: 3375000 | BZ9: 0 | CA9: =Wheat!AP9 -> 55000 | CB9: =CA9*IF(Inputs!$B$6=1,AL9,AP9) -> 1100000 | CC9: 0 | CD9: 0 | CE9: =Alfalfa!J9 -> 6500 | CF9: 0 | CG9: 0 | CH9: 812500 | CI9: ='All Other Hay'!I9 -> 40000 | CJ9: 3400000 | CK9: 0 | CL9: 200000 | CM9: 8148.95 | CN9: 1703.55 | CO9: 506.25 | CP9: =Soybean!E9 -> 1600 | CQ9: 14400 | CR9: 0 | CS9: 0 | CT9: =Corn!L9 -> 0 | CU9: 0 | CV9: 0 | CW9: 0 | CX9: =Sorghum!L9 -> 2400 | CY9: 144000 | CZ9: 48000 | DA9: 0 | DB9: =Wheat!S9 -> 145000 | DC9: 13775000 | DD9: 3625000 | DE9: 0 | DF9: =Wheat!AQ9 -> 70000 | DG9: =DF9*IF(Inputs!$B$6=1,AL9,AP9) -> 1400000 | DH9: 0 | DI9: 0 | DJ9: =Alfalfa!M9 -> 6500 | DK9: 0 | DL9: 0 | DM9: 812500 | DN9: ='All Other Hay'!J9 -> 36000 | DO9: 3060000 | DP9: 0 | DQ9: 180000 | DR9: 9196.7 | DS9: 1836.5 | DT9: 496.25 | DU9: =IF(Inputs!B59>0,Inputs!B59*'Fertilizer Numbers 05-10'!DR9,0) -> 919.67 | DV9: =IF(Inputs!B59>0,Inputs!B59*'Fertilizer Numbers 05-10'!DS9,0) -> 183.65 | DW9: =IF(Inputs!B59>0,Inputs!B59*'Fertilizer Numbers 05-10'!DT9,0) -> 49.625 | DX9: =Soybean!N9 -> 1100 | DY9: 9900 | DZ9: 0 | EA9: 0 | EB9: =Corn!N9 -> 0 | EC9: 100 | ED9: 0 | EE9: 0 | EF9: =Sorghum!N9 -> 2300 | EG9: 138000 | EH9: 46000 | EI9: 0 | EJ9: =Wheat!U9 -> 150000 | EK9: 14250000 | EL9: 3750000 | EM9: 0 | EN9: =Wheat!AR9 -> 70000 | EO9: 1400000 | EP9: 0 | EQ9: 0 | ER9: =Alfalfa!F9 -> 3 | ES9: 0 | ET9: 0 | EU9: 375 | EV9: ='All Other Hay'!F9 -> 30000 | EW9: 2550000 | EX9: 0 | EY9: 150000 | EZ9: 9174 | FA9: 1898 | FB9: 75.1875 | FC9: =IF(Inputs!C59>0,Inputs!C59*'Fertilizer Numbers 05-10'!EZ9,0) -> 917.4 | FD9: =IF(Inputs!C59>0,Inputs!C59*'Fertilizer Numbers 05-10'!FA9,0) -> 189.8 | FE9: =IF(Inputs!C59>0,Inputs!C59*'Fertilizer Numbers 05-10'!FB9,0) -> 7.51875 | FF9: =Soybean!Q9 -> 0 | FG9: 0 | FH9: 0 | FI9: 0 | FJ9: =Corn!Q9 -> 0 | FK9: 0 | FL9: 0 | FM9: 0 | FN9: =Sorghum!Q9 -> 4600 | FO9: 276000 | FP9: 92000 | FQ9: 0 | FR9: =Wheat!W9 -> 175000 | FS9: 16625000 | FT9: 4375000 | FU9: 0 | FV9: =Wheat!AS9 -> 35000 | FW9: =FV9*IF(Inputs!$B$6=1,AL9,AP9) -> 700000 | FX9: 0 | FY9: 0 | FZ9: =Alfalfa!O9 -> 6500 | GA9: 0 | GB9: 0 | GC9: 812500 | GD9: ='All Other Hay'!L9 -> 37000 | GE9: 3145000 | GF9: 0 | GG9: 185000 | GH9: 10373 | GI9: 2233.5 | GJ9: 498.75 | GK9: =IF(Inputs!D59>0,Inputs!D59*'Fertilizer Numbers 05-10'!GH9,0) -> 1037.3 | GL9: =IF(Inputs!D59>0,Inputs!D59*'Fertilizer Numbers 05-10'!GI9,0) -> 223.35 | GM9: =IF(Inputs!D59>0,Inputs!D59*'Fertilizer Numbers 05-10'!GJ9,0) -> 49.875 | GO9: =Soybean!T9 -> 3200 | GP9: 28800 | GQ9: 0 | GR9: 0 | GS9: =Corn!T9 -> 0 | GT9: 0 | GU9: 0 | GV9: 0 | GW9: =Sorghum!T9 -> 3500 | GX9: 210000 | GY9: 70000 | GZ9: 0 | HA9: =Wheat!Y9 -> 125000 | HB9: 11875000 | HC9: 0 | HD9: 0 | HE9: =Wheat!AT9 -> 80000 | HF9: =+HE9*IF(Inputs!$B$6=1,AL9,AP9) -> 1600000 | HG9: 0 | HH9: 0 | HI9: =Alfalfa!Q9 -> 7000 | HJ9: 0 | HK9: 0 | HL9: 875000 | HM9: ='All Other Hay'!N9 -> 38000 | HN9: 3230000 | HO9: 0 | HP9: 190000 | HQ9: 8471.9 | HR9: 35 | HS9: 532.5 | HT9: =IF(Inputs!E59>0,Inputs!E59*'Fertilizer Numbers 05-10'!HQ9,0) -> 847.19 | HU9: =IF(Inputs!E59>0,Inputs!E59*'Fertilizer Numbers 05-10'!HR9,0) -> 3.5 | HV9: =IF(Inputs!E59>0,Inputs!E59*'Fertilizer Numbers 05-10'!HS9,0) -> 53.25 | HX9: =Soybean!W9 -> 3600 | HY9: 32400 | HZ9: 0 | IA9: 0 | IB9: =Corn!W9 -> 0 | IC9: 0 | ID9: 0 | IE9: 0 | IF9: =Sorghum!W9 -> 3750 | IG9: 225000 | IH9: 75000 | II9: 0 | IJ9: =Wheat!AA9 -> 150000 | IK9: 14250000 | IL9: 3750000 | IM9: 0 | IN9: =Wheat!AU9 -> 65000 | IO9: =$IN9*IF(Inputs!$B$6=1,AL9,AP9) -> 1300000 | IP9: 0 | IQ9: 0 | IR9: =Alfalfa!S9 -> 7000 | IS9: 0 | IT9: 0 | IU9: 875000 | IV9: ='All Other Hay'!P9 -> 35000 | IW9: 2975000 | IX9: 0 | IY9: 175000 | IZ9: 9391.2 | JA9: 1912.5 | JB9: 525 | JC9: =IF(Inputs!$F59>0,Inputs!$F59*IZ9,0) -> 939.12 | JD9: =IF(Inputs!$F59>0,Inputs!$F59*JA9,0) -> 191.25 | JE9: =IF(Inputs!$F59>0,Inputs!$F59*JB9,0) -> 52.5 | JF9: =Soybean!Z9 -> 0 | JG9: 0 | JH9: 0 | JI9: 0 | JJ9: =Corn!Z9 -> 0 | JK9: 0 | JL9: 0 | JM9: 0 | JN9: =Sorghum!BE9 -> 0 | JO9: 0 | JP9: 0 | JQ9: 0 | JR9: =Wheat!AC9 -> 150000 | JS9: 14250000 | JT9: 3750000 | JU9: 0 | JV9: =Wheat!AV9 -> 60000 | JW9: =JV9*IF(Inputs!$B$6=1,$AL9,$AP9) -> 1200000 | JX9: 0 | JY9: 0 | JZ9: =Alfalfa!U9 -> 0 | KA9: 0 | KB9: 0 | KC9: 0 | KD9: ='All Other Hay'!R9 -> 26000 | KE9: 2210000 | KF9: 0 | KG9: 0 | KH9: 8830 | KI9: 1875 | KJ9: 0 | KK9: =IF(Inputs!$F59>0,Inputs!$F59*KH9,0) -> 883 | KL9: =IF(Inputs!$F59>0,Inputs!$F59*KI9,0) -> 187.5 | KM9: =IF(Inputs!$F59>0,Inputs!$F59*KJ9,0) -> 0 | KN9: =Soybean!AC9 -> 0 | KO9: 0 | KP9: 0 | KQ9: 0 | KR9: =Corn!BH9 -> 0 | KS9: 0 | KT9: 0 | KU9: 0 | KV9: =Sorghum!AC9 -> 0 | KW9: 0 | KX9: 0 | KY9: 0 | KZ9: =Wheat!AE9 -> 180000 | LA9: 17100000 | LB9: 4500000 | LC9: 0 | LD9: =Wheat!AW9 -> 35000 | LE9: =LD9*IF(Inputs!$B$6=1,$AL9,$AP9) -> 700000 | LF9: 0 | LG9: 0 | LH9: =Alfalfa!W9 -> 0 | LI9: 0 | LJ9: 0 | LK9: 0 | LL9: ='All Other Hay'!T9 -> 39000 | LM9: 3315000 | LN9: 0 | LO9: 0 | LP9: 10557.5 | LQ9: 2250 | LR9: 0 | LS9: =IF(Inputs!$F59>0,Inputs!$F59*LP9,0) -> 1055.75 | LT9: =IF(Inputs!$F59>0,Inputs!$F59*LQ9,0) -> 225 | LU9: =IF(Inputs!$F59>0,Inputs!$F59*LR9,0) -> 0 | LV9: =Soybean!AF9 -> 0 | LW9: 0 | LX9: 0 | LY9: 0 | LZ9: =Corn!CP9 -> 0 | MA9: 0 | MB9: 0 | MC9: 0 | MD9: =Sorghum!AF9 -> 0 | ME9: 0 | MF9: 0 | MG9: 0 | MH9: =Wheat!AG9 -> 140000 | MI9: 13300000 | MJ9: 3500000 | MK9: 0 | ML9: =Wheat!AX9 -> 65000 | MM9: =ML9*IF(Inputs!$B$6=1,$AL9,$AP9) -> 1300000 | MN9: 0 | MO9: 0 | MP9: =Alfalfa!Z9 -> 0 | MQ9: 0 | MR9: 0 | MS9: 0 | MT9: ='All Other Hay'!W9 -> 69500 | MU9: 5907500 | MV9: 0 | MW9: 0 | MX9: 10253.75 | MY9: 1750 | MZ9: 0 | NA9: =IF(Inputs!$F59>0,Inputs!$F59*MX9,0) -> 1025.375 | NB9: =IF(Inputs!$F59>0,Inputs!$F59*MY9,0) -> 175 | NC9: =IF(Inputs!$F59>0,Inputs!$F59*MZ9,0) -> 0
A10: Bryan | B10: 10 | C10: 0 | D10: 0 | E10: =IF(Inputs!$B$6=0,Inputs!$D$10,) -> 9 | F10: =IF(Inputs!$B$6=0,Inputs!$D$11,) -> 0 | G10: =IF(Inputs!$B$6=0,Inputs!$D$12,) -> 0 | H10: =IF(Inputs!$B$6=0,'Fertilizer Numbers 05-10'!E10,'Fertilizer Numbers 05-10'!B10) -> 9 | I10: =IF(Inputs!$B$6=0,'Fertilizer Numbers 05-10'!F10,'Fertilizer Numbers 05-10'!C10) -> 0 | J10: =IF(Inputs!$B$6=0,'Fertilizer Numbers 05-10'!G10,'Fertilizer Numbers 05-10'!D10) -> 0 | K10: 89 | L10: 20 | M10: 0 | N10: =Inputs!$F$10 -> 100 | O10: =Inputs!$F$11 -> 25 | P10: =Inputs!$F$12 -> 5 | Q10: =IF(Inputs!$B$6=0,N10,K10) -> 100 | R10: =IF(Inputs!$B$6=0,O10,L10) -> 25 | S10: =IF(Inputs!$B$6=0,P10,M10) -> 5 | T10: 39 | U10: 20 | V10: 0 | W10: =Inputs!$H$10 -> 60 | X10: =Inputs!$H$11 -> 20 | Y10: =Inputs!$H$12 -> 0 | Z10: =IF(Inputs!$B$6=0,W10,T10) -> 60 | AA10: =IF(Inputs!$B$6=0,X10,U10) -> 20 | AB10: =IF(Inputs!$B$6=0,Y10,V10) -> 0 | AC10: =Inputs!$C$10 -> 85 | AD10: =Inputs!$C$11 -> 25 | AE10: =Inputs!$C$12 -> 0 | AF10: =Inputs!$C$10 -> 85 | AG10: =Inputs!$C$11 -> 25 | AH10: =Inputs!$C$12 -> 0 | AI10: =IF(Inputs!$B$6=0,'Fertilizer Numbers 05-10'!AF10,AC10) -> 85 | AJ10: =IF(Inputs!$B$6=0,'Fertilizer Numbers 05-10'!AG10,AD10) -> 25 | AK10: =IF(Inputs!$B$6=0,'Fertilizer Numbers 05-10'!AH10,AE10) -> 0 | AL10: =Inputs!$C$13 -> 20 | AM10: =Inputs!$B$10 -> 95 | AN10: =Inputs!$B$11 -> 25 | AO10: =Inputs!$B$12 -> 0 | AP10: =Inputs!$B$13 -> 20 | AQ10: 0 | AR10: 0 | AS10: =Inputs!$K$10 -> 0 | AT10: =Inputs!$K$11 -> 0 | AU10: =Inputs!$K$12 -> 150 | AV10: =Inputs!$J$10 -> 0 | AW10: =Inputs!J$11 -> 0 | AX10: =Inputs!$J$12 -> 125 | AY10: =IF(Inputs!$B$6=0,AV10,AS10) -> 0 | AZ10: =IF(Inputs!$B$6=0,AW10,AT10) -> 0 | BA10: =IF(Inputs!$B$6=0,AX10,AU10) -> 125 | BB10: 72 | BC10: 0 | BD10: 0 | BE10: =Inputs!$L$10 -> 85 | BF10: =Inputs!$L$11 -> 0 | BG10: =Inputs!$L$12 -> 5 | BH10: =IF(Inputs!$B$6=0,'Fertilizer Numbers 05-10'!BE10,BB10) -> 85 | BI10: =IF(Inputs!$B$6=0,'Fertilizer Numbers 05-10'!BF10,BC10) -> 0 | BJ10: =IF(Inputs!$B$6=0,'Fertilizer Numbers 05-10'!BG10,BD10) -> 5 | BK10: =Soybean!J10 -> 4100 | BL10: 36900 | BM10: 0 | BN10: 0 | BO10: =Corn!J10 -> 0 | BP10: 0 | BQ10: 0 | BR10: 0 | BS10: =Sorghum!J10 -> 0 | BT10: 0 | BU10: 0 | BV10: 0 | BW10: =Wheat!Q10 -> 3300 | BX10: 313500 | BY10: 82500 | BZ10: 0 | CA10: =Wheat!AP10 -> 8700 | CB10: =CA10*IF(Inputs!$B$6=1,AL10,AP10) -> 174000 | CC10: 0 | CD10: 0 | CE10: =Alfalfa!J10 -> 1000 | CF10: 0 | CG10: 0 | CH10: 125000 | CI10: ='All Other Hay'!I10 -> 45000 | CJ10: 3825000 | CK10: 0 | CL10: 225000 | CM10: 2071.3 | CN10: 59.7 | CO10: 175 | CP10: =Soybean!E10 -> 2500 | CQ10: 22500 | CR10: 0 | CS10: 0 | CT10: =Corn!L10 -> 0 | CU10: 0 | CV10: 0 | CW10: 0 | CX10: =Sorghum!L10 -> 0 | CY10: 0 | CZ10: 0 | DA10: 0 | DB10: =Wheat!S10 -> 5500 | DC10: 522500 | DD10: 137500 | DE10: 0 | DF10: =Wheat!AQ10 -> 7000 | DG10: =DF10*IF(Inputs!$B$6=1,AL10,AP10) -> 140000 | DH10: 0 | DI10: 0 | DJ10: =Alfalfa!M10 -> 6500 | DK10: 0 | DL10: 0 | DM10: 812500 | DN10: ='All Other Hay'!J10 -> 41000 | DO10: 3485000 | DP10: 0 | DQ10: 205000 | DR10: 2085 | DS10: 68.75 | DT10: 508.75 | DU10: =IF(Inputs!B60>0,Inputs!B60*'Fertilizer Numbers 05-10'!DR10,0) -> 0 | DV10: =IF(Inputs!B60>0,Inputs!B60*'Fertilizer Numbers 05-10'!DS10,0) -> 0 | DW10: =IF(Inputs!B60>0,Inputs!B60*'Fertilizer Numbers 05-10'!DT10,0) -> 0 | DX10: =Soybean!N10 -> 800 | DY10: 7200 | DZ10: 0 | EA10: 0 | EB10: =Corn!N10 -> 2600 | EC10: 100 | ED10: 65000 | EE10: 13000 | EF10: =Sorghum!N10 -> 0 | EG10: 0 | EH10: 0 | EI10: 0 | EJ10: =Wheat!U10 -> 1500 | EK10: 142500 | EL10: 37500 | EM10: 0 | EN10: =Wheat!AR10 -> 13500 | EO10: 270000 | EP10: 0 | EQ10: 0 | ER10: =Alfalfa!F10 -> 700 | ES10: 0 | ET10: 0 | EU10: 87500 | EV10: ='All Other Hay'!F10 -> 54000 | EW10: 4590000 | EX10: 0 | EY10: 270000 | EZ10: 2504.9 | FA10: 51.25 | FB10: 185.25 | FC10: =IF(Inputs!C60>0,Inputs!C60*'Fertilizer Numbers 05-10'!EZ10,0) -> 0 | FD10: =IF(Inputs!C60>0,Inputs!C60*'Fertilizer Numbers 05-10'!FA10,0) -> 0 | FE10: =IF(Inputs!C60>0,Inputs!C60*'Fertilizer Numbers 05-10'!FB10,0) -> 0 | FF10: =Soybean!Q10 -> 0 | FG10: 0 | FH10: 0 | FI10: 0 | FJ10: =Corn!Q10 -> 2500 | FK10: 250000 | FL10: 62500 | FM10: 12500 | FN10: =Sorghum!Q10 -> 0 | FO10: 0 | FP10: 0 | FQ10: 0 | FR10: =Wheat!W10 -> 0 | FS10: 0 | FT10: 0 | FU10: 0 | FV10: =Wheat!AS10 -> 0 | FW10: =FV10*IF(Inputs!$B$6=1,AL10,AP10) -> 0 | FX10: 0 | FY10: 0 | FZ10: =Alfalfa!O10 -> 0 | GA10: 0 | GB10: 0 | GC10: 0 | GD10: ='All Other Hay'!L10 -> 0 | GE10: 0 | GF10: 0 | GG10: 0 | GH10: 125 | GI10: 31.25 | GJ10: 6.25 | GK10: =IF(Inputs!D60>0,Inputs!D60*'Fertilizer Numbers 05-10'!GH10,0) -> 0 | GL10: =IF(Inputs!D60>0,Inputs!D60*'Fertilizer Numbers 05-10'!GI10,0) -> 0 | GM10: =IF(Inputs!D60>0,Inputs!D60*'Fertilizer Numbers 05-10'!GJ10,0) -> 0 | GO10: =Soybean!T10 -> 6500 | GP10: 58500 | GQ10: 0 | GR10: 0 | GS10: =Corn!T10 -> 0 | GT10: 0 | GU10: 0 | GV10: 0 | GW10: =Sorghum!T10 -> 0 | GX10: 0 | GY10: 0 | GZ10: 0 | HA10: =Wheat!Y10 -> 0 | HB10: 0 | HC10: 0 | HD10: 0 | HE10: =Wheat!AT10 -> 0 | HF10: =+HE10*IF(Inputs!$B$6=1,AL10,AP10) -> 0 | HG10: 0 | HH10: 0 | HI10: =Alfalfa!Q10 -> 0 | HJ10: 0 | HK10: 0 | HL10: 0 | HM10: ='All Other Hay'!N10 -> 0 | HN10: 0 | HO10: 0 | HP10: 0 | HQ10: 29.25 | HR10: 0 | HS10: 0 | HT10: =IF(Inputs!E60>0,Inputs!E60*'Fertilizer Numbers 05-10'!HQ10,0) -> 0 | HU10: =IF(Inputs!E60>0,Inputs!E60*'Fertilizer Numbers 05-10'!HR10,0) -> 0 | HV10: =IF(Inputs!E60>0,Inputs!E60*'Fertilizer Numbers 05-10'!HS10,0) -> 0 | HX10: =Soybean!W10 -> 0 | HY10: 0 | HZ10: 0 | IA10: 0 | IB10: =Corn!W10 -> 0 | IC10: 0 | ID10: 0 | IE10: 0 | IF10: =Sorghum!W10 -> 0 | IG10: 0 | IH10: 0 | II10: 0 | IJ10: =Wheat!AA10 -> 0 | IK10: 0 | IL10: 0 | IM10: 0 | IN10: =Wheat!AU10 -> 0 | IO10: =$IN10*IF(Inputs!$B$6=1,AL10,AP10) -> 0 | IP10: 0 | IQ10: 0 | IR10: =Alfalfa!S10 -> 0 | IS10: 0 | IT10: 0 | IU10: 0 | IV10: ='All Other Hay'!P10 -> 0 | IW10: 0 | IX10: 0 | IY10: 0 | IZ10: 0 | JA10: 0 | JB10: 0 | JC10: =IF(Inputs!$F60>0,Inputs!$F60*IZ10,0) -> 0 | JD10: =IF(Inputs!$F60>0,Inputs!$F60*JA10,0) -> 0 | JE10: =IF(Inputs!$F60>0,Inputs!$F60*JB10,0) -> 0 | JF10: =Soybean!Z10 -> 0 | JG10: 0 | JH10: 0 | JI10: 0 | JJ10: =Corn!Z10 -> 0 | JK10: 0 | JL10: 0 | JM10: 0 | JN10: =Sorghum!BE10 -> 0 | JO10: 0 | JP10: 0 | JQ10: 0 | JR10: =Wheat!AC10 -> 0 | JS10: 0 | JT10: 0 | JU10: 0 | JV10: =Wheat!AV10 -> 0 | JW10: =JV10*IF(Inputs!$B$6=1,$AL10,$AP10) -> 0 | JX10: 0 | JY10: 0 | JZ10: =Alfalfa!U10 -> 2500 | KA10: 0 | KB10: 0 | KC10: 312500 | KD10: ='All Other Hay'!R10 -> 49000 | KE10: 4165000 | KF10: 0 | KG10: 0 | KH10: 2082.5 | KI10: 0 | KJ10: 156.25 | KK10: =IF(Inputs!$F60>0,Inputs!$F60*KH10,0) -> 0 | KL10: =IF(Inputs!$F60>0,Inputs!$F60*KI10,0) -> 0 | KM10: =IF(Inputs!$F60>0,Inputs!$F60*KJ10,0) -> 0 | KN10: =Soybean!AC10 -> 5510 | KO10: 49590 | KP10: 0 | KQ10: 0 | KR10: =Corn!BH10 -> 0 | KS10: 0 | KT10: 0 | KU10: 0 | KV10: =Sorghum!AC10 -> 0 | KW10: 0 | KX10: 0 | KY10: 0 | KZ10: =Wheat!AE10 -> 4200 | LA10: 399000 | LB10: 105000 | LC10: 0 | LD10: =Wheat!AW10 -> 6800 | LE10: =LD10*IF(Inputs!$B$6=1,$AL10,$AP10) -> 136000 | LF10: 0 | LG10: 0 | LH10: =Alfalfa!W10 -> 1700 | LI10: 0 | LJ10: 0 | LK10: 212500 | LL10: ='All Other Hay'!T10 -> 56500 | LM10: 4802500 | LN10: 0 | LO10: 0 | LP10: 2693.545 | LQ10: 52.5 | LR10: 106.25 | LS10: =IF(Inputs!$F60>0,Inputs!$F60*LP10,0) -> 0 | LT10: =IF(Inputs!$F60>0,Inputs!$F60*LQ10,0) -> 0 | LU10: =IF(Inputs!$F60>0,Inputs!$F60*LR10,0) -> 0 | LV10: =Soybean!AF10 -> 5510 | LW10: 49590 | LX10: 0 | LY10: 0 | LZ10: =Corn!CP10 -> 0 | MA10: 0 | MB10: 0 | MC10: 0 | MD10: =Sorghum!AF10 -> 0 | ME10: 0 | MF10: 0 | MG10: 0 | MH10: =Wheat!AG10 -> 7600 | MI10: 722000 | MJ10: 190000 | MK10: 0 | ML10: =Wheat!AX10 -> 1900 | MM10: =ML10*IF(Inputs!$B$6=1,$AL10,$AP10) -> 38000 | MN10: 0 | MO10: 0 | MP10: =Alfalfa!Z10 -> 4800 | MQ10: 0 | MR10: 0 | MS10: 600000 | MT10: ='All Other Hay'!W10 -> 95500 | MU10: 8117500 | MV10: 0 | MW10: 0 | MX10: 4463.545 | MY10: 95 | MZ10: 300 | NA10: =IF(Inputs!$F60>0,Inputs!$F60*MX10,0) -> 0 | NB10: =IF(Inputs!$F60>0,Inputs!$F60*MY10,0) -> 0 | NC10: =IF(Inputs!$F60>0,Inputs!$F60*MZ10,0) -> 0
A11: Caddo | B11: 10 | C11: 0 | D11: 0 | E11: =IF(Inputs!$B$6=0,Inputs!$D$10,) -> 9 | F11: =IF(Inputs!$B$6=0,Inputs!$D$11,) -> 0 | G11: =IF(Inputs!$B$6=0,Inputs!$D$12,) -> 0 | H11: =IF(Inputs!$B$6=0,'Fertilizer Numbers 05-10'!E11,'Fertilizer Numbers 05-10'!B11) -> 9 | I11: =IF(Inputs!$B$6=0,'Fertilizer Numbers 05-10'!F11,'Fertilizer Numbers 05-10'!C11) -> 0 | J11: =IF(Inputs!$B$6=0,'Fertilizer Numbers 05-10'!G11,'Fertilizer Numbers 05-10'!D11) -> 0 | K11: 80 | L11: 20 | M11: 0 | N11: =Inputs!$F$10 -> 100 | O11: =Inputs!$F$11 -> 25 | P11: =Inputs!$F$12 -> 5 | Q11: =IF(Inputs!$B$6=0,N11,K11) -> 100 | R11: =IF(Inputs!$B$6=0,O11,L11) -> 25 | S11: =IF(Inputs!$B$6=0,P11,M11) -> 5 | T11: 24 | U11: 20 | V11: 0 | W11: =Inputs!$H$10 -> 60 | X11: =Inputs!$H$11 -> 20 | Y11: =Inputs!$H$12 -> 0 | Z11: =IF(Inputs!$B$6=0,W11,T11) -> 60 | AA11: =IF(Inputs!$B$6=0,X11,U11) -> 20 | AB11: =IF(Inputs!$B$6=0,Y11,V11) -> 0 | AC11: =Inputs!$C$10 -> 85 | AD11: =Inputs!$C$11 -> 25 | AE11: =Inputs!$C$12 -> 0 | AF11: =Inputs!$C$10 -> 85 | AG11: =Inputs!$C$11 -> 25 | AH11: =Inputs!$C$12 -> 0 | AI11: =IF(Inputs!$B$6=0,'Fertilizer Numbers 05-10'!AF11,AC11) -> 85 | AJ11: =IF(Inputs!$B$6=0,'Fertilizer Numbers 05-10'!AG11,AD11) -> 25 | AK11: =IF(Inputs!$B$6=0,'Fertilizer Numbers 05-10'!AH11,AE11) -> 0 | AL11: =Inputs!$C$13 -> 20 | AM11: =Inputs!$B$10 -> 95 | AN11: =Inputs!$B$11 -> 25 | AO11: =Inputs!$B$12 -> 0 | AP11: =Inputs!$B$13 -> 20 | AQ11: 0 | AR11: 0 | AS11: =Inputs!$K$10 -> 0 | AT11: =Inputs!$K$11 -> 0 | AU11: =Inputs!$K$12 -> 150 | AV11: =Inputs!$J$10 -> 0 | AW11: =Inputs!J$11 -> 0 | AX11: =Inputs!$J$12 -> 125 | AY11: =IF(Inputs!$B$6=0,AV11,AS11) -> 0 | AZ11: =IF(Inputs!$B$6=0,AW11,AT11) -> 0 | BA11: =IF(Inputs!$B$6=0,AX11,AU11) -> 125 | BB11: 58 | BC11: 0 | BD11: 0 | BE11: =Inputs!$L$10 -> 85 | BF11: =Inputs!$L$11 -> 0 | BG11: =Inputs!$L$12 -> 5 | BH11: =IF(Inputs!$B$6=0,'Fertilizer Numbers 05-10'!BE11,BB11) -> 85 | BI11: =IF(Inputs!$B$6=0,'Fertilizer Numbers 05-10'!BF11,BC11) -> 0 | BJ11: =IF(Inputs!$B$6=0,'Fertilizer Numbers 05-10'!BG11,BD11) -> 5 | BK11: =Soybean!J11 -> 2400 | BL11: 21600 | BM11: 0 | BN11: 0 | BO11: =Corn!J11 -> 2700 | BP11: 270000 | BQ11: 67500 | BR11: 13500 | BS11: =Sorghum!J11 -> 3100 | BT11: 186000 | BU11: 62000 | BV11: 0 | BW11: =Wheat!Q11 -> 150000 | BX11: 14250000 | BY11: 3750000 | BZ11: 0 | CA11: =Wheat!AP11 -> 90000 | CB11: =CA11*IF(Inputs!$B$6=1,AL11,AP11) -> 1800000 | CC11: 0 | CD11: 0 | CE11: =Alfalfa!J11 -> 7300 | CF11: 0 | CG11: 0 | CH11: 912500 | CI11: ='All Other Hay'!I11 -> 30000 | CJ11: 2550000 | CK11: 0 | CL11: 150000 | CM11: 8629.2 | CN11: 1950.55 | CO11: 538 | CP11: =Soybean!E11 -> 4500 | CQ11: 40500 | CR11: 0 | CS11: 0 | CT11: =Corn!L11 -> 1900 | CU11: 190000 | CV11: 47500 | CW11: 9500 | CX11: =Sorghum!L11 -> 1600 | CY11: 96000 | CZ11: 32000 | DA11: 0 | DB11: =Wheat!S11 -> 110000 | DC11: 10450000 | DD11: 2750000 | DE11: 0 | DF11: =Wheat!AQ11 -> 120000 | DG11: =DF11*IF(Inputs!$B$6=1,AL11,AP11) -> 2400000 | DH11: 0 | DI11: 0 | DJ11: =Alfalfa!M11 -> 7000 | DK11: 0 | DL11: 0 | DM11: 875000 | DN11: ='All Other Hay'!J11 -> 40000 | DO11: 3400000 | DP11: 0 | DQ11: 200000 | DR11: 8288.25 | DS11: 1414.75 | DT11: 542.25 | DU11: =IF(Inputs!B61>0,Inputs!B61*'Fertilizer Numbers 05-10'!DR11,0) -> 0 | DV11: =IF(Inputs!B61>0,Inputs!B61*'Fertilizer Numbers 05-10'!DS11,0) -> 0 | DW11: =IF(Inputs!B61>0,Inputs!B61*'Fertilizer Numbers 05-10'!DT11,0) -> 0 | DX11: =Soybean!N11 -> 4000 | DY11: 36000 | DZ11: 0 | EA11: 0 | EB11: =Corn!N11 -> 3600 | EC11: 100 | ED11: 90000 | EE11: 18000 | EF11: =Sorghum!N11 -> 7700 | EG11: 462000 | EH11: 154000 | EI11: 0 | EJ11: =Wheat!U11 -> 140000 | EK11: 13300000 | EL11: 3500000 | EM11: 0 | EN11: =Wheat!AR11 -> 90000 | EO11: 1800000 | EP11: 0 | EQ11: 0 | ER11: =Alfalfa!F11 -> 8000 | ES11: 0 | ET11: 0 | EU11: 1000000 | EV11: ='All Other Hay'!F11 -> 72000 | EW11: 6120000 | EX11: 0 | EY11: 360000 | EZ11: 10859.05 | FA11: 1872 | FB11: 689 | FC11: =IF(Inputs!C61>0,Inputs!C61*'Fertilizer Numbers 05-10'!EZ11,0) -> 0 | FD11: =IF(Inputs!C61>0,Inputs!C61*'Fertilizer Numbers 05-10'!FA11,0) -> 0 | FE11: =IF(Inputs!C61>0,Inputs!C61*'Fertilizer Numbers 05-10'!FB11,0) -> 0 | FF11: =Soybean!Q11 -> 0 | FG11: 0 | FH11: 0 | FI11: 0 | FJ11: =Corn!Q11 -> 0 | FK11: 0 | FL11: 0 | FM11: 0 | FN11: =Sorghum!Q11 -> 0 | FO11: 0 | FP11: 0 | FQ11: 0 | FR11: =Wheat!W11 -> 220000 | FS11: 20900000 | FT11: 5500000 | FU11: 0 | FV11: =Wheat!AS11 -> 70000 | FW11: =FV11*IF(Inputs!$B$6=1,AL11,AP11) -> 1400000 | FX11: 0 | FY11: 0 | FZ11: =Alfalfa!O11 -> 7500 | GA11: 0 | GB11: 0 | GC11: 937500 | GD11: ='All Other Hay'!L11 -> 34500 | GE11: 2932500 | GF11: 0 | GG11: 172500 | GH11: 12616.25 | GI11: 2750 | GJ11: 555 | GK11: =IF(Inputs!D61>0,Inputs!D61*'Fertilizer Numbers 05-10'!GH11,0) -> 0 | GL11: =IF(Inputs!D61>0,Inputs!D61*'Fertilizer Numbers 05-10'!GI11,0) -> 0 | GM11: =IF(Inputs!D61>0,Inputs!D61*'Fertilizer Numbers 05-10'!GJ11,0) -> 0 | GO11: =Soybean!T11 -> 0 | GP11: 0 | GQ11: 0 | GR11: 0 | GS11: =Corn!T11 -> 0 | GT11: 0 | GU11: 0 | GV11: 0 | GW11: =Sorghum!T11 -> 0 | GX11: 0 | GY11: 0 | GZ11: 0 | HA11: =Wheat!Y11 -> 100000 | HB11: 9500000 | HC11: 0 | HD11: 0 | HE11: =Wheat!AT11 -> 110000 | HF11: =+HE11*IF(Inputs!$B$6=1,AL11,AP11) -> 2200000 | HG11: 0 | HH11: 0 | HI11: =Alfalfa!Q11 -> 8000 | HJ11: 0 | HK11: 0 | HL11: 1000000 | HM11: ='All Other Hay'!N11 -> 37000 | HN11: 3145000 | HO11: 0 | HP11: 185000 | HQ11: 7422.5 | HR11: 0 | HS11: 592.5 | HT11: =IF(Inputs!E61>0,Inputs!E61*'Fertilizer Numbers 05-10'!HQ11,0) -> 0 | HU11: =IF(Inputs!E61>0,Inputs!E61*'Fertilizer Numbers 05-10'!HR11,0) -> 0 | HV11: =IF(Inputs!E61>0,Inputs!E61*'Fertilizer Numbers 05-10'!HS11,0) -> 0 | HX11: =Soybean!W11 -> 0 | HY11: 0 | HZ11: 0 | IA11: 0 | IB11: =Corn!W11 -> 0 | IC11: 0 | ID11: 0 | IE11: 0 | IF11: =Sorghum!W11 -> 0 | IG11: 0 | IH11: 0 | II11: 0 | IJ11: =Wheat!AA11 -> 130000 | IK11: 12350000 | IL11: 3250000 | IM11: 0 | IN11: =Wheat!AU11 -> 65000 | IO11: =$IN11*IF(Inputs!$B$6=1,AL11,AP11) -> 1300000 | IP11: 0 | IQ11: 0 | IR11: =Alfalfa!S11 -> 0 | IS11: 0 | IT11: 0 | IU11: 0 | IV11: ='All Other Hay'!P11 -> 35000 | IW11: 2975000 | IX11: 0 | IY11: 175000 | IZ11: 8312.5 | JA11: 1625 | JB11: 87.5 | JC11: =IF(Inputs!$F61>0,Inputs!$F61*IZ11,0) -> 0 | JD11: =IF(Inputs!$F61>0,Inputs!$F61*JA11,0) -> 0 | JE11: =IF(Inputs!$F61>0,Inputs!$F61*JB11,0) -> 0 | JF11: =Soybean!Z11 -> 0 | JG11: 0 | JH11: 0 | JI11: 0 | JJ11: =Corn!Z11 -> 0 | JK11: 0 | JL11: 0 | JM11: 0 | JN11: =Sorghum!BE11 -> 0 | JO11: 0 | JP11: 0 | JQ11: 0 | JR11: =Wheat!AC11 -> 100000 | JS11: 9500000 | JT11: 2500000 | JU11: 0 | JV11: =Wheat!AV11 -> 85000 | JW11: =JV11*IF(Inputs!$B$6=1,$AL11,$AP11) -> 1700000 | JX11: 0 | JY11: 0 | JZ11: =Alfalfa!U11 -> 0 | KA11: 0 | KB11: 0 | KC11: 0 | KD11: ='All Other Hay'!R11 -> 31000 | KE11: 2635000 | KF11: 0 | KG11: 0 | KH11: 6917.5 | KI11: 1250 | KJ11: 0 | KK11: =IF(Inputs!$F61>0,Inputs!$F61*KH11,0) -> 0 | KL11: =IF(Inputs!$F61>0,Inputs!$F61*KI11,0) -> 0 | KM11: =IF(Inputs!$F61>0,Inputs!$F61*KJ11,0) -> 0 | KN11: =Soybean!AC11 -> 0 | KO11: 0 | KP11: 0 | KQ11: 0 | KR11: =Corn!BH11 -> 0 | KS11: 0 | KT11: 0 | KU11: 0 | KV11: =Sorghum!AC11 -> 6900 | KW11: 414000 | KX11: 138000 | KY11: 0 | KZ11: =Wheat!AE11 -> 115000 | LA11: 10925000 | LB11: 2875000 | LC11: 0 | LD11: =Wheat!AW11 -> 70000 | LE11: =LD11*IF(Inputs!$B$6=1,$AL11,$AP11) -> 1400000 | LF11: 0 | LG11: 0 | LH11: =Alfalfa!W11 -> 0 | LI11: 0 | LJ11: 0 | LK11: 0 | LL11: ='All Other Hay'!T11 -> 47000 | LM11: 3995000 | LN11: 0 | LO11: 0 | LP11: 8367 | LQ11: 1506.5 | LR11: 0 | LS11: =IF(Inputs!$F61>0,Inputs!$F61*LP11,0) -> 0 | LT11: =IF(Inputs!$F61>0,Inputs!$F61*LQ11,0) -> 0 | LU11: =IF(Inputs!$F61>0,Inputs!$F61*LR11,0) -> 0 | LV11: =Soybean!AF11 -> 0 | LW11: 0 | LX11: 0 | LY11: 0 | LZ11: =Corn!CP11 -> 0 | MA11: 0 | MB11: 0 | MC11: 0 | MD11: =Sorghum!AF11 -> 6900 | ME11: 414000 | MF11: 138000 | MG11: 0 | MH11: =Wheat!AG11 -> 125000 | MI11: 11875000 | MJ11: 3125000 | MK11: 0 | ML11: =Wheat!AX11 -> 75000 | MM11: =ML11*IF(Inputs!$B$6=1,$AL11,$AP11) -> 1500000 | MN11: 0 | MO11: 0 | MP11: =Alfalfa!Z11 -> 0 | MQ11: 0 | MR11: 0 | MS11: 0 | MT11: ='All Other Hay'!W11 -> 93500 | MU11: 7947500 | MV11: 0 | MW11: 0 | MX11: 10868.25 | MY11: 1631.5 | MZ11: 0 | NA11: =IF(Inputs!$F61>0,Inputs!$F61*MX11,0) -> 0 | NB11: =IF(Inputs!$F61>0,Inputs!$F61*MY11,0) -> 0 | NC11: =IF(Inputs!$F61>0,Inputs!$F61*MZ11,0) -> 0
A12: Canadian | B12: 10 | C12: 0 | D12: 0 | E12: =IF(Inputs!$B$6=0,Inputs!$D$10,) -> 9 | F12: =IF(Inputs!$B$6=0,Inputs!$D$11,) -> 0 | G12: =IF(Inputs!$B$6=0,Inputs!$D$12,) -> 0 | H12: =IF(Inputs!$B$6=0,'Fertilizer Numbers 05-10'!E12,'Fertilizer Numbers 05-10'!B12) -> 9 | I12: =IF(Inputs!$B$6=0,'Fertilizer Numbers 05-10'!F12,'Fertilizer Numbers 05-10'!C12) -> 0 | J12: =IF(Inputs!$B$6=0,'Fertilizer Numbers 05-10'!G12,'Fertilizer Numbers 05-10'!D12) -> 0 | K12: 88 | L12: 20 | M12: 0 | N12: =Inputs!$F$10 -> 100 | O12: =Inputs!$F$11 -> 25 | P12: =Inputs!$F$12 -> 5 | Q12: =IF(Inputs!$B$6=0,N12,K12) -> 100 | R12: =IF(Inputs!$B$6=0,O12,L12) -> 25 | S12: =IF(Inputs!$B$6=0,P12,M12) -> 5 | T12: 40 | U12: 20 | V12: 0 | W12: =Inputs!$H$10 -> 60 | X12: =Inputs!$H$11 -> 20 | Y12: =Inputs!$H$12 -> 0 | Z12: =IF(Inputs!$B$6=0,W12,T12) -> 60 | AA12: =IF(Inputs!$B$6=0,X12,U12) -> 20 | AB12: =IF(Inputs!$B$6=0,Y12,V12) -> 0 | AC12: =Inputs!$C$10 -> 85 | AD12: =Inputs!$C$11 -> 25 | AE12: =Inputs!$C$12 -> 0 | AF12: =Inputs!$C$10 -> 85 | AG12: =Inputs!$C$11 -> 25 | AH12: =Inputs!$C$12 -> 0 | AI12: =IF(Inputs!$B$6=0,'Fertilizer Numbers 05-10'!AF12,AC12) -> 85 | AJ12: =IF(Inputs!$B$6=0,'Fertilizer Numbers 05-10'!AG12,AD12) -> 25 | AK12: =IF(Inputs!$B$6=0,'Fertilizer Numbers 05-10'!AH12,AE12) -> 0 | AL12: =Inputs!$C$13 -> 20 | AM12: =Inputs!$B$10 -> 95 | AN12: =Inputs!$B$11 -> 25 | AO12: =Inputs!$B$12 -> 0 | AP12: =Inputs!$B$13 -> 20 | AQ12: 0 | AR12: 0 | AS12: =Inputs!$K$10 -> 0 | AT12: =Inputs!$K$11 -> 0 | AU12: =Inputs!$K$12 -> 150 | AV12: =Inputs!$J$10 -> 0 | AW12: =Inputs!J$11 -> 0 | AX12: =Inputs!$J$12 -> 125 | AY12: =IF(Inputs!$B$6=0,AV12,AS12) -> 0 | AZ12: =IF(Inputs!$B$6=0,AW12,AT12) -> 0 | BA12: =IF(Inputs!$B$6=0,AX12,AU12) -> 125 | BB12: 72 | BC12: 0 | BD12: 0 | BE12: =Inputs!$L$10 -> 85 | BF12: =Inputs!$L$11 -> 0 | BG12: =Inputs!$L$12 -> 5 | BH12: =IF(Inputs!$B$6=0,'Fertilizer Numbers 05-10'!BE12,BB12) -> 85 | BI12: =IF(Inputs!$B$6=0,'Fertilizer Numbers 05-10'!BF12,BC12) -> 0 | BJ12: =IF(Inputs!$B$6=0,'Fertilizer Numbers 05-10'!BG12,BD12) -> 5 | BK12: =Soybean!J12 -> 1900 | BL12: 17100 | BM12: 0 | BN12: 0 | BO12: =Corn!J12 -> 0 | BP12: 0 | BQ12: 0 | BR12: 0 | BS12: =Sorghum!J12 -> 0 | BT12: 0 | BU12: 0 | BV12: 0 | BW12: =Wheat!Q12 -> 140000 | BX12: 13300000 | BY12: 3500000 | BZ12: 0 | CA12: =Wheat!AP12 -> 65000 | CB12: =CA12*IF(Inputs!$B$6=1,AL12,AP12) -> 1300000 | CC12: 0 | CD12: 0 | CE12: =Alfalfa!J12 -> 16500 | CF12: 0 | CG12: 0 | CH12: 2062500 | CI12: ='All Other Hay'!I12 -> 50000 | CJ12: 4250000 | CK12: 0 | CL12: 250000 | CM12: 8775.95 | CN12: 1758.55 | CO12: 1156.25 | CP12: =Soybean!E12 -> 4500 | CQ12: 40500 | CR12: 0 | CS12: 0 | CT12: =Corn!L12 -> 0 | CU12: 0 | CV12: 0 | CW12: 0 | CX12: =Sorghum!L12 -> 600 | CY12: 36000 | CZ12: 12000 | DA12: 0 | DB12: =Wheat!S12 -> 130000 | DC12: 12350000 | DD12: 3250000 | DE12: 0 | DF12: =Wheat!AQ12 -> 70000 | DG12: =DF12*IF(Inputs!$B$6=1,AL12,AP12) -> 1400000 | DH12: 0 | DI12: 0 | DJ12: =Alfalfa!M12 -> 20000 | DK12: 0 | DL12: 0 | DM12: 2500000 | DN12: ='All Other Hay'!J12 -> 55000 | DO12: 4675000 | DP12: 0 | DQ12: 275000 | DR12: 9250.75 | DS12: 1631 | DT12: 1387.5 | DU12: =IF(Inputs!B62>0,Inputs!B62*'Fertilizer Numbers 05-10'!DR12,0) -> 0 | DV12: =IF(Inputs!B62>0,Inputs!B62*'Fertilizer Numbers 05-10'!DS12,0) -> 0 | DW12: =IF(Inputs!B62>0,Inputs!B62*'Fertilizer Numbers 05-10'!DT12,0) -> 0 | DX12: =Soybean!N12 -> 0 | DY12: 0 | DZ12: 0 | EA12: 0 | EB12: =Corn!N12 -> 1000 | EC12: 100 | ED12: 25000 | EE12: 5000 | EF12: =Sorghum!N12 -> 500 | EG12: 30000 | EH12: 10000 | EI12: 0 | EJ12: =Wheat!U12 -> 135000 | EK12: 12825000 | EL12: 3375000 | EM12: 0 | EN12: =Wheat!AR12 -> 65000 | EO12: 1300000 | EP12: 0 | EQ12: 0 | ER12: =Alfalfa!F12 -> 16000 | ES12: 0 | ET12: 0 | EU12: 2000000 | EV12: ='All Other Hay'!F12 -> 24000 | EW12: 2040000 | EX12: 0 | EY12: 120000 | EZ12: 8097.55 | FA12: 1705 | FB12: 1062.5 | FC12: =IF(Inputs!C62>0,Inputs!C62*'Fertilizer Numbers 05-10'!EZ12,0) -> 0 | FD12: =IF(Inputs!C62>0,Inputs!C62*'Fertilizer Numbers 05-10'!FA12,0) -> 0 | FE12: =IF(Inputs!C62>0,Inputs!C62*'Fertilizer Numbers 05-10'!FB12,0) -> 0 | FF12: =Soybean!Q12 -> 0 | FG12: 0 | FH12: 0 | FI12: 0 | FJ12: =Corn!Q12 -> 2500 | FK12: 250000 | FL12: 62500 | FM12: 12500 | FN12: =Sorghum!Q12 -> 1000 | FO12: 60000 | FP12: 20000 | FQ12: 0 | FR12: =Wheat!W12 -> 165000 | FS12: 15675000 | FT12: 4125000 | FU12: 0 | FV12: =Wheat!AS12 -> 35000 | FW12: =FV12*IF(Inputs!$B$6=1,AL12,AP12) -> 700000 | FX12: 0 | FY12: 0 | FZ12: =Alfalfa!O12 -> 0 | GA12: 0 | GB12: 0 | GC12: 0 | GD12: ='All Other Hay'!L12 -> 50000 | GE12: 4250000 | GF12: 0 | GG12: 250000 | GH12: 10467.5 | GI12: 2103.75 | GJ12: 131.25 | GK12: =IF(Inputs!D62>0,Inputs!D62*'Fertilizer Numbers 05-10'!GH12,0) -> 0 | GL12: =IF(Inputs!D62>0,Inputs!D62*'Fertilizer Numbers 05-10'!GI12,0) -> 0 | GM12: =IF(Inputs!D62>0,Inputs!D62*'Fertilizer Numbers 05-10'!GJ12,0) -> 0 | GO12: =Soybean!T12 -> 0 | GP12: 0 | GQ12: 0 | GR12: 0 | GS12: =Corn!T12 -> 0 | GT12: 0 | GU12: 0 | GV12: 0 | GW12: =Sorghum!T12 -> 0 | GX12: 0 | GY12: 0 | GZ12: 0 | HA12: =Wheat!Y12 -> 140000 | HB12: 13300000 | HC12: 0 | HD12: 0 | HE12: =Wheat!AT12 -> 60000 | HF12: =+HE12*IF(Inputs!$B$6=1,AL12,AP12) -> 1200000 | HG12: 0 | HH12: 0 | HI12: =Alfalfa!Q12 -> 0 | HJ12: 0 | HK12: 0 | HL12: 0 | HM12: ='All Other Hay'!N12 -> 43000 | HN12: 3655000 | HO12: 0 | HP12: 215000 | HQ12: 9077.5 | HR12: 0 | HS12: 107.5 | HT12: =IF(Inputs!E62>0,Inputs!E62*'Fertilizer Numbers 05-10'!HQ12,0) -> 0 | HU12: =IF(Inputs!E62>0,Inputs!E62*'Fertilizer Numbers 05-10'!HR12,0) -> 0 | HV12: =IF(Inputs!E62>0,Inputs!E62*'Fertilizer Numbers 05-10'!HS12,0) -> 0 | HX12: =Soybean!W12 -> 0 | HY12: 0 | HZ12: 0 | IA12: 0 | IB12: =Corn!W12 -> 0 | IC12: 0 | ID12: 0 | IE12: 0 | IF12: =Sorghum!W12 -> 800 | IG12: 48000 | IH12: 16000 | II12: 0 | IJ12: =Wheat!AA12 -> 140000 | IK12: 13300000 | IL12: 3500000 | IM12: 0 | IN12: =Wheat!AU12 -> 40000 | IO12: =$IN12*IF(Inputs!$B$6=1,AL12,AP12) -> 800000 | IP12: 0 | IQ12: 0 | IR12: =Alfalfa!S12 -> 11000 | IS12: 0 | IT12: 0 | IU12: 1375000 | IV12: ='All Other Hay'!P12 -> 46000 | IW12: 3910000 | IX12: 0 | IY12: 230000 | IZ12: 9029 | JA12: 1758 | JB12: 802.5 | JC12: =IF(Inputs!$F62>0,Inputs!$F62*IZ12,0) -> 0 | JD12: =IF(Inputs!$F62>0,Inputs!$F62*JA12,0) -> 0 | JE12: =IF(Inputs!$F62>0,Inputs!$F62*JB12,0) -> 0 | JF12: =Soybean!Z12 -> 900 | JG12: 8100 | JH12: 0 | JI12: 0 | JJ12: =Corn!Z12 -> 0 | JK12: 0 | JL12: 0 | JM12: 0 | JN12: =Sorghum!BE12 -> 0 | JO12: 0 | JP12: 0 | JQ12: 0 | JR12: =Wheat!AC12 -> 135000 | JS12: 12825000 | JT12: 3375000 | JU12: 0 | JV12: =Wheat!AV12 -> 40000 | JW12: =JV12*IF(Inputs!$B$6=1,$AL12,$AP12) -> 800000 | JX12: 0 | JY12: 0 | JZ12: =Alfalfa!U12 -> 8400 | KA12: 0 | KB12: 0 | KC12: 1050000 | KD12: ='All Other Hay'!R12 -> 32000 | KE12: 2720000 | KF12: 0 | KG12: 0 | KH12: 8176.55 | KI12: 1687.5 | KJ12: 525 | KK12: =IF(Inputs!$F62>0,Inputs!$F62*KH12,0) -> 0 | KL12: =IF(Inputs!$F62>0,Inputs!$F62*KI12,0) -> 0 | KM12: =IF(Inputs!$F62>0,Inputs!$F62*KJ12,0) -> 0 | KN12: =Soybean!AC12 -> 1780 | KO12: 16020 | KP12: 0 | KQ12: 0 | KR12: =Corn!BH12 -> 0 | KS12: 0 | KT12: 0 | KU12: 0 | KV12: =Sorghum!AC12 -> 500 | KW12: 30000 | KX12: 10000 | KY12: 0 | KZ12: =Wheat!AE12 -> 135000 | LA12: 12825000 | LB12: 3375000 | LC12: 0 | LD12: =Wheat!AW12 -> 40000 | LE12: =LD12*IF(Inputs!$B$6=1,$AL12,$AP12) -> 800000 | LF12: 0 | LG12: 0 | LH12: =Alfalfa!W12 -> 9000 | LI12: 0 | LJ12: 0 | LK12: 1125000 | LL12: ='All Other Hay'!T12 -> 54000 | LM12: 4590000 | LN12: 0 | LO12: 0 | LP12: 9130.51 | LQ12: 1692.5 | LR12: 562.5 | LS12: =IF(Inputs!$F62>0,Inputs!$F62*LP12,0) -> 0 | LT12: =IF(Inputs!$F62>0,Inputs!$F62*LQ12,0) -> 0 | LU12: =IF(Inputs!$F62>0,Inputs!$F62*LR12,0) -> 0 | LV12: =Soybean!AF12 -> 1780 | LW12: 16020 | LX12: 0 | LY12: 0 | LZ12: =Corn!CP12 -> 0 | MA12: 0 | MB12: 0 | MC12: 0 | MD12: =Sorghum!AF12 -> 500 | ME12: 30000 | MF12: 10000 | MG12: 0 | MH12: =Wheat!AG12 -> 113000 | MI12: 10735000 | MJ12: 2825000 | MK12: 0 | ML12: =Wheat!AX12 -> 63000 | MM12: =ML12*IF(Inputs!$B$6=1,$AL12,$AP12) -> 1260000 | MN12: 0 | MO12: 0 | MP12: =Alfalfa!Z12 -> 27800 | MQ12: 0 | MR12: 0 | MS12: 3475000 | MT12: ='All Other Hay'!W12 -> 60500 | MU12: 5142500 | MV12: 0 | MW12: 0 | MX12: 8591.76 | MY12: 1417.5 | MZ12: 1737.5 | NA12: =IF(Inputs!$F62>0,Inputs!$F62*MX12,0) -> 0 | NB12: =IF(Inputs!$F62>0,Inputs!$F62*MY12,0) -> 0 | NC12: =IF(Inputs!$F62>0,Inputs!$F62*MZ12,0) -> 0
A13: Carter | B13: 10 | C13: 0 | D13: 0 | E13: =IF(Inputs!$B$6=0,Inputs!$D$10,) -> 9 | F13: =IF(Inputs!$B$6=0,Inputs!$D$11,) -> 0 | G13: =IF(Inputs!$B$6=0,Inputs!$D$12,) -> 0 | H13: =IF(Inputs!$B$6=0,'Fertilizer Numbers 05-10'!E13,'Fertilizer Numbers 05-10'!B13) -> 9 | I13: =IF(Inputs!$B$6=0,'Fertilizer Numbers 05-10'!F13,'Fertilizer Numbers 05-10'!C13) -> 0 | J13: =IF(Inputs!$B$6=0,'Fertilizer Numbers 05-10'!G13,'Fertilizer Numbers 05-10'!D13) -> 0 | K13: 89 | L13: 20 | M13: 0 | N13: =Inputs!$F$10 -> 100 | O13: =Inputs!$F$11 -> 25 | P13: =Inputs!$F$12 -> 5 | Q13: =IF(Inputs!$B$6=0,N13,K13) -> 100 | R13: =IF(Inputs!$B$6=0,O13,L13) -> 25 | S13: =IF(Inputs!$B$6=0,P13,M13) -> 5 | T13: 39 | U13: 20 | V13: 0 | W13: =Inputs!$H$10 -> 60 | X13: =Inputs!$H$11 -> 20 | Y13: =Inputs!$H$12 -> 0 | Z13: =IF(Inputs!$B$6=0,W13,T13) -> 60 | AA13: =IF(Inputs!$B$6=0,X13,U13) -> 20 | AB13: =IF(Inputs!$B$6=0,Y13,V13) -> 0 | AC13: =Inputs!$C$10 -> 85 | AD13: =Inputs!$C$11 -> 25 | AE13: =Inputs!$C$12 -> 0 | AF13: =Inputs!$C$10 -> 85 | AG13: =Inputs!$C$11 -> 25 | AH13: =Inputs!$C$12 -> 0 | AI13: =IF(Inputs!$B$6=0,'Fertilizer Numbers 05-10'!AF13,AC13) -> 85 | AJ13: =IF(Inputs!$B$6=0,'Fertilizer Numbers 05-10'!AG13,AD13) -> 25 | AK13: =IF(Inputs!$B$6=0,'Fertilizer Numbers 05-10'!AH13,AE13) -> 0 | AL13: =Inputs!$C$13 -> 20 | AM13: =Inputs!$B$10 -> 95 | AN13: =Inputs!$B$11 -> 25 | AO13: =Inputs!$B$12 -> 0 | AP13: =Inputs!$B$13 -> 20 | AQ13: 0 | AR13: 0 | AS13: =Inputs!$K$10 -> 0 | AT13: =Inputs!$K$11 -> 0 | AU13: =Inputs!$K$12 -> 150 | AV13: =Inputs!$J$10 -> 0 | AW13: =Inputs!J$11 -> 0 | AX13: =Inputs!$J$12 -> 125 | AY13: =IF(Inputs!$B$6=0,AV13,AS13) -> 0 | AZ13: =IF(Inputs!$B$6=0,AW13,AT13) -> 0 | BA13: =IF(Inputs!$B$6=0,AX13,AU13) -> 125 | BB13: 72 | BC13: 0 | BD13: 0 | BE13: =Inputs!$L$10 -> 85 | BF13: =Inputs!$L$11 -> 0 | BG13: =Inputs!$L$12 -> 5 | BH13: =IF(Inputs!$B$6=0,'Fertilizer Numbers 05-10'!BE13,BB13) -> 85 | BI13: =IF(Inputs!$B$6=0,'Fertilizer Numbers 05-10'!BF13,BC13) -> 0 | BJ13: =IF(Inputs!$B$6=0,'Fertilizer Numbers 05-10'!BG13,BD13) -> 5 | BK13: =Soybean!J13 -> 0 | BL13: 0 | BM13: 0 | BN13: 0 | BO13: =Corn!J13 -> 0 | BP13: 0 | BQ13: 0 | BR13: 0 | BS13: =Sorghum!J13 -> 0 | BT13: 0 | BU13: 0 | BV13: 0 | BW13: =Wheat!Q13 -> 500 | BX13: 47500 | BY13: 12500 | BZ13: 0 | CA13: =Wheat!AP13 -> 9000 | CB13: =CA13*IF(Inputs!$B$6=1,AL13,AP13) -> 180000 | CC13: 0 | CD13: 0 | CE13: =Alfalfa!J13 -> 1000 | CF13: 0 | CG13: 0 | CH13: 125000 | CI13: ='All Other Hay'!I13 -> 40000 | CJ13: 3400000 | CK13: 0 | CL13: 200000 | CM13: 1723.75 | CN13: 6.25 | CO13: 162.5 | CP13: =Soybean!E13 -> 0 | CQ13: 0 | CR13: 0 | CS13: 0 | CT13: =Corn!L13 -> 0 | CU13: 0 | CV13: 0 | CW13: 0 | CX13: =Sorghum!L13 -> 0 | CY13: 0 | CZ13: 0 | DA13: 0 | DB13: =Wheat!S13 -> 1000 | DC13: 95000 | DD13: 25000 | DE13: 0 | DF13: =Wheat!AQ13 -> 7500 | DG13: =DF13*IF(Inputs!$B$6=1,AL13,AP13) -> 150000 | DH13: 0 | DI13: 0 | DJ13: =Alfalfa!M13 -> 900 | DK13: 0 | DL13: 0 | DM13: 112500 | DN13: ='All Other Hay'!J13 -> 53000 | DO13: 4505000 | DP13: 0 | DQ13: 265000 | DR13: 2375 | DS13: 12.5 | DT13: 188.75 | DU13: =IF(Inputs!B63>0,Inputs!B63*'Fertilizer Numbers 05-10'!DR13,0) -> 0 | DV13: =IF(Inputs!B63>0,Inputs!B63*'Fertilizer Numbers 05-10'!DS13,0) -> 0 | DW13: =IF(Inputs!B63>0,Inputs!B63*'Fertilizer Numbers 05-10'!DT13,0) -> 0 | DX13: =Soybean!N13 -> 0 | DY13: 0 | DZ13: 0 | EA13: 0 | EB13: =Corn!N13 -> 0 | EC13: 100 | ED13: 0 | EE13: 0 | EF13: =Sorghum!N13 -> 0 | EG13: 0 | EH13: 0 | EI13: 0 | EJ13: =Wheat!U13 -> 400 | EK13: 38000 | EL13: 10000 | EM13: 0 | EN13: =Wheat!AR13 -> 6600 | EO13: 132000 | EP13: 0 | EQ13: 0 | ER13: =Alfalfa!F13 -> 400 | ES13: 0 | ET13: 0 | EU13: 50000 | EV13: ='All Other Hay'!F13 -> 31000 | EW13: 2635000 | EX13: 0 | EY13: 155000 | EZ13: 1402.55 | FA13: 5 | FB13: 102.5 | FC13: =IF(Inputs!C63>0,Inputs!C63*'Fertilizer Numbers 05-10'!EZ13,0) -> 0 | FD13: =IF(Inputs!C63>0,Inputs!C63*'Fertilizer Numbers 05-10'!FA13,0) -> 0 | FE13: =IF(Inputs!C63>0,Inputs!C63*'Fertilizer Numbers 05-10'!FB13,0) -> 0 | FF13: =Soybean!Q13 -> 0 | FG13: 0 | FH13: 0 | FI13: 0 | FJ13: =Corn!Q13 -> 0 | FK13: 0 | FL13: 0 | FM13: 0 | FN13: =Sorghum!Q13 -> 0 | FO13: 0 | FP13: 0 | FQ13: 0 | FR13: =Wheat!W13 -> 0 | FS13: 0 | FT13: 0 | FU13: 0 | FV13: =Wheat!AS13 -> 0 | FW13: =FV13*IF(Inputs!$B$6=1,AL13,AP13) -> 0 | FX13: 0 | FY13: 0 | FZ13: =Alfalfa!O13 -> 0 | GA13: 0 | GB13: 0 | GC13: 0 | GD13: ='All Other Hay'!L13 -> 0 | GE13: 0 | GF13: 0 | GG13: 0 | GH13: 0 | GI13: 0 | GJ13: 0 | GK13: =IF(Inputs!D63>0,Inputs!D63*'Fertilizer Numbers 05-10'!GH13,0) -> 0 | GL13: =IF(Inputs!D63>0,Inputs!D63*'Fertilizer Numbers 05-10'!GI13,0) -> 0 | GM13: =IF(Inputs!D63>0,Inputs!D63*'Fertilizer Numbers 05-10'!GJ13,0) -> 0 | GO13: =Soybean!T13 -> 0 | GP13: 0 | GQ13: 0 | GR13: 0 | GS13: =Corn!T13 -> 0 | GT13: 0 | GU13: 0 | GV13: 0 | GW13: =Sorghum!T13 -> 0 | GX13: 0 | GY13: 0 | GZ13: 0 | HA13: =Wheat!Y13 -> 0 | HB13: 0 | HC13: 0 | HD13: 0 | HE13: =Wheat!AT13 -> 0 | HF13: =+HE13*IF(Inputs!$B$6=1,AL13,AP13) -> 0 | HG13: 0 | HH13: 0 | HI13: =Alfalfa!Q13 -> 1000 | HJ13: 0 | HK13: 0 | HL13: 125000 | HM13: ='All Other Hay'!N13 -> 0 | HN13: 0 | HO13: 0 | HP13: 0 | HQ13: 0 | HR13: 0 | HS13: 62.5 | HT13: =IF(Inputs!E63>0,Inputs!E63*'Fertilizer Numbers 05-10'!HQ13,0) -> 0 | HU13: =IF(Inputs!E63>0,Inputs!E63*'Fertilizer Numbers 05-10'!HR13,0) -> 0 | HV13: =IF(Inputs!E63>0,Inputs!E63*'Fertilizer Numbers 05-10'!HS13,0) -> 0 | HX13: =Soybean!W13 -> 0 | HY13: 0 | HZ13: 0 | IA13: 0 | IB13: =Corn!W13 -> 0 | IC13: 0 | ID13: 0 | IE13: 0 | IF13: =Sorghum!W13 -> 0 | IG13: 0 | IH13: 0 | II13: 0 | IJ13: =Wheat!AA13 -> 0 | IK13: 0 | IL13: 0 | IM13: 0 | IN13: =Wheat!AU13 -> 0 | IO13: =$IN13*IF(Inputs!$B$6=1,AL13,AP13) -> 0 | IP13: 0 | IQ13: 0 | IR13: =Alfalfa!S13 -> 0 | IS13: 0 | IT13: 0 | IU13: 0 | IV13: ='All Other Hay'!P13 -> 0 | IW13: 0 | IX13: 0 | IY13: 0 | IZ13: 0 | JA13: 0 | JB13: 0 | JC13: =IF(Inputs!$F63>0,Inputs!$F63*IZ13,0) -> 0 | JD13: =IF(Inputs!$F63>0,Inputs!$F63*JA13,0) -> 0 | JE13: =IF(Inputs!$F63>0,Inputs!$F63*JB13,0) -> 0 | JF13: =Soybean!Z13 -> 0 | JG13: 0 | JH13: 0 | JI13: 0 | JJ13: =Corn!Z13 -> 0 | JK13: 0 | JL13: 0 | JM13: 0 | JN13: =Sorghum!BE13 -> 0 | JO13: 0 | JP13: 0 | JQ13: 0 | JR13: =Wheat!AC13 -> 0 | JS13: 0 | JT13: 0 | JU13: 0 | JV13: =Wheat!AV13 -> 0 | JW13: =JV13*IF(Inputs!$B$6=1,$AL13,$AP13) -> 0 | JX13: 0 | JY13: 0 | JZ13: =Alfalfa!U13 -> 0 | KA13: 0 | KB13: 0 | KC13: 0 | KD13: ='All Other Hay'!R13 -> 0 | KE13: 0 | KF13: 0 | KG13: 0 | KH13: 0 | KI13: 0 | KJ13: 0 | KK13: =IF(Inputs!$F63>0,Inputs!$F63*KH13,0) -> 0 | KL13: =IF(Inputs!$F63>0,Inputs!$F63*KI13,0) -> 0 | KM13: =IF(Inputs!$F63>0,Inputs!$F63*KJ13,0) -> 0 | KN13: =Soybean!AC13 -> 0 | KO13: 0 | KP13: 0 | KQ13: 0 | KR13: =Corn!BH13 -> 0 | KS13: 0 | KT13: 0 | KU13: 0 | KV13: =Sorghum!AC13 -> 0 | KW13: 0 | KX13: 0 | KY13: 0 | KZ13: =Wheat!AE13 -> 1000 | LA13: 95000 | LB13: 25000 | LC13: 0 | LD13: =Wheat!AW13 -> 7000 | LE13: =LD13*IF(Inputs!$B$6=1,$AL13,$AP13) -> 140000 | LF13: 0 | LG13: 0 | LH13: =Alfalfa!W13 -> 0 | LI13: 0 | LJ13: 0 | LK13: 0 | LL13: ='All Other Hay'!T13 -> 0 | LM13: 0 | LN13: 0 | LO13: 0 | LP13: 117.5 | LQ13: 12.5 | LR13: 0 | LS13: =IF(Inputs!$F63>0,Inputs!$F63*LP13,0) -> 0 | LT13: =IF(Inputs!$F63>0,Inputs!$F63*LQ13,0) -> 0 | LU13: =IF(Inputs!$F63>0,Inputs!$F63*LR13,0) -> 0 | LV13: =Soybean!AF13 -> 0 | LW13: 0 | LX13: 0 | LY13: 0 | LZ13: =Corn!CP13 -> 0 | MA13: 0 | MB13: 0 | MC13: 0 | MD13: =Sorghum!AF13 -> 0 | ME13: 0 | MF13: 0 | MG13: 0 | MH13: =Wheat!AG13 -> 0 | MI13: 0 | MJ13: 0 | MK13: 0 | ML13: =Wheat!AX13 -> 0 | MM13: =ML13*IF(Inputs!$B$6=1,$AL13,$AP13) -> 0 | MN13: 0 | MO13: 0 | MP13: =Alfalfa!Z13 -> 0 | MQ13: 0 | MR13: 0 | MS13: 0 | MT13: ='All Other Hay'!W13 -> 61000 | MU13: 5185000 | MV13: 0 | MW13: 0 | MX13: 2592.5 | MY13: 0 | MZ13: 0 | NA13: =IF(Inputs!$F63>0,Inputs!$F63*MX13,0) -> 0 | NB13: =IF(Inputs!$F63>0,Inputs!$F63*MY13,0) -> 0 | NC13: =IF(Inputs!$F63>0,Inputs!$F63*MZ13,0) -> 0
A14: Cherokee | B14: 10 | C14: 0 | D14: 0 | E14: =IF(Inputs!$B$6=0,Inputs!$D$10,) -> 9 | F14: =IF(Inputs!$B$6=0,Inputs!$D$11,) -> 0 | G14: =IF(Inputs!$B$6=0,Inputs!$D$12,) -> 0 | H14: =IF(Inputs!$B$6=0,'Fertilizer Numbers 05-10'!E14,'Fertilizer Numbers 05-10'!B14) -> 9 | I14: =IF(Inputs!$B$6=0,'Fertilizer Numbers 05-10'!F14,'Fertilizer Numbers 05-10'!C14) -> 0 | J14: =IF(Inputs!$B$6=0,'Fertilizer Numbers 05-10'!G14,'Fertilizer Numbers 05-10'!D14) -> 0 | K14: 106 | L14: 20 | M14: 0 | N14: =Inputs!$F$10 -> 100 | O14: =Inputs!$F$11 -> 25 | P14: =Inputs!$F$12 -> 5 | Q14: =IF(Inputs!$B$6=0,N14,K14) -> 100 | R14: =IF(Inputs!$B$6=0,O14,L14) -> 25 | S14: =IF(Inputs!$B$6=0,P14,M14) -> 5 | T14: 42 | U14: 20 | V14: 0 | W14: =Inputs!$H$10 -> 60 | X14: =Inputs!$H$11 -> 20 | Y14: =Inputs!$H$12 -> 0 | Z14: =IF(Inputs!$B$6=0,W14,T14) -> 60 | AA14: =IF(Inputs!$B$6=0,X14,U14) -> 20 | AB14: =IF(Inputs!$B$6=0,Y14,V14) -> 0 | AC14: =Inputs!$C$10 -> 85 | AD14: =Inputs!$C$11 -> 25 | AE14: =Inputs!$C$12 -> 0 | AF14: =Inputs!$C$10 -> 85 | AG14: =Inputs!$C$11 -> 25 | AH14: =Inputs!$C$12 -> 0 | AI14: =IF(Inputs!$B$6=0,'Fertilizer Numbers 05-10'!AF14,AC14) -> 85 | AJ14: =IF(Inputs!$B$6=0,'Fertilizer Numbers 05-10'!AG14,AD14) -> 25 | AK14: =IF(Inputs!$B$6=0,'Fertilizer Numbers 05-10'!AH14,AE14) -> 0 | AL14: =Inputs!$C$13 -> 20 | AM14: =Inputs!$B$10 -> 95 | AN14: =Inputs!$B$11 -> 25 | AO14: =Inputs!$B$12 -> 0 | AP14: =Inputs!$B$13 -> 20 | AQ14: 0 | AR14: 0 | AS14: =Inputs!$K$10 -> 0 | AT14: =Inputs!$K$11 -> 0 | AU14: =Inputs!$K$12 -> 150 | AV14: =Inputs!$J$10 -> 0 | AW14: =Inputs!J$11 -> 0 | AX14: =Inputs!$J$12 -> 125 | AY14: =IF(Inputs!$B$6=0,AV14,AS14) -> 0 | AZ14: =IF(Inputs!$B$6=0,AW14,AT14) -> 0 | BA14: =IF(Inputs!$B$6=0,AX14,AU14) -> 125 | BB14: 86 | BC14: 0 | BD14: 0 | BE14: =Inputs!$L$10 -> 85 | BF14: =Inputs!$L$11 -> 0 | BG14: =Inputs!$L$12 -> 5 | BH14: =IF(Inputs!$B$6=0,'Fertilizer Numbers 05-10'!BE14,BB14) -> 85 | BI14: =IF(Inputs!$B$6=0,'Fertilizer Numbers 05-10'!BF14,BC14) -> 0 | BJ14: =IF(Inputs!$B$6=0,'Fertilizer Numbers 05-10'!BG14,BD14) -> 5 | BK14: =Soybean!J14 -> 0 | BL14: 0 | BM14: 0 | BN14: 0 | BO14: =Corn!J14 -> 0 | BP14: 0 | BQ14: 0 | BR14: 0 | BS14: =Sorghum!J14 -> 0 | BT14: 0 | BU14: 0 | BV14: 0 | BW14: =Wheat!Q14 -> 0 | BX14: 0 | BY14: 0 | BZ14: 0 | CA14: =Wheat!AP14 -> 0 | CB14: =CA14*IF(Inputs!$B$6=1,AL14,AP14) -> 0 | CC14: 0 | CD14: 0 | CE14: =Alfalfa!J14 -> 0 | CF14: 0 | CG14: 0 | CH14: 0 | CI14: ='All Other Hay'!I14 -> 0 | CJ14: 0 | CK14: 0 | CL14: 0 | CM14: 0 | CN14: 0 | CO14: 0 | CP14: =Soybean!E14 -> 0 | CQ14: 0 | CR14: 0 | CS14: 0 | CT14: =Corn!L14 -> 0 | CU14: 0 | CV14: 0 | CW14: 0 | CX14: =Sorghum!L14 -> 0 | CY14: 0 | CZ14: 0 | DA14: 0 | DB14: =Wheat!S14 -> 0 | DC14: 0 | DD14: 0 | DE14: 0 | DF14: =Wheat!AQ14 -> 0 | DG14: =DF14*IF(Inputs!$B$6=1,AL14,AP14) -> 0 | DH14: 0 | DI14: 0 | DJ14: =Alfalfa!M14 -> 0 | DK14: 0 | DL14: 0 | DM14: 0 | DN14: ='All Other Hay'!J14 -> 0 | DO14: 0 | DP14: 0 | DQ14: 0 | DR14: 0 | DS14: 0 | DT14: 0 | DU14: =IF(Inputs!B64>0,Inputs!B64*'Fertilizer Numbers 05-10'!DR14,0) -> 0 | DV14: =IF(Inputs!B64>0,Inputs!B64*'Fertilizer Numbers 05-10'!DS14,0) -> 0 | DW14: =IF(Inputs!B64>0,Inputs!B64*'Fertilizer Numbers 05-10'!DT14,0) -> 0 | DX14: =Soybean!N14 -> 0 | DY14: 0 | DZ14: 0 | EA14: 0 | EB14: =Corn!N14 -> 0 | EC14: 100 | ED14: 0 | EE14: 0 | EF14: =Sorghum!N14 -> 0 | EG14: 0 | EH14: 0 | EI14: 0 | EJ14: =Wheat!U14 -> 500 | EK14: 47500 | EL14: 12500 | EM14: 0 | EN14: =Wheat!AR14 -> 3500 | EO14: 70000 | EP14: 0 | EQ14: 0 | ER14: =Alfalfa!F14 -> 400 | ES14: 0 | ET14: 0 | EU14: 50000 | EV14: ='All Other Hay'!F14 -> 31000 | EW14: 2635000 | EX14: 0 | EY14: 155000 | EZ14: 1376.3 | FA14: 6.25 | FB14: 102.5 | FC14: =IF(Inputs!C64>0,Inputs!C64*'Fertilizer Numbers 05-10'!EZ14,0) -> 206.445 | FD14: =IF(Inputs!C64>0,Inputs!C64*'Fertilizer Numbers 05-10'!FA14,0) -> 0.9375 | FE14: =IF(Inputs!C64>0,Inputs!C64*'Fertilizer Numbers 05-10'!FB14,0) -> 15.375 | FF14: =Soybean!Q14 -> 0 | FG14: 0 | FH14: 0 | FI14: 0 | FJ14: =Corn!Q14 -> 0 | FK14: 0 | FL14: 0 | FM14: 0 | FN14: =Sorghum!Q14 -> 0 | FO14: 0 | FP14: 0 | FQ14: 0 | FR14: =Wheat!W14 -> 0 | FS14: 0 | FT14: 0 | FU14: 0 | FV14: =Wheat!AS14 -> 0 | FW14: =FV14*IF(Inputs!$B$6=1,AL14,AP14) -> 0 | FX14: 0 | FY14: 0 | FZ14: =Alfalfa!O14 -> 0 | GA14: 0 | GB14: 0 | GC14: 0 | GD14: ='All Other Hay'!L14 -> 0 | GE14: 0 | GF14: 0 | GG14: 0 | GH14: 0 | GI14: 0 | GJ14: 0 | GK14: =IF(Inputs!D64>0,Inputs!D64*'Fertilizer Numbers 05-10'!GH14,0) -> 0 | GL14: =IF(Inputs!D64>0,Inputs!D64*'Fertilizer Numbers 05-10'!GI14,0) -> 0 | GM14: =IF(Inputs!D64>0,Inputs!D64*'Fertilizer Numbers 05-10'!GJ14,0) -> 0 | GO14: =Soybean!T14 -> 0 | GP14: 0 | GQ14: 0 | GR14: 0 | GS14: =Corn!T14 -> 0 | GT14: 0 | GU14: 0 | GV14: 0 | GW14: =Sorghum!T14 -> 0 | GX14: 0 | GY14: 0 | GZ14: 0 | HA14: =Wheat!Y14 -> 0 | HB14: 0 | HC14: 0 | HD14: 0 | HE14: =Wheat!AT14 -> 0 | HF14: =+HE14*IF(Inputs!$B$6=1,AL14,AP14) -> 0 | HG14: 0 | HH14: 0 | HI14: =Alfalfa!Q14 -> 0 | HJ14: 0 | HK14: 0 | HL14: 0 | HM14: ='All Other Hay'!N14 -> 0 | HN14: 0 | HO14: 0 | HP14: 0 | HQ14: 0 | HR14: 0 | HS14: 0 | HT14: =IF(Inputs!E64>0,Inputs!E64*'Fertilizer Numbers 05-10'!HQ14,0) -> 0 | HU14: =IF(Inputs!E64>0,Inputs!E64*'Fertilizer Numbers 05-10'!HR14,0) -> 0 | HV14: =IF(Inputs!E64>0,Inputs!E64*'Fertilizer Numbers 05-10'!HS14,0) -> 0 | HX14: =Soybean!W14 -> 0 | HY14: 0 | HZ14: 0 | IA14: 0 | IB14: =Corn!W14 -> 0 | IC14: 0 | ID14: 0 | IE14: 0 | IF14: =Sorghum!W14 -> 0 | IG14: 0 | IH14: 0 | II14: 0 | IJ14: =Wheat!AA14 -> 0 | IK14: 0 | IL14: 0 | IM14: 0 | IN14: =Wheat!AU14 -> 0 | IO14: =$IN14*IF(Inputs!$B$6=1,AL14,AP14) -> 0 | IP14: 0 | IQ14: 0 | IR14: =Alfalfa!S14 -> 0 | IS14: 0 | IT14: 0 | IU14: 0 | IV14: ='All Other Hay'!P14 -> 0 | IW14: 0 | IX14: 0 | IY14: 0 | IZ14: 0 | JA14: 0 | JB14: 0 | JC14: =IF(Inputs!$F64>0,Inputs!$F64*IZ14,0) -> 0 | JD14: =IF(Inputs!$F64>0,Inputs!$F64*JA14,0) -> 0 | JE14: =IF(Inputs!$F64>0,Inputs!$F64*JB14,0) -> 0 | JF14: =Soybean!Z14 -> 0 | JG14: 0 | JH14: 0 | JI14: 0 | JJ14: =Corn!Z14 -> 0 | JK14: 0 | JL14: 0 | JM14: 0 | JN14: =Sorghum!BE14 -> 0 | JO14: 0 | JP14: 0 | JQ14: 0 | JR14: =Wheat!AC14 -> 0 | JS14: 0 | JT14: 0 | JU14: 0 | JV14: =Wheat!AV14 -> 0 | JW14: =JV14*IF(Inputs!$B$6=1,$AL14,$AP14) -> 0 | JX14: 0 | JY14: 0 | JZ14: =Alfalfa!U14 -> 0 | KA14: 0 | KB14: 0 | KC14: 0 | KD14: ='All Other Hay'!R14 -> 37000 | KE14: 3145000 | KF14: 0 | KG14: 0 | KH14: 1572.5 | KI14: 0 | KJ14: 0 | KK14: =IF(Inputs!$F64>0,Inputs!$F64*KH14,0) -> 235.875 | KL14: =IF(Inputs!$F64>0,Inputs!$F64*KI14,0) -> 0 | KM14: =IF(Inputs!$F64>0,Inputs!$F64*KJ14,0) -> 0 | KN14: =Soybean!AC14 -> 0 | KO14: 0 | KP14: 0 | KQ14: 0 | KR14: =Corn!BH14 -> 0 | KS14: 0 | KT14: 0 | KU14: 0 | KV14: =Sorghum!AC14 -> 0 | KW14: 0 | KX14: 0 | KY14: 0 | KZ14: =Wheat!AE14 -> 0 | LA14: 0 | LB14: 0 | LC14: 0 | LD14: =Wheat!AW14 -> 0 | LE14: =LD14*IF(Inputs!$B$6=1,$AL14,$AP14) -> 0 | LF14: 0 | LG14: 0 | LH14: =Alfalfa!W14 -> 0 | LI14: 0 | LJ14: 0 | LK14: 0 | LL14: ='All Other Hay'!T14 -> 0 | LM14: 0 | LN14: 0 | LO14: 0 | LP14: 0 | LQ14: 0 | LR14: 0 | LS14: =IF(Inputs!$F64>0,Inputs!$F64*LP14,0) -> 0 | LT14: =IF(Inputs!$F64>0,Inputs!$F64*LQ14,0) -> 0 | LU14: =IF(Inputs!$F64>0,Inputs!$F64*LR14,0) -> 0 | LV14: =Soybean!AF14 -> 0 | LW14: 0 | LX14: 0 | LY14: 0 | LZ14: =Corn!CP14 -> 0 | MA14: 0 | MB14: 0 | MC14: 0 | MD14: =Sorghum!AF14 -> 0 | ME14: 0 | MF14: 0 | MG14: 0 | MH14: =Wheat!AG14 -> 0 | MI14: 0 | MJ14: 0 | MK14: 0 | ML14: =Wheat!AX14 -> 0 | MM14: =ML14*IF(Inputs!$B$6=1,$AL14,$AP14) -> 0 | MN14: 0 | MO14: 0 | MP14: =Alfalfa!Z14 -> 50500 | MQ14: 0 | MR14: 0 | MS14: 6312500 | MT14: ='All Other Hay'!W14 -> 0 | MU14: 0 | MV14: 0 | MW14: 0 | MX14: 0 | MY14: 0 | MZ14: 3156.25 | NA14: =IF(Inputs!$F64>0,Inputs!$F64*MX14,0) -> 0 | NB14: =IF(Inputs!$F64>0,Inputs!$F64*MY14,0) -> 0 | NC14: =IF(Inputs!$F64>0,Inputs!$F64*MZ14,0) -> 473.4375
A15: Choctaw | B15: 10 | C15: 0 | D15: 0 | E15: =IF(Inputs!$B$6=0,Inputs!$D$10,) -> 9 | F15: =IF(Inputs!$B$6=0,Inputs!$D$11,) -> 0 | G15: =IF(Inputs!$B$6=0,Inputs!$D$12,) -> 0 | H15: =IF(Inputs!$B$6=0,'Fertilizer Numbers 05-10'!E15,'Fertilizer Numbers 05-10'!B15) -> 9 | I15: =IF(Inputs!$B$6=0,'Fertilizer Numbers 05-10'!F15,'Fertilizer Numbers 05-10'!C15) -> 0 | J15: =IF(Inputs!$B$6=0,'Fertilizer Numbers 05-10'!G15,'Fertilizer Numbers 05-10'!D15) -> 0 | K15: 81 | L15: 20 | M15: 0 | N15: =Inputs!$F$10 -> 100 | O15: =Inputs!$F$11 -> 25 | P15: =Inputs!$F$12 -> 5 | Q15: =IF(Inputs!$B$6=0,N15,K15) -> 100 | R15: =IF(Inputs!$B$6=0,O15,L15) -> 25 | S15: =IF(Inputs!$B$6=0,P15,M15) -> 5 | T15: 46 | U15: 20 | V15: 0 | W15: =Inputs!$H$10 -> 60 | X15: =Inputs!$H$11 -> 20 | Y15: =Inputs!$H$12 -> 0 | Z15: =IF(Inputs!$B$6=0,W15,T15) -> 60 | AA15: =IF(Inputs!$B$6=0,X15,U15) -> 20 | AB15: =IF(Inputs!$B$6=0,Y15,V15) -> 0 | AC15: =Inputs!$C$10 -> 85 | AD15: =Inputs!$C$11 -> 25 | AE15: =Inputs!$C$12 -> 0 | AF15: =Inputs!$C$10 -> 85 | AG15: =Inputs!$C$11 -> 25 | AH15: =Inputs!$C$12 -> 0 | AI15: =IF(Inputs!$B$6=0,'Fertilizer Numbers 05-10'!AF15,AC15) -> 85 | AJ15: =IF(Inputs!$B$6=0,'Fertilizer Numbers 05-10'!AG15,AD15) -> 25 | AK15: =IF(Inputs!$B$6=0,'Fertilizer Numbers 05-10'!AH15,AE15) -> 0 | AL15: =Inputs!$C$13 -> 20 | AM15: =Inputs!$B$10 -> 95 | AN15: =Inputs!$B$11 -> 25 | AO15: =Inputs!$B$12 -> 0 | AP15: =Inputs!$B$13 -> 20 | AQ15: 0 | AR15: 0 | AS15: =Inputs!$K$10 -> 0 | AT15: =Inputs!$K$11 -> 0 | AU15: =Inputs!$K$12 -> 150 | AV15: =Inputs!$J$10 -> 0 | AW15: =Inputs!J$11 -> 0 | AX15: =Inputs!$J$12 -> 125 | AY15: =IF(Inputs!$B$6=0,AV15,AS15) -> 0 | AZ15: =IF(Inputs!$B$6=0,AW15,AT15) -> 0 | BA15: =IF(Inputs!$B$6=0,AX15,AU15) -> 125 | BB15: 86 | BC15: 0 | BD15: 0 | BE15: =Inputs!$L$10 -> 85 | BF15: =Inputs!$L$11 -> 0 | BG15: =Inputs!$L$12 -> 5 | BH15: =IF(Inputs!$B$6=0,'Fertilizer Numbers 05-10'!BE15,BB15) -> 85 | BI15: =IF(Inputs!$B$6=0,'Fertilizer Numbers 05-10'!BF15,BC15) -> 0 | BJ15: =IF(Inputs!$B$6=0,'Fertilizer Numbers 05-10'!BG15,BD15) -> 5 | BK15: =Soybean!J15 -> 2500 | BL15: 22500 | BM15: 0 | BN15: 0 | BO15: =Corn!J15 -> 4500 | BP15: 450000 | BQ15: 112500 | BR15: 22500 | BS15: =Sorghum!J15 -> 0 | BT15: 0 | BU15: 0 | BV15: 0 | BW15: =Wheat!Q15 -> 3000 | BX15: 285000 | BY15: 75000 | BZ15: 0 | CA15: =Wheat!AP15 -> 900 | CB15: =CA15*IF(Inputs!$B$6=1,AL15,AP15) -> 18000 | CC15: 0 | CD15: 0 | CE15: =Alfalfa!J15 -> 600 | CF15: 0 | CG15: 0 | CH15: 75000 | CI15: ='All Other Hay'!I15 -> 35000 | CJ15: 2975000 | CK15: 0 | CL15: 175000 | CM15: 1856.25 | CN15: 105 | CO15: 136.25 | CP15: =Soybean!E15 -> 4900 | CQ15: 44100 | CR15: 0 | CS15: 0 | CT15: =Corn!L15 -> 3300 | CU15: 330000 | CV15: 82500 | CW15: 16500 | CX15: =Sorghum!L15 -> 0 | CY15: 0 | CZ15: 0 | DA15: 0 | DB15: =Wheat!S15 -> 1500 | DC15: 142500 | DD15: 37500 | DE15: 0 | DF15: =Wheat!AQ15 -> 2000 | DG15: =DF15*IF(Inputs!$B$6=1,AL15,AP15) -> 40000 | DH15: 0 | DI15: 0 | DJ15: =Alfalfa!M15 -> 600 | DK15: 0 | DL15: 0 | DM15: 75000 | DN15: ='All Other Hay'!J15 -> 35000 | DO15: 2975000 | DP15: 0 | DQ15: 175000 | DR15: 1765.8 | DS15: 60 | DT15: 133.25 | DU15: =IF(Inputs!B65>0,Inputs!B65*'Fertilizer Numbers 05-10'!DR15,0) -> 0 | DV15: =IF(Inputs!B65>0,Inputs!B65*'Fertilizer Numbers 05-10'!DS15,0) -> 0 | DW15: =IF(Inputs!B65>0,Inputs!B65*'Fertilizer Numbers 05-10'!DT15,0) -> 0 | DX15: =Soybean!N15 -> 1900 | DY15: 17100 | DZ15: 0 | EA15: 0 | EB15: =Corn!N15 -> 3000 | EC15: 100 | ED15: 75000 | EE15: 15000 | EF15: =Sorghum!N15 -> 0 | EG15: 0 | EH15: 0 | EI15: 0 | EJ15: =Wheat!U15 -> 0 | EK15: 0 | EL15: 0 | EM15: 0 | EN15: =Wheat!AR15 -> 0 | EO15: 0 | EP15: 0 | EQ15: 0 | ER15: =Alfalfa!F15 -> 0 | ES15: 0 | ET15: 0 | EU15: 0 | EV15: ='All Other Hay'!F15 -> 0 | EW15: 0 | EX15: 0 | EY15: 0 | EZ15: 8.6 | FA15: 37.5 | FB15: 7.5 | FC15: =IF(Inputs!C65>0,Inputs!C65*'Fertilizer Numbers 05-10'!EZ15,0) -> 0 | FD15: =IF(Inputs!C65>0,Inputs!C65*'Fertilizer Numbers 05-10'!FA15,0) -> 0 | FE15: =IF(Inputs!C65>0,Inputs!C65*'Fertilizer Numbers 05-10'!FB15,0) -> 0 | FF15: =Soybean!Q15 -> 0 | FG15: 0 | FH15: 0 | FI15: 0 | FJ15: =Corn!Q15 -> 3200 | FK15: 320000 | FL15: 80000 | FM15: 16000 | FN15: =Sorghum!Q15 -> 0 | FO15: 0 | FP15: 0 | FQ15: 0 | FR15: =Wheat!W15 -> 0 | FS15: 0 | FT15: 0 | FU15: 0 | FV15: =Wheat!AS15 -> 0 | FW15: =FV15*IF(Inputs!$B$6=1,AL15,AP15) -> 0 | FX15: 0 | FY15: 0 | FZ15: =Alfalfa!O15 -> 0 | GA15: 0 | GB15: 0 | GC15: 0 | GD15: ='All Other Hay'!L15 -> 0 | GE15: 0 | GF15: 0 | GG15: 0 | GH15: 160 | GI15: 40 | GJ15: 8 | GK15: =IF(Inputs!D65>0,Inputs!D65*'Fertilizer Numbers 05-10'!GH15,0) -> 0 | GL15: =IF(Inputs!D65>0,Inputs!D65*'Fertilizer Numbers 05-10'!GI15,0) -> 0 | GM15: =IF(Inputs!D65>0,Inputs!D65*'Fertilizer Numbers 05-10'!GJ15,0) -> 0 | GO15: =Soybean!T15 -> 0 | GP15: 0 | GQ15: 0 | GR15: 0 | GS15: =Corn!T15 -> 3700 | GT15: 370000 | GU15: 92500 | GV15: 18500 | GW15: =Sorghum!T15 -> 0 | GX15: 0 | GY15: 0 | GZ15: 0 | HA15: =Wheat!Y15 -> 0 | HB15: 0 | HC15: 0 | HD15: 0 | HE15: =Wheat!AT15 -> 0 | HF15: =+HE15*IF(Inputs!$B$6=1,AL15,AP15) -> 0 | HG15: 0 | HH15: 0 | HI15: =Alfalfa!Q15 -> 0 | HJ15: 0 | HK15: 0 | HL15: 0 | HM15: ='All Other Hay'!N15 -> 0 | HN15: 0 | HO15: 0 | HP15: 0 | HQ15: 185 | HR15: 46.25 | HS15: 9.25 | HT15: =IF(Inputs!E65>0,Inputs!E65*'Fertilizer Numbers 05-10'!HQ15,0) -> 0 | HU15: =IF(Inputs!E65>0,Inputs!E65*'Fertilizer Numbers 05-10'!HR15,0) -> 0 | HV15: =IF(Inputs!E65>0,Inputs!E65*'Fertilizer Numbers 05-10'!HS15,0) -> 0 | HX15: =Soybean!W15 -> 0 | HY15: 0 | HZ15: 0 | IA15: 0 | IB15: =Corn!W15 -> 0 | IC15: 0 | ID15: 0 | IE15: 0 | IF15: =Sorghum!W15 -> 0 | IG15: 0 | IH15: 0 | II15: 0 | IJ15: =Wheat!AA15 -> 0 | IK15: 0 | IL15: 0 | IM15: 0 | IN15: =Wheat!AU15 -> 0 | IO15: =$IN15*IF(Inputs!$B$6=1,AL15,AP15) -> 0 | IP15: 0 | IQ15: 0 | IR15: =Alfalfa!S15 -> 0 | IS15: 0 | IT15: 0 | IU15: 0 | IV15: ='All Other Hay'!P15 -> 0 | IW15: 0 | IX15: 0 | IY15: 0 | IZ15: 0 | JA15: 0 | JB15: 0 | JC15: =IF(Inputs!$F65>0,Inputs!$F65*IZ15,0) -> 0 | JD15: =IF(Inputs!$F65>0,Inputs!$F65*JA15,0) -> 0 | JE15: =IF(Inputs!$F65>0,Inputs!$F65*JB15,0) -> 0 | JF15: =Soybean!Z15 -> 0 | JG15: 0 | JH15: 0 | JI15: 0 | JJ15: =Corn!Z15 -> 2300 | JK15: 230000 | JL15: 57500 | JM15: 11500 | JN15: =Sorghum!BE15 -> 0 | JO15: 0 | JP15: 0 | JQ15: 0 | JR15: =Wheat!AC15 -> 0 | JS15: 0 | JT15: 0 | JU15: 0 | JV15: =Wheat!AV15 -> 0 | JW15: =JV15*IF(Inputs!$B$6=1,$AL15,$AP15) -> 0 | JX15: 0 | JY15: 0 | JZ15: =Alfalfa!U15 -> 0 | KA15: 0 | KB15: 0 | KC15: 0 | KD15: ='All Other Hay'!R15 -> 44000 | KE15: 3740000 | KF15: 0 | KG15: 0 | KH15: 1985 | KI15: 28.75 | KJ15: 5.75 | KK15: =IF(Inputs!$F65>0,Inputs!$F65*KH15,0) -> 0 | KL15: =IF(Inputs!$F65>0,Inputs!$F65*KI15,0) -> 0 | KM15: =IF(Inputs!$F65>0,Inputs!$F65*KJ15,0) -> 0 | KN15: =Soybean!AC15 -> 2500 | KO15: 22500 | KP15: 0 | KQ15: 0 | KR15: =Corn!BH15 -> 0 | KS15: 0 | KT15: 0 | KU15: 0 | KV15: =Sorghum!AC15 -> 0 | KW15: 0 | KX15: 0 | KY15: 0 | KZ15: =Wheat!AE15 -> 0 | LA15: 0 | LB15: 0 | LC15: 0 | LD15: =Wheat!AW15 -> 0 | LE15: =LD15*IF(Inputs!$B$6=1,$AL15,$AP15) -> 0 | LF15: 0 | LG15: 0 | LH15: =Alfalfa!W15 -> 0 | LI15: 0 | LJ15: 0 | LK15: 0 | LL15: ='All Other Hay'!T15 -> 0 | LM15: 0 | LN15: 0 | LO15: 0 | LP15: 11.25 | LQ15: 0 | LR15: 0 | LS15: =IF(Inputs!$F65>0,Inputs!$F65*LP15,0) -> 0 | LT15: =IF(Inputs!$F65>0,Inputs!$F65*LQ15,0) -> 0 | LU15: =IF(Inputs!$F65>0,Inputs!$F65*LR15,0) -> 0 | LV15: =Soybean!AF15 -> 2500 | LW15: 22500 | LX15: 0 | LY15: 0 | LZ15: =Corn!CP15 -> 0 | MA15: 0 | MB15: 0 | MC15: 0 | MD15: =Sorghum!AF15 -> 0 | ME15: 0 | MF15: 0 | MG15: 0 | MH15: =Wheat!AG15 -> 0 | MI15: 0 | MJ15: 0 | MK15: 0 | ML15: =Wheat!AX15 -> 0 | MM15: =ML15*IF(Inputs!$B$6=1,$AL15,$AP15) -> 0 | MN15: 0 | MO15: 0 | MP15: =Alfalfa!Z15 -> 0 | MQ15: 0 | MR15: 0 | MS15: 0 | MT15: ='All Other Hay'!W15 -> 0 | MU15: 0 | MV15: 0 | MW15: 0 | MX15: 11.25 | MY15: 0 | MZ15: 0 | NA15: =IF(Inputs!$F65>0,Inputs!$F65*MX15,0) -> 0 | NB15: =IF(Inputs!$F65>0,Inputs!$F65*MY15,0) -> 0 | NC15: =IF(Inputs!$F65>0,Inputs!$F65*MZ15,0) -> 0
A16: Cimarron | B16: 10 | C16: 0 | D16: 0 | E16: =IF(Inputs!$B$6=0,Inputs!$D$10,) -> 9 | F16: =IF(Inputs!$B$6=0,Inputs!$D$11,) -> 0 | G16: =IF(Inputs!$B$6=0,Inputs!$D$12,) -> 0 | H16: =IF(Inputs!$B$6=0,'Fertilizer Numbers 05-10'!E16,'Fertilizer Numbers 05-10'!B16) -> 9 | I16: =IF(Inputs!$B$6=0,'Fertilizer Numbers 05-10'!F16,'Fertilizer Numbers 05-10'!C16) -> 0 | J16: =IF(Inputs!$B$6=0,'Fertilizer Numbers 05-10'!G16,'Fertilizer Numbers 05-10'!D16) -> 0 | K16: 70 | L16: 20 | M16: 0 | N16: =Inputs!$F$10 -> 100 | O16: =Inputs!$F$11 -> 25 | P16: =Inputs!$F$12 -> 5 | Q16: =IF(Inputs!$B$6=0,N16,K16) -> 100 | R16: =IF(Inputs!$B$6=0,O16,L16) -> 25 | S16: =IF(Inputs!$B$6=0,P16,M16) -> 5 | T16: 18 | U16: 20 | V16: 0 | W16: =Inputs!$H$10 -> 60 | X16: =Inputs!$H$11 -> 20 | Y16: =Inputs!$H$12 -> 0 | Z16: =IF(Inputs!$B$6=0,W16,T16) -> 60 | AA16: =IF(Inputs!$B$6=0,X16,U16) -> 20 | AB16: =IF(Inputs!$B$6=0,Y16,V16) -> 0 | AC16: =Inputs!$C$10 -> 85 | AD16: =Inputs!$C$11 -> 25 | AE16: =Inputs!$C$12 -> 0 | AF16: =Inputs!$C$10 -> 85 | AG16: =Inputs!$C$11 -> 25 | AH16: =Inputs!$C$12 -> 0 | AI16: =IF(Inputs!$B$6=0,'Fertilizer Numbers 05-10'!AF16,AC16) -> 85 | AJ16: =IF(Inputs!$B$6=0,'Fertilizer Numbers 05-10'!AG16,AD16) -> 25 | AK16: =IF(Inputs!$B$6=0,'Fertilizer Numbers 05-10'!AH16,AE16) -> 0 | AL16: =Inputs!$C$13 -> 20 | AM16: =Inputs!$B$10 -> 95 | AN16: =Inputs!$B$11 -> 25 | AO16: =Inputs!$B$12 -> 0 | AP16: =Inputs!$B$13 -> 20 | AQ16: 0 | AR16: 0 | AS16: =Inputs!$K$10 -> 0 | AT16: =Inputs!$K$11 -> 0 | AU16: =Inputs!$K$12 -> 150 | AV16: =Inputs!$J$10 -> 0 | AW16: =Inputs!J$11 -> 0 | AX16: =Inputs!$J$12 -> 125 | AY16: =IF(Inputs!$B$6=0,AV16,AS16) -> 0 | AZ16: =IF(Inputs!$B$6=0,AW16,AT16) -> 0 | BA16: =IF(Inputs!$B$6=0,AX16,AU16) -> 125 | BB16: 58 | BC16: 0 | BD16: 0 | BE16: =Inputs!$L$10 -> 85 | BF16: =Inputs!$L$11 -> 0 | BG16: =Inputs!$L$12 -> 5 | BH16: =IF(Inputs!$B$6=0,'Fertilizer Numbers 05-10'!BE16,BB16) -> 85 | BI16: =IF(Inputs!$B$6=0,'Fertilizer Numbers 05-10'!BF16,BC16) -> 0 | BJ16: =IF(Inputs!$B$6=0,'Fertilizer Numbers 05-10'!BG16,BD16) -> 5 | BK16: =Soybean!J16 -> 0 | BL16: 0 | BM16: 0 | BN16: 0 | BO16: =Corn!J16 -> 17500 | BP16: 1750000 | BQ16: 437500 | BR16: 87500 | BS16: =Sorghum!J16 -> 45000 | BT16: 2700000 | BU16: 900000 | BV16: 0 | BW16: =Wheat!Q16 -> 150000 | BX16: 14250000 | BY16: 3750000 | BZ16: 0 | CA16: =Wheat!AP16 -> 25000 | CB16: =CA16*IF(Inputs!$B$6=1,AL16,AP16) -> 500000 | CC16: 0 | CD16: 0 | CE16: =Alfalfa!J16 -> 3000 | CF16: 0 | CG16: 0 | CH16: 375000 | CI16: ='All Other Hay'!I16 -> 9000 | CJ16: 765000 | CK16: 0 | CL16: 45000 | CM16: 9732.5 | CN16: 2543.75 | CO16: 253.75 | CP16: =Soybean!E16 -> 0 | CQ16: 0 | CR16: 0 | CS16: 0 | CT16: =Corn!L16 -> 14500 | CU16: 1450000 | CV16: 362500 | CW16: 72500 | CX16: =Sorghum!L16 -> 47000 | CY16: 2820000 | CZ16: 940000 | DA16: 0 | DB16: =Wheat!S16 -> 70000 | DC16: 6650000 | DD16: 1750000 | DE16: 0 | DF16: =Wheat!AQ16 -> 70000 | DG16: =DF16*IF(Inputs!$B$6=1,AL16,AP16) -> 1400000 | DH16: 0 | DI16: 0 | DJ16: =Alfalfa!M16 -> 3000 | DK16: 0 | DL16: 0 | DM16: 375000 | DN16: ='All Other Hay'!J16 -> 8000 | DO16: 680000 | DP16: 0 | DQ16: 40000 | DR16: 6500 | DS16: 1526.25 | DT16: 243.75 | DU16: =IF(Inputs!B66>0,Inputs!B66*'Fertilizer Numbers 05-10'!DR16,0) -> 0 | DV16: =IF(Inputs!B66>0,Inputs!B66*'Fertilizer Numbers 05-10'!DS16,0) -> 0 | DW16: =IF(Inputs!B66>0,Inputs!B66*'Fertilizer Numbers 05-10'!DT16,0) -> 0 | DX16: =Soybean!N16 -> 0 | DY16: 0 | DZ16: 0 | EA16: 0 | EB16: =Corn!N16 -> 22000 | EC16: 100 | ED16: 550000 | EE16: 110000 | EF16: =Sorghum!N16 -> 34000 | EG16: 2040000 | EH16: 680000 | EI16: 0 | EJ16: =Wheat!U16 -> 150000 | EK16: 14250000 | EL16: 3750000 | EM16: 0 | EN16: =Wheat!AR16 -> 15000 | EO16: 300000 | EP16: 0 | EQ16: 0 | ER16: =Alfalfa!F16 -> 0 | ES16: 0 | ET16: 0 | EU16: 0 | EV16: ='All Other Hay'!F16 -> 0 | EW16: 0 | EX16: 0 | EY16: 0 | EZ16: 8295.05 | FA16: 2490 | FB16: 55 | FC16: =IF(Inputs!C66>0,Inputs!C66*'Fertilizer Numbers 05-10'!EZ16,0) -> 0 | FD16: =IF(Inputs!C66>0,Inputs!C66*'Fertilizer Numbers 05-10'!FA16,0) -> 0 | FE16: =IF(Inputs!C66>0,Inputs!C66*'Fertilizer Numbers 05-10'!FB16,0) -> 0 | FF16: =Soybean!Q16 -> 0 | FG16: 0 | FH16: 0 | FI16: 0 | FJ16: =Corn!Q16 -> 0 | FK16: 0 | FL16: 0 | FM16: 0 | FN16: =Sorghum!Q16 -> 0 | FO16: 0 | FP16: 0 | FQ16: 0 | FR16: =Wheat!W16 -> 0 | FS16: 0 | FT16: 0 | FU16: 0 | FV16: =Wheat!AS16 -> 0 | FW16: =FV16*IF(Inputs!$B$6=1,AL16,AP16) -> 0 | FX16: 0 | FY16: 0 | FZ16: =Alfalfa!O16 -> 0 | GA16: 0 | GB16: 0 | GC16: 0 | GD16: ='All Other Hay'!L16 -> 8000 | GE16: =GD16*BH16 -> 680000 | GF16: 0 | GG16: 40000 | GH16: 340 | GI16: 0 | GJ16: 20 | GK16: =IF(Inputs!D66>0,Inputs!D66*'Fertilizer Numbers 05-10'!GH16,0) -> 0 | GL16: =IF(Inputs!D66>0,Inputs!D66*'Fertilizer Numbers 05-10'!GI16,0) -> 0 | GM16: =IF(Inputs!D66>0,Inputs!D66*'Fertilizer Numbers 05-10'!GJ16,0) -> 0 | GO16: =Soybean!T16 -> 0 | GP16: 0 | GQ16: 0 | GR16: 0 | GS16: =Corn!T16 -> 0 | GT16: 0 | GU16: 0 | GV16: 0 | GW16: =Sorghum!T16 -> 0 | GX16: 0 | GY16: 0 | GZ16: 0 | HA16: =Wheat!Y16 -> 0 | HB16: 0 | HC16: 0 | HD16: 0 | HE16: =Wheat!AT16 -> 0 | HF16: =+HE16*IF(Inputs!$B$6=1,AL16,AP16) -> 0 | HG16: 0 | HH16: 0 | HI16: =Alfalfa!Q16 -> 0 | HJ16: 0 | HK16: 0 | HL16: 0 | HM16: ='All Other Hay'!N16 -> 0 | HN16: 0 | HO16: 0 | HP16: 0 | HQ16: 0 | HR16: 0 | HS16: 0 | HT16: =IF(Inputs!E66>0,Inputs!E66*'Fertilizer Numbers 05-10'!HQ16,0) -> 0 | HU16: =IF(Inputs!E66>0,Inputs!E66*'Fertilizer Numbers 05-10'!HR16,0) -> 0 | HV16: =IF(Inputs!E66>0,Inputs!E66*'Fertilizer Numbers 05-10'!HS16,0) -> 0 | HX16: =Soybean!W16 -> 0 | HY16: 0 | HZ16: 0 | IA16: 0 | IB16: =Corn!W16 -> 0 | IC16: 0 | ID16: 0 | IE16: 0 | IF16: =Sorghum!W16 -> 24000 | IG16: 1440000 | IH16: 480000 | II16: 0 | IJ16: =Wheat!AA16 -> 165000 | IK16: 15675000 | IL16: 4125000 | IM16: 0 | IN16: =Wheat!AU16 -> 25000 | IO16: =$IN16*IF(Inputs!$B$6=1,AL16,AP16) -> 500000 | IP16: 0 | IQ16: 0 | IR16: =Alfalfa!S16 -> 3500 | IS16: 0 | IT16: 0 | IU16: 437500 | IV16: ='All Other Hay'!P16 -> 5000 | IW16: 425000 | IX16: 0 | IY16: 25000 | IZ16: 9020 | JA16: 2302.5 | JB16: 231.25 | JC16: =IF(Inputs!$F66>0,Inputs!$F66*IZ16,0) -> 0 | JD16: =IF(Inputs!$F66>0,Inputs!$F66*JA16,0) -> 0 | JE16: =IF(Inputs!$F66>0,Inputs!$F66*JB16,0) -> 0 | JF16: =Soybean!Z16 -> 0 | JG16: 0 | JH16: 0 | JI16: 0 | JJ16: =Corn!Z16 -> 0 | JK16: 0 | JL16: 0 | JM16: 0 | JN16: =Sorghum!BE16 -> 0 | JO16: 0 | JP16: 0 | JQ16: 0 | JR16: =Wheat!AC16 -> 75000 | JS16: 7125000 | JT16: 1875000 | JU16: 0 | JV16: =Wheat!AV16 -> 95000 | JW16: =JV16*IF(Inputs!$B$6=1,$AL16,$AP16) -> 1900000 | JX16: 0 | JY16: 0 | JZ16: =Alfalfa!U16 -> 0 | KA16: 0 | KB16: 0 | KC16: 0 | KD16: ='All Other Hay'!R16 -> 0 | KE16: 0 | KF16: 0 | KG16: 0 | KH16: 4512.5 | KI16: 937.5 | KJ16: 0 | KK16: =IF(Inputs!$F66>0,Inputs!$F66*KH16,0) -> 0 | KL16: =IF(Inputs!$F66>0,Inputs!$F66*KI16,0) -> 0 | KM16: =IF(Inputs!$F66>0,Inputs!$F66*KJ16,0) -> 0 | KN16: =Soybean!AC16 -> 0 | KO16: 0 | KP16: 0 | KQ16: 0 | KR16: =Corn!BH16 -> 0 | KS16: 0 | KT16: 0 | KU16: 0 | KV16: =Sorghum!AC16 -> 14800 | KW16: 888000 | KX16: 296000 | KY16: 0 | KZ16: =Wheat!AE16 -> 205000 | LA16: 19475000 | LB16: 5125000 | LC16: 0 | LD16: =Wheat!AW16 -> 30000 | LE16: =LD16*IF(Inputs!$B$6=1,$AL16,$AP16) -> 600000 | LF16: 0 | LG16: 0 | LH16: =Alfalfa!W16 -> 0 | LI16: 0 | LJ16: 0 | LK16: 0 | LL16: ='All Other Hay'!T16 -> 0 | LM16: 0 | LN16: 0 | LO16: 0 | LP16: 10481.5 | LQ16: 2710.5 | LR16: 0 | LS16: =IF(Inputs!$F66>0,Inputs!$F66*LP16,0) -> 0 | LT16: =IF(Inputs!$F66>0,Inputs!$F66*LQ16,0) -> 0 | LU16: =IF(Inputs!$F66>0,Inputs!$F66*LR16,0) -> 0 | LV16: =Soybean!AF16 -> 0 | LW16: 0 | LX16: 0 | LY16: 0 | LZ16: =Corn!CP16 -> 0 | MA16: 0 | MB16: 0 | MC16: 0 | MD16: =Sorghum!AF16 -> 14800 | ME16: 888000 | MF16: 296000 | MG16: 0 | MH16: =Wheat!AG16 -> 27000 | MI16: 2565000 | MJ16: 675000 | MK16: 0 | ML16: =Wheat!AX16 -> 199000 | MM16: =ML16*IF(Inputs!$B$6=1,$AL16,$AP16) -> 3980000 | MN16: 0 | MO16: 0 | MP16: =Alfalfa!Z16 -> 0 | MQ16: 0 | MR16: 0 | MS16: 0 | MT16: ='All Other Hay'!W16 -> 15000 | MU16: 1275000 | MV16: 0 | MW16: 0 | MX16: 4354 | MY16: 485.5 | MZ16: 0 | NA16: =IF(Inputs!$F66>0,Inputs!$F66*MX16,0) -> 0 | NB16: =IF(Inputs!$F66>0,Inputs!$F66*MY16,0) -> 0 | NC16: =IF(Inputs!$F66>0,Inputs!$F66*MZ16,0) -> 0
A17: Cleveland | B17: 10 | C17: 0 | D17: 0 | E17: =IF(Inputs!$B$6=0,Inputs!$D$10,) -> 9 | F17: =IF(Inputs!$B$6=0,Inputs!$D$11,) -> 0 | G17: =IF(Inputs!$B$6=0,Inputs!$D$12,) -> 0 | H17: =IF(Inputs!$B$6=0,'Fertilizer Numbers 05-10'!E17,'Fertilizer Numbers 05-10'!B17) -> 9 | I17: =IF(Inputs!$B$6=0,'Fertilizer Numbers 05-10'!F17,'Fertilizer Numbers 05-10'!C17) -> 0 | J17: =IF(Inputs!$B$6=0,'Fertilizer Numbers 05-10'!G17,'Fertilizer Numbers 05-10'!D17) -> 0 | K17: 88 | L17: 20 | M17: 0 | N17: =Inputs!$F$10 -> 100 | O17: =Inputs!$F$11 -> 25 | P17: =Inputs!$F$12 -> 5 | Q17: =IF(Inputs!$B$6=0,N17,K17) -> 100 | R17: =IF(Inputs!$B$6=0,O17,L17) -> 25 | S17: =IF(Inputs!$B$6=0,P17,M17) -> 5 | T17: 40 | U17: 20 | V17: 0 | W17: =Inputs!$H$10 -> 60 | X17: =Inputs!$H$11 -> 20 | Y17: =Inputs!$H$12 -> 0 | Z17: =IF(Inputs!$B$6=0,W17,T17) -> 60 | AA17: =IF(Inputs!$B$6=0,X17,U17) -> 20 | AB17: =IF(Inputs!$B$6=0,Y17,V17) -> 0 | AC17: =Inputs!$C$10 -> 85 | AD17: =Inputs!$C$11 -> 25 | AE17: =Inputs!$C$12 -> 0 | AF17: =Inputs!$C$10 -> 85 | AG17: =Inputs!$C$11 -> 25 | AH17: =Inputs!$C$12 -> 0 | AI17: =IF(Inputs!$B$6=0,'Fertilizer Numbers 05-10'!AF17,AC17) -> 85 | AJ17: =IF(Inputs!$B$6=0,'Fertilizer Numbers 05-10'!AG17,AD17) -> 25 | AK17: =IF(Inputs!$B$6=0,'Fertilizer Numbers 05-10'!AH17,AE17) -> 0 | AL17: =Inputs!$C$13 -> 20 | AM17: =Inputs!$B$10 -> 95 | AN17: =Inputs!$B$11 -> 25 | AO17: =Inputs!$B$12 -> 0 | AP17: =Inputs!$B$13 -> 20 | AQ17: 0 | AR17: 0 | AS17: =Inputs!$K$10 -> 0 | AT17: =Inputs!$K$11 -> 0 | AU17: =Inputs!$K$12 -> 150 | AV17: =Inputs!$J$10 -> 0 | AW17: =Inputs!J$11 -> 0 | AX17: =Inputs!$J$12 -> 125 | AY17: =IF(Inputs!$B$6=0,AV17,AS17) -> 0 | AZ17: =IF(Inputs!$B$6=0,AW17,AT17) -> 0 | BA17: =IF(Inputs!$B$6=0,AX17,AU17) -> 125 | BB17: 72 | BC17: 0 | BD17: 0 | BE17: =Inputs!$L$10 -> 85 | BF17: =Inputs!$L$11 -> 0 | BG17: =Inputs!$L$12 -> 5 | BH17: =IF(Inputs!$B$6=0,'Fertilizer Numbers 05-10'!BE17,BB17) -> 85 | BI17: =IF(Inputs!$B$6=0,'Fertilizer Numbers 05-10'!BF17,BC17) -> 0 | BJ17: =IF(Inputs!$B$6=0,'Fertilizer Numbers 05-10'!BG17,BD17) -> 5 | BK17: =Soybean!J17 -> 0 | BL17: 0 | BM17: 0 | BN17: 0 | BO17: =Corn!J17 -> 1000 | BP17: 100000 | BQ17: 25000 | BR17: 5000 | BS17: =Sorghum!J17 -> 0 | BT17: 0 | BU17: 0 | BV17: 0 | BW17: =Wheat!Q17 -> 3000 | BX17: 285000 | BY17: 75000 | BZ17: 0 | CA17: =Wheat!AP17 -> 3000 | CB17: =CA17*IF(Inputs!$B$6=1,AL17,AP17) -> 60000 | CC17: 0 | CD17: 0 | CE17: =Alfalfa!J17 -> 2600 | CF17: 0 | CG17: 0 | CH17: 325000 | CI17: ='All Other Hay'!I17 -> 25000 | CJ17: 2125000 | CK17: 0 | CL17: 125000 | CM17: 1255 | CN17: 50 | CO17: 227.5 | CP17: =Soybean!E17 -> 400 | CQ17: 3600 | CR17: 0 | CS17: 0 | CT17: =Corn!L17 -> 600 | CU17: 60000 | CV17: 15000 | CW17: 3000 | CX17: =Sorghum!L17 -> 0 | CY17: 0 | CZ17: 0 | DA17: 0 | DB17: =Wheat!S17 -> 2000 | DC17: 190000 | DD17: 50000 | DE17: 0 | DF17: =Wheat!AQ17 -> 4500 | DG17: =DF17*IF(Inputs!$B$6=1,AL17,AP17) -> 90000 | DH17: 0 | DI17: 0 | DJ17: =Alfalfa!M17 -> 2800 | DK17: 0 | DL17: 0 | DM17: 350000 | DN17: ='All Other Hay'!J17 -> 32000 | DO17: 2720000 | DP17: 0 | DQ17: 160000 | DR17: 1531.8 | DS17: 32.5 | DT17: 256.5 | DU17: =IF(Inputs!B67>0,Inputs!B67*'Fertilizer Numbers 05-10'!DR17,0) -> 0 | DV17: =IF(Inputs!B67>0,Inputs!B67*'Fertilizer Numbers 05-10'!DS17,0) -> 0 | DW17: =IF(Inputs!B67>0,Inputs!B67*'Fertilizer Numbers 05-10'!DT17,0) -> 0 | DX17: =Soybean!N17 -> 0 | DY17: 0 | DZ17: 0 | EA17: 0 | EB17: =Corn!N17 -> 1200 | EC17: 100 | ED17: 30000 | EE17: 6000 | EF17: =Sorghum!N17 -> 0 | EG17: 0 | EH17: 0 | EI17: 0 | EJ17: =Wheat!U17 -> 1000 | EK17: 95000 | EL17: 25000 | EM17: 0 | EN17: =Wheat!AR17 -> 6000 | EO17: 120000 | EP17: 0 | EQ17: 0 | ER17: =Alfalfa!F17 -> 3000 | ES17: 0 | ET17: 0 | EU17: 375000 | EV17: ='All Other Hay'!F17 -> 44000 | EW17: 3740000 | EX17: 0 | EY17: 220000 | EZ17: 1977.55 | FA17: 27.5 | FB17: 300.5 | FC17: =IF(Inputs!C67>0,Inputs!C67*'Fertilizer Numbers 05-10'!EZ17,0) -> 0 | FD17: =IF(Inputs!C67>0,Inputs!C67*'Fertilizer Numbers 05-10'!FA17,0) -> 0 | FE17: =IF(Inputs!C67>0,Inputs!C67*'Fertilizer Numbers 05-10'!FB17,0) -> 0 | FF17: =Soybean!Q17 -> 900 | FG17: 8100 | FH17: 0 | FI17: 0 | FJ17: =Corn!Q17 -> 900 | FK17: 90000 | FL17: 22500 | FM17: 4500 | FN17: =Sorghum!Q17 -> 0 | FO17: 0 | FP17: 0 | FQ17: 0 | FR17: =Wheat!W17 -> 4500 | FS17: 427500 | FT17: 112500 | FU17: 0 | FV17: =Wheat!AS17 -> 1500 | FW17: =FV17*IF(Inputs!$B$6=1,AL17,AP17) -> 30000 | FX17: 0 | FY17: 0 | FZ17: =Alfalfa!O17 -> 0 | GA17: 0 | GB17: 0 | GC17: 0 | GD17: ='All Other Hay'!L17 -> 0 | GE17: =GD17*BH17 -> 0 | GF17: 0 | GG17: 0 | GH17: 277.8 | GI17: 67.5 | GJ17: 2.25 | GK17: =IF(Inputs!D67>0,Inputs!D67*'Fertilizer Numbers 05-10'!GH17,0) -> 0 | GL17: =IF(Inputs!D67>0,Inputs!D67*'Fertilizer Numbers 05-10'!GI17,0) -> 0 | GM17: =IF(Inputs!D67>0,Inputs!D67*'Fertilizer Numbers 05-10'!GJ17,0) -> 0 | GO17: =Soybean!T17 -> 0 | GP17: 0 | GQ17: 0 | GR17: 0 | GS17: =Corn!T17 -> 0 | GT17: 0 | GU17: 0 | GV17: 0 | GW17: =Sorghum!T17 -> 0 | GX17: 0 | GY17: 0 | GZ17: 0 | HA17: =Wheat!Y17 -> 0 | HB17: 0 | HC17: 0 | HD17: 0 | HE17: =Wheat!AT17 -> 0 | HF17: =+HE17*IF(Inputs!$B$6=1,AL17,AP17) -> 0 | HG17: 0 | HH17: 0 | HI17: =Alfalfa!Q17 -> 0 | HJ17: 0 | HK17: 0 | HL17: 0 | HM17: ='All Other Hay'!N17 -> 0 | HN17: 0 | HO17: 0 | HP17: 0 | HQ17: 0 | HR17: 0 | HS17: 0 | HT17: =IF(Inputs!E67>0,Inputs!E67*'Fertilizer Numbers 05-10'!HQ17,0) -> 0 | HU17: =IF(Inputs!E67>0,Inputs!E67*'Fertilizer Numbers 05-10'!HR17,0) -> 0 | HV17: =IF(Inputs!E67>0,Inputs!E67*'Fertilizer Numbers 05-10'!HS17,0) -> 0 | HX17: =Soybean!W17 -> 0 | HY17: 0 | HZ17: 0 | IA17: 0 | IB17: =Corn!W17 -> 0 | IC17: 0 | ID17: 0 | IE17: 0 | IF17: =Sorghum!W17 -> 0 | IG17: 0 | IH17: 0 | II17: 0 | IJ17: =Wheat!AA17 -> 2200 | IK17: 209000 | IL17: 55000 | IM17: 0 | IN17: =Wheat!AU17 -> 3300 | IO17: =$IN17*IF(Inputs!$B$6=1,AL17,AP17) -> 66000 | IP17: 0 | IQ17: 0 | IR17: =Alfalfa!S17 -> 4000 | IS17: 0 | IT17: 0 | IU17: 500000 | IV17: ='All Other Hay'!P17 -> 0 | IW17: 0 | IX17: 0 | IY17: 0 | IZ17: 137.5 | JA17: 27.5 | JB17: 250 | JC17: =IF(Inputs!$F67>0,Inputs!$F67*IZ17,0) -> 0 | JD17: =IF(Inputs!$F67>0,Inputs!$F67*JA17,0) -> 0 | JE17: =IF(Inputs!$F67>0,Inputs!$F67*JB17,0) -> 0 | JF17: =Soybean!Z17 -> 0 | JG17: 0 | JH17: 0 | JI17: 0 | JJ17: =Corn!Z17 -> 0 | JK17: 0 | JL17: 0 | JM17: 0 | JN17: =Sorghum!BE17 -> 0 | JO17: 0 | JP17: 0 | JQ17: 0 | JR17: =Wheat!AC17 -> 2000 | JS17: 190000 | JT17: 50000 | JU17: 0 | JV17: =Wheat!AV17 -> 2000 | JW17: =JV17*IF(Inputs!$B$6=1,$AL17,$AP17) -> 40000 | JX17: 0 | JY17: 0 | JZ17: =Alfalfa!U17 -> 2500 | KA17: 0 | KB17: 0 | KC17: 312500 | KD17: ='All Other Hay'!R17 -> 0 | KE17: 0 | KF17: 0 | KG17: 0 | KH17: 115 | KI17: 25 | KJ17: 156.25 | KK17: =IF(Inputs!$F67>0,Inputs!$F67*KH17,0) -> 0 | KL17: =IF(Inputs!$F67>0,Inputs!$F67*KI17,0) -> 0 | KM17: =IF(Inputs!$F67>0,Inputs!$F67*KJ17,0) -> 0 | KN17: =Soybean!AC17 -> 0 | KO17: 0 | KP17: 0 | KQ17: 0 | KR17: =Corn!BH17 -> 0 | KS17: 0 | KT17: 0 | KU17: 0 | KV17: =Sorghum!AC17 -> 0 | KW17: 0 | KX17: 0 | KY17: 0 | KZ17: =Wheat!AE17 -> 1100 | LA17: 104500 | LB17: 27500 | LC17: 0 | LD17: =Wheat!AW17 -> 3600 | LE17: =LD17*IF(Inputs!$B$6=1,$AL17,$AP17) -> 72000 | LF17: 0 | LG17: 0 | LH17: =Alfalfa!W17 -> 2600 | LI17: 0 | LJ17: 0 | LK17: 325000 | LL17: ='All Other Hay'!T17 -> 0 | LM17: 0 | LN17: 0 | LO17: 0 | LP17: 88.25 | LQ17: 13.75 | LR17: 162.5 | LS17: =IF(Inputs!$F67>0,Inputs!$F67*LP17,0) -> 0 | LT17: =IF(Inputs!$F67>0,Inputs!$F67*LQ17,0) -> 0 | LU17: =IF(Inputs!$F67>0,Inputs!$F67*LR17,0) -> 0 | LV17: =Soybean!AF17 -> 0 | LW17: 0 | LX17: 0 | LY17: 0 | LZ17: =Corn!CP17 -> 0 | MA17: 0 | MB17: 0 | MC17: 0 | MD17: =Sorghum!AF17 -> 0 | ME17: 0 | MF17: 0 | MG17: 0 | MH17: =Wheat!AG17 -> 3200 | MI17: 304000 | MJ17: 80000 | MK17: 0 | ML17: =Wheat!AX17 -> 2100 | MM17: =ML17*IF(Inputs!$B$6=1,$AL17,$AP17) -> 42000 | MN17: 0 | MO17: 0 | MP17: =Alfalfa!Z17 -> 4100 | MQ17: 0 | MR17: 0 | MS17: 512500 | MT17: ='All Other Hay'!W17 -> 0 | MU17: 0 | MV17: 0 | MW17: 0 | MX17: 173 | MY17: 40 | MZ17: 256.25 | NA17: =IF(Inputs!$F67>0,Inputs!$F67*MX17,0) -> 0 | NB17: =IF(Inputs!$F67>0,Inputs!$F67*MY17,0) -> 0 | NC17: =IF(Inputs!$F67>0,Inputs!$F67*MZ17,0) -> 0
A18: Coal | B18: 10 | C18: 0 | D18: 0 | E18: =IF(Inputs!$B$6=0,Inputs!$D$10,) -> 9 | F18: =IF(Inputs!$B$6=0,Inputs!$D$11,) -> 0 | G18: =IF(Inputs!$B$6=0,Inputs!$D$12,) -> 0 | H18: =IF(Inputs!$B$6=0,'Fertilizer Numbers 05-10'!E18,'Fertilizer Numbers 05-10'!B18) -> 9 | I18: =IF(Inputs!$B$6=0,'Fertilizer Numbers 05-10'!F18,'Fertilizer Numbers 05-10'!C18) -> 0 | J18: =IF(Inputs!$B$6=0,'Fertilizer Numbers 05-10'!G18,'Fertilizer Numbers 05-10'!D18) -> 0 | K18: 89 | L18: 20 | M18: 0 | N18: =Inputs!$F$10 -> 100 | O18: =Inputs!$F$11 -> 25 | P18: =Inputs!$F$12 -> 5 | Q18: =IF(Inputs!$B$6=0,N18,K18) -> 100 | R18: =IF(Inputs!$B$6=0,O18,L18) -> 25 | S18: =IF(Inputs!$B$6=0,P18,M18) -> 5 | T18: 39 | U18: 20 | V18: 0 | W18: =Inputs!$H$10 -> 60 | X18: =Inputs!$H$11 -> 20 | Y18: =Inputs!$H$12 -> 0 | Z18: =IF(Inputs!$B$6=0,W18,T18) -> 60 | AA18: =IF(Inputs!$B$6=0,X18,U18) -> 20 | AB18: =IF(Inputs!$B$6=0,Y18,V18) -> 0 | AC18: =Inputs!$C$10 -> 85 | AD18: =Inputs!$C$11 -> 25 | AE18: =Inputs!$C$12 -> 0 | AF18: =Inputs!$C$10 -> 85 | AG18: =Inputs!$C$11 -> 25 | AH18: =Inputs!$C$12 -> 0 | AI18: =IF(Inputs!$B$6=0,'Fertilizer Numbers 05-10'!AF18,AC18) -> 85 | AJ18: =IF(Inputs!$B$6=0,'Fertilizer Numbers 05-10'!AG18,AD18) -> 25 | AK18: =IF(Inputs!$B$6=0,'Fertilizer Numbers 05-10'!AH18,AE18) -> 0 | AL18: =Inputs!$C$13 -> 20 | AM18: =Inputs!$B$10 -> 95 | AN18: =Inputs!$B$11 -> 25 | AO18: =Inputs!$B$12 -> 0 | AP18: =Inputs!$B$13 -> 20 | AQ18: 0 | AR18: 0 | AS18: =Inputs!$K$10 -> 0 | AT18: =Inputs!$K$11 -> 0 | AU18: =Inputs!$K$12 -> 150 | AV18: =Inputs!$J$10 -> 0 | AW18: =Inputs!J$11 -> 0 | AX18: =Inputs!$J$12 -> 125 | AY18: =IF(Inputs!$B$6=0,AV18,AS18) -> 0 | AZ18: =IF(Inputs!$B$6=0,AW18,AT18) -> 0 | BA18: =IF(Inputs!$B$6=0,AX18,AU18) -> 125 | BB18: 72 | BC18: 0 | BD18: 0 | BE18: =Inputs!$L$10 -> 85 | BF18: =Inputs!$L$11 -> 0 | BG18: =Inputs!$L$12 -> 5 | BH18: =IF(Inputs!$B$6=0,'Fertilizer Numbers 05-10'!BE18,BB18) -> 85 | BI18: =IF(Inputs!$B$6=0,'Fertilizer Numbers 05-10'!BF18,BC18) -> 0 | BJ18: =IF(Inputs!$B$6=0,'Fertilizer Numbers 05-10'!BG18,BD18) -> 5 | BK18: =Soybean!J18 -> 0 | BL18: 0 | BM18: 0 | BN18: 0 | BO18: =Corn!J18 -> 0 | BP18: 0 | BQ18: 0 | BR18: 0 | BS18: =Sorghum!J18 -> 0 | BT18: 0 | BU18: 0 | BV18: 0 | BW18: =Wheat!Q18 -> 0 | BX18: 0 | BY18: 0 | BZ18: 0 | CA18: =Wheat!AP18 -> 0 | CB18: =CA18*IF(Inputs!$B$6=1,AL18,AP18) -> 0 | CC18: 0 | CD18: 0 | CE18: =Alfalfa!J18 -> 0 | CF18: 0 | CG18: 0 | CH18: 0 | CI18: ='All Other Hay'!I18 -> 0 | CJ18: 0 | CK18: 0 | CL18: 0 | CM18: 0 | CN18: 0 | CO18: 0 | CP18: =Soybean!E18 -> 0 | CQ18: 0 | CR18: 0 | CS18: 0 | CT18: =Corn!L18 -> 0 | CU18: 0 | CV18: 0 | CW18: 0 | CX18: =Sorghum!L18 -> 0 | CY18: 0 | CZ18: 0 | DA18: 0 | DB18: =Wheat!S18 -> 0 | DC18: 0 | DD18: 0 | DE18: 0 | DF18: =Wheat!AQ18 -> 0 | DG18: =DF18*IF(Inputs!$B$6=1,AL18,AP18) -> 0 | DH18: 0 | DI18: 0 | DJ18: =Alfalfa!M18 -> 0 | DK18: 0 | DL18: 0 | DM18: 0 | DN18: ='All Other Hay'!J18 -> 0 | DO18: 0 | DP18: 0 | DQ18: 0 | DR18: 0 | DS18: 0 | DT18: 0 | DU18: =IF(Inputs!B68>0,Inputs!B68*'Fertilizer Numbers 05-10'!DR18,0) -> 0 | DV18: =IF(Inputs!B68>0,Inputs!B68*'Fertilizer Numbers 05-10'!DS18,0) -> 0 | DW18: =IF(Inputs!B68>0,Inputs!B68*'Fertilizer Numbers 05-10'!DT18,0) -> 0 | DX18: =Soybean!N18 -> 0 | DY18: 0 | DZ18: 0 | EA18: 0 | EB18: =Corn!N18 -> 0 | EC18: 100 | ED18: 0 | EE18: 0 | EF18: =Sorghum!N18 -> 0 | EG18: 0 | EH18: 0 | EI18: 0 | EJ18: =Wheat!U18 -> 0 | EK18: 0 | EL18: 0 | EM18: 0 | EN18: =Wheat!AR18 -> 0 | EO18: 0 | EP18: 0 | EQ18: 0 | ER18: =Alfalfa!F18 -> 0 | ES18: 0 | ET18: 0 | EU18: 0 | EV18: ='All Other Hay'!F18 -> 0 | EW18: 0 | EX18: 0 | EY18: 0 | EZ18: 0.05 | FA18: 0 | FB18: 0 | FC18: =IF(Inputs!C68>0,Inputs!C68*'Fertilizer Numbers 05-10'!EZ18,0) -> 0 | FD18: =IF(Inputs!C68>0,Inputs!C68*'Fertilizer Numbers 05-10'!FA18,0) -> 0 | FE18: =IF(Inputs!C68>0,Inputs!C68*'Fertilizer Numbers 05-10'!FB18,0) -> 0 | FF18: =Soybean!Q18 -> 0 | FG18: 0 | FH18: 0 | FI18: 0 | FJ18: =Corn!Q18 -> 0 | FK18: 0 | FL18: 0 | FM18: 0 | FN18: =Sorghum!Q18 -> 0 | FO18: 0 | FP18: 0 | FQ18: 0 | FR18: =Wheat!W18 -> 500 | FS18: 47500 | FT18: 12500 | FU18: 0 | FV18: =Wheat!AS18 -> 1000 | FW18: =FV18*IF(Inputs!$B$6=1,AL18,AP18) -> 20000 | FX18: 0 | FY18: 0 | FZ18: =Alfalfa!O18 -> 0 | GA18: 0 | GB18: 0 | GC18: 0 | GD18: ='All Other Hay'!L18 -> 0 | GE18: 0 | GF18: 0 | GG18: 0 | GH18: 33.75 | GI18: 6.25 | GJ18: 0 | GK18: =IF(Inputs!D68>0,Inputs!D68*'Fertilizer Numbers 05-10'!GH18,0) -> 0 | GL18: =IF(Inputs!D68>0,Inputs!D68*'Fertilizer Numbers 05-10'!GI18,0) -> 0 | GM18: =IF(Inputs!D68>0,Inputs!D68*'Fertilizer Numbers 05-10'!GJ18,0) -> 0 | GO18: =Soybean!T18 -> 0 | GP18: 0 | GQ18: 0 | GR18: 0 | GS18: =Corn!T18 -> 0 | GT18: 0 | GU18: 0 | GV18: 0 | GW18: =Sorghum!T18 -> 0 | GX18: 0 | GY18: 0 | GZ18: 0 | HA18: =Wheat!Y18 -> 0 | HB18: 0 | HC18: 0 | HD18: 0 | HE18: =Wheat!AT18 -> 0 | HF18: =+HE18*IF(Inputs!$B$6=1,AL18,AP18) -> 0 | HG18: 0 | HH18: 0 | HI18: =Alfalfa!Q18 -> 0 | HJ18: 0 | HK18: 0 | HL18: 0 | HM18: ='All Other Hay'!N18 -> 0 | HN18: 0 | HO18: 0 | HP18: 0 | HQ18: 0 | HR18: 0 | HS18: 0 | HT18: =IF(Inputs!E68>0,Inputs!E68*'Fertilizer Numbers 05-10'!HQ18,0) -> 0 | HU18: =IF(Inputs!E68>0,Inputs!E68*'Fertilizer Numbers 05-10'!HR18,0) -> 0 | HV18: =IF(Inputs!E68>0,Inputs!E68*'Fertilizer Numbers 05-10'!HS18,0) -> 0 | HX18: =Soybean!W18 -> 550 | HY18: 4950 | HZ18: 0 | IA18: 0 | IB18: =Corn!W18 -> 0 | IC18: 0 | ID18: 0 | IE18: 0 | IF18: =Sorghum!W18 -> 0 | IG18: 0 | IH18: 0 | II18: 0 | IJ18: =Wheat!AA18 -> 0 | IK18: 0 | IL18: 0 | IM18: 0 | IN18: =Wheat!AU18 -> 0 | IO18: =$IN18*IF(Inputs!$B$6=1,AL18,AP18) -> 0 | IP18: 0 | IQ18: 0 | IR18: =Alfalfa!S18 -> 0 | IS18: 0 | IT18: 0 | IU18: 0 | IV18: ='All Other Hay'!P18 -> 0 | IW18: 0 | IX18: 0 | IY18: 0 | IZ18: 2.475 | JA18: 0 | JB18: 0 | JC18: =IF(Inputs!$F68>0,Inputs!$F68*IZ18,0) -> 0 | JD18: =IF(Inputs!$F68>0,Inputs!$F68*JA18,0) -> 0 | JE18: =IF(Inputs!$F68>0,Inputs!$F68*JB18,0) -> 0 | JF18: =Soybean!Z18 -> 0 | JG18: 0 | JH18: 0 | JI18: 0 | JJ18: =Corn!Z18 -> 0 | JK18: 0 | JL18: 0 | JM18: 0 | JN18: =Sorghum!BE18 -> 0 | JO18: 0 | JP18: 0 | JQ18: 0 | JR18: =Wheat!AC18 -> 1050 | JS18: 99750 | JT18: 26250 | JU18: 0 | JV18: =Wheat!AV18 -> 650 | JW18: =JV18*IF(Inputs!$B$6=1,$AL18,$AP18) -> 13000 | JX18: 0 | JY18: 0 | JZ18: =Alfalfa!U18 -> 0 | KA18: 0 | KB18: 0 | KC18: 0 | KD18: ='All Other Hay'!R18 -> 33000 | KE18: 2805000 | KF18: 0 | KG18: 0 | KH18: 1458.875 | KI18: 13.125 | KJ18: 0 | KK18: =IF(Inputs!$F68>0,Inputs!$F68*KH18,0) -> 0 | KL18: =IF(Inputs!$F68>0,Inputs!$F68*KI18,0) -> 0 | KM18: =IF(Inputs!$F68>0,Inputs!$F68*KJ18,0) -> 0 | KN18: =Soybean!AC18 -> 0 | KO18: 0 | KP18: 0 | KQ18: 0 | KR18: =Corn!BH18 -> 0 | KS18: 0 | KT18: 0 | KU18: 0 | KV18: =Sorghum!AC18 -> 0 | KW18: 0 | KX18: 0 | KY18: 0 | KZ18: =Wheat!AE18 -> 700 | LA18: 66500 | LB18: 17500 | LC18: 0 | LD18: =Wheat!AW18 -> 900 | LE18: =LD18*IF(Inputs!$B$6=1,$AL18,$AP18) -> 18000 | LF18: 0 | LG18: 0 | LH18: =Alfalfa!W18 -> 0 | LI18: 0 | LJ18: 0 | LK18: 0 | LL18: ='All Other Hay'!T18 -> 0 | LM18: 0 | LN18: 0 | LO18: 0 | LP18: 42.25 | LQ18: 8.75 | LR18: 0 | LS18: =IF(Inputs!$F68>0,Inputs!$F68*LP18,0) -> 0 | LT18: =IF(Inputs!$F68>0,Inputs!$F68*LQ18,0) -> 0 | LU18: =IF(Inputs!$F68>0,Inputs!$F68*LR18,0) -> 0 | LV18: =Soybean!AF18 -> 0 | LW18: 0 | LX18: 0 | LY18: 0 | LZ18: =Corn!CP18 -> 0 | MA18: 0 | MB18: 0 | MC18: 0 | MD18: =Sorghum!AF18 -> 0 | ME18: 0 | MF18: 0 | MG18: 0 | MH18: =Wheat!AG18 -> 0 | MI18: 0 | MJ18: 0 | MK18: 0 | ML18: =Wheat!AX18 -> 0 | MM18: =ML18*IF(Inputs!$B$6=1,$AL18,$AP18) -> 0 | MN18: 0 | MO18: 0 | MP18: =Alfalfa!Z18 -> 0 | MQ18: 0 | MR18: 0 | MS18: 0 | MT18: ='All Other Hay'!W18 -> 56000 | MU18: 4760000 | MV18: 0 | MW18: 0 | MX18: 2380 | MY18: 0 | MZ18: 0 | NA18: =IF(Inputs!$F68>0,Inputs!$F68*MX18,0) -> 0 | NB18: =IF(Inputs!$F68>0,Inputs!$F68*MY18,0) -> 0 | NC18: =IF(Inputs!$F68>0,Inputs!$F68*MZ18,0) -> 0
A19: Comanche | B19: 10 | C19: 0 | D19: 0 | E19: =IF(Inputs!$B$6=0,Inputs!$D$10,) -> 9 | F19: =IF(Inputs!$B$6=0,Inputs!$D$11,) -> 0 | G19: =IF(Inputs!$B$6=0,Inputs!$D$12,) -> 0 | H19: =IF(Inputs!$B$6=0,'Fertilizer Numbers 05-10'!E19,'Fertilizer Numbers 05-10'!B19) -> 9 | I19: =IF(Inputs!$B$6=0,'Fertilizer Numbers 05-10'!F19,'Fertilizer Numbers 05-10'!C19) -> 0 | J19: =IF(Inputs!$B$6=0,'Fertilizer Numbers 05-10'!G19,'Fertilizer Numbers 05-10'!D19) -> 0 | K19: 80 | L19: 20 | M19: 0 | N19: =Inputs!$F$10 -> 100 | O19: =Inputs!$F$11 -> 25 | P19: =Inputs!$F$12 -> 5 | Q19: =IF(Inputs!$B$6=0,N19,K19) -> 100 | R19: =IF(Inputs!$B$6=0,O19,L19) -> 25 | S19: =IF(Inputs!$B$6=0,P19,M19) -> 5 | T19: 24 | U19: 20 | V19: 0 | W19: =Inputs!$H$10 -> 60 | X19: =Inputs!$H$11 -> 20 | Y19: =Inputs!$H$12 -> 0 | Z19: =IF(Inputs!$B$6=0,W19,T19) -> 60 | AA19: =IF(Inputs!$B$6=0,X19,U19) -> 20 | AB19: =IF(Inputs!$B$6=0,Y19,V19) -> 0 | AC19: =Inputs!$C$10 -> 85 | AD19: =Inputs!$C$11 -> 25 | AE19: =Inputs!$C$12 -> 0 | AF19: =Inputs!$C$10 -> 85 | AG19: =Inputs!$C$11 -> 25 | AH19: =Inputs!$C$12 -> 0 | AI19: =IF(Inputs!$B$6=0,'Fertilizer Numbers 05-10'!AF19,AC19) -> 85 | AJ19: =IF(Inputs!$B$6=0,'Fertilizer Numbers 05-10'!AG19,AD19) -> 25 | AK19: =IF(Inputs!$B$6=0,'Fertilizer Numbers 05-10'!AH19,AE19) -> 0 | AL19: =Inputs!$C$13 -> 20 | AM19: =Inputs!$B$10 -> 95 | AN19: =Inputs!$B$11 -> 25 | AO19: =Inputs!$B$12 -> 0 | AP19: =Inputs!$B$13 -> 20 | AQ19: 0 | AR19: 0 | AS19: =Inputs!$K$10 -> 0 | AT19: =Inputs!$K$11 -> 0 | AU19: =Inputs!$K$12 -> 150 | AV19: =Inputs!$J$10 -> 0 | AW19: =Inputs!J$11 -> 0 | AX19: =Inputs!$J$12 -> 125 | AY19: =IF(Inputs!$B$6=0,AV19,AS19) -> 0 | AZ19: =IF(Inputs!$B$6=0,AW19,AT19) -> 0 | BA19: =IF(Inputs!$B$6=0,AX19,AU19) -> 125 | BB19: 58 | BC19: 0 | BD19: 0 | BE19: =Inputs!$L$10 -> 85 | BF19: =Inputs!$L$11 -> 0 | BG19: =Inputs!$L$12 -> 5 | BH19: =IF(Inputs!$B$6=0,'Fertilizer Numbers 05-10'!BE19,BB19) -> 85 | BI19: =IF(Inputs!$B$6=0,'Fertilizer Numbers 05-10'!BF19,BC19) -> 0 | BJ19: =IF(Inputs!$B$6=0,'Fertilizer Numbers 05-10'!BG19,BD19) -> 5 | BK19: =Soybean!J19 -> 0 | BL19: 0 | BM19: 0 | BN19: 0 | BO19: =Corn!J19 -> 500 | BP19: 50000 | BQ19: 12500 | BR19: 2500 | BS19: =Sorghum!J19 -> 400 | BT19: 24000 | BU19: 8000 | BV19: 0 | BW19: =Wheat!Q19 -> 40000 | BX19: 3800000 | BY19: 1000000 | BZ19: 0 | CA19: =Wheat!AP19 -> 35000 | CB19: =CA19*IF(Inputs!$B$6=1,AL19,AP19) -> 700000 | CC19: 0 | CD19: 0 | CE19: =Alfalfa!J19 -> 6400 | CF19: 0 | CG19: 0 | CH19: 800000 | CI19: ='All Other Hay'!I19 -> 15000 | CJ19: 1275000 | CK19: 0 | CL19: 75000 | CM19: 2574.5 | CN19: 510.25 | CO19: 438.75 | CP19: =Soybean!E19 -> 200 | CQ19: 1800 | CR19: 0 | CS19: 0 | CT19: =Corn!L19 -> 0 | CU19: 0 | CV19: 0 | CW19: 0 | CX19: =Sorghum!L19 -> 0 | CY19: 0 | CZ19: 0 | DA19: 0 | DB19: =Wheat!S19 -> 25000 | DC19: 2375000 | DD19: 625000 | DE19: 0 | DF19: =Wheat!AQ19 -> 50000 | DG19: =DF19*IF(Inputs!$B$6=1,AL19,AP19) -> 1000000 | DH19: 0 | DI19: 0 | DJ19: =Alfalfa!M19 -> 6000 | DK19: 0 | DL19: 0 | DM19: 750000 | DN19: ='All Other Hay'!J19 -> 18000 | DO19: 1530000 | DP19: 0 | DQ19: 90000 | DR19: 2453.4 | DS19: 312.5 | DT19: 420 | DU19: =IF(Inputs!B69>0,Inputs!B69*'Fertilizer Numbers 05-10'!DR19,0) -> 0 | DV19: =IF(Inputs!B69>0,Inputs!B69*'Fertilizer Numbers 05-10'!DS19,0) -> 0 | DW19: =IF(Inputs!B69>0,Inputs!B69*'Fertilizer Numbers 05-10'!DT19,0) -> 0 | DX19: =Soybean!N19 -> 0 | DY19: 0 | DZ19: 0 | EA19: 0 | EB19: =Corn!N19 -> 300 | EC19: 100 | ED19: 7500 | EE19: 1500 | EF19: =Sorghum!N19 -> 1200 | EG19: 72000 | EH19: 24000 | EI19: 0 | EJ19: =Wheat!U19 -> 43000 | EK19: 4085000 | EL19: 1075000 | EM19: 0 | EN19: =Wheat!AR19 -> 37000 | EO19: 740000 | EP19: 0 | EQ19: 0 | ER19: =Alfalfa!F19 -> 9500 | ES19: 0 | ET19: 0 | EU19: 1187500 | EV19: ='All Other Hay'!F19 -> 0 | EW19: 0 | EX19: 0 | EY19: 0 | EZ19: 2448.55 | FA19: 553.25 | FB19: 594.5 | FC19: =IF(Inputs!C69>0,Inputs!C69*'Fertilizer Numbers 05-10'!EZ19,0) -> 0 | FD19: =IF(Inputs!C69>0,Inputs!C69*'Fertilizer Numbers 05-10'!FA19,0) -> 0 | FE19: =IF(Inputs!C69>0,Inputs!C69*'Fertilizer Numbers 05-10'!FB19,0) -> 0 | FF19: =Soybean!Q19 -> 0 | FG19: 0 | FH19: 0 | FI19: 0 | FJ19: =Corn!Q19 -> 0 | FK19: 0 | FL19: 0 | FM19: 0 | FN19: =Sorghum!Q19 -> 0 | FO19: 0 | FP19: 0 | FQ19: 0 | FR19: =Wheat!W19 -> 60000 | FS19: 5700000 | FT19: 1500000 | FU19: 0 | FV19: =Wheat!AS19 -> 15000 | FW19: =FV19*IF(Inputs!$B$6=1,AL19,AP19) -> 300000 | FX19: 0 | FY19: 0 | FZ19: =Alfalfa!O19 -> 0 | GA19: 0 | GB19: 0 | GC19: 0 | GD19: ='All Other Hay'!L19 -> 0 | GE19: =GD19*BH19 -> 0 | GF19: 0 | GG19: 0 | GH19: 3000 | GI19: 750 | GJ19: 0 | GK19: =IF(Inputs!D69>0,Inputs!D69*'Fertilizer Numbers 05-10'!GH19,0) -> 0 | GL19: =IF(Inputs!D69>0,Inputs!D69*'Fertilizer Numbers 05-10'!GI19,0) -> 0 | GM19: =IF(Inputs!D69>0,Inputs!D69*'Fertilizer Numbers 05-10'!GJ19,0) -> 0 | GO19: =Soybean!T19 -> 0 | GP19: 0 | GQ19: 0 | GR19: 0 | GS19: =Corn!T19 -> 0 | GT19: 0 | GU19: 0 | GV19: 0 | GW19: =Sorghum!T19 -> 0 | GX19: 0 | GY19: 0 | GZ19: 0 | HA19: =Wheat!Y19 -> 25000 | HB19: 2375000 | HC19: 0 | HD19: 0 | HE19: =Wheat!AT19 -> 60000 | HF19: =+HE19*IF(Inputs!$B$6=1,AL19,AP19) -> 1200000 | HG19: 0 | HH19: 0 | HI19: =Alfalfa!Q19 -> 7000 | HJ19: 0 | HK19: 0 | HL19: 875000 | HM19: ='All Other Hay'!N19 -> 0 | HN19: 0 | HO19: 0 | HP19: 0 | HQ19: 1787.5 | HR19: 0 | HS19: 437.5 | HT19: =IF(Inputs!E69>0,Inputs!E69*'Fertilizer Numbers 05-10'!HQ19,0) -> 0 | HU19: =IF(Inputs!E69>0,Inputs!E69*'Fertilizer Numbers 05-10'!HR19,0) -> 0 | HV19: =IF(Inputs!E69>0,Inputs!E69*'Fertilizer Numbers 05-10'!HS19,0) -> 0 | HX19: =Soybean!W19 -> 0 | HY19: 0 | HZ19: 0 | IA19: 0 | IB19: =Corn!W19 -> 0 | IC19: 0 | ID19: 0 | IE19: 0 | IF19: =Sorghum!W19 -> 0 | IG19: 0 | IH19: 0 | II19: 0 | IJ19: =Wheat!AA19 -> 45000 | IK19: 4275000 | IL19: 1125000 | IM19: 0 | IN19: =Wheat!AU19 -> 25000 | IO19: =$IN19*IF(Inputs!$B$6=1,AL19,AP19) -> 500000 | IP19: 0 | IQ19: 0 | IR19: =Alfalfa!S19 -> 7000 | IS19: 0 | IT19: 0 | IU19: 875000 | IV19: ='All Other Hay'!P19 -> 0 | IW19: 0 | IX19: 0 | IY19: 0 | IZ19: 2387.5 | JA19: 562.5 | JB19: 437.5 | JC19: =IF(Inputs!$F69>0,Inputs!$F69*IZ19,0) -> 0 | JD19: =IF(Inputs!$F69>0,Inputs!$F69*JA19,0) -> 0 | JE19: =IF(Inputs!$F69>0,Inputs!$F69*JB19,0) -> 0 | JF19: =Soybean!Z19 -> 0 | JG19: 0 | JH19: 0 | JI19: 0 | JJ19: =Corn!Z19 -> 0 | JK19: 0 | JL19: 0 | JM19: 0 | JN19: =Sorghum!BE19 -> 0 | JO19: 0 | JP19: 0 | JQ19: 0 | JR19: =Wheat!AC19 -> 40000 | JS19: 3800000 | JT19: 1000000 | JU19: 0 | JV19: =Wheat!AV19 -> 30000 | JW19: =JV19*IF(Inputs!$B$6=1,$AL19,$AP19) -> 600000 | JX19: 0 | JY19: 0 | JZ19: =Alfalfa!U19 -> 4500 | KA19: 0 | KB19: 0 | KC19: 562500 | KD19: ='All Other Hay'!R19 -> 0 | KE19: 0 | KF19: 0 | KG19: 0 | KH19: 2200 | KI19: 500 | KJ19: 281.25 | KK19: =IF(Inputs!$F69>0,Inputs!$F69*KH19,0) -> 0 | KL19: =IF(Inputs!$F69>0,Inputs!$F69*KI19,0) -> 0 | KM19: =IF(Inputs!$F69>0,Inputs!$F69*KJ19,0) -> 0 | KN19: =Soybean!AC19 -> 0 | KO19: 0 | KP19: 0 | KQ19: 0 | KR19: =Corn!BH19 -> 0 | KS19: 0 | KT19: 0 | KU19: 0 | KV19: =Sorghum!AC19 -> 0 | KW19: 0 | KX19: 0 | KY19: 0 | KZ19: =Wheat!AE19 -> 50000 | LA19: 4750000 | LB19: 1250000 | LC19: 0 | LD19: =Wheat!AW19 -> 20000 | LE19: =LD19*IF(Inputs!$B$6=1,$AL19,$AP19) -> 400000 | LF19: 0 | LG19: 0 | LH19: =Alfalfa!W19 -> 5500 | LI19: 0 | LJ19: 0 | LK19: 687500 | LL19: ='All Other Hay'!T19 -> 25500 | LM19: 2167500 | LN19: 0 | LO19: 0 | LP19: 3658.75 | LQ19: 625 | LR19: 343.75 | LS19: =IF(Inputs!$F69>0,Inputs!$F69*LP19,0) -> 0 | LT19: =IF(Inputs!$F69>0,Inputs!$F69*LQ19,0) -> 0 | LU19: =IF(Inputs!$F69>0,Inputs!$F69*LR19,0) -> 0 | LV19: =Soybean!AF19 -> 0 | LW19: 0 | LX19: 0 | LY19: 0 | LZ19: =Corn!CP19 -> 0 | MA19: 0 | MB19: 0 | MC19: 0 | MD19: =Sorghum!AF19 -> 0 | ME19: 0 | MF19: 0 | MG19: 0 | MH19: =Wheat!AG19 -> 43000 | MI19: 4085000 | MJ19: 1075000 | MK19: 0 | ML19: =Wheat!AX19 -> 35000 | MM19: =ML19*IF(Inputs!$B$6=1,$AL19,$AP19) -> 700000 | MN19: 0 | MO19: 0 | MP19: =Alfalfa!Z19 -> 8800 | MQ19: 0 | MR19: 0 | MS19: 1100000 | MT19: ='All Other Hay'!W19 -> 37000 | MU19: 3145000 | MV19: 0 | MW19: 0 | MX19: 3965 | MY19: 537.5 | MZ19: 550 | NA19: =IF(Inputs!$F69>0,Inputs!$F69*MX19,0) -> 0 | NB19: =IF(Inputs!$F69>0,Inputs!$F69*MY19,0) -> 0 | NC19: =IF(Inputs!$F69>0,Inputs!$F69*MZ19,0) -> 0
A20: Cotton | B20: 10 | C20: 0 | D20: 0 | E20: =IF(Inputs!$B$6=0,Inputs!$D$10,) -> 9 | F20: =IF(Inputs!$B$6=0,Inputs!$D$11,) -> 0 | G20: =IF(Inputs!$B$6=0,Inputs!$D$12,) -> 0 | H20: =IF(Inputs!$B$6=0,'Fertilizer Numbers 05-10'!E20,'Fertilizer Numbers 05-10'!B20) -> 9 | I20: =IF(Inputs!$B$6=0,'Fertilizer Numbers 05-10'!F20,'Fertilizer Numbers 05-10'!C20) -> 0 | J20: =IF(Inputs!$B$6=0,'Fertilizer Numbers 05-10'!G20,'Fertilizer Numbers 05-10'!D20) -> 0 | K20: 80 | L20: 20 | M20: 0 | N20: =Inputs!$F$10 -> 100 | O20: =Inputs!$F$11 -> 25 | P20: =Inputs!$F$12 -> 5 | Q20: =IF(Inputs!$B$6=0,N20,K20) -> 100 | R20: =IF(Inputs!$B$6=0,O20,L20) -> 25 | S20: =IF(Inputs!$B$6=0,P20,M20) -> 5 | T20: 24 | U20: 20 | V20: 0 | W20: =Inputs!$H$10 -> 60 | X20: =Inputs!$H$11 -> 20 | Y20: =Inputs!$H$12 -> 0 | Z20: =IF(Inputs!$B$6=0,W20,T20) -> 60 | AA20: =IF(Inputs!$B$6=0,X20,U20) -> 20 | AB20: =IF(Inputs!$B$6=0,Y20,V20) -> 0 | AC20: =Inputs!$C$10 -> 85 | AD20: =Inputs!$C$11 -> 25 | AE20: =Inputs!$C$12 -> 0 | AF20: =Inputs!$C$10 -> 85 | AG20: =Inputs!$C$11 -> 25 | AH20: =Inputs!$C$12 -> 0 | AI20: =IF(Inputs!$B$6=0,'Fertilizer Numbers 05-10'!AF20,AC20) -> 85 | AJ20: =IF(Inputs!$B$6=0,'Fertilizer Numbers 05-10'!AG20,AD20) -> 25 | AK20: =IF(Inputs!$B$6=0,'Fertilizer Numbers 05-10'!AH20,AE20) -> 0 | AL20: =Inputs!$C$13 -> 20 | AM20: =Inputs!$B$10 -> 95 | AN20: =Inputs!$B$11 -> 25 | AO20: =Inputs!$B$12 -> 0 | AP20: =Inputs!$B$13 -> 20 | AQ20: 0 | AR20: 0 | AS20: =Inputs!$K$10 -> 0 | AT20: =Inputs!$K$11 -> 0 | AU20: =Inputs!$K$12 -> 150 | AV20: =Inputs!$J$10 -> 0 | AW20: =Inputs!J$11 -> 0 | AX20: =Inputs!$J$12 -> 125 | AY20: =IF(Inputs!$B$6=0,AV20,AS20) -> 0 | AZ20: =IF(Inputs!$B$6=0,AW20,AT20) -> 0 | BA20: =IF(Inputs!$B$6=0,AX20,AU20) -> 125 | BB20: 58 | BC20: 0 | BD20: 0 | BE20: =Inputs!$L$10 -> 85 | BF20: =Inputs!$L$11 -> 0 | BG20: =Inputs!$L$12 -> 5 | BH20: =IF(Inputs!$B$6=0,'Fertilizer Numbers 05-10'!BE20,BB20) -> 85 | BI20: =IF(Inputs!$B$6=0,'Fertilizer Numbers 05-10'!BF20,BC20) -> 0 | BJ20: =IF(Inputs!$B$6=0,'Fertilizer Numbers 05-10'!BG20,BD20) -> 5 | BK20: =Soybean!J20 -> 0 | BL20: 0 | BM20: 0 | BN20: 0 | BO20: =Corn!J20 -> 6400 | BP20: 640000 | BQ20: 160000 | BR20: 32000 | BS20: =Sorghum!J20 -> 1300 | BT20: 78000 | BU20: 26000 | BV20: 0 | BW20: =Wheat!Q20 -> 90000 | BX20: 8550000 | BY20: 2250000 | BZ20: 0 | CA20: =Wheat!AP20 -> 75000 | CB20: =CA20*IF(Inputs!$B$6=1,AL20,AP20) -> 1500000 | CC20: 0 | CD20: 0 | CE20: =Alfalfa!J20 -> 800 | CF20: 0 | CG20: 0 | CH20: 100000 | CI20: ='All Other Hay'!I20 -> 15000 | CJ20: 1275000 | CK20: 0 | CL20: 75000 | CM20: 5271.5 | CN20: 1218 | CO20: 103.5 | CP20: =Soybean!E20 -> 1800 | CQ20: 16200 | CR20: 0 | CS20: 0 | CT20: =Corn!L20 -> 800 | CU20: 80000 | CV20: 20000 | CW20: 4000 | CX20: =Sorghum!L20 -> 0 | CY20: 0 | CZ20: 0 | DA20: 0 | DB20: =Wheat!S20 -> 80000 | DC20: 7600000 | DD20: 2000000 | DE20: 0 | DF20: =Wheat!AQ20 -> 85000 | DG20: =DF20*IF(Inputs!$B$6=1,AL20,AP20) -> 1700000 | DH20: 0 | DI20: 0 | DJ20: =Alfalfa!M20 -> 800 | DK20: 0 | DL20: 0 | DM20: 100000 | DN20: ='All Other Hay'!J20 -> 15000 | DO20: 1275000 | DP20: 0 | DQ20: 75000 | DR20: 5335.6 | DS20: 1010 | DT20: 89.5 | DU20: =IF(Inputs!B70>0,Inputs!B70*'Fertilizer Numbers 05-10'!DR20,0) -> 0 | DV20: =IF(Inputs!B70>0,Inputs!B70*'Fertilizer Numbers 05-10'!DS20,0) -> 0 | DW20: =IF(Inputs!B70>0,Inputs!B70*'Fertilizer Numbers 05-10'!DT20,0) -> 0 | DX20: =Soybean!N20 -> 0 | DY20: 0 | DZ20: 0 | EA20: 0 | EB20: =Corn!N20 -> 0 | EC20: 100 | ED20: 0 | EE20: 0 | EF20: =Sorghum!N20 -> 2500 | EG20: 150000 | EH20: 50000 | EI20: 0 | EJ20: =Wheat!U20 -> 85000 | EK20: 8075000 | EL20: 2125000 | EM20: 0 | EN20: =Wheat!AR20 -> 75000 | EO20: 1500000 | EP20: 0 | EQ20: 0 | ER20: =Alfalfa!F20 -> 1000 | ES20: 0 | ET20: 0 | EU20: 125000 | EV20: ='All Other Hay'!F20 -> 16000 | EW20: 1360000 | EX20: 0 | EY20: 80000 | EZ20: 5542.55 | FA20: 1087.5 | FB20: 102.5 | FC20: =IF(Inputs!C70>0,Inputs!C70*'Fertilizer Numbers 05-10'!EZ20,0) -> 0 | FD20: =IF(Inputs!C70>0,Inputs!C70*'Fertilizer Numbers 05-10'!FA20,0) -> 0 | FE20: =IF(Inputs!C70>0,Inputs!C70*'Fertilizer Numbers 05-10'!FB20,0) -> 0 | FF20: =Soybean!Q20 -> 0 | FG20: 0 | FH20: 0 | FI20: 0 | FJ20: =Corn!Q20 -> 0 | FK20: 0 | FL20: 0 | FM20: 0 | FN20: =Sorghum!Q20 -> 0 | FO20: 0 | FP20: 0 | FQ20: 0 | FR20: =Wheat!W20 -> 120000 | FS20: 11400000 | FT20: 3000000 | FU20: 0 | FV20: =Wheat!AS20 -> 45000 | FW20: =FV20*IF(Inputs!$B$6=1,AL20,AP20) -> 900000 | FX20: 0 | FY20: 0 | FZ20: =Alfalfa!O20 -> 0 | GA20: 0 | GB20: 0 | GC20: 0 | GD20: ='All Other Hay'!L20 -> 0 | GE20: 0 | GF20: 0 | GG20: 0 | GH20: 6150 | GI20: 1500 | GJ20: 0 | GK20: =IF(Inputs!D70>0,Inputs!D70*'Fertilizer Numbers 05-10'!GH20,0) -> 0 | GL20: =IF(Inputs!D70>0,Inputs!D70*'Fertilizer Numbers 05-10'!GI20,0) -> 0 | GM20: =IF(Inputs!D70>0,Inputs!D70*'Fertilizer Numbers 05-10'!GJ20,0) -> 0 | GO20: =Soybean!T20 -> 0 | GP20: 0 | GQ20: 0 | GR20: 0 | GS20: =Corn!T20 -> 0 | GT20: 0 | GU20: 0 | GV20: 0 | GW20: =Sorghum!T20 -> 0 | GX20: 0 | GY20: 0 | GZ20: 0 | HA20: =Wheat!Y20 -> 50000 | HB20: 4750000 | HC20: 0 | HD20: 0 | HE20: =Wheat!AT20 -> 115000 | HF20: =+HE20*IF(Inputs!$B$6=1,AL20,AP20) -> 2300000 | HG20: 0 | HH20: 0 | HI20: =Alfalfa!Q20 -> 1000 | HJ20: 0 | HK20: 0 | HL20: 125000 | HM20: ='All Other Hay'!N20 -> 25000 | HN20: 2125000 | HO20: 0 | HP20: 125000 | HQ20: 4587.5 | HR20: 0 | HS20: 125 | HT20: =IF(Inputs!E70>0,Inputs!E70*'Fertilizer Numbers 05-10'!HQ20,0) -> 0 | HU20: =IF(Inputs!E70>0,Inputs!E70*'Fertilizer Numbers 05-10'!HR20,0) -> 0 | HV20: =IF(Inputs!E70>0,Inputs!E70*'Fertilizer Numbers 05-10'!HS20,0) -> 0 | HX20: =Soybean!W20 -> 0 | HY20: 0 | HZ20: 0 | IA20: 0 | IB20: =Corn!W20 -> 0 | IC20: 0 | ID20: 0 | IE20: 0 | IF20: =Sorghum!W20 -> 0 | IG20: 0 | IH20: 0 | II20: 0 | IJ20: =Wheat!AA20 -> 100000 | IK20: 9500000 | IL20: 2500000 | IM20: 0 | IN20: =Wheat!AU20 -> 55000 | IO20: =$IN20*IF(Inputs!$B$6=1,AL20,AP20) -> 1100000 | IP20: 0 | IQ20: 0 | IR20: =Alfalfa!S20 -> 500 | IS20: 0 | IT20: 0 | IU20: 62500 | IV20: ='All Other Hay'!P20 -> 25000 | IW20: 2125000 | IX20: 0 | IY20: 125000 | IZ20: 6362.5 | JA20: 1250 | JB20: 93.75 | JC20: =IF(Inputs!$F70>0,Inputs!$F70*IZ20,0) -> 0 | JD20: =IF(Inputs!$F70>0,Inputs!$F70*JA20,0) -> 0 | JE20: =IF(Inputs!$F70>0,Inputs!$F70*JB20,0) -> 0 | JF20: =Soybean!Z20 -> 0 | JG20: 0 | JH20: 0 | JI20: 0 | JJ20: =Corn!Z20 -> 0 | JK20: 0 | JL20: 0 | JM20: 0 | JN20: =Sorghum!BE20 -> 0 | JO20: 0 | JP20: 0 | JQ20: 0 | JR20: =Wheat!AC20 -> 40000 | JS20: 3800000 | JT20: 1000000 | JU20: 0 | JV20: =Wheat!AV20 -> 115000 | JW20: =JV20*IF(Inputs!$B$6=1,$AL20,$AP20) -> 2300000 | JX20: 0 | JY20: 0 | JZ20: =Alfalfa!U20 -> 0 | KA20: 0 | KB20: 0 | KC20: 0 | KD20: ='All Other Hay'!R20 -> 0 | KE20: 0 | KF20: 0 | KG20: 0 | KH20: 3050 | KI20: 500 | KJ20: 0 | KK20: =IF(Inputs!$F70>0,Inputs!$F70*KH20,0) -> 0 | KL20: =IF(Inputs!$F70>0,Inputs!$F70*KI20,0) -> 0 | KM20: =IF(Inputs!$F70>0,Inputs!$F70*KJ20,0) -> 0 | KN20: =Soybean!AC20 -> 0 | KO20: 0 | KP20: 0 | KQ20: 0 | KR20: =Corn!BH20 -> 0 | KS20: 0 | KT20: 0 | KU20: 0 | KV20: =Sorghum!AC20 -> 800 | KW20: 48000 | KX20: 16000 | KY20: 0 | KZ20: =Wheat!AE20 -> 105000 | LA20: 9975000 | LB20: 2625000 | LC20: 0 | LD20: =Wheat!AW20 -> 45000 | LE20: =LD20*IF(Inputs!$B$6=1,$AL20,$AP20) -> 900000 | LF20: 0 | LG20: 0 | LH20: =Alfalfa!W20 -> 0 | LI20: 0 | LJ20: 0 | LK20: 0 | LL20: ='All Other Hay'!T20 -> 21000 | LM20: 1785000 | LN20: 0 | LO20: 0 | LP20: 6354 | LQ20: 1320.5 | LR20: 0 | LS20: =IF(Inputs!$F70>0,Inputs!$F70*LP20,0) -> 0 | LT20: =IF(Inputs!$F70>0,Inputs!$F70*LQ20,0) -> 0 | LU20: =IF(Inputs!$F70>0,Inputs!$F70*LR20,0) -> 0 | LV20: =Soybean!AF20 -> 0 | LW20: 0 | LX20: 0 | LY20: 0 | LZ20: =Corn!CP20 -> 0 | MA20: 0 | MB20: 0 | MC20: 0 | MD20: =Sorghum!AF20 -> 800 | ME20: 48000 | MF20: 16000 | MG20: 0 | MH20: =Wheat!AG20 -> 105000 | MI20: 9975000 | MJ20: 2625000 | MK20: 0 | ML20: =Wheat!AX20 -> 55000 | MM20: =ML20*IF(Inputs!$B$6=1,$AL20,$AP20) -> 1100000 | MN20: 0 | MO20: 0 | MP20: =Alfalfa!Z20 -> 0 | MQ20: 0 | MR20: 0 | MS20: 0 | MT20: ='All Other Hay'!W20 -> 42000 | MU20: 3570000 | MV20: 0 | MW20: 0 | MX20: 7346.5 | MY20: 1320.5 | MZ20: 0 | NA20: =IF(Inputs!$F70>0,Inputs!$F70*MX20,0) -> 0 | NB20: =IF(Inputs!$F70>0,Inputs!$F70*MY20,0) -> 0 | NC20: =IF(Inputs!$F70>0,Inputs!$F70*MZ20,0) -> 0
A21: Craig | B21: 10 | C21: 0 | D21: 0 | E21: =IF(Inputs!$B$6=0,Inputs!$D$10,) -> 9 | F21: =IF(Inputs!$B$6=0,Inputs!$D$11,) -> 0 | G21: =IF(Inputs!$B$6=0,Inputs!$D$12,) -> 0 | H21: =IF(Inputs!$B$6=0,'Fertilizer Numbers 05-10'!E21,'Fertilizer Numbers 05-10'!B21) -> 9 | I21: =IF(Inputs!$B$6=0,'Fertilizer Numbers 05-10'!F21,'Fertilizer Numbers 05-10'!C21) -> 0 | J21: =IF(Inputs!$B$6=0,'Fertilizer Numbers 05-10'!G21,'Fertilizer Numbers 05-10'!D21) -> 0 | K21: 80 | L21: 20 | M21: 0 | N21: =Inputs!$F$10 -> 100 | O21: =Inputs!$F$11 -> 25 | P21: =Inputs!$F$12 -> 5 | Q21: =IF(Inputs!$B$6=0,N21,K21) -> 100 | R21: =IF(Inputs!$B$6=0,O21,L21) -> 25 | S21: =IF(Inputs!$B$6=0,P21,M21) -> 5 | T21: 62 | U21: 20 | V21: 0 | W21: =Inputs!$H$10 -> 60 | X21: =Inputs!$H$11 -> 20 | Y21: =Inputs!$H$12 -> 0 | Z21: =IF(Inputs!$B$6=0,W21,T21) -> 60 | AA21: =IF(Inputs!$B$6=0,X21,U21) -> 20 | AB21: =IF(Inputs!$B$6=0,Y21,V21) -> 0 | AC21: =Inputs!$C$10 -> 85 | AD21: =Inputs!$C$11 -> 25 | AE21: =Inputs!$C$12 -> 0 | AF21: =Inputs!$C$10 -> 85 | AG21: =Inputs!$C$11 -> 25 | AH21: =Inputs!$C$12 -> 0 | AI21: =IF(Inputs!$B$6=0,'Fertilizer Numbers 05-10'!AF21,AC21) -> 85 | AJ21: =IF(Inputs!$B$6=0,'Fertilizer Numbers 05-10'!AG21,AD21) -> 25 | AK21: =IF(Inputs!$B$6=0,'Fertilizer Numbers 05-10'!AH21,AE21) -> 0 | AL21: =Inputs!$C$13 -> 20 | AM21: =Inputs!$B$10 -> 95 | AN21: =Inputs!$B$11 -> 25 | AO21: =Inputs!$B$12 -> 0 | AP21: =Inputs!$B$13 -> 20 | AQ21: 0 | AR21: 0 | AS21: =Inputs!$K$10 -> 0 | AT21: =Inputs!$K$11 -> 0 | AU21: =Inputs!$K$12 -> 150 | AV21: =Inputs!$J$10 -> 0 | AW21: =Inputs!J$11 -> 0 | AX21: =Inputs!$J$12 -> 125 | AY21: =IF(Inputs!$B$6=0,AV21,AS21) -> 0 | AZ21: =IF(Inputs!$B$6=0,AW21,AT21) -> 0 | BA21: =IF(Inputs!$B$6=0,AX21,AU21) -> 125 | BB21: 86 | BC21: 0 | BD21: 0 | BE21: =Inputs!$L$10 -> 85 | BF21: =Inputs!$L$11 -> 0 | BG21: =Inputs!$L$12 -> 5 | BH21: =IF(Inputs!$B$6=0,'Fertilizer Numbers 05-10'!BE21,BB21) -> 85 | BI21: =IF(Inputs!$B$6=0,'Fertilizer Numbers 05-10'!BF21,BC21) -> 0 | BJ21: =IF(Inputs!$B$6=0,'Fertilizer Numbers 05-10'!BG21,BD21) -> 5 | BK21: =Soybean!J21 -> 10000 | BL21: 90000 | BM21: 0 | BN21: 0 | BO21: =Corn!J21 -> 800 | BP21: 80000 | BQ21: 20000 | BR21: 4000 | BS21: =Sorghum!J21 -> 2400 | BT21: 144000 | BU21: 48000 | BV21: 0 | BW21: =Wheat!Q21 -> 6500 | BX21: 617500 | BY21: 162500 | BZ21: 0 | CA21: =Wheat!AP21 -> 1500 | CB21: =CA21*IF(Inputs!$B$6=1,AL21,AP21) -> 30000 | CC21: 0 | CD21: 0 | CE21: =Alfalfa!J21 -> 700 | CF21: 0 | CG21: 0 | CH21: 87500 | CI21: ='All Other Hay'!I21 -> 90000 | CJ21: 7650000 | CK21: 0 | CL21: 450000 | CM21: 4250.75 | CN21: 160.25 | CO21: 270.75 | CP21: =Soybean!E21 -> 10000 | CQ21: 90000 | CR21: 0 | CS21: 0 | CT21: =Corn!L21 -> 5000 | CU21: 500000 | CV21: 125000 | CW21: 25000 | CX21: =Sorghum!L21 -> 1100 | CY21: 66000 | CZ21: 22000 | DA21: 0 | DB21: =Wheat!S21 -> 9500 | DC21: 902500 | DD21: 237500 | DE21: 0 | DF21: =Wheat!AQ21 -> 1500 | DG21: =DF21*IF(Inputs!$B$6=1,AL21,AP21) -> 30000 | DH21: 0 | DI21: 0 | DJ21: =Alfalfa!M21 -> 1500 | DK21: 0 | DL21: 0 | DM21: 187500 | DN21: ='All Other Hay'!J21 -> 95000 | DO21: 8075000 | DP21: 0 | DQ21: 475000 | DR21: 4831.75 | DS21: 192.25 | DT21: 343.75 | DU21: =IF(Inputs!B71>0,Inputs!B71*'Fertilizer Numbers 05-10'!DR21,0) -> 0 | DV21: =IF(Inputs!B71>0,Inputs!B71*'Fertilizer Numbers 05-10'!DS21,0) -> 0 | DW21: =IF(Inputs!B71>0,Inputs!B71*'Fertilizer Numbers 05-10'!DT21,0) -> 0 | DX21: =Soybean!N21 -> 6400 | DY21: 57600 | DZ21: 0 | EA21: 0 | EB21: =Corn!N21 -> 5200 | EC21: 100 | ED21: 130000 | EE21: 26000 | EF21: =Sorghum!N21 -> 1100 | EG21: 66000 | EH21: 22000 | EI21: 0 | EJ21: =Wheat!U21 -> 4500 | EK21: 427500 | EL21: 112500 | EM21: 0 | EN21: =Wheat!AR21 -> 9500 | EO21: 190000 | EP21: 0 | EQ21: 0 | ER21: =Alfalfa!F21 -> 300 | ES21: 0 | ET21: 0 | EU21: 37500 | EV21: ='All Other Hay'!F21 -> 55000 | EW21: 4675000 | EX21: 0 | EY21: 275000 | EZ21: 2708.1 | FA21: 132.25 | FB21: 169.25 | FC21: =IF(Inputs!C71>0,Inputs!C71*'Fertilizer Numbers 05-10'!EZ21,0) -> 0 | FD21: =IF(Inputs!C71>0,Inputs!C71*'Fertilizer Numbers 05-10'!FA21,0) -> 0 | FE21: =IF(Inputs!C71>0,Inputs!C71*'Fertilizer Numbers 05-10'!FB21,0) -> 0 | FF21: =Soybean!Q21 -> 11500 | FG21: 103500 | FH21: 0 | FI21: 0 | FJ21: =Corn!Q21 -> 4500 | FK21: 450000 | FL21: 112500 | FM21: 22500 | FN21: =Sorghum!Q21 -> 2100 | FO21: 126000 | FP21: 42000 | FQ21: 0 | FR21: =Wheat!W21 -> 9500 | FS21: 902500 | FT21: 237500 | FU21: 0 | FV21: =Wheat!AS21 -> 500 | FW21: =FV21*IF(Inputs!$B$6=1,AL21,AP21) -> 10000 | FX21: 0 | FY21: 0 | FZ21: =Alfalfa!O21 -> 0 | GA21: 0 | GB21: 0 | GC21: 0 | GD21: ='All Other Hay'!L21 -> 0 | GE21: 0 | GF21: 0 | GG21: 0 | GH21: 796 | GI21: 196 | GJ21: 11.25 | GK21: =IF(Inputs!D71>0,Inputs!D71*'Fertilizer Numbers 05-10'!GH21,0) -> 0 | GL21: =IF(Inputs!D71>0,Inputs!D71*'Fertilizer Numbers 05-10'!GI21,0) -> 0 | GM21: =IF(Inputs!D71>0,Inputs!D71*'Fertilizer Numbers 05-10'!GJ21,0) -> 0 | GO21: =Soybean!T21 -> 13300 | GP21: 119700 | GQ21: 0 | GR21: 0 | GS21: =Corn!T21 -> 4500 | GT21: 450000 | GU21: 112500 | GV21: 22500 | GW21: =Sorghum!T21 -> 0 | GX21: 0 | GY21: 0 | GZ21: 0 | HA21: =Wheat!Y21 -> 8050 | HB21: 764750 | HC21: 0 | HD21: 0 | HE21: =Wheat!AT21 -> 950 | HF21: =+HE21*IF(Inputs!$B$6=1,AL21,AP21) -> 19000 | HG21: 0 | HH21: 0 | HI21: =Alfalfa!Q21 -> 0 | HJ21: 0 | HK21: 0 | HL21: 0 | HM21: ='All Other Hay'!N21 -> 85000 | HN21: 7225000 | HO21: 0 | HP21: 425000 | HQ21: 4289.225 | HR21: 56.25 | HS21: 223.75 | HT21: =IF(Inputs!E71>0,Inputs!E71*'Fertilizer Numbers 05-10'!HQ21,0) -> 0 | HU21: =IF(Inputs!E71>0,Inputs!E71*'Fertilizer Numbers 05-10'!HR21,0) -> 0 | HV21: =IF(Inputs!E71>0,Inputs!E71*'Fertilizer Numbers 05-10'!HS21,0) -> 0 | HX21: =Soybean!W21 -> 10500 | HY21: 94500 | HZ21: 0 | IA21: 0 | IB21: =Corn!W21 -> 5700 | IC21: 570000 | ID21: 142500 | IE21: 28500 | IF21: =Sorghum!W21 -> 1100 | IG21: 66000 | IH21: 22000 | II21: 0 | IJ21: =Wheat!AA21 -> 1300 | IK21: 123500 | IL21: 32500 | IM21: 0 | IN21: =Wheat!AU21 -> 2200 | IO21: =$IN21*IF(Inputs!$B$6=1,AL21,AP21) -> 44000 | IP21: 0 | IQ21: 0 | IR21: =Alfalfa!S21 -> 0 | IS21: 0 | IT21: 0 | IU21: 0 | IV21: ='All Other Hay'!P21 -> 75000 | IW21: 6375000 | IX21: 0 | IY21: 375000 | IZ21: 3636.5 | JA21: 98.5 | JB21: 201.75 | JC21: =IF(Inputs!$F71>0,Inputs!$F71*IZ21,0) -> 0 | JD21: =IF(Inputs!$F71>0,Inputs!$F71*JA21,0) -> 0 | JE21: =IF(Inputs!$F71>0,Inputs!$F71*JB21,0) -> 0 | JF21: =Soybean!Z21 -> 8900 | JG21: 80100 | JH21: 0 | JI21: 0 | JJ21: =Corn!Z21 -> 4100 | JK21: 410000 | JL21: 102500 | JM21: 20500 | JN21: =Sorghum!BE21 -> 0 | JO21: 0 | JP21: 0 | JQ21: 0 | JR21: =Wheat!AC21 -> 4500 | JS21: 427500 | JT21: 112500 | JU21: 0 | JV21: =Wheat!AV21 -> 2500 | JW21: =JV21*IF(Inputs!$B$6=1,$AL21,$AP21) -> 50000 | JX21: 0 | JY21: 0 | JZ21: =Alfalfa!U21 -> 0 | KA21: 0 | KB21: 0 | KC21: 0 | KD21: ='All Other Hay'!R21 -> 65000 | KE21: 5525000 | KF21: 0 | KG21: 0 | KH21: 3246.3 | KI21: 107.5 | KJ21: 10.25 | KK21: =IF(Inputs!$F71>0,Inputs!$F71*KH21,0) -> 0 | KL21: =IF(Inputs!$F71>0,Inputs!$F71*KI21,0) -> 0 | KM21: =IF(Inputs!$F71>0,Inputs!$F71*KJ21,0) -> 0 | KN21: =Soybean!AC21 -> 9300 | KO21: 83700 | KP21: 0 | KQ21: 0 | KR21: =Corn!BH21 -> 0 | KS21: 0 | KT21: 0 | KU21: 0 | KV21: =Sorghum!AC21 -> 0 | KW21: 0 | KX21: 0 | KY21: 0 | KZ21: =Wheat!AE21 -> 8500 | LA21: 807500 | LB21: 212500 | LC21: 0 | LD21: =Wheat!AW21 -> 800 | LE21: =LD21*IF(Inputs!$B$6=1,$AL21,$AP21) -> 16000 | LF21: 0 | LG21: 0 | LH21: =Alfalfa!W21 -> 0 | LI21: 0 | LJ21: 0 | LK21: 0 | LL21: ='All Other Hay'!T21 -> 0 | LM21: 0 | LN21: 0 | LO21: 0 | LP21: 453.6 | LQ21: 106.25 | LR21: 0 | LS21: =IF(Inputs!$F71>0,Inputs!$F71*LP21,0) -> 0 | LT21: =IF(Inputs!$F71>0,Inputs!$F71*LQ21,0) -> 0 | LU21: =IF(Inputs!$F71>0,Inputs!$F71*LR21,0) -> 0 | LV21: =Soybean!AF21 -> 9300 | LW21: 83700 | LX21: 0 | LY21: 0 | LZ21: =Corn!CP21 -> 0 | MA21: 0 | MB21: 0 | MC21: 0 | MD21: =Sorghum!AF21 -> 0 | ME21: 0 | MF21: 0 | MG21: 0 | MH21: =Wheat!AG21 -> 8900 | MI21: 845500 | MJ21: 222500 | MK21: 0 | ML21: =Wheat!AX21 -> 2200 | MM21: =ML21*IF(Inputs!$B$6=1,$AL21,$AP21) -> 44000 | MN21: 0 | MO21: 0 | MP21: =Alfalfa!Z21 -> 0 | MQ21: 0 | MR21: 0 | MS21: 0 | MT21: ='All Other Hay'!W21 -> 100000 | MU21: 8500000 | MV21: 0 | MW21: 0 | MX21: 4736.6 | MY21: 111.25 | MZ21: 0 | NA21: =IF(Inputs!$F71>0,Inputs!$F71*MX21,0) -> 0 | NB21: =IF(Inputs!$F71>0,Inputs!$F71*MY21,0) -> 0 | NC21: =IF(Inputs!$F71>0,Inputs!$F71*MZ21,0) -> 0
A22: Creek | B22: 10 | C22: 0 | D22: 0 | E22: =IF(Inputs!$B$6=0,Inputs!$D$10,) -> 9 | F22: =IF(Inputs!$B$6=0,Inputs!$D$11,) -> 0 | G22: =IF(Inputs!$B$6=0,Inputs!$D$12,) -> 0 | H22: =IF(Inputs!$B$6=0,'Fertilizer Numbers 05-10'!E22,'Fertilizer Numbers 05-10'!B22) -> 9 | I22: =IF(Inputs!$B$6=0,'Fertilizer Numbers 05-10'!F22,'Fertilizer Numbers 05-10'!C22) -> 0 | J22: =IF(Inputs!$B$6=0,'Fertilizer Numbers 05-10'!G22,'Fertilizer Numbers 05-10'!D22) -> 0 | K22: 88 | L22: 20 | M22: 0 | N22: =Inputs!$F$10 -> 100 | O22: =Inputs!$F$11 -> 25 | P22: =Inputs!$F$12 -> 5 | Q22: =IF(Inputs!$B$6=0,N22,K22) -> 100 | R22: =IF(Inputs!$B$6=0,O22,L22) -> 25 | S22: =IF(Inputs!$B$6=0,P22,M22) -> 5 | T22: 40 | U22: 20 | V22: 0 | W22: =Inputs!$H$10 -> 60 | X22: =Inputs!$H$11 -> 20 | Y22: =Inputs!$H$12 -> 0 | Z22: =IF(Inputs!$B$6=0,W22,T22) -> 60 | AA22: =IF(Inputs!$B$6=0,X22,U22) -> 20 | AB22: =IF(Inputs!$B$6=0,Y22,V22) -> 0 | AC22: =Inputs!$C$10 -> 85 | AD22: =Inputs!$C$11 -> 25 | AE22: =Inputs!$C$12 -> 0 | AF22: =Inputs!$C$10 -> 85 | AG22: =Inputs!$C$11 -> 25 | AH22: =Inputs!$C$12 -> 0 | AI22: =IF(Inputs!$B$6=0,'Fertilizer Numbers 05-10'!AF22,AC22) -> 85 | AJ22: =IF(Inputs!$B$6=0,'Fertilizer Numbers 05-10'!AG22,AD22) -> 25 | AK22: =IF(Inputs!$B$6=0,'Fertilizer Numbers 05-10'!AH22,AE22) -> 0 | AL22: =Inputs!$C$13 -> 20 | AM22: =Inputs!$B$10 -> 95 | AN22: =Inputs!$B$11 -> 25 | AO22: =Inputs!$B$12 -> 0 | AP22: =Inputs!$B$13 -> 20 | AQ22: 0 | AR22: 0 | AS22: =Inputs!$K$10 -> 0 | AT22: =Inputs!$K$11 -> 0 | AU22: =Inputs!$K$12 -> 150 | AV22: =Inputs!$J$10 -> 0 | AW22: =Inputs!J$11 -> 0 | AX22: =Inputs!$J$12 -> 125 | AY22: =IF(Inputs!$B$6=0,AV22,AS22) -> 0 | AZ22: =IF(Inputs!$B$6=0,AW22,AT22) -> 0 | BA22: =IF(Inputs!$B$6=0,AX22,AU22) -> 125 | BB22: 86 | BC22: 0 | BD22: 0 | BE22: =Inputs!$L$10 -> 85 | BF22: =Inputs!$L$11 -> 0 | BG22: =Inputs!$L$12 -> 5 | BH22: =IF(Inputs!$B$6=0,'Fertilizer Numbers 05-10'!BE22,BB22) -> 85 | BI22: =IF(Inputs!$B$6=0,'Fertilizer Numbers 05-10'!BF22,BC22) -> 0 | BJ22: =IF(Inputs!$B$6=0,'Fertilizer Numbers 05-10'!BG22,BD22) -> 5 | BK22: =Soybean!J22 -> 400 | BL22: 3600 | BM22: 0 | BN22: 0 | BO22: =Corn!J22 -> 0 | BP22: 0 | BQ22: 0 | BR22: 0 | BS22: =Sorghum!J22 -> 0 | BT22: 0 | BU22: 0 | BV22: 0 | BW22: =Wheat!Q22 -> 500 | BX22: 47500 | BY22: 12500 | BZ22: 0 | CA22: =Wheat!AP22 -> 2000 | CB22: =CA22*IF(Inputs!$B$6=1,AL22,AP22) -> 40000 | CC22: 0 | CD22: 0 | CE22: =Alfalfa!J22 -> 900 | CF22: 0 | CG22: 0 | CH22: 112500 | CI22: ='All Other Hay'!I22 -> 23000 | CJ22: 1955000 | CK22: 0 | CL22: 115000 | CM22: 1001.45 | CN22: 8.05 | CO22: 113.75 | CP22: =Soybean!E22 -> 400 | CQ22: 3600 | CR22: 0 | CS22: 0 | CT22: =Corn!L22 -> 0 | CU22: 0 | CV22: 0 | CW22: 0 | CX22: =Sorghum!L22 -> 1400 | CY22: 84000 | CZ22: 28000 | DA22: 0 | DB22: =Wheat!S22 -> 500 | DC22: 47500 | DD22: 12500 | DE22: 0 | DF22: =Wheat!AQ22 -> 2000 | DG22: =DF22*IF(Inputs!$B$6=1,AL22,AP22) -> 40000 | DH22: 0 | DI22: 0 | DJ22: =Alfalfa!M22 -> 2100 | DK22: 0 | DL22: 0 | DM22: 262500 | DN22: ='All Other Hay'!J22 -> 28000 | DO22: 2380000 | DP22: 0 | DQ22: 140000 | DR22: 1277.55 | DS22: 20.25 | DT22: 201.25 | DU22: =IF(Inputs!B72>0,Inputs!B72*'Fertilizer Numbers 05-10'!DR22,0) -> 0 | DV22: =IF(Inputs!B72>0,Inputs!B72*'Fertilizer Numbers 05-10'!DS22,0) -> 0 | DW22: =IF(Inputs!B72>0,Inputs!B72*'Fertilizer Numbers 05-10'!DT22,0) -> 0 | DX22: =Soybean!N22 -> 0 | DY22: 0 | DZ22: 0 | EA22: 0 | EB22: =Corn!N22 -> 0 | EC22: 100 | ED22: 0 | EE22: 0 | EF22: =Sorghum!N22 -> 0 | EG22: 0 | EH22: 0 | EI22: 0 | EJ22: =Wheat!U22 -> 1000 | EK22: 95000 | EL22: 25000 | EM22: 0 | EN22: =Wheat!AR22 -> 1000 | EO22: 20000 | EP22: 0 | EQ22: 0 | ER22: =Alfalfa!F22 -> 500 | ES22: 0 | ET22: 0 | EU22: 62500 | EV22: ='All Other Hay'!F22 -> 33000 | EW22: 2805000 | EX22: 0 | EY22: 165000 | EZ22: 1460.05 | FA22: 12.5 | FB22: 113.75 | FC22: =IF(Inputs!C72>0,Inputs!C72*'Fertilizer Numbers 05-10'!EZ22,0) -> 0 | FD22: =IF(Inputs!C72>0,Inputs!C72*'Fertilizer Numbers 05-10'!FA22,0) -> 0 | FE22: =IF(Inputs!C72>0,Inputs!C72*'Fertilizer Numbers 05-10'!FB22,0) -> 0 | FF22: =Soybean!Q22 -> 0 | FG22: 0 | FH22: 0 | FI22: 0 | FJ22: =Corn!Q22 -> 0 | FK22: 0 | FL22: 0 | FM22: 0 | FN22: =Sorghum!Q22 -> 0 | FO22: 0 | FP22: 0 | FQ22: 0 | FR22: =Wheat!W22 -> 1700 | FS22: 161500 | FT22: 42500 | FU22: 0 | FV22: =Wheat!AS22 -> 300 | FW22: =FV22*IF(Inputs!$B$6=1,AL22,AP22) -> 6000 | FX22: 0 | FY22: 0 | FZ22: =Alfalfa!O22 -> 0 | GA22: 0 | GB22: 0 | GC22: 0 | GD22: ='All Other Hay'!L22 -> 0 | GE22: 0 | GF22: 0 | GG22: 0 | GH22: 83.75 | GI22: 21.25 | GJ22: 0 | GK22: =IF(Inputs!D72>0,Inputs!D72*'Fertilizer Numbers 05-10'!GH22,0) -> 0 | GL22: =IF(Inputs!D72>0,Inputs!D72*'Fertilizer Numbers 05-10'!GI22,0) -> 0 | GM22: =IF(Inputs!D72>0,Inputs!D72*'Fertilizer Numbers 05-10'!GJ22,0) -> 0 | GO22: =Soybean!T22 -> 0 | GP22: 0 | GQ22: 0 | GR22: 0 | GS22: =Corn!T22 -> 0 | GT22: 0 | GU22: 0 | GV22: 0 | GW22: =Sorghum!T22 -> 0 | GX22: 0 | GY22: 0 | GZ22: 0 | HA22: =Wheat!Y22 -> 0 | HB22: 0 | HC22: 0 | HD22: 0 | HE22: =Wheat!AT22 -> 0 | HF22: =+HE22*IF(Inputs!$B$6=1,AL22,AP22) -> 0 | HG22: 0 | HH22: 0 | HI22: =Alfalfa!Q22 -> 0 | HJ22: 0 | HK22: 0 | HL22: 0 | HM22: ='All Other Hay'!N22 -> 0 | HN22: 0 | HO22: 0 | HP22: 0 | HQ22: 0 | HR22: 0 | HS22: 0 | HT22: =IF(Inputs!E72>0,Inputs!E72*'Fertilizer Numbers 05-10'!HQ22,0) -> 0 | HU22: =IF(Inputs!E72>0,Inputs!E72*'Fertilizer Numbers 05-10'!HR22,0) -> 0 | HV22: =IF(Inputs!E72>0,Inputs!E72*'Fertilizer Numbers 05-10'!HS22,0) -> 0 | HX22: =Soybean!W22 -> 0 | HY22: 0 | HZ22: 0 | IA22: 0 | IB22: =Corn!W22 -> 0 | IC22: 0 | ID22: 0 | IE22: 0 | IF22: =Sorghum!W22 -> 0 | IG22: 0 | IH22: 0 | II22: 0 | IJ22: =Wheat!AA22 -> 0 | IK22: 0 | IL22: 0 | IM22: 0 | IN22: =Wheat!AU22 -> 0 | IO22: =$IN22*IF(Inputs!$B$6=1,AL22,AP22) -> 0 | IP22: 0 | IQ22: 0 | IR22: =Alfalfa!S22 -> 0 | IS22: 0 | IT22: 0 | IU22: 0 | IV22: ='All Other Hay'!P22 -> 0 | IW22: 0 | IX22: 0 | IY22: 0 | IZ22: 0 | JA22: 0 | JB22: 0 | JC22: =IF(Inputs!$F72>0,Inputs!$F72*IZ22,0) -> 0 | JD22: =IF(Inputs!$F72>0,Inputs!$F72*JA22,0) -> 0 | JE22: =IF(Inputs!$F72>0,Inputs!$F72*JB22,0) -> 0 | JF22: =Soybean!Z22 -> 0 | JG22: 0 | JH22: 0 | JI22: 0 | JJ22: =Corn!Z22 -> 0 | JK22: 0 | JL22: 0 | JM22: 0 | JN22: =Sorghum!BE22 -> 0 | JO22: 0 | JP22: 0 | JQ22: 0 | JR22: =Wheat!AC22 -> 400 | JS22: 38000 | JT22: 10000 | JU22: 0 | JV22: =Wheat!AV22 -> 1100 | JW22: =JV22*IF(Inputs!$B$6=1,$AL22,$AP22) -> 22000 | JX22: 0 | JY22: 0 | JZ22: =Alfalfa!U22 -> 0 | KA22: 0 | KB22: 0 | KC22: 0 | KD22: ='All Other Hay'!R22 -> 48000 | KE22: 4080000 | KF22: 0 | KG22: 0 | KH22: 2070 | KI22: 5 | KJ22: 0 | KK22: =IF(Inputs!$F72>0,Inputs!$F72*KH22,0) -> 0 | KL22: =IF(Inputs!$F72>0,Inputs!$F72*KI22,0) -> 0 | KM22: =IF(Inputs!$F72>0,Inputs!$F72*KJ22,0) -> 0 | KN22: =Soybean!AC22 -> 0 | KO22: 0 | KP22: 0 | KQ22: 0 | KR22: =Corn!BH22 -> 0 | KS22: 0 | KT22: 0 | KU22: 0 | KV22: =Sorghum!AC22 -> 0 | KW22: 0 | KX22: 0 | KY22: 0 | KZ22: =Wheat!AE22 -> 700 | LA22: 66500 | LB22: 17500 | LC22: 0 | LD22: =Wheat!AW22 -> 1300 | LE22: =LD22*IF(Inputs!$B$6=1,$AL22,$AP22) -> 26000 | LF22: 0 | LG22: 0 | LH22: =Alfalfa!W22 -> 0 | LI22: 0 | LJ22: 0 | LK22: 0 | LL22: ='All Other Hay'!T22 -> 60000 | LM22: 5100000 | LN22: 0 | LO22: 0 | LP22: 2596.25 | LQ22: 8.75 | LR22: 0 | LS22: =IF(Inputs!$F72>0,Inputs!$F72*LP22,0) -> 0 | LT22: =IF(Inputs!$F72>0,Inputs!$F72*LQ22,0) -> 0 | LU22: =IF(Inputs!$F72>0,Inputs!$F72*LR22,0) -> 0 | LV22: =Soybean!AF22 -> 0 | LW22: 0 | LX22: 0 | LY22: 0 | LZ22: =Corn!CP22 -> 0 | MA22: 0 | MB22: 0 | MC22: 0 | MD22: =Sorghum!AF22 -> 0 | ME22: 0 | MF22: 0 | MG22: 0 | MH22: =Wheat!AG22 -> 700 | MI22: 66500 | MJ22: 17500 | MK22: 0 | ML22: =Wheat!AX22 -> 700 | MM22: =ML22*IF(Inputs!$B$6=1,$AL22,$AP22) -> 14000 | MN22: 0 | MO22: 0 | MP22: =Alfalfa!Z22 -> 0 | MQ22: 0 | MR22: 0 | MS22: 0 | MT22: ='All Other Hay'!W22 -> 68000 | MU22: 5780000 | MV22: 0 | MW22: 0 | MX22: 2930.25 | MY22: 8.75 | MZ22: 0 | NA22: =IF(Inputs!$F72>0,Inputs!$F72*MX22,0) -> 0 | NB22: =IF(Inputs!$F72>0,Inputs!$F72*MY22,0) -> 0 | NC22: =IF(Inputs!$F72>0,Inputs!$F72*MZ22,0) -> 0
A23: Custer | B23: 10 | C23: 0 | D23: 0 | E23: =IF(Inputs!$B$6=0,Inputs!$D$10,) -> 9 | F23: =IF(Inputs!$B$6=0,Inputs!$D$11,) -> 0 | G23: =IF(Inputs!$B$6=0,Inputs!$D$12,) -> 0 | H23: =IF(Inputs!$B$6=0,'Fertilizer Numbers 05-10'!E23,'Fertilizer Numbers 05-10'!B23) -> 9 | I23: =IF(Inputs!$B$6=0,'Fertilizer Numbers 05-10'!F23,'Fertilizer Numbers 05-10'!C23) -> 0 | J23: =IF(Inputs!$B$6=0,'Fertilizer Numbers 05-10'!G23,'Fertilizer Numbers 05-10'!D23) -> 0 | K23: 73 | L23: 20 | M23: 0 | N23: =Inputs!$F$10 -> 100 | O23: =Inputs!$F$11 -> 25 | P23: =Inputs!$F$12 -> 5 | Q23: =IF(Inputs!$B$6=0,N23,K23) -> 100 | R23: =IF(Inputs!$B$6=0,O23,L23) -> 25 | S23: =IF(Inputs!$B$6=0,P23,M23) -> 5 | T23: 22 | U23: 20 | V23: 0 | W23: =Inputs!$H$10 -> 60 | X23: =Inputs!$H$11 -> 20 | Y23: =Inputs!$H$12 -> 0 | Z23: =IF(Inputs!$B$6=0,W23,T23) -> 60 | AA23: =IF(Inputs!$B$6=0,X23,U23) -> 20 | AB23: =IF(Inputs!$B$6=0,Y23,V23) -> 0 | AC23: =Inputs!$C$10 -> 85 | AD23: =Inputs!$C$11 -> 25 | AE23: =Inputs!$C$12 -> 0 | AF23: =Inputs!$C$10 -> 85 | AG23: =Inputs!$C$11 -> 25 | AH23: =Inputs!$C$12 -> 0 | AI23: =IF(Inputs!$B$6=0,'Fertilizer Numbers 05-10'!AF23,AC23) -> 85 | AJ23: =IF(Inputs!$B$6=0,'Fertilizer Numbers 05-10'!AG23,AD23) -> 25 | AK23: =IF(Inputs!$B$6=0,'Fertilizer Numbers 05-10'!AH23,AE23) -> 0 | AL23: =Inputs!$C$13 -> 20 | AM23: =Inputs!$B$10 -> 95 | AN23: =Inputs!$B$11 -> 25 | AO23: =Inputs!$B$12 -> 0 | AP23: =Inputs!$B$13 -> 20 | AQ23: 0 | AR23: 0 | AS23: =Inputs!$K$10 -> 0 | AT23: =Inputs!$K$11 -> 0 | AU23: =Inputs!$K$12 -> 150 | AV23: =Inputs!$J$10 -> 0 | AW23: =Inputs!J$11 -> 0 | AX23: =Inputs!$J$12 -> 125 | AY23: =IF(Inputs!$B$6=0,AV23,AS23) -> 0 | AZ23: =IF(Inputs!$B$6=0,AW23,AT23) -> 0 | BA23: =IF(Inputs!$B$6=0,AX23,AU23) -> 125 | BB23: 58 | BC23: 0 | BD23: 0 | BE23: =Inputs!$L$10 -> 85 | BF23: =Inputs!$L$11 -> 0 | BG23: =Inputs!$L$12 -> 5 | BH23: =IF(Inputs!$B$6=0,'Fertilizer Numbers 05-10'!BE23,BB23) -> 85 | BI23: =IF(Inputs!$B$6=0,'Fertilizer Numbers 05-10'!BF23,BC23) -> 0 | BJ23: =IF(Inputs!$B$6=0,'Fertilizer Numbers 05-10'!BG23,BD23) -> 5 | BK23: =Soybean!J23 -> 0 | BL23: 0 | BM23: 0 | BN23: 0 | BO23: =Corn!J23 -> 0 | BP23: 0 | BQ23: 0 | BR23: 0 | BS23: =Sorghum!J23 -> 4200 | BT23: 252000 | BU23: 84000 | BV23: 0 | BW23: =Wheat!Q23 -> 165000 | BX23: 15675000 | BY23: 4125000 | BZ23: 0 | CA23: =Wheat!AP23 -> 55000 | CB23: =CA23*IF(Inputs!$B$6=1,AL23,AP23) -> 1100000 | CC23: 0 | CD23: 0 | CE23: =Alfalfa!J23 -> 8000 | CF23: 0 | CG23: 0 | CH23: 1000000 | CI23: ='All Other Hay'!I23 -> 10000 | CJ23: 850000 | CK23: 0 | CL23: 50000 | CM23: 8388.5 | CN23: 2104.5 | CO23: 525 | CP23: =Soybean!E23 -> 200 | CQ23: 1800 | CR23: 0 | CS23: 0 | CT23: =Corn!L23 -> 300 | CU23: 30000 | CV23: 7500 | CW23: 1500 | CX23: =Sorghum!L23 -> 4000 | CY23: 240000 | CZ23: 80000 | DA23: 0 | DB23: =Wheat!S23 -> 145000 | DC23: 13775000 | DD23: 3625000 | DE23: 0 | DF23: =Wheat!AQ23 -> 75000 | DG23: =DF23*IF(Inputs!$B$6=1,AL23,AP23) -> 1500000 | DH23: 0 | DI23: 0 | DJ23: =Alfalfa!M23 -> 9000 | DK23: 0 | DL23: 0 | DM23: 1125000 | DN23: ='All Other Hay'!J23 -> 12000 | DO23: 1020000 | DP23: 0 | DQ23: 60000 | DR23: 8283.4 | DS23: 1856.25 | DT23: 593.25 | DU23: =IF(Inputs!B73>0,Inputs!B73*'Fertilizer Numbers 05-10'!DR23,0) -> 0 | DV23: =IF(Inputs!B73>0,Inputs!B73*'Fertilizer Numbers 05-10'!DS23,0) -> 0 | DW23: =IF(Inputs!B73>0,Inputs!B73*'Fertilizer Numbers 05-10'!DT23,0) -> 0 | DX23: =Soybean!N23 -> 1000 | DY23: 9000 | DZ23: 0 | EA23: 0 | EB23: =Corn!N23 -> 600 | EC23: 100 | ED23: 15000 | EE23: 3000 | EF23: =Sorghum!N23 -> 6200 | EG23: 372000 | EH23: 124000 | EI23: 0 | EJ23: =Wheat!U23 -> 170000 | EK23: 16150000 | EL23: 4250000 | EM23: 0 | EN23: =Wheat!AR23 -> 45000 | EO23: 900000 | EP23: 0 | EQ23: 0 | ER23: =Alfalfa!F23 -> 7500 | ES23: 0 | ET23: 0 | EU23: 937500 | EV23: ='All Other Hay'!F23 -> 15000 | EW23: 1275000 | EX23: 0 | EY23: 75000 | EZ23: 9353.05 | FA23: 2194.5 | FB23: 507.75 | FC23: =IF(Inputs!C73>0,Inputs!C73*'Fertilizer Numbers 05-10'!EZ23,0) -> 0 | FD23: =IF(Inputs!C73>0,Inputs!C73*'Fertilizer Numbers 05-10'!FA23,0) -> 0 | FE23: =IF(Inputs!C73>0,Inputs!C73*'Fertilizer Numbers 05-10'!FB23,0) -> 0 | FF23: =Soybean!Q23 -> 0 | FG23: 0 | FH23: 0 | FI23: 0 | FJ23: =Corn!Q23 -> 0 | FK23: 0 | FL23: 0 | FM23: 0 | FN23: =Sorghum!Q23 -> 14000 | FO23: 840000 | FP23: 280000 | FQ23: 0 | FR23: =Wheat!W23 -> 180000 | FS23: 17100000 | FT23: 4500000 | FU23: 0 | FV23: =Wheat!AS23 -> 25000 | FW23: =FV23*IF(Inputs!$B$6=1,AL23,AP23) -> 500000 | FX23: 0 | FY23: 0 | FZ23: =Alfalfa!O23 -> 0 | GA23: 0 | GB23: 0 | GC23: 0 | GD23: ='All Other Hay'!L23 -> 24000 | GE23: 2040000 | GF23: 0 | GG23: 120000 | GH23: 10240 | GI23: 2390 | GJ23: 60 | GK23: =IF(Inputs!D73>0,Inputs!D73*'Fertilizer Numbers 05-10'!GH23,0) -> 0 | GL23: =IF(Inputs!D73>0,Inputs!D73*'Fertilizer Numbers 05-10'!GI23,0) -> 0 | GM23: =IF(Inputs!D73>0,Inputs!D73*'Fertilizer Numbers 05-10'!GJ23,0) -> 0 | GO23: =Soybean!T23 -> 1900 | GP23: 17100 | GQ23: 0 | GR23: 0 | GS23: =Corn!T23 -> 0 | GT23: 0 | GU23: 0 | GV23: 0 | GW23: =Sorghum!T23 -> 9500 | GX23: 570000 | GY23: 190000 | GZ23: 0 | HA23: =Wheat!Y23 -> 145000 | HB23: 13775000 | HC23: 0 | HD23: 0 | HE23: =Wheat!AT23 -> 55000 | HF23: =+HE23*IF(Inputs!$B$6=1,AL23,AP23) -> 1100000 | HG23: 0 | HH23: 0 | HI23: =Alfalfa!Q23 -> 11000 | HJ23: 0 | HK23: 0 | HL23: 1375000 | HM23: ='All Other Hay'!N23 -> 17000 | HN23: 1445000 | HO23: 0 | HP23: 85000 | HQ23: 8453.55 | HR23: 95 | HS23: 730 | HT23: =IF(Inputs!E73>0,Inputs!E73*'Fertilizer Numbers 05-10'!HQ23,0) -> 0 | HU23: =IF(Inputs!E73>0,Inputs!E73*'Fertilizer Numbers 05-10'!HR23,0) -> 0 | HV23: =IF(Inputs!E73>0,Inputs!E73*'Fertilizer Numbers 05-10'!HS23,0) -> 0 | HX23: =Soybean!W23 -> 0 | HY23: 0 | HZ23: 0 | IA23: 0 | IB23: =Corn!W23 -> 0 | IC23: 0 | ID23: 0 | IE23: 0 | IF23: =Sorghum!W23 -> 5100 | IG23: 306000 | IH23: 102000 | II23: 0 | IJ23: =Wheat!AA23 -> 155000 | IK23: 14725000 | IL23: 3875000 | IM23: 0 | IN23: =Wheat!AU23 -> 50000 | IO23: =$IN23*IF(Inputs!$B$6=1,AL23,AP23) -> 1000000 | IP23: 0 | IQ23: 0 | IR23: =Alfalfa!S23 -> 0 | IS23: 0 | IT23: 0 | IU23: 0 | IV23: ='All Other Hay'!P23 -> 15000 | IW23: 1275000 | IX23: 0 | IY23: 75000 | IZ23: 8653 | JA23: 1988.5 | JB23: 37.5 | JC23: =IF(Inputs!$F73>0,Inputs!$F73*IZ23,0) -> 0 | JD23: =IF(Inputs!$F73>0,Inputs!$F73*JA23,0) -> 0 | JE23: =IF(Inputs!$F73>0,Inputs!$F73*JB23,0) -> 0 | JF23: =Soybean!Z23 -> 0 | JG23: 0 | JH23: 0 | JI23: 0 | JJ23: =Corn!Z23 -> 0 | JK23: 0 | JL23: 0 | JM23: 0 | JN23: =Sorghum!BE23 -> 0 | JO23: 0 | JP23: 0 | JQ23: 0 | JR23: =Wheat!AC23 -> 110000 | JS23: 10450000 | JT23: 2750000 | JU23: 0 | JV23: =Wheat!AV23 -> 80000 | JW23: =JV23*IF(Inputs!$B$6=1,$AL23,$AP23) -> 1600000 | JX23: 0 | JY23: 0 | JZ23: =Alfalfa!U23 -> 6200 | KA23: 0 | KB23: 0 | KC23: 775000 | KD23: ='All Other Hay'!R23 -> 0 | KE23: 0 | KF23: 0 | KG23: 0 | KH23: 6025 | KI23: 1375 | KJ23: 387.5 | KK23: =IF(Inputs!$F73>0,Inputs!$F73*KH23,0) -> 0 | KL23: =IF(Inputs!$F73>0,Inputs!$F73*KI23,0) -> 0 | KM23: =IF(Inputs!$F73>0,Inputs!$F73*KJ23,0) -> 0 | KN23: =Soybean!AC23 -> 0 | KO23: 0 | KP23: 0 | KQ23: 0 | KR23: =Corn!BH23 -> 0 | KS23: 0 | KT23: 0 | KU23: 0 | KV23: =Sorghum!AC23 -> 1600 | KW23: 96000 | KX23: 32000 | KY23: 0 | KZ23: =Wheat!AE23 -> 145000 | LA23: 13775000 | LB23: 3625000 | LC23: 0 | LD23: =Wheat!AW23 -> 35000 | LE23: =LD23*IF(Inputs!$B$6=1,$AL23,$AP23) -> 700000 | LF23: 0 | LG23: 0 | LH23: =Alfalfa!W23 -> 7100 | LI23: 0 | LJ23: 0 | LK23: 887500 | LL23: ='All Other Hay'!T23 -> 16500 | LM23: 1402500 | LN23: 0 | LO23: 0 | LP23: 7986.75 | LQ23: 1828.5 | LR23: 443.75 | LS23: =IF(Inputs!$F73>0,Inputs!$F73*LP23,0) -> 0 | LT23: =IF(Inputs!$F73>0,Inputs!$F73*LQ23,0) -> 0 | LU23: =IF(Inputs!$F73>0,Inputs!$F73*LR23,0) -> 0 | LV23: =Soybean!AF23 -> 0 | LW23: 0 | LX23: 0 | LY23: 0 | LZ23: =Corn!CP23 -> 0 | MA23: 0 | MB23: 0 | MC23: 0 | MD23: =Sorghum!AF23 -> 1600 | ME23: 96000 | MF23: 32000 | MG23: 0 | MH23: =Wheat!AG23 -> 135000 | MI23: 12825000 | MJ23: 3375000 | MK23: 0 | ML23: =Wheat!AX23 -> 60000 | MM23: =ML23*IF(Inputs!$B$6=1,$AL23,$AP23) -> 1200000 | MN23: 0 | MO23: 0 | MP23: =Alfalfa!Z23 -> 23600 | MQ23: 0 | MR23: 0 | MS23: 2950000 | MT23: ='All Other Hay'!W23 -> 24000 | MU23: 2040000 | MV23: 0 | MW23: 0 | MX23: 8080.5 | MY23: 1703.5 | MZ23: 1475 | NA23: =IF(Inputs!$F73>0,Inputs!$F73*MX23,0) -> 0 | NB23: =IF(Inputs!$F73>0,Inputs!$F73*MY23,0) -> 0 | NC23: =IF(Inputs!$F73>0,Inputs!$F73*MZ23,0) -> 0
A24: Delaware | B24: 10 | C24: 0 | D24: 0 | E24: =IF(Inputs!$B$6=0,Inputs!$D$10,) -> 9 | F24: =IF(Inputs!$B$6=0,Inputs!$D$11,) -> 0 | G24: =IF(Inputs!$B$6=0,Inputs!$D$12,) -> 0 | H24: =IF(Inputs!$B$6=0,'Fertilizer Numbers 05-10'!E24,'Fertilizer Numbers 05-10'!B24) -> 9 | I24: =IF(Inputs!$B$6=0,'Fertilizer Numbers 05-10'!F24,'Fertilizer Numbers 05-10'!C24) -> 0 | J24: =IF(Inputs!$B$6=0,'Fertilizer Numbers 05-10'!G24,'Fertilizer Numbers 05-10'!D24) -> 0 | K24: 80 | L24: 20 | M24: 0 | N24: =Inputs!$F$10 -> 100 | O24: =Inputs!$F$11 -> 25 | P24: =Inputs!$F$12 -> 5 | Q24: =IF(Inputs!$B$6=0,N24,K24) -> 100 | R24: =IF(Inputs!$B$6=0,O24,L24) -> 25 | S24: =IF(Inputs!$B$6=0,P24,M24) -> 5 | T24: 62 | U24: 20 | V24: 0 | W24: =Inputs!$H$10 -> 60 | X24: =Inputs!$H$11 -> 20 | Y24: =Inputs!$H$12 -> 0 | Z24: =IF(Inputs!$B$6=0,W24,T24) -> 60 | AA24: =IF(Inputs!$B$6=0,X24,U24) -> 20 | AB24: =IF(Inputs!$B$6=0,Y24,V24) -> 0 | AC24: =Inputs!$C$10 -> 85 | AD24: =Inputs!$C$11 -> 25 | AE24: =Inputs!$C$12 -> 0 | AF24: =Inputs!$C$10 -> 85 | AG24: =Inputs!$C$11 -> 25 | AH24: =Inputs!$C$12 -> 0 | AI24: =IF(Inputs!$B$6=0,'Fertilizer Numbers 05-10'!AF24,AC24) -> 85 | AJ24: =IF(Inputs!$B$6=0,'Fertilizer Numbers 05-10'!AG24,AD24) -> 25 | AK24: =IF(Inputs!$B$6=0,'Fertilizer Numbers 05-10'!AH24,AE24) -> 0 | AL24: =Inputs!$C$13 -> 20 | AM24: =Inputs!$B$10 -> 95 | AN24: =Inputs!$B$11 -> 25 | AO24: =Inputs!$B$12 -> 0 | AP24: =Inputs!$B$13 -> 20 | AQ24: 0 | AR24: 0 | AS24: =Inputs!$K$10 -> 0 | AT24: =Inputs!$K$11 -> 0 | AU24: =Inputs!$K$12 -> 150 | AV24: =Inputs!$J$10 -> 0 | AW24: =Inputs!J$11 -> 0 | AX24: =Inputs!$J$12 -> 125 | AY24: =IF(Inputs!$B$6=0,AV24,AS24) -> 0 | AZ24: =IF(Inputs!$B$6=0,AW24,AT24) -> 0 | BA24: =IF(Inputs!$B$6=0,AX24,AU24) -> 125 | BB24: 86 | BC24: 0 | BD24: 0 | BE24: =Inputs!$L$10 -> 85 | BF24: =Inputs!$L$11 -> 0 | BG24: =Inputs!$L$12 -> 5 | BH24: =IF(Inputs!$B$6=0,'Fertilizer Numbers 05-10'!BE24,BB24) -> 85 | BI24: =IF(Inputs!$B$6=0,'Fertilizer Numbers 05-10'!BF24,BC24) -> 0 | BJ24: =IF(Inputs!$B$6=0,'Fertilizer Numbers 05-10'!BG24,BD24) -> 5 | BK24: =Soybean!J24 -> 1500 | BL24: 13500 | BM24: 0 | BN24: 0 | BO24: =Corn!J24 -> 800 | BP24: 80000 | BQ24: 20000 | BR24: 4000 | BS24: =Sorghum!J24 -> 500 | BT24: 30000 | BU24: 10000 | BV24: 0 | BW24: =Wheat!Q24 -> 700 | BX24: 66500 | BY24: 17500 | BZ24: 0 | CA24: =Wheat!AP24 -> 2300 | CB24: =CA24*IF(Inputs!$B$6=1,AL24,AP24) -> 46000 | CC24: 0 | CD24: 0 | CE24: =Alfalfa!J24 -> 300 | CF24: 0 | CG24: 0 | CH24: 37500 | CI24: ='All Other Hay'!I24 -> 45000 | CJ24: 3825000 | CK24: 0 | CL24: 225000 | CM24: 2001.5 | CN24: 30.5 | CO24: 133.25 | CP24: =Soybean!E24 -> 900 | CQ24: 8100 | CR24: 0 | CS24: 0 | CT24: =Corn!L24 -> 0 | CU24: 0 | CV24: 0 | CW24: 0 | CX24: =Sorghum!L24 -> 1200 | CY24: 72000 | CZ24: 24000 | DA24: 0 | DB24: =Wheat!S24 -> 1000 | DC24: 95000 | DD24: 25000 | DE24: 0 | DF24: =Wheat!AQ24 -> -1000 | DG24: =DF24*IF(Inputs!$B$6=1,AL24,AP24) -> -20000 | DH24: 0 | DI24: 0 | DJ24: =Alfalfa!M24 -> 0 | DK24: 0 | DL24: 0 | DM24: 0 | DN24: ='All Other Hay'!J24 -> 0 | DO24: 0 | DP24: 0 | DQ24: 0 | DR24: 77.55 | DS24: 24.5 | DT24: 0 | DU24: =IF(Inputs!B74>0,Inputs!B74*'Fertilizer Numbers 05-10'!DR24,0) -> 0 | DV24: =IF(Inputs!B74>0,Inputs!B74*'Fertilizer Numbers 05-10'!DS24,0) -> 0 | DW24: =IF(Inputs!B74>0,Inputs!B74*'Fertilizer Numbers 05-10'!DT24,0) -> 0 | DX24: =Soybean!N24 -> 0 | DY24: 0 | DZ24: 0 | EA24: 0 | EB24: =Corn!N24 -> 0 | EC24: 100 | ED24: 0 | EE24: 0 | EF24: =Sorghum!N24 -> 0 | EG24: 0 | EH24: 0 | EI24: 0 | EJ24: =Wheat!U24 -> 500 | EK24: 47500 | EL24: 12500 | EM24: 0 | EN24: =Wheat!AR24 -> 2000 | EO24: 40000 | EP24: 0 | EQ24: 0 | ER24: =Alfalfa!F24 -> 400 | ES24: 0 | ET24: 0 | EU24: 50000 | EV24: ='All Other Hay'!F24 -> 46000 | EW24: 3910000 | EX24: 0 | EY24: 230000 | EZ24: 1998.8 | FA24: 6.25 | FB24: 140 | FC24: =IF(Inputs!C74>0,Inputs!C74*'Fertilizer Numbers 05-10'!EZ24,0) -> 0 | FD24: =IF(Inputs!C74>0,Inputs!C74*'Fertilizer Numbers 05-10'!FA24,0) -> 0 | FE24: =IF(Inputs!C74>0,Inputs!C74*'Fertilizer Numbers 05-10'!FB24,0) -> 0 | FF24: =Soybean!Q24 -> 900 | FG24: 8100 | FH24: 0 | FI24: 0 | FJ24: =Corn!Q24 -> 0 | FK24: 0 | FL24: 0 | FM24: 0 | FN24: =Sorghum!Q24 -> 0 | FO24: 0 | FP24: 0 | FQ24: 0 | FR24: =Wheat!W24 -> 0 | FS24: 0 | FT24: 0 | FU24: 0 | FV24: =Wheat!AS24 -> 0 | FW24: =FV24*IF(Inputs!$B$6=1,AL24,AP24) -> 0 | FX24: 0 | FY24: 0 | FZ24: =Alfalfa!O24 -> 0 | GA24: 0 | GB24: 0 | GC24: 0 | GD24: ='All Other Hay'!L24 -> 0 | GE24: 0 | GF24: 0 | GG24: 0 | GH24: 4.05 | GI24: 0 | GJ24: 0 | GK24: =IF(Inputs!D74>0,Inputs!D74*'Fertilizer Numbers 05-10'!GH24,0) -> 0 | GL24: =IF(Inputs!D74>0,Inputs!D74*'Fertilizer Numbers 05-10'!GI24,0) -> 0 | GM24: =IF(Inputs!D74>0,Inputs!D74*'Fertilizer Numbers 05-10'!GJ24,0) -> 0 | GO24: =Soybean!T24 -> 1100 | GP24: 9900 | GQ24: 0 | GR24: 0 | GS24: =Corn!T24 -> 0 | GT24: 0 | GU24: 0 | GV24: 0 | GW24: =Sorghum!T24 -> 0 | GX24: 0 | GY24: 0 | GZ24: 0 | HA24: =Wheat!Y24 -> 1400 | HB24: 133000 | HC24: 0 | HD24: 0 | HE24: =Wheat!AT24 -> 600 | HF24: =+HE24*IF(Inputs!$B$6=1,AL24,AP24) -> 12000 | HG24: 0 | HH24: 0 | HI24: =Alfalfa!Q24 -> 0 | HJ24: 0 | HK24: 0 | HL24: 0 | HM24: ='All Other Hay'!N24 -> 0 | HN24: 0 | HO24: 0 | HP24: 0 | HQ24: 77.45 | HR24: 0 | HS24: 0 | HT24: =IF(Inputs!E74>0,Inputs!E74*'Fertilizer Numbers 05-10'!HQ24,0) -> 0 | HU24: =IF(Inputs!E74>0,Inputs!E74*'Fertilizer Numbers 05-10'!HR24,0) -> 0 | HV24: =IF(Inputs!E74>0,Inputs!E74*'Fertilizer Numbers 05-10'!HS24,0) -> 0 | HX24: =Soybean!W24 -> 2600 | HY24: 23400 | HZ24: 0 | IA24: 0 | IB24: =Corn!W24 -> 0 | IC24: 0 | ID24: 0 | IE24: 0 | IF24: =Sorghum!W24 -> 0 | IG24: 0 | IH24: 0 | II24: 0 | IJ24: =Wheat!AA24 -> 0 | IK24: 0 | IL24: 0 | IM24: 0 | IN24: =Wheat!AU24 -> 0 | IO24: =$IN24*IF(Inputs!$B$6=1,AL24,AP24) -> 0 | IP24: 0 | IQ24: 0 | IR24: =Alfalfa!S24 -> 0 | IS24: 0 | IT24: 0 | IU24: 0 | IV24: ='All Other Hay'!P24 -> 0 | IW24: 0 | IX24: 0 | IY24: 0 | IZ24: 11.7 | JA24: 0 | JB24: 0 | JC24: =IF(Inputs!$F74>0,Inputs!$F74*IZ24,0) -> 0 | JD24: =IF(Inputs!$F74>0,Inputs!$F74*JA24,0) -> 0 | JE24: =IF(Inputs!$F74>0,Inputs!$F74*JB24,0) -> 0 | JF24: =Soybean!Z24 -> 0 | JG24: 0 | JH24: 0 | JI24: 0 | JJ24: =Corn!Z24 -> 0 | JK24: 0 | JL24: 0 | JM24: 0 | JN24: =Sorghum!BE24 -> 0 | JO24: 0 | JP24: 0 | JQ24: 0 | JR24: =Wheat!AC24 -> 0 | JS24: 0 | JT24: 0 | JU24: 0 | JV24: =Wheat!AV24 -> 0 | JW24: =JV24*IF(Inputs!$B$6=1,$AL24,$AP24) -> 0 | JX24: 0 | JY24: 0 | JZ24: =Alfalfa!U24 -> 0 | KA24: 0 | KB24: 0 | KC24: 0 | KD24: ='All Other Hay'!R24 -> 45000 | KE24: 3825000 | KF24: 0 | KG24: 0 | KH24: 1912.5 | KI24: 0 | KJ24: 0 | KK24: =IF(Inputs!$F74>0,Inputs!$F74*KH24,0) -> 0 | KL24: =IF(Inputs!$F74>0,Inputs!$F74*KI24,0) -> 0 | KM24: =IF(Inputs!$F74>0,Inputs!$F74*KJ24,0) -> 0 | KN24: =Soybean!AC24 -> 2250 | KO24: 20250 | KP24: 0 | KQ24: 0 | KR24: =Corn!BH24 -> 0 | KS24: 0 | KT24: 0 | KU24: 0 | KV24: =Sorghum!AC24 -> 0 | KW24: 0 | KX24: 0 | KY24: 0 | KZ24: =Wheat!AE24 -> 0 | LA24: 0 | LB24: 0 | LC24: 0 | LD24: =Wheat!AW24 -> 0 | LE24: =LD24*IF(Inputs!$B$6=1,$AL24,$AP24) -> 0 | LF24: 0 | LG24: 0 | LH24: =Alfalfa!W24 -> 0 | LI24: 0 | LJ24: 0 | LK24: 0 | LL24: ='All Other Hay'!T24 -> 0 | LM24: 0 | LN24: 0 | LO24: 0 | LP24: 10.125 | LQ24: 0 | LR24: 0 | LS24: =IF(Inputs!$F74>0,Inputs!$F74*LP24,0) -> 0 | LT24: =IF(Inputs!$F74>0,Inputs!$F74*LQ24,0) -> 0 | LU24: =IF(Inputs!$F74>0,Inputs!$F74*LR24,0) -> 0 | LV24: =Soybean!AF24 -> 2250 | LW24: 20250 | LX24: 0 | LY24: 0 | LZ24: =Corn!CP24 -> 0 | MA24: 0 | MB24: 0 | MC24: 0 | MD24: =Sorghum!AF24 -> 0 | ME24: 0 | MF24: 0 | MG24: 0 | MH24: =Wheat!AG24 -> 0 | MI24: 0 | MJ24: 0 | MK24: 0 | ML24: =Wheat!AX24 -> 0 | MM24: =ML24*IF(Inputs!$B$6=1,$AL24,$AP24) -> 0 | MN24: 0 | MO24: 0 | MP24: =Alfalfa!Z24 -> 0 | MQ24: 0 | MR24: 0 | MS24: 0 | MT24: ='All Other Hay'!W24 -> 0 | MU24: 0 | MV24: 0 | MW24: 0 | MX24: 10.125 | MY24: 0 | MZ24: 0 | NA24: =IF(Inputs!$F74>0,Inputs!$F74*MX24,0) -> 0 | NB24: =IF(Inputs!$F74>0,Inputs!$F74*MY24,0) -> 0 | NC24: =IF(Inputs!$F74>0,Inputs!$F74*MZ24,0) -> 0
A25: Dewey | B25: 10 | C25: 0 | D25: 0 | E25: =IF(Inputs!$B$6=0,Inputs!$D$10,) -> 9 | F25: =IF(Inputs!$B$6=0,Inputs!$D$11,) -> 0 | G25: =IF(Inputs!$B$6=0,Inputs!$D$12,) -> 0 | H25: =IF(Inputs!$B$6=0,'Fertilizer Numbers 05-10'!E25,'Fertilizer Numbers 05-10'!B25) -> 9 | I25: =IF(Inputs!$B$6=0,'Fertilizer Numbers 05-10'!F25,'Fertilizer Numbers 05-10'!C25) -> 0 | J25: =IF(Inputs!$B$6=0,'Fertilizer Numbers 05-10'!G25,'Fertilizer Numbers 05-10'!D25) -> 0 | K25: 73 | L25: 20 | M25: 0 | N25: =Inputs!$F$10 -> 100 | O25: =Inputs!$F$11 -> 25 | P25: =Inputs!$F$12 -> 5 | Q25: =IF(Inputs!$B$6=0,N25,K25) -> 100 | R25: =IF(Inputs!$B$6=0,O25,L25) -> 25 | S25: =IF(Inputs!$B$6=0,P25,M25) -> 5 | T25: 22 | U25: 20 | V25: 0 | W25: =Inputs!$H$10 -> 60 | X25: =Inputs!$H$11 -> 20 | Y25: =Inputs!$H$12 -> 0 | Z25: =IF(Inputs!$B$6=0,W25,T25) -> 60 | AA25: =IF(Inputs!$B$6=0,X25,U25) -> 20 | AB25: =IF(Inputs!$B$6=0,Y25,V25) -> 0 | AC25: =Inputs!$C$10 -> 85 | AD25: =Inputs!$C$11 -> 25 | AE25: =Inputs!$C$12 -> 0 | AF25: =Inputs!$C$10 -> 85 | AG25: =Inputs!$C$11 -> 25 | AH25: =Inputs!$C$12 -> 0 | AI25: =IF(Inputs!$B$6=0,'Fertilizer Numbers 05-10'!AF25,AC25) -> 85 | AJ25: =IF(Inputs!$B$6=0,'Fertilizer Numbers 05-10'!AG25,AD25) -> 25 | AK25: =IF(Inputs!$B$6=0,'Fertilizer Numbers 05-10'!AH25,AE25) -> 0 | AL25: =Inputs!$C$13 -> 20 | AM25: =Inputs!$B$10 -> 95 | AN25: =Inputs!$B$11 -> 25 | AO25: =Inputs!$B$12 -> 0 | AP25: =Inputs!$B$13 -> 20 | AQ25: 0 | AR25: 0 | AS25: =Inputs!$K$10 -> 0 | AT25: =Inputs!$K$11 -> 0 | AU25: =Inputs!$K$12 -> 150 | AV25: =Inputs!$J$10 -> 0 | AW25: =Inputs!J$11 -> 0 | AX25: =Inputs!$J$12 -> 125 | AY25: =IF(Inputs!$B$6=0,AV25,AS25) -> 0 | AZ25: =IF(Inputs!$B$6=0,AW25,AT25) -> 0 | BA25: =IF(Inputs!$B$6=0,AX25,AU25) -> 125 | BB25: 58 | BC25: 0 | BD25: 0 | BE25: =Inputs!$L$10 -> 85 | BF25: =Inputs!$L$11 -> 0 | BG25: =Inputs!$L$12 -> 5 | BH25: =IF(Inputs!$B$6=0,'Fertilizer Numbers 05-10'!BE25,BB25) -> 85 | BI25: =IF(Inputs!$B$6=0,'Fertilizer Numbers 05-10'!BF25,BC25) -> 0 | BJ25: =IF(Inputs!$B$6=0,'Fertilizer Numbers 05-10'!BG25,BD25) -> 5 | BK25: =Soybean!J25 -> 600 | BL25: 5400 | BM25: 0 | BN25: 0 | BO25: =Corn!J25 -> 0 | BP25: 0 | BQ25: 0 | BR25: 0 | BS25: =Sorghum!J25 -> 600 | BT25: 36000 | BU25: 12000 | BV25: 0 | BW25: =Wheat!Q25 -> 1000 | BX25: 95000 | BY25: 25000 | BZ25: 0 | CA25: =Wheat!AP25 -> 144000 | CB25: =CA25*IF(Inputs!$B$6=1,AL25,AP25) -> 2880000 | CC25: 0 | CD25: 0 | CE25: =Alfalfa!J25 -> 2000 | CF25: 0 | CG25: 0 | CH25: 250000 | CI25: ='All Other Hay'!I25 -> 24000 | CJ25: 2040000 | CK25: 0 | CL25: 120000 | CM25: 1085.8 | CN25: 21.2 | CO25: 185 | CP25: =Soybean!E25 -> 200 | CQ25: 1800 | CR25: 0 | CS25: 0 | CT25: =Corn!L25 -> 0 | CU25: 0 | CV25: 0 | CW25: 0 | CX25: =Sorghum!L25 -> 0 | CY25: 0 | CZ25: 0 | DA25: 0 | DB25: =Wheat!S25 -> 90000 | DC25: 8550000 | DD25: 2250000 | DE25: 0 | DF25: =Wheat!AQ25 -> 50000 | DG25: =DF25*IF(Inputs!$B$6=1,AL25,AP25) -> 1000000 | DH25: 0 | DI25: 0 | DJ25: =Alfalfa!M25 -> 3000 | DK25: 0 | DL25: 0 | DM25: 375000 | DN25: ='All Other Hay'!J25 -> 25000 | DO25: 2125000 | DP25: 0 | DQ25: 125000 | DR25: 5838.4 | DS25: 1125 | DT25: 250 | DU25: =IF(Inputs!B75>0,Inputs!B75*'Fertilizer Numbers 05-10'!DR25,0) -> 0 | DV25: =IF(Inputs!B75>0,Inputs!B75*'Fertilizer Numbers 05-10'!DS25,0) -> 0 | DW25: =IF(Inputs!B75>0,Inputs!B75*'Fertilizer Numbers 05-10'!DT25,0) -> 0 | DX25: =Soybean!N25 -> 0 | DY25: 0 | DZ25: 0 | EA25: 0 | EB25: =Corn!N25 -> 0 | EC25: 100 | ED25: 0 | EE25: 0 | EF25: =Sorghum!N25 -> 500 | EG25: 30000 | EH25: 10000 | EI25: 0 | EJ25: =Wheat!U25 -> 90000 | EK25: 8550000 | EL25: 2250000 | EM25: 0 | EN25: =Wheat!AR25 -> 50000 | EO25: 1000000 | EP25: 0 | EQ25: 0 | ER25: =Alfalfa!F25 -> 3000 | ES25: 0 | ET25: 0 | EU25: 375000 | EV25: ='All Other Hay'!F25 -> 26000 | EW25: 2210000 | EX25: 0 | EY25: 130000 | EZ25: 5895.05 | FA25: 1130 | FB25: 252.5 | FC25: =IF(Inputs!C75>0,Inputs!C75*'Fertilizer Numbers 05-10'!EZ25,0) -> 0 | FD25: =IF(Inputs!C75>0,Inputs!C75*'Fertilizer Numbers 05-10'!FA25,0) -> 0 | FE25: =IF(Inputs!C75>0,Inputs!C75*'Fertilizer Numbers 05-10'!FB25,0) -> 0 | FF25: =Soybean!Q25 -> 0 | FG25: 0 | FH25: 0 | FI25: 0 | FJ25: =Corn!Q25 -> 0 | FK25: 0 | FL25: 0 | FM25: 0 | FN25: =Sorghum!Q25 -> 0 | FO25: 0 | FP25: 0 | FQ25: 0 | FR25: =Wheat!W25 -> 105000 | FS25: 9975000 | FT25: 2625000 | FU25: 0 | FV25: =Wheat!AS25 -> 25000 | FW25: =FV25*IF(Inputs!$B$6=1,AL25,AP25) -> 500000 | FX25: 0 | FY25: 0 | FZ25: =Alfalfa!O25 -> 4000 | GA25: 0 | GB25: 0 | GC25: 500000 | GD25: ='All Other Hay'!L25 -> 14000 | GE25: 1190000 | GF25: 0 | GG25: 70000 | GH25: 5832.5 | GI25: 1312.5 | GJ25: 285 | GK25: =IF(Inputs!D75>0,Inputs!D75*'Fertilizer Numbers 05-10'!GH25,0) -> 0 | GL25: =IF(Inputs!D75>0,Inputs!D75*'Fertilizer Numbers 05-10'!GI25,0) -> 0 | GM25: =IF(Inputs!D75>0,Inputs!D75*'Fertilizer Numbers 05-10'!GJ25,0) -> 0 | GO25: =Soybean!T25 -> 0 | GP25: 0 | GQ25: 0 | GR25: 0 | GS25: =Corn!T25 -> 0 | GT25: 0 | GU25: 0 | GV25: 0 | GW25: =Sorghum!T25 -> 0 | GX25: 0 | GY25: 0 | GZ25: 0 | HA25: =Wheat!Y25 -> 70000 | HB25: 6650000 | HC25: 0 | HD25: 0 | HE25: =Wheat!AT25 -> 55000 | HF25: =+HE25*IF(Inputs!$B$6=1,AL25,AP25) -> 1100000 | HG25: 0 | HH25: 0 | HI25: =Alfalfa!Q25 -> 0 | HJ25: 0 | HK25: 0 | HL25: 0 | HM25: ='All Other Hay'!N25 -> 0 | HN25: 0 | HO25: 0 | HP25: 0 | HQ25: 3875 | HR25: 0 | HS25: 0 | HT25: =IF(Inputs!E75>0,Inputs!E75*'Fertilizer Numbers 05-10'!HQ25,0) -> 0 | HU25: =IF(Inputs!E75>0,Inputs!E75*'Fertilizer Numbers 05-10'!HR25,0) -> 0 | HV25: =IF(Inputs!E75>0,Inputs!E75*'Fertilizer Numbers 05-10'!HS25,0) -> 0 | HX25: =Soybean!W25 -> 0 | HY25: 0 | HZ25: 0 | IA25: 0 | IB25: =Corn!W25 -> 0 | IC25: 0 | ID25: 0 | IE25: 0 | IF25: =Sorghum!W25 -> 0 | IG25: 0 | IH25: 0 | II25: 0 | IJ25: =Wheat!AA25 -> 85000 | IK25: 8075000 | IL25: 2125000 | IM25: 0 | IN25: =Wheat!AU25 -> 35000 | IO25: =$IN25*IF(Inputs!$B$6=1,AL25,AP25) -> 700000 | IP25: 0 | IQ25: 0 | IR25: =Alfalfa!S25 -> 0 | IS25: 0 | IT25: 0 | IU25: 0 | IV25: ='All Other Hay'!P25 -> 20000 | IW25: 1700000 | IX25: 0 | IY25: 100000 | IZ25: 5237.5 | JA25: 1062.5 | JB25: 50 | JC25: =IF(Inputs!$F75>0,Inputs!$F75*IZ25,0) -> 0 | JD25: =IF(Inputs!$F75>0,Inputs!$F75*JA25,0) -> 0 | JE25: =IF(Inputs!$F75>0,Inputs!$F75*JB25,0) -> 0 | JF25: =Soybean!Z25 -> 0 | JG25: 0 | JH25: 0 | JI25: 0 | JJ25: =Corn!Z25 -> 0 | JK25: 0 | JL25: 0 | JM25: 0 | JN25: =Sorghum!BE25 -> 0 | JO25: 0 | JP25: 0 | JQ25: 0 | JR25: =Wheat!AC25 -> 75000 | JS25: 7125000 | JT25: 1875000 | JU25: 0 | JV25: =Wheat!AV25 -> 40000 | JW25: =JV25*IF(Inputs!$B$6=1,$AL25,$AP25) -> 800000 | JX25: 0 | JY25: 0 | JZ25: =Alfalfa!U25 -> 0 | KA25: 0 | KB25: 0 | KC25: 0 | KD25: ='All Other Hay'!R25 -> 18000 | KE25: 1530000 | KF25: 0 | KG25: 0 | KH25: 4727.5 | KI25: 937.5 | KJ25: 0 | KK25: =IF(Inputs!$F75>0,Inputs!$F75*KH25,0) -> 0 | KL25: =IF(Inputs!$F75>0,Inputs!$F75*KI25,0) -> 0 | KM25: =IF(Inputs!$F75>0,Inputs!$F75*KJ25,0) -> 0 | KN25: =Soybean!AC25 -> 0 | KO25: 0 | KP25: 0 | KQ25: 0 | KR25: =Corn!BH25 -> 0 | KS25: 0 | KT25: 0 | KU25: 0 | KV25: =Sorghum!AC25 -> 0 | KW25: 0 | KX25: 0 | KY25: 0 | KZ25: =Wheat!AE25 -> 80000 | LA25: 7600000 | LB25: 2000000 | LC25: 0 | LD25: =Wheat!AW25 -> 25000 | LE25: =LD25*IF(Inputs!$B$6=1,$AL25,$AP25) -> 500000 | LF25: 0 | LG25: 0 | LH25: =Alfalfa!W25 -> 1700 | LI25: 0 | LJ25: 0 | LK25: 212500 | LL25: ='All Other Hay'!T25 -> 22500 | LM25: 1912500 | LN25: 0 | LO25: 0 | LP25: 5006.25 | LQ25: 1000 | LR25: 106.25 | LS25: =IF(Inputs!$F75>0,Inputs!$F75*LP25,0) -> 0 | LT25: =IF(Inputs!$F75>0,Inputs!$F75*LQ25,0) -> 0 | LU25: =IF(Inputs!$F75>0,Inputs!$F75*LR25,0) -> 0 | LV25: =Soybean!AF25 -> 0 | LW25: 0 | LX25: 0 | LY25: 0 | LZ25: =Corn!CP25 -> 0 | MA25: 0 | MB25: 0 | MC25: 0 | MD25: =Sorghum!AF25 -> 0 | ME25: 0 | MF25: 0 | MG25: 0 | MH25: =Wheat!AG25 -> 75000 | MI25: 7125000 | MJ25: 1875000 | MK25: 0 | ML25: =Wheat!AX25 -> 33000 | MM25: =ML25*IF(Inputs!$B$6=1,$AL25,$AP25) -> 660000 | MN25: 0 | MO25: 0 | MP25: =Alfalfa!Z25 -> 7300 | MQ25: 0 | MR25: 0 | MS25: 912500 | MT25: ='All Other Hay'!W25 -> 35000 | MU25: 2975000 | MV25: 0 | MW25: 0 | MX25: 5380 | MY25: 937.5 | MZ25: 456.25 | NA25: =IF(Inputs!$F75>0,Inputs!$F75*MX25,0) -> 0 | NB25: =IF(Inputs!$F75>0,Inputs!$F75*MY25,0) -> 0 | NC25: =IF(Inputs!$F75>0,Inputs!$F75*MZ25,0) -> 0
A26: Ellis | B26: 10 | C26: 0 | D26: 0 | E26: =IF(Inputs!$B$6=0,Inputs!$D$10,) -> 9 | F26: =IF(Inputs!$B$6=0,Inputs!$D$11,) -> 0 | G26: =IF(Inputs!$B$6=0,Inputs!$D$12,) -> 0 | H26: =IF(Inputs!$B$6=0,'Fertilizer Numbers 05-10'!E26,'Fertilizer Numbers 05-10'!B26) -> 9 | I26: =IF(Inputs!$B$6=0,'Fertilizer Numbers 05-10'!F26,'Fertilizer Numbers 05-10'!C26) -> 0 | J26: =IF(Inputs!$B$6=0,'Fertilizer Numbers 05-10'!G26,'Fertilizer Numbers 05-10'!D26) -> 0 | K26: 70 | L26: 20 | M26: 0 | N26: =Inputs!$F$10 -> 100 | O26: =Inputs!$F$11 -> 25 | P26: =Inputs!$F$12 -> 5 | Q26: =IF(Inputs!$B$6=0,N26,K26) -> 100 | R26: =IF(Inputs!$B$6=0,O26,L26) -> 25 | S26: =IF(Inputs!$B$6=0,P26,M26) -> 5 | T26: 18 | U26: 20 | V26: 0 | W26: =Inputs!$H$10 -> 60 | X26: =Inputs!$H$11 -> 20 | Y26: =Inputs!$H$12 -> 0 | Z26: =IF(Inputs!$B$6=0,W26,T26) -> 60 | AA26: =IF(Inputs!$B$6=0,X26,U26) -> 20 | AB26: =IF(Inputs!$B$6=0,Y26,V26) -> 0 | AC26: =Inputs!$C$10 -> 85 | AD26: =Inputs!$C$11 -> 25 | AE26: =Inputs!$C$12 -> 0 | AF26: =Inputs!$C$10 -> 85 | AG26: =Inputs!$C$11 -> 25 | AH26: =Inputs!$C$12 -> 0 | AI26: =IF(Inputs!$B$6=0,'Fertilizer Numbers 05-10'!AF26,AC26) -> 85 | AJ26: =IF(Inputs!$B$6=0,'Fertilizer Numbers 05-10'!AG26,AD26) -> 25 | AK26: =IF(Inputs!$B$6=0,'Fertilizer Numbers 05-10'!AH26,AE26) -> 0 | AL26: =Inputs!$C$13 -> 20 | AM26: =Inputs!$B$10 -> 95 | AN26: =Inputs!$B$11 -> 25 | AO26: =Inputs!$B$12 -> 0 | AP26: =Inputs!$B$13 -> 20 | AQ26: 0 | AR26: 0 | AS26: =Inputs!$K$10 -> 0 | AT26: =Inputs!$K$11 -> 0 | AU26: =Inputs!$K$12 -> 150 | AV26: =Inputs!$J$10 -> 0 | AW26: =Inputs!J$11 -> 0 | AX26: =Inputs!$J$12 -> 125 | AY26: =IF(Inputs!$B$6=0,AV26,AS26) -> 0 | AZ26: =IF(Inputs!$B$6=0,AW26,AT26) -> 0 | BA26: =IF(Inputs!$B$6=0,AX26,AU26) -> 125 | BB26: 58 | BC26: 0 | BD26: 0 | BE26: =Inputs!$L$10 -> 85 | BF26: =Inputs!$L$11 -> 0 | BG26: =Inputs!$L$12 -> 5 | BH26: =IF(Inputs!$B$6=0,'Fertilizer Numbers 05-10'!BE26,BB26) -> 85 | BI26: =IF(Inputs!$B$6=0,'Fertilizer Numbers 05-10'!BF26,BC26) -> 0 | BJ26: =IF(Inputs!$B$6=0,'Fertilizer Numbers 05-10'!BG26,BD26) -> 5 | BK26: =Soybean!J26 -> 0 | BL26: 0 | BM26: 0 | BN26: 0 | BO26: =Corn!J26 -> 0 | BP26: 0 | BQ26: 0 | BR26: 0 | BS26: =Sorghum!J26 -> 0 | BT26: 0 | BU26: 0 | BV26: 0 | BW26: =Wheat!Q26 -> 0 | BX26: 0 | BY26: 0 | BZ26: 0 | CA26: =Wheat!AP26 -> 75000 | CB26: =CA26*IF(Inputs!$B$6=1,AL26,AP26) -> 1500000 | CC26: 0 | CD26: 0 | CE26: =Alfalfa!J26 -> 4300 | CF26: 0 | CG26: 0 | CH26: 537500 | CI26: ='All Other Hay'!I26 -> 26000 | CJ26: 2210000 | CK26: 0 | CL26: 130000 | CM26: 1105 | CN26: 0 | CO26: 333.75 | CP26: =Soybean!E26 -> 0 | CQ26: 0 | CR26: 0 | CS26: 0 | CT26: =Corn!L26 -> 0 | CU26: 0 | CV26: 0 | CW26: 0 | CX26: =Sorghum!L26 -> 500 | CY26: 30000 | CZ26: 10000 | DA26: 0 | DB26: =Wheat!S26 -> 25000 | DC26: 2375000 | DD26: 625000 | DE26: 0 | DF26: =Wheat!AQ26 -> 45000 | DG26: =DF26*IF(Inputs!$B$6=1,AL26,AP26) -> 900000 | DH26: 0 | DI26: 0 | DJ26: =Alfalfa!M26 -> 5000 | DK26: 0 | DL26: 0 | DM26: 625000 | DN26: ='All Other Hay'!J26 -> 27000 | DO26: 2295000 | DP26: 0 | DQ26: 135000 | DR26: 2800 | DS26: 317.5 | DT26: 380 | DU26: =IF(Inputs!B76>0,Inputs!B76*'Fertilizer Numbers 05-10'!DR26,0) -> 0 | DV26: =IF(Inputs!B76>0,Inputs!B76*'Fertilizer Numbers 05-10'!DS26,0) -> 0 | DW26: =IF(Inputs!B76>0,Inputs!B76*'Fertilizer Numbers 05-10'!DT26,0) -> 0 | DX26: =Soybean!N26 -> 0 | DY26: 0 | DZ26: 0 | EA26: 0 | EB26: =Corn!N26 -> 900 | EC26: 100 | ED26: 22500 | EE26: 4500 | EF26: =Sorghum!N26 -> 900 | EG26: 54000 | EH26: 18000 | EI26: 0 | EJ26: =Wheat!U26 -> 40000 | EK26: 3800000 | EL26: 1000000 | EM26: 0 | EN26: =Wheat!AR26 -> 25000 | EO26: 500000 | EP26: 0 | EQ26: 0 | ER26: =Alfalfa!F26 -> 0 | ES26: 0 | ET26: 0 | EU26: 0 | EV26: ='All Other Hay'!F26 -> 0 | EW26: 0 | EX26: 0 | EY26: 0 | EZ26: 2177.05 | FA26: 520.25 | FB26: 2.25 | FC26: =IF(Inputs!C76>0,Inputs!C76*'Fertilizer Numbers 05-10'!EZ26,0) -> 0 | FD26: =IF(Inputs!C76>0,Inputs!C76*'Fertilizer Numbers 05-10'!FA26,0) -> 0 | FE26: =IF(Inputs!C76>0,Inputs!C76*'Fertilizer Numbers 05-10'!FB26,0) -> 0 | FF26: =Soybean!Q26 -> 0 | FG26: 0 | FH26: 0 | FI26: 0 | FJ26: =Corn!Q26 -> 0 | FK26: 0 | FL26: 0 | FM26: 0 | FN26: =Sorghum!Q26 -> 1800 | FO26: 108000 | FP26: 36000 | FQ26: 0 | FR26: =Wheat!W26 -> 0 | FS26: 0 | FT26: 0 | FU26: 0 | FV26: =Wheat!AS26 -> 0 | FW26: =FV26*IF(Inputs!$B$6=1,AL26,AP26) -> 0 | FX26: 0 | FY26: 0 | FZ26: =Alfalfa!O26 -> 0 | GA26: 0 | GB26: 0 | GC26: 0 | GD26: ='All Other Hay'!L26 -> 0 | GE26: 0 | GF26: 0 | GG26: 0 | GH26: 54 | GI26: 18 | GJ26: 0 | GK26: =IF(Inputs!D76>0,Inputs!D76*'Fertilizer Numbers 05-10'!GH26,0) -> 0 | GL26: =IF(Inputs!D76>0,Inputs!D76*'Fertilizer Numbers 05-10'!GI26,0) -> 0 | GM26: =IF(Inputs!D76>0,Inputs!D76*'Fertilizer Numbers 05-10'!GJ26,0) -> 0 | GO26: =Soybean!T26 -> 0 | GP26: 0 | GQ26: 0 | GR26: 0 | GS26: =Corn!T26 -> 0 | GT26: 0 | GU26: 0 | GV26: 0 | GW26: =Sorghum!T26 -> 1800 | GX26: 108000 | GY26: 36000 | GZ26: 0 | HA26: =Wheat!Y26 -> 35000 | HB26: 3325000 | HC26: 0 | HD26: 0 | HE26: =Wheat!AT26 -> 30000 | HF26: =+HE26*IF(Inputs!$B$6=1,AL26,AP26) -> 600000 | HG26: 0 | HH26: 0 | HI26: =Alfalfa!Q26 -> 0 | HJ26: 0 | HK26: 0 | HL26: 0 | HM26: ='All Other Hay'!N26 -> 0 | HN26: 0 | HO26: 0 | HP26: 0 | HQ26: 2016.5 | HR26: 18 | HS26: 0 | HT26: =IF(Inputs!E76>0,Inputs!E76*'Fertilizer Numbers 05-10'!HQ26,0) -> 0 | HU26: =IF(Inputs!E76>0,Inputs!E76*'Fertilizer Numbers 05-10'!HR26,0) -> 0 | HV26: =IF(Inputs!E76>0,Inputs!E76*'Fertilizer Numbers 05-10'!HS26,0) -> 0 | HX26: =Soybean!W26 -> 0 | HY26: 0 | HZ26: 0 | IA26: 0 | IB26: =Corn!W26 -> 0 | IC26: 0 | ID26: 0 | IE26: 0 | IF26: =Sorghum!W26 -> 0 | IG26: 0 | IH26: 0 | II26: 0 | IJ26: =Wheat!AA26 -> 35000 | IK26: 3325000 | IL26: 875000 | IM26: 0 | IN26: =Wheat!AU26 -> 25000 | IO26: =$IN26*IF(Inputs!$B$6=1,AL26,AP26) -> 500000 | IP26: 0 | IQ26: 0 | IR26: =Alfalfa!S26 -> 0 | IS26: 0 | IT26: 0 | IU26: 0 | IV26: ='All Other Hay'!P26 -> 24000 | IW26: 2040000 | IX26: 0 | IY26: 120000 | IZ26: 2932.5 | JA26: 437.5 | JB26: 60 | JC26: =IF(Inputs!$F76>0,Inputs!$F76*IZ26,0) -> 0 | JD26: =IF(Inputs!$F76>0,Inputs!$F76*JA26,0) -> 0 | JE26: =IF(Inputs!$F76>0,Inputs!$F76*JB26,0) -> 0 | JF26: =Soybean!Z26 -> 0 | JG26: 0 | JH26: 0 | JI26: 0 | JJ26: =Corn!Z26 -> 0 | JK26: 0 | JL26: 0 | JM26: 0 | JN26: =Sorghum!BE26 -> 0 | JO26: 0 | JP26: 0 | JQ26: 0 | JR26: =Wheat!AC26 -> 35000 | JS26: 3325000 | JT26: 875000 | JU26: 0 | JV26: =Wheat!AV26 -> 20000 | JW26: =JV26*IF(Inputs!$B$6=1,$AL26,$AP26) -> 400000 | JX26: 0 | JY26: 0 | JZ26: =Alfalfa!U26 -> 0 | KA26: 0 | KB26: 0 | KC26: 0 | KD26: ='All Other Hay'!R26 -> 0 | KE26: 0 | KF26: 0 | KG26: 0 | KH26: 1862.5 | KI26: 437.5 | KJ26: 0 | KK26: =IF(Inputs!$F76>0,Inputs!$F76*KH26,0) -> 0 | KL26: =IF(Inputs!$F76>0,Inputs!$F76*KI26,0) -> 0 | KM26: =IF(Inputs!$F76>0,Inputs!$F76*KJ26,0) -> 0 | KN26: =Soybean!AC26 -> 0 | KO26: 0 | KP26: 0 | KQ26: 0 | KR26: =Corn!BH26 -> 0 | KS26: 0 | KT26: 0 | KU26: 0 | KV26: =Sorghum!AC26 -> 0 | KW26: 0 | KX26: 0 | KY26: 0 | KZ26: =Wheat!AE26 -> 35000 | LA26: 3325000 | LB26: 875000 | LC26: 0 | LD26: =Wheat!AW26 -> 20000 | LE26: =LD26*IF(Inputs!$B$6=1,$AL26,$AP26) -> 400000 | LF26: 0 | LG26: 0 | LH26: =Alfalfa!W26 -> 0 | LI26: 0 | LJ26: 0 | LK26: 0 | LL26: ='All Other Hay'!T26 -> 0 | LM26: 0 | LN26: 0 | LO26: 0 | LP26: 1862.5 | LQ26: 437.5 | LR26: 0 | LS26: =IF(Inputs!$F76>0,Inputs!$F76*LP26,0) -> 0 | LT26: =IF(Inputs!$F76>0,Inputs!$F76*LQ26,0) -> 0 | LU26: =IF(Inputs!$F76>0,Inputs!$F76*LR26,0) -> 0 | LV26: =Soybean!AF26 -> 0 | LW26: 0 | LX26: 0 | LY26: 0 | LZ26: =Corn!CP26 -> 0 | MA26: 0 | MB26: 0 | MC26: 0 | MD26: =Sorghum!AF26 -> 0 | ME26: 0 | MF26: 0 | MG26: 0 | MH26: =Wheat!AG26 -> 0 | MI26: 0 | MJ26: 0 | MK26: 0 | ML26: =Wheat!AX26 -> 0 | MM26: =ML26*IF(Inputs!$B$6=1,$AL26,$AP26) -> 0 | MN26: 0 | MO26: 0 | MP26: =Alfalfa!Z26 -> 0 | MQ26: 0 | MR26: 0 | MS26: 0 | MT26: ='All Other Hay'!W26 -> 36000 | MU26: 3060000 | MV26: 0 | MW26: 0 | MX26: 1530 | MY26: 0 | MZ26: 0 | NA26: =IF(Inputs!$F76>0,Inputs!$F76*MX26,0) -> 0 | NB26: =IF(Inputs!$F76>0,Inputs!$F76*MY26,0) -> 0 | NC26: =IF(Inputs!$F76>0,Inputs!$F76*MZ26,0) -> 0
A27: Garfield | B27: 10 | C27: 0 | D27: 0 | E27: =IF(Inputs!$B$6=0,Inputs!$D$10,) -> 9 | F27: =IF(Inputs!$B$6=0,Inputs!$D$11,) -> 0 | G27: =IF(Inputs!$B$6=0,Inputs!$D$12,) -> 0 | H27: =IF(Inputs!$B$6=0,'Fertilizer Numbers 05-10'!E27,'Fertilizer Numbers 05-10'!B27) -> 9 | I27: =IF(Inputs!$B$6=0,'Fertilizer Numbers 05-10'!F27,'Fertilizer Numbers 05-10'!C27) -> 0 | J27: =IF(Inputs!$B$6=0,'Fertilizer Numbers 05-10'!G27,'Fertilizer Numbers 05-10'!D27) -> 0 | K27: 91 | L27: 20 | M27: 0 | N27: =Inputs!$F$10 -> 100 | O27: =Inputs!$F$11 -> 25 | P27: =Inputs!$F$12 -> 5 | Q27: =IF(Inputs!$B$6=0,N27,K27) -> 100 | R27: =IF(Inputs!$B$6=0,O27,L27) -> 25 | S27: =IF(Inputs!$B$6=0,P27,M27) -> 5 | T27: 39 | U27: 20 | V27: 0 | W27: =Inputs!$H$10 -> 60 | X27: =Inputs!$H$11 -> 20 | Y27: =Inputs!$H$12 -> 0 | Z27: =IF(Inputs!$B$6=0,W27,T27) -> 60 | AA27: =IF(Inputs!$B$6=0,X27,U27) -> 20 | AB27: =IF(Inputs!$B$6=0,Y27,V27) -> 0 | AC27: =Inputs!$C$10 -> 85 | AD27: =Inputs!$C$11 -> 25 | AE27: =Inputs!$C$12 -> 0 | AF27: =Inputs!$C$10 -> 85 | AG27: =Inputs!$C$11 -> 25 | AH27: =Inputs!$C$12 -> 0 | AI27: =IF(Inputs!$B$6=0,'Fertilizer Numbers 05-10'!AF27,AC27) -> 85 | AJ27: =IF(Inputs!$B$6=0,'Fertilizer Numbers 05-10'!AG27,AD27) -> 25 | AK27: =IF(Inputs!$B$6=0,'Fertilizer Numbers 05-10'!AH27,AE27) -> 0 | AL27: =Inputs!$C$13 -> 20 | AM27: =Inputs!$B$10 -> 95 | AN27: =Inputs!$B$11 -> 25 | AO27: =Inputs!$B$12 -> 0 | AP27: =Inputs!$B$13 -> 20 | AQ27: 0 | AR27: 0 | AS27: =Inputs!$K$10 -> 0 | AT27: =Inputs!$K$11 -> 0 | AU27: =Inputs!$K$12 -> 150 | AV27: =Inputs!$J$10 -> 0 | AW27: =Inputs!J$11 -> 0 | AX27: =Inputs!$J$12 -> 125 | AY27: =IF(Inputs!$B$6=0,AV27,AS27) -> 0 | AZ27: =IF(Inputs!$B$6=0,AW27,AT27) -> 0 | BA27: =IF(Inputs!$B$6=0,AX27,AU27) -> 125 | BB27: 72 | BC27: 0 | BD27: 0 | BE27: =Inputs!$L$10 -> 85 | BF27: =Inputs!$L$11 -> 0 | BG27: =Inputs!$L$12 -> 5 | BH27: =IF(Inputs!$B$6=0,'Fertilizer Numbers 05-10'!BE27,BB27) -> 85 | BI27: =IF(Inputs!$B$6=0,'Fertilizer Numbers 05-10'!BF27,BC27) -> 0 | BJ27: =IF(Inputs!$B$6=0,'Fertilizer Numbers 05-10'!BG27,BD27) -> 5 | BK27: =Soybean!J27 -> 4700 | BL27: 42300 | BM27: 0 | BN27: 0 | BO27: =Corn!J27 -> 0 | BP27: 0 | BQ27: 0 | BR27: 0 | BS27: =Sorghum!J27 -> 16200 | BT27: 972000 | BU27: 324000 | BV27: 0 | BW27: =Wheat!Q27 -> 2200 | BX27: 209000 | BY27: 55000 | BZ27: 0 | CA27: =Wheat!AP27 -> 367800 | CB27: =CA27*IF(Inputs!$B$6=1,AL27,AP27) -> 7356000 | CC27: 0 | CD27: 0 | CE27: =Alfalfa!J27 -> 5700 | CF27: 0 | CG27: 0 | CH27: 712500 | CI27: ='All Other Hay'!I27 -> 30000 | CJ27: 2550000 | CK27: 0 | CL27: 150000 | CM27: 1867.85 | CN27: 210.65 | CO27: 431.25 | CP27: =Soybean!E27 -> 1500 | CQ27: 13500 | CR27: 0 | CS27: 0 | CT27: =Corn!L27 -> 6000 | CU27: 600000 | CV27: 150000 | CW27: 30000 | CX27: =Sorghum!L27 -> 10300 | CY27: 618000 | CZ27: 206000 | DA27: 0 | DB27: =Wheat!S27 -> 315000 | DC27: 29925000 | DD27: 7875000 | DE27: 0 | DF27: =Wheat!AQ27 -> 55000 | DG27: =DF27*IF(Inputs!$B$6=1,AL27,AP27) -> 1100000 | DH27: 0 | DI27: 0 | DJ27: =Alfalfa!M27 -> 6500 | DK27: 0 | DL27: 0 | DM27: 812500 | DN27: ='All Other Hay'!J27 -> 30000 | DO27: 2550000 | DP27: 0 | DQ27: 150000 | DR27: 17403.25 | DS27: 4115.5 | DT27: 496.25 | DU27: =IF(Inputs!B77>0,Inputs!B77*'Fertilizer Numbers 05-10'!DR27,0) -> 0 | DV27: =IF(Inputs!B77>0,Inputs!B77*'Fertilizer Numbers 05-10'!DS27,0) -> 0 | DW27: =IF(Inputs!B77>0,Inputs!B77*'Fertilizer Numbers 05-10'!DT27,0) -> 0 | DX27: =Soybean!N27 -> 2900 | DY27: 26100 | DZ27: 0 | EA27: 0 | EB27: =Corn!N27 -> 8000 | EC27: 100 | ED27: 200000 | EE27: 40000 | EF27: =Sorghum!N27 -> 11300 | EG27: 678000 | EH27: 226000 | EI27: 0 | EJ27: =Wheat!U27 -> 160000 | EK27: 15200000 | EL27: 4000000 | EM27: 0 | EN27: =Wheat!AR27 -> 200000 | EO27: 4000000 | EP27: 0 | EQ27: 0 | ER27: =Alfalfa!F27 -> 6000 | ES27: 0 | ET27: 0 | EU27: 750000 | EV27: ='All Other Hay'!F27 -> 20000 | EW27: 1700000 | EX27: 0 | EY27: 100000 | EZ27: 10802.1 | FA27: 2213 | FB27: 445 | FC27: =IF(Inputs!C77>0,Inputs!C77*'Fertilizer Numbers 05-10'!EZ27,0) -> 0 | FD27: =IF(Inputs!C77>0,Inputs!C77*'Fertilizer Numbers 05-10'!FA27,0) -> 0 | FE27: =IF(Inputs!C77>0,Inputs!C77*'Fertilizer Numbers 05-10'!FB27,0) -> 0 | FF27: =Soybean!Q27 -> 0 | FG27: 0 | FH27: 0 | FI27: 0 | FJ27: =Corn!Q27 -> 22000 | FK27: 2200000 | FL27: 550000 | FM27: 110000 | FN27: =Sorghum!Q27 -> 21000 | FO27: 1260000 | FP27: 420000 | FQ27: 0 | FR27: =Wheat!W27 -> 207000 | FS27: 19665000 | FT27: 5175000 | FU27: 0 | FV27: =Wheat!AS27 -> 113000 | FW27: =FV27*IF(Inputs!$B$6=1,AL27,AP27) -> 2260000 | FX27: 0 | FY27: 0 | FZ27: =Alfalfa!O27 -> 6500 | GA27: 0 | GB27: 0 | GC27: 812500 | GD27: ='All Other Hay'!L27 -> 28000 | GE27: 2380000 | GF27: 0 | GG27: 140000 | GH27: 13882.5 | GI27: 3072.5 | GJ27: 531.25 | GK27: =IF(Inputs!D77>0,Inputs!D77*'Fertilizer Numbers 05-10'!GH27,0) -> 0 | GL27: =IF(Inputs!D77>0,Inputs!D77*'Fertilizer Numbers 05-10'!GI27,0) -> 0 | GM27: =IF(Inputs!D77>0,Inputs!D77*'Fertilizer Numbers 05-10'!GJ27,0) -> 0 | GO27: =Soybean!T27 -> 9700 | GP27: 87300 | GQ27: 0 | GR27: 0 | GS27: =Corn!T27 -> 0 | GT27: 0 | GU27: 0 | GV27: 0 | GW27: =Sorghum!T27 -> 24300 | GX27: 1458000 | GY27: 486000 | GZ27: 0 | HA27: =Wheat!Y27 -> 275000 | HB27: 26125000 | HC27: 0 | HD27: 0 | HE27: =Wheat!AT27 -> 50000 | HF27: =+HE27*IF(Inputs!$B$6=1,AL27,AP27) -> 1000000 | HG27: 0 | HH27: 0 | HI27: =Alfalfa!Q27 -> 0 | HJ27: 0 | HK27: 0 | HL27: 0 | HM27: ='All Other Hay'!N27 -> 36000 | HN27: 3060000 | HO27: 0 | HP27: 180000 | HQ27: 15865.15 | HR27: 243 | HS27: 90 | HT27: =IF(Inputs!E77>0,Inputs!E77*'Fertilizer Numbers 05-10'!HQ27,0) -> 0 | HU27: =IF(Inputs!E77>0,Inputs!E77*'Fertilizer Numbers 05-10'!HR27,0) -> 0 | HV27: =IF(Inputs!E77>0,Inputs!E77*'Fertilizer Numbers 05-10'!HS27,0) -> 0 | HX27: =Soybean!W27 -> 19500 | HY27: 175500 | HZ27: 0 | IA27: 0 | IB27: =Corn!W27 -> 0 | IC27: 0 | ID27: 0 | IE27: 0 | IF27: =Sorghum!W27 -> 30000 | IG27: 1800000 | IH27: 600000 | II27: 0 | IJ27: =Wheat!AA27 -> 255000 | IK27: 24225000 | IL27: 6375000 | IM27: 0 | IN27: =Wheat!AU27 -> 70000 | IO27: =$IN27*IF(Inputs!$B$6=1,AL27,AP27) -> 1400000 | IP27: 0 | IQ27: 0 | IR27: =Alfalfa!S27 -> 11000 | IS27: 0 | IT27: 0 | IU27: 1375000 | IV27: ='All Other Hay'!P27 -> 34000 | IW27: 2890000 | IX27: 0 | IY27: 170000 | IZ27: 15245.25 | JA27: 3487.5 | JB27: 772.5 | JC27: =IF(Inputs!$F77>0,Inputs!$F77*IZ27,0) -> 0 | JD27: =IF(Inputs!$F77>0,Inputs!$F77*JA27,0) -> 0 | JE27: =IF(Inputs!$F77>0,Inputs!$F77*JB27,0) -> 0 | JF27: =Soybean!Z27 -> 0 | JG27: 0 | JH27: 0 | JI27: 0 | JJ27: =Corn!Z27 -> 9800 | JK27: 980000 | JL27: 245000 | JM27: 49000 | JN27: =Sorghum!BE27 -> 0 | JO27: 0 | JP27: 0 | JQ27: 0 | JR27: =Wheat!AC27 -> 260000 | JS27: 24700000 | JT27: 6500000 | JU27: 0 | JV27: =Wheat!AV27 -> 45000 | JW27: =JV27*IF(Inputs!$B$6=1,$AL27,$AP27) -> 900000 | JX27: 0 | JY27: 0 | JZ27: =Alfalfa!U27 -> 0 | KA27: 0 | KB27: 0 | KC27: 0 | KD27: ='All Other Hay'!R27 -> 31000 | KE27: 2635000 | KF27: 0 | KG27: 0 | KH27: 14607.5 | KI27: 3372.5 | KJ27: 24.5 | KK27: =IF(Inputs!$F77>0,Inputs!$F77*KH27,0) -> 0 | KL27: =IF(Inputs!$F77>0,Inputs!$F77*KI27,0) -> 0 | KM27: =IF(Inputs!$F77>0,Inputs!$F77*KJ27,0) -> 0 | KN27: =Soybean!AC27 -> 8240 | KO27: 74160 | KP27: 0 | KQ27: 0 | KR27: =Corn!BH27 -> 0 | KS27: 0 | KT27: 0 | KU27: 0 | KV27: =Sorghum!AC27 -> 17500 | KW27: 1050000 | KX27: 350000 | KY27: 0 | KZ27: =Wheat!AE27 -> 285000 | LA27: 27075000 | LB27: 7125000 | LC27: 0 | LD27: =Wheat!AW27 -> 20000 | LE27: =LD27*IF(Inputs!$B$6=1,$AL27,$AP27) -> 400000 | LF27: 0 | LG27: 0 | LH27: =Alfalfa!W27 -> 4500 | LI27: 0 | LJ27: 0 | LK27: 562500 | LL27: ='All Other Hay'!T27 -> 35000 | LM27: 2975000 | LN27: 0 | LO27: 0 | LP27: 15787.08 | LQ27: 3737.5 | LR27: 281.25 | LS27: =IF(Inputs!$F77>0,Inputs!$F77*LP27,0) -> 0 | LT27: =IF(Inputs!$F77>0,Inputs!$F77*LQ27,0) -> 0 | LU27: =IF(Inputs!$F77>0,Inputs!$F77*LR27,0) -> 0 | LV27: =Soybean!AF27 -> 8240 | LW27: 74160 | LX27: 0 | LY27: 0 | LZ27: =Corn!CP27 -> 0 | MA27: 0 | MB27: 0 | MC27: 0 | MD27: =Sorghum!AF27 -> 17500 | ME27: 1050000 | MF27: 350000 | MG27: 0 | MH27: =Wheat!AG27 -> 280000 | MI27: 26600000 | MJ27: 7000000 | MK27: 0 | ML27: =Wheat!AX27 -> 35000 | MM27: =ML27*IF(Inputs!$B$6=1,$AL27,$AP27) -> 700000 | MN27: 0 | MO27: 0 | MP27: =Alfalfa!Z27 -> 9000 | MQ27: 0 | MR27: 0 | MS27: 1125000 | MT27: ='All Other Hay'!W27 -> 51500 | MU27: 4377500 | MV27: 0 | MW27: 0 | MX27: 16400.83 | MY27: 3675 | MZ27: 562.5 | NA27: =IF(Inputs!$F77>0,Inputs!$F77*MX27,0) -> 0 | NB27: =IF(Inputs!$F77>0,Inputs!$F77*MY27,0) -> 0 | NC27: =IF(Inputs!$F77>0,Inputs!$F77*MZ27,0) -> 0
A28: Garvin | B28: 10 | C28: 0 | D28: 0 | E28: =IF(Inputs!$B$6=0,Inputs!$D$10,) -> 9 | F28: =IF(Inputs!$B$6=0,Inputs!$D$11,) -> 0 | G28: =IF(Inputs!$B$6=0,Inputs!$D$12,) -> 0 | H28: =IF(Inputs!$B$6=0,'Fertilizer Numbers 05-10'!E28,'Fertilizer Numbers 05-10'!B28) -> 9 | I28: =IF(Inputs!$B$6=0,'Fertilizer Numbers 05-10'!F28,'Fertilizer Numbers 05-10'!C28) -> 0 | J28: =IF(Inputs!$B$6=0,'Fertilizer Numbers 05-10'!G28,'Fertilizer Numbers 05-10'!D28) -> 0 | K28: 89 | L28: 20 | M28: 0 | N28: =Inputs!$F$10 -> 100 | O28: =Inputs!$F$11 -> 25 | P28: =Inputs!$F$12 -> 5 | Q28: =IF(Inputs!$B$6=0,N28,K28) -> 100 | R28: =IF(Inputs!$B$6=0,O28,L28) -> 25 | S28: =IF(Inputs!$B$6=0,P28,M28) -> 5 | T28: 39 | U28: 20 | V28: 0 | W28: =Inputs!$H$10 -> 60 | X28: =Inputs!$H$11 -> 20 | Y28: =Inputs!$H$12 -> 0 | Z28: =IF(Inputs!$B$6=0,W28,T28) -> 60 | AA28: =IF(Inputs!$B$6=0,X28,U28) -> 20 | AB28: =IF(Inputs!$B$6=0,Y28,V28) -> 0 | AC28: =Inputs!$C$10 -> 85 | AD28: =Inputs!$C$11 -> 25 | AE28: =Inputs!$C$12 -> 0 | AF28: =Inputs!$C$10 -> 85 | AG28: =Inputs!$C$11 -> 25 | AH28: =Inputs!$C$12 -> 0 | AI28: =IF(Inputs!$B$6=0,'Fertilizer Numbers 05-10'!AF28,AC28) -> 85 | AJ28: =IF(Inputs!$B$6=0,'Fertilizer Numbers 05-10'!AG28,AD28) -> 25 | AK28: =IF(Inputs!$B$6=0,'Fertilizer Numbers 05-10'!AH28,AE28) -> 0 | AL28: =Inputs!$C$13 -> 20 | AM28: =Inputs!$B$10 -> 95 | AN28: =Inputs!$B$11 -> 25 | AO28: =Inputs!$B$12 -> 0 | AP28: =Inputs!$B$13 -> 20 | AQ28: 0 | AR28: 0 | AS28: =Inputs!$K$10 -> 0 | AT28: =Inputs!$K$11 -> 0 | AU28: =Inputs!$K$12 -> 150 | AV28: =Inputs!$J$10 -> 0 | AW28: =Inputs!J$11 -> 0 | AX28: =Inputs!$J$12 -> 125 | AY28: =IF(Inputs!$B$6=0,AV28,AS28) -> 0 | AZ28: =IF(Inputs!$B$6=0,AW28,AT28) -> 0 | BA28: =IF(Inputs!$B$6=0,AX28,AU28) -> 125 | BB28: 72 | BC28: 0 | BD28: 0 | BE28: =Inputs!$L$10 -> 85 | BF28: =Inputs!$L$11 -> 0 | BG28: =Inputs!$L$12 -> 5 | BH28: =IF(Inputs!$B$6=0,'Fertilizer Numbers 05-10'!BE28,BB28) -> 85 | BI28: =IF(Inputs!$B$6=0,'Fertilizer Numbers 05-10'!BF28,BC28) -> 0 | BJ28: =IF(Inputs!$B$6=0,'Fertilizer Numbers 05-10'!BG28,BD28) -> 5 | BK28: =Soybean!J28 -> 7400 | BL28: 66600 | BM28: 0 | BN28: 0 | BO28: =Corn!J28 -> 300 | BP28: 30000 | BQ28: 7500 | BR28: 1500 | BS28: =Sorghum!J28 -> 0 | BT28: 0 | BU28: 0 | BV28: 0 | BW28: =Wheat!Q28 -> 105000 | BX28: 9975000 | BY28: 2625000 | BZ28: 0 | CA28: =Wheat!AP28 -> -76000 | CB28: =CA28*IF(Inputs!$B$6=1,AL28,AP28) -> -1520000 | CC28: 0 | CD28: 0 | CE28: =Alfalfa!J28 -> 21000 | CF28: 0 | CG28: 0 | CH28: 2625000 | CI28: ='All Other Hay'!I28 -> 35000 | CJ28: 2975000 | CK28: 0 | CL28: 175000 | CM28: 6493.7 | CN28: 1349.55 | CO28: 1400.75 | CP28: =Soybean!E28 -> 5000 | CQ28: 45000 | CR28: 0 | CS28: 0 | CT28: =Corn!L28 -> 1600 | CU28: 160000 | CV28: 40000 | CW28: 8000 | CX28: =Sorghum!L28 -> 0 | CY28: 0 | CZ28: 0 | DA28: 0 | DB28: =Wheat!S28 -> 6000 | DC28: 570000 | DD28: 150000 | DE28: 0 | DF28: =Wheat!AQ28 -> 21000 | DG28: =DF28*IF(Inputs!$B$6=1,AL28,AP28) -> 420000 | DH28: 0 | DI28: 0 | DJ28: =Alfalfa!M28 -> 28800 | DK28: 0 | DL28: 0 | DM28: 3600000 | DN28: ='All Other Hay'!J28 -> 40000 | DO28: 3400000 | DP28: 0 | DQ28: 200000 | DR28: 2297.5 | DS28: 95 | DT28: 1904 | DU28: =IF(Inputs!B78>0,Inputs!B78*'Fertilizer Numbers 05-10'!DR28,0) -> 0 | DV28: =IF(Inputs!B78>0,Inputs!B78*'Fertilizer Numbers 05-10'!DS28,0) -> 0 | DW28: =IF(Inputs!B78>0,Inputs!B78*'Fertilizer Numbers 05-10'!DT28,0) -> 0 | DX28: =Soybean!N28 -> 3400 | DY28: 30600 | DZ28: 0 | EA28: 0 | EB28: =Corn!N28 -> 2200 | EC28: 100 | ED28: 55000 | EE28: 11000 | EF28: =Sorghum!N28 -> 0 | EG28: 0 | EH28: 0 | EI28: 0 | EJ28: =Wheat!U28 -> 7000 | EK28: 665000 | EL28: 175000 | EM28: 0 | EN28: =Wheat!AR28 -> 22000 | EO28: 440000 | EP28: 0 | EQ28: 0 | ER28: =Alfalfa!F28 -> 20000 | ES28: 0 | ET28: 0 | EU28: 2500000 | EV28: ='All Other Hay'!F28 -> 29000 | EW28: 2465000 | EX28: 0 | EY28: 145000 | EZ28: 1800.35 | FA28: 115 | FB28: 1328 | FC28: =IF(Inputs!C78>0,Inputs!C78*'Fertilizer Numbers 05-10'!EZ28,0) -> 0 | FD28: =IF(Inputs!C78>0,Inputs!C78*'Fertilizer Numbers 05-10'!FA28,0) -> 0 | FE28: =IF(Inputs!C78>0,Inputs!C78*'Fertilizer Numbers 05-10'!FB28,0) -> 0 | FF28: =Soybean!Q28 -> 0 | FG28: 0 | FH28: 0 | FI28: 0 | FJ28: =Corn!Q28 -> 3000 | FK28: 300000 | FL28: 75000 | FM28: 15000 | FN28: =Sorghum!Q28 -> 0 | FO28: 0 | FP28: 0 | FQ28: 0 | FR28: =Wheat!W28 -> 13500 | FS28: 1282500 | FT28: 337500 | FU28: 0 | FV28: =Wheat!AS28 -> 14500 | FW28: =FV28*IF(Inputs!$B$6=1,AL28,AP28) -> 290000 | FX28: 0 | FY28: 0 | FZ28: =Alfalfa!O28 -> 0 | GA28: 0 | GB28: 0 | GC28: 0 | GD28: ='All Other Hay'!L28 -> 0 | GE28: 0 | GF28: 0 | GG28: 0 | GH28: 936.25 | GI28: 206.25 | GJ28: 7.5 | GK28: =IF(Inputs!D78>0,Inputs!D78*'Fertilizer Numbers 05-10'!GH28,0) -> 0 | GL28: =IF(Inputs!D78>0,Inputs!D78*'Fertilizer Numbers 05-10'!GI28,0) -> 0 | GM28: =IF(Inputs!D78>0,Inputs!D78*'Fertilizer Numbers 05-10'!GJ28,0) -> 0 | GO28: =Soybean!T28 -> 7500 | GP28: 67500 | GQ28: 0 | GR28: 0 | GS28: =Corn!T28 -> 0 | GT28: 0 | GU28: 0 | GV28: 0 | GW28: =Sorghum!T28 -> 0 | GX28: 0 | GY28: 0 | GZ28: 0 | HA28: =Wheat!Y28 -> 0 | HB28: 0 | HC28: 0 | HD28: 0 | HE28: =Wheat!AT28 -> 0 | HF28: =+HE28*IF(Inputs!$B$6=1,AL28,AP28) -> 0 | HG28: 0 | HH28: 0 | HI28: =Alfalfa!Q28 -> 0 | HJ28: 0 | HK28: 0 | HL28: 0 | HM28: ='All Other Hay'!N28 -> 32000 | HN28: 2720000 | HO28: 0 | HP28: 160000 | HQ28: 1393.75 | HR28: 0 | HS28: 80 | HT28: =IF(Inputs!E78>0,Inputs!E78*'Fertilizer Numbers 05-10'!HQ28,0) -> 0 | HU28: =IF(Inputs!E78>0,Inputs!E78*'Fertilizer Numbers 05-10'!HR28,0) -> 0 | HV28: =IF(Inputs!E78>0,Inputs!E78*'Fertilizer Numbers 05-10'!HS28,0) -> 0 | HX28: =Soybean!W28 -> 0 | HY28: 0 | HZ28: 0 | IA28: 0 | IB28: =Corn!W28 -> 0 | IC28: 0 | ID28: 0 | IE28: 0 | IF28: =Sorghum!W28 -> 0 | IG28: 0 | IH28: 0 | II28: 0 | IJ28: =Wheat!AA28 -> 8100 | IK28: 769500 | IL28: 202500 | IM28: 0 | IN28: =Wheat!AU28 -> 12900 | IO28: =$IN28*IF(Inputs!$B$6=1,AL28,AP28) -> 258000 | IP28: 0 | IQ28: 0 | IR28: =Alfalfa!S28 -> 0 | IS28: 0 | IT28: 0 | IU28: 0 | IV28: ='All Other Hay'!P28 -> 30000 | IW28: 2550000 | IX28: 0 | IY28: 150000 | IZ28: 1788.75 | JA28: 101.25 | JB28: 75 | JC28: =IF(Inputs!$F78>0,Inputs!$F78*IZ28,0) -> 0 | JD28: =IF(Inputs!$F78>0,Inputs!$F78*JA28,0) -> 0 | JE28: =IF(Inputs!$F78>0,Inputs!$F78*JB28,0) -> 0 | JF28: =Soybean!Z28 -> 0 | JG28: 0 | JH28: 0 | JI28: 0 | JJ28: =Corn!Z28 -> 0 | JK28: 0 | JL28: 0 | JM28: 0 | JN28: =Sorghum!BE28 -> 0 | JO28: 0 | JP28: 0 | JQ28: 0 | JR28: =Wheat!AC28 -> 7000 | JS28: 665000 | JT28: 175000 | JU28: 0 | JV28: =Wheat!AV28 -> 14000 | JW28: =JV28*IF(Inputs!$B$6=1,$AL28,$AP28) -> 280000 | JX28: 0 | JY28: 0 | JZ28: =Alfalfa!U28 -> 12600 | KA28: 0 | KB28: 0 | KC28: 1575000 | KD28: ='All Other Hay'!R28 -> 0 | KE28: 0 | KF28: 0 | KG28: 0 | KH28: 472.5 | KI28: 87.5 | KJ28: 787.5 | KK28: =IF(Inputs!$F78>0,Inputs!$F78*KH28,0) -> 0 | KL28: =IF(Inputs!$F78>0,Inputs!$F78*KI28,0) -> 0 | KM28: =IF(Inputs!$F78>0,Inputs!$F78*KJ28,0) -> 0 | KN28: =Soybean!AC28 -> 0 | KO28: 0 | KP28: 0 | KQ28: 0 | KR28: =Corn!BH28 -> 0 | KS28: 0 | KT28: 0 | KU28: 0 | KV28: =Sorghum!AC28 -> 0 | KW28: 0 | KX28: 0 | KY28: 0 | KZ28: =Wheat!AE28 -> 6700 | LA28: 636500 | LB28: 167500 | LC28: 0 | LD28: =Wheat!AW28 -> 14300 | LE28: =LD28*IF(Inputs!$B$6=1,$AL28,$AP28) -> 286000 | LF28: 0 | LG28: 0 | LH28: =Alfalfa!W28 -> 11700 | LI28: 0 | LJ28: 0 | LK28: 1462500 | LL28: ='All Other Hay'!T28 -> 35000 | LM28: 2975000 | LN28: 0 | LO28: 0 | LP28: 1948.75 | LQ28: 83.75 | LR28: 731.25 | LS28: =IF(Inputs!$F78>0,Inputs!$F78*LP28,0) -> 0 | LT28: =IF(Inputs!$F78>0,Inputs!$F78*LQ28,0) -> 0 | LU28: =IF(Inputs!$F78>0,Inputs!$F78*LR28,0) -> 0 | LV28: =Soybean!AF28 -> 0 | LW28: 0 | LX28: 0 | LY28: 0 | LZ28: =Corn!CP28 -> 0 | MA28: 0 | MB28: 0 | MC28: 0 | MD28: =Sorghum!AF28 -> 0 | ME28: 0 | MF28: 0 | MG28: 0 | MH28: =Wheat!AG28 -> 6000 | MI28: 570000 | MJ28: 150000 | MK28: 0 | ML28: =Wheat!AX28 -> 16300 | MM28: =ML28*IF(Inputs!$B$6=1,$AL28,$AP28) -> 326000 | MN28: 0 | MO28: 0 | MP28: =Alfalfa!Z28 -> 27200 | MQ28: 0 | MR28: 0 | MS28: 3400000 | MT28: ='All Other Hay'!W28 -> 54500 | MU28: 4632500 | MV28: 0 | MW28: 0 | MX28: 2764.25 | MY28: 75 | MZ28: 1700 | NA28: =IF(Inputs!$F78>0,Inputs!$F78*MX28,0) -> 0 | NB28: =IF(Inputs!$F78>0,Inputs!$F78*MY28,0) -> 0 | NC28: =IF(Inputs!$F78>0,Inputs!$F78*MZ28,0) -> 0
A29: Grady | B29: 10 | C29: 0 | D29: 0 | E29: =IF(Inputs!$B$6=0,Inputs!$D$10,) -> 9 | F29: =IF(Inputs!$B$6=0,Inputs!$D$11,) -> 0 | G29: =IF(Inputs!$B$6=0,Inputs!$D$12,) -> 0 | H29: =IF(Inputs!$B$6=0,'Fertilizer Numbers 05-10'!E29,'Fertilizer Numbers 05-10'!B29) -> 9 | I29: =IF(Inputs!$B$6=0,'Fertilizer Numbers 05-10'!F29,'Fertilizer Numbers 05-10'!C29) -> 0 | J29: =IF(Inputs!$B$6=0,'Fertilizer Numbers 05-10'!G29,'Fertilizer Numbers 05-10'!D29) -> 0 | K29: 88 | L29: 20 | M29: 0 | N29: =Inputs!$F$10 -> 100 | O29: =Inputs!$F$11 -> 25 | P29: =Inputs!$F$12 -> 5 | Q29: =IF(Inputs!$B$6=0,N29,K29) -> 100 | R29: =IF(Inputs!$B$6=0,O29,L29) -> 25 | S29: =IF(Inputs!$B$6=0,P29,M29) -> 5 | T29: 40 | U29: 20 | V29: 0 | W29: =Inputs!$H$10 -> 60 | X29: =Inputs!$H$11 -> 20 | Y29: =Inputs!$H$12 -> 0 | Z29: =IF(Inputs!$B$6=0,W29,T29) -> 60 | AA29: =IF(Inputs!$B$6=0,X29,U29) -> 20 | AB29: =IF(Inputs!$B$6=0,Y29,V29) -> 0 | AC29: =Inputs!$C$10 -> 85 | AD29: =Inputs!$C$11 -> 25 | AE29: =Inputs!$C$12 -> 0 | AF29: =Inputs!$C$10 -> 85 | AG29: =Inputs!$C$11 -> 25 | AH29: =Inputs!$C$12 -> 0 | AI29: =IF(Inputs!$B$6=0,'Fertilizer Numbers 05-10'!AF29,AC29) -> 85 | AJ29: =IF(Inputs!$B$6=0,'Fertilizer Numbers 05-10'!AG29,AD29) -> 25 | AK29: =IF(Inputs!$B$6=0,'Fertilizer Numbers 05-10'!AH29,AE29) -> 0 | AL29: =Inputs!$C$13 -> 20 | AM29: =Inputs!$B$10 -> 95 | AN29: =Inputs!$B$11 -> 25 | AO29: =Inputs!$B$12 -> 0 | AP29: =Inputs!$B$13 -> 20 | AQ29: 0 | AR29: 0 | AS29: =Inputs!$K$10 -> 0 | AT29: =Inputs!$K$11 -> 0 | AU29: =Inputs!$K$12 -> 150 | AV29: =Inputs!$J$10 -> 0 | AW29: =Inputs!J$11 -> 0 | AX29: =Inputs!$J$12 -> 125 | AY29: =IF(Inputs!$B$6=0,AV29,AS29) -> 0 | AZ29: =IF(Inputs!$B$6=0,AW29,AT29) -> 0 | BA29: =IF(Inputs!$B$6=0,AX29,AU29) -> 125 | BB29: 72 | BC29: 0 | BD29: 0 | BE29: =Inputs!$L$10 -> 85 | BF29: =Inputs!$L$11 -> 0 | BG29: =Inputs!$L$12 -> 5 | BH29: =IF(Inputs!$B$6=0,'Fertilizer Numbers 05-10'!BE29,BB29) -> 85 | BI29: =IF(Inputs!$B$6=0,'Fertilizer Numbers 05-10'!BF29,BC29) -> 0 | BJ29: =IF(Inputs!$B$6=0,'Fertilizer Numbers 05-10'!BG29,BD29) -> 5 | BK29: =Soybean!J29 -> 1300 | BL29: 11700 | BM29: 0 | BN29: 0 | BO29: =Corn!J29 -> 0 | BP29: 0 | BQ29: 0 | BR29: 0 | BS29: =Sorghum!J29 -> 400 | BT29: 24000 | BU29: 8000 | BV29: 0 | BW29: =Wheat!Q29 -> 45000 | BX29: 4275000 | BY29: 1125000 | BZ29: 0 | CA29: =Wheat!AP29 -> 55000 | CB29: =CA29*IF(Inputs!$B$6=1,AL29,AP29) -> 1100000 | CC29: 0 | CD29: 0 | CE29: =Alfalfa!J29 -> 28500 | CF29: 0 | CG29: 0 | CH29: 3562500 | CI29: ='All Other Hay'!I29 -> 65000 | CJ29: 5525000 | CK29: 0 | CL29: 325000 | CM29: 4912.65 | CN29: 572.35 | CO29: 1943.75 | CP29: =Soybean!E29 -> 1300 | CQ29: 11700 | CR29: 0 | CS29: 0 | CT29: =Corn!L29 -> 0 | CU29: 0 | CV29: 0 | CW29: 0 | CX29: =Sorghum!L29 -> 300 | CY29: 18000 | CZ29: 6000 | DA29: 0 | DB29: =Wheat!S29 -> 35000 | DC29: 3325000 | DD29: 875000 | DE29: 0 | DF29: =Wheat!AQ29 -> 65000 | DG29: =DF29*IF(Inputs!$B$6=1,AL29,AP29) -> 1300000 | DH29: 0 | DI29: 0 | DJ29: =Alfalfa!M29 -> 39000 | DK29: 0 | DL29: 0 | DM29: 4875000 | DN29: ='All Other Hay'!J29 -> 55000 | DO29: 4675000 | DP29: 0 | DQ29: 275000 | DR29: 4664.85 | DS29: 440.5 | DT29: 2575 | DU29: =IF(Inputs!B79>0,Inputs!B79*'Fertilizer Numbers 05-10'!DR29,0) -> 0 | DV29: =IF(Inputs!B79>0,Inputs!B79*'Fertilizer Numbers 05-10'!DS29,0) -> 0 | DW29: =IF(Inputs!B79>0,Inputs!B79*'Fertilizer Numbers 05-10'!DT29,0) -> 0 | DX29: =Soybean!N29 -> 1100 | DY29: 9900 | DZ29: 0 | EA29: 0 | EB29: =Corn!N29 -> 0 | EC29: 100 | ED29: 0 | EE29: 0 | EF29: =Sorghum!N29 -> 700 | EG29: 42000 | EH29: 14000 | EI29: 0 | EJ29: =Wheat!U29 -> 45000 | EK29: 4275000 | EL29: 1125000 | EM29: 0 | EN29: =Wheat!AR29 -> 58000 | EO29: 1160000 | EP29: 0 | EQ29: 0 | ER29: =Alfalfa!F29 -> 34000 | ES29: 0 | ET29: 0 | EU29: 4250000 | EV29: ='All Other Hay'!F29 -> 50000 | EW29: 4250000 | EX29: 0 | EY29: 250000 | EZ29: 4868.5 | FA29: 569.5 | FB29: 2250 | FC29: =IF(Inputs!C79>0,Inputs!C79*'Fertilizer Numbers 05-10'!EZ29,0) -> 0 | FD29: =IF(Inputs!C79>0,Inputs!C79*'Fertilizer Numbers 05-10'!FA29,0) -> 0 | FE29: =IF(Inputs!C79>0,Inputs!C79*'Fertilizer Numbers 05-10'!FB29,0) -> 0 | FF29: =Soybean!Q29 -> 4400 | FG29: 39600 | FH29: 0 | FI29: 0 | FJ29: =Corn!Q29 -> 3500 | FK29: 350000 | FL29: 87500 | FM29: 17500 | FN29: =Sorghum!Q29 -> 1600 | FO29: 96000 | FP29: 32000 | FQ29: 0 | FR29: =Wheat!W29 -> 70000 | FS29: 6650000 | FT29: 1750000 | FU29: 0 | FV29: =Wheat!AS29 -> 25000 | FW29: =FV29*IF(Inputs!$B$6=1,AL29,AP29) -> 500000 | FX29: 0 | FY29: 0 | FZ29: =Alfalfa!O29 -> 19000 | GA29: 0 | GB29: 0 | GC29: 2375000 | GD29: ='All Other Hay'!L29 -> 39000 | GE29: 3315000 | GF29: 0 | GG29: 195000 | GH29: 5475.3 | GI29: 934.75 | GJ29: 1293.75 | GK29: =IF(Inputs!D79>0,Inputs!D79*'Fertilizer Numbers 05-10'!GH29,0) -> 0 | GL29: =IF(Inputs!D79>0,Inputs!D79*'Fertilizer Numbers 05-10'!GI29,0) -> 0 | GM29: =IF(Inputs!D79>0,Inputs!D79*'Fertilizer Numbers 05-10'!GJ29,0) -> 0 | GO29: =Soybean!T29 -> 0 | GP29: 0 | GQ29: 0 | GR29: 0 | GS29: =Corn!T29 -> 0 | GT29: 0 | GU29: 0 | GV29: 0 | GW29: =Sorghum!T29 -> 0 | GX29: 0 | GY29: 0 | GZ29: 0 | HA29: =Wheat!Y29 -> 50000 | HB29: 4750000 | HC29: 0 | HD29: 0 | HE29: =Wheat!AT29 -> 50000 | HF29: =+HE29*IF(Inputs!$B$6=1,AL29,AP29) -> 1000000 | HG29: 0 | HH29: 0 | HI29: =Alfalfa!Q29 -> 0 | HJ29: 0 | HK29: 0 | HL29: 0 | HM29: ='All Other Hay'!N29 -> 45000 | HN29: 3825000 | HO29: 0 | HP29: 225000 | HQ29: 4787.5 | HR29: 0 | HS29: 112.5 | HT29: =IF(Inputs!E79>0,Inputs!E79*'Fertilizer Numbers 05-10'!HQ29,0) -> 0 | HU29: =IF(Inputs!E79>0,Inputs!E79*'Fertilizer Numbers 05-10'!HR29,0) -> 0 | HV29: =IF(Inputs!E79>0,Inputs!E79*'Fertilizer Numbers 05-10'!HS29,0) -> 0 | HX29: =Soybean!W29 -> 2900 | HY29: 26100 | HZ29: 0 | IA29: 0 | IB29: =Corn!W29 -> 2500 | IC29: 250000 | ID29: 62500 | IE29: 12500 | IF29: =Sorghum!W29 -> 1880 | IG29: 112800 | IH29: 37600 | II29: 0 | IJ29: =Wheat!AA29 -> 55000 | IK29: 5225000 | IL29: 1375000 | IM29: 0 | IN29: =Wheat!AU29 -> 35000 | IO29: =$IN29*IF(Inputs!$B$6=1,AL29,AP29) -> 700000 | IP29: 0 | IQ29: 0 | IR29: =Alfalfa!S29 -> 19500 | IS29: 0 | IT29: 0 | IU29: 2437500 | IV29: ='All Other Hay'!P29 -> 50000 | IW29: 4250000 | IX29: 0 | IY29: 250000 | IZ29: 5281.95 | JA29: 737.55 | JB29: 1350 | JC29: =IF(Inputs!$F79>0,Inputs!$F79*IZ29,0) -> 0 | JD29: =IF(Inputs!$F79>0,Inputs!$F79*JA29,0) -> 0 | JE29: =IF(Inputs!$F79>0,Inputs!$F79*JB29,0) -> 0 | JF29: =Soybean!Z29 -> 0 | JG29: 0 | JH29: 0 | JI29: 0 | JJ29: =Corn!Z29 -> 0 | JK29: 0 | JL29: 0 | JM29: 0 | JN29: =Sorghum!BE29 -> 0 | JO29: 0 | JP29: 0 | JQ29: 0 | JR29: =Wheat!AC29 -> 35000 | JS29: 3325000 | JT29: 875000 | JU29: 0 | JV29: =Wheat!AV29 -> 40000 | JW29: =JV29*IF(Inputs!$B$6=1,$AL29,$AP29) -> 800000 | JX29: 0 | JY29: 0 | JZ29: =Alfalfa!U29 -> 15000 | KA29: 0 | KB29: 0 | KC29: 1875000 | KD29: ='All Other Hay'!R29 -> 38000 | KE29: 3230000 | KF29: 0 | KG29: 0 | KH29: 3677.5 | KI29: 437.5 | KJ29: 937.5 | KK29: =IF(Inputs!$F79>0,Inputs!$F79*KH29,0) -> 0 | KL29: =IF(Inputs!$F79>0,Inputs!$F79*KI29,0) -> 0 | KM29: =IF(Inputs!$F79>0,Inputs!$F79*KJ29,0) -> 0 | KN29: =Soybean!AC29 -> 2400 | KO29: 21600 | KP29: 0 | KQ29: 0 | KR29: =Corn!BH29 -> 0 | KS29: 0 | KT29: 0 | KU29: 0 | KV29: =Sorghum!AC29 -> 2000 | KW29: 120000 | KX29: 40000 | KY29: 0 | KZ29: =Wheat!AE29 -> 51000 | LA29: 4845000 | LB29: 1275000 | LC29: 0 | LD29: =Wheat!AW29 -> 28000 | LE29: =LD29*IF(Inputs!$B$6=1,$AL29,$AP29) -> 560000 | LF29: 0 | LG29: 0 | LH29: =Alfalfa!W29 -> 16000 | LI29: 0 | LJ29: 0 | LK29: 2000000 | LL29: ='All Other Hay'!T29 -> 56500 | LM29: 4802500 | LN29: 0 | LO29: 0 | LP29: 5174.55 | LQ29: 657.5 | LR29: 1000 | LS29: =IF(Inputs!$F79>0,Inputs!$F79*LP29,0) -> 0 | LT29: =IF(Inputs!$F79>0,Inputs!$F79*LQ29,0) -> 0 | LU29: =IF(Inputs!$F79>0,Inputs!$F79*LR29,0) -> 0 | LV29: =Soybean!AF29 -> 2400 | LW29: 21600 | LX29: 0 | LY29: 0 | LZ29: =Corn!CP29 -> 0 | MA29: 0 | MB29: 0 | MC29: 0 | MD29: =Sorghum!AF29 -> 2000 | ME29: 120000 | MF29: 40000 | MG29: 0 | MH29: =Wheat!AG29 -> 44000 | MI29: 4180000 | MJ29: 1100000 | MK29: 0 | ML29: =Wheat!AX29 -> 39000 | MM29: =ML29*IF(Inputs!$B$6=1,$AL29,$AP29) -> 780000 | MN29: 0 | MO29: 0 | MP29: =Alfalfa!Z29 -> 0 | MQ29: 0 | MR29: 0 | MS29: 0 | MT29: ='All Other Hay'!W29 -> 90000 | MU29: 7650000 | MV29: 0 | MW29: 0 | MX29: 6375.8 | MY29: 570 | MZ29: 0 | NA29: =IF(Inputs!$F79>0,Inputs!$F79*MX29,0) -> 0 | NB29: =IF(Inputs!$F79>0,Inputs!$F79*MY29,0) -> 0 | NC29: =IF(Inputs!$F79>0,Inputs!$F79*MZ29,0) -> 0
A30: Grant | B30: 10 | C30: 0 | D30: 0 | E30: =IF(Inputs!$B$6=0,Inputs!$D$10,) -> 9 | F30: =IF(Inputs!$B$6=0,Inputs!$D$11,) -> 0 | G30: =IF(Inputs!$B$6=0,Inputs!$D$12,) -> 0 | H30: =IF(Inputs!$B$6=0,'Fertilizer Numbers 05-10'!E30,'Fertilizer Numbers 05-10'!B30) -> 9 | I30: =IF(Inputs!$B$6=0,'Fertilizer Numbers 05-10'!F30,'Fertilizer Numbers 05-10'!C30) -> 0 | J30: =IF(Inputs!$B$6=0,'Fertilizer Numbers 05-10'!G30,'Fertilizer Numbers 05-10'!D30) -> 0 | K30: 91 | L30: 20 | M30: 0 | N30: =Inputs!$F$10 -> 100 | O30: =Inputs!$F$11 -> 25 | P30: =Inputs!$F$12 -> 5 | Q30: =IF(Inputs!$B$6=0,N30,K30) -> 100 | R30: =IF(Inputs!$B$6=0,O30,L30) -> 25 | S30: =IF(Inputs!$B$6=0,P30,M30) -> 5 | T30: 39 | U30: 20 | V30: 0 | W30: =Inputs!$H$10 -> 60 | X30: =Inputs!$H$11 -> 20 | Y30: =Inputs!$H$12 -> 0 | Z30: =IF(Inputs!$B$6=0,W30,T30) -> 60 | AA30: =IF(Inputs!$B$6=0,X30,U30) -> 20 | AB30: =IF(Inputs!$B$6=0,Y30,V30) -> 0 | AC30: =Inputs!$C$10 -> 85 | AD30: =Inputs!$C$11 -> 25 | AE30: =Inputs!$C$12 -> 0 | AF30: =Inputs!$C$10 -> 85 | AG30: =Inputs!$C$11 -> 25 | AH30: =Inputs!$C$12 -> 0 | AI30: =IF(Inputs!$B$6=0,'Fertilizer Numbers 05-10'!AF30,AC30) -> 85 | AJ30: =IF(Inputs!$B$6=0,'Fertilizer Numbers 05-10'!AG30,AD30) -> 25 | AK30: =IF(Inputs!$B$6=0,'Fertilizer Numbers 05-10'!AH30,AE30) -> 0 | AL30: =Inputs!$C$13 -> 20 | AM30: =Inputs!$B$10 -> 95 | AN30: =Inputs!$B$11 -> 25 | AO30: =Inputs!$B$12 -> 0 | AP30: =Inputs!$B$13 -> 20 | AQ30: 0 | AR30: 0 | AS30: =Inputs!$K$10 -> 0 | AT30: =Inputs!$K$11 -> 0 | AU30: =Inputs!$K$12 -> 150 | AV30: =Inputs!$J$10 -> 0 | AW30: =Inputs!J$11 -> 0 | AX30: =Inputs!$J$12 -> 125 | AY30: =IF(Inputs!$B$6=0,AV30,AS30) -> 0 | AZ30: =IF(Inputs!$B$6=0,AW30,AT30) -> 0 | BA30: =IF(Inputs!$B$6=0,AX30,AU30) -> 125 | BB30: 72 | BC30: 0 | BD30: 0 | BE30: =Inputs!$L$10 -> 85 | BF30: =Inputs!$L$11 -> 0 | BG30: =Inputs!$L$12 -> 5 | BH30: =IF(Inputs!$B$6=0,'Fertilizer Numbers 05-10'!BE30,BB30) -> 85 | BI30: =IF(Inputs!$B$6=0,'Fertilizer Numbers 05-10'!BF30,BC30) -> 0 | BJ30: =IF(Inputs!$B$6=0,'Fertilizer Numbers 05-10'!BG30,BD30) -> 5 | BK30: =Soybean!J30 -> 15600 | BL30: 140400 | BM30: 0 | BN30: 0 | BO30: =Corn!J30 -> 3900 | BP30: 390000 | BQ30: 97500 | BR30: 19500 | BS30: =Sorghum!J30 -> 24000 | BT30: 1440000 | BU30: 480000 | BV30: 0 | BW30: =Wheat!Q30 -> 295000 | BX30: 28025000 | BY30: 7375000 | BZ30: 0 | CA30: =Wheat!AP30 -> 10000 | CB30: =CA30*IF(Inputs!$B$6=1,AL30,AP30) -> 200000 | CC30: 0 | CD30: 0 | CE30: =Alfalfa!J30 -> 13700 | CF30: 0 | CG30: 0 | CH30: 1712500 | CI30: ='All Other Hay'!I30 -> 23000 | CJ30: 1955000 | CK30: 0 | CL30: 115000 | CM30: 15912.8 | CN30: 4046.45 | CO30: 923.5 | CP30: =Soybean!E30 -> 11000 | CQ30: 99000 | CR30: 0 | CS30: 0 | CT30: =Corn!L30 -> 5000 | CU30: 500000 | CV30: 125000 | CW30: 25000 | CX30: =Sorghum!L30 -> 13800 | CY30: 828000 | CZ30: 276000 | DA30: 0 | DB30: =Wheat!S30 -> 285000 | DC30: 27075000 | DD30: 7125000 | DE30: 0 | DF30: =Wheat!AQ30 -> 50000 | DG30: =DF30*IF(Inputs!$B$6=1,AL30,AP30) -> 1000000 | DH30: 0 | DI30: 0 | DJ30: =Alfalfa!M30 -> 15000 | DK30: 0 | DL30: 0 | DM30: 1875000 | DN30: ='All Other Hay'!J30 -> 20000 | DO30: 1700000 | DP30: 0 | DQ30: 100000 | DR30: 15601 | DS30: 3763 | DT30: 1000 | DU30: =IF(Inputs!B80>0,Inputs!B80*'Fertilizer Numbers 05-10'!DR30,0) -> 0 | DV30: =IF(Inputs!B80>0,Inputs!B80*'Fertilizer Numbers 05-10'!DS30,0) -> 0 | DW30: =IF(Inputs!B80>0,Inputs!B80*'Fertilizer Numbers 05-10'!DT30,0) -> 0 | DX30: =Soybean!N30 -> 5500 | DY30: 49500 | DZ30: 0 | EA30: 0 | EB30: =Corn!N30 -> 12000 | EC30: 100 | ED30: 300000 | EE30: 60000 | EF30: =Sorghum!N30 -> 8200 | EG30: 492000 | EH30: 164000 | EI30: 0 | EJ30: =Wheat!U30 -> 140000 | EK30: 13300000 | EL30: 3500000 | EM30: 0 | EN30: =Wheat!AR30 -> 205000 | EO30: 4100000 | EP30: 0 | EQ30: 0 | ER30: =Alfalfa!F30 -> 9000 | ES30: 0 | ET30: 0 | EU30: 1125000 | EV30: ='All Other Hay'!F30 -> 15000 | EW30: 1275000 | EX30: 0 | EY30: 75000 | EZ30: 9608.3 | FA30: 1982 | FB30: 630 | FC30: =IF(Inputs!C80>0,Inputs!C80*'Fertilizer Numbers 05-10'!EZ30,0) -> 0 | FD30: =IF(Inputs!C80>0,Inputs!C80*'Fertilizer Numbers 05-10'!FA30,0) -> 0 | FE30: =IF(Inputs!C80>0,Inputs!C80*'Fertilizer Numbers 05-10'!FB30,0) -> 0 | FF30: =Soybean!Q30 -> 0 | FG30: 0 | FH30: 0 | FI30: 0 | FJ30: =Corn!Q30 -> 20000 | FK30: 2000000 | FL30: 500000 | FM30: 100000 | FN30: =Sorghum!Q30 -> 17500 | FO30: 1050000 | FP30: 350000 | FQ30: 0 | FR30: =Wheat!W30 -> 285000 | FS30: 27075000 | FT30: 7125000 | FU30: 0 | FV30: =Wheat!AS30 -> 30000 | FW30: =FV30*IF(Inputs!$B$6=1,AL30,AP30) -> 600000 | FX30: 0 | FY30: 0 | FZ30: =Alfalfa!O30 -> 0 | GA30: 0 | GB30: 0 | GC30: 0 | GD30: ='All Other Hay'!L30 -> 26000 | GE30: 2210000 | GF30: 0 | GG30: 130000 | GH30: 16467.5 | GI30: 3987.5 | GJ30: 115 | GK30: =IF(Inputs!D80>0,Inputs!D80*'Fertilizer Numbers 05-10'!GH30,0) -> 0 | GL30: =IF(Inputs!D80>0,Inputs!D80*'Fertilizer Numbers 05-10'!GI30,0) -> 0 | GM30: =IF(Inputs!D80>0,Inputs!D80*'Fertilizer Numbers 05-10'!GJ30,0) -> 0 | GO30: =Soybean!T30 -> 24500 | GP30: 220500 | GQ30: 0 | GR30: 0 | GS30: =Corn!T30 -> 20000 | GT30: 2000000 | GU30: 500000 | GV30: 100000 | GW30: =Sorghum!T30 -> 21500 | GX30: 1290000 | GY30: 430000 | GZ30: 0 | HA30: =Wheat!Y30 -> 270000 | HB30: 25650000 | HC30: 0 | HD30: 0 | HE30: =Wheat!AT30 -> 35000 | HF30: =+HE30*IF(Inputs!$B$6=1,AL30,AP30) -> 700000 | HG30: 0 | HH30: 0 | HI30: =Alfalfa!Q30 -> 12000 | HJ30: 0 | HK30: 0 | HL30: 1500000 | HM30: ='All Other Hay'!N30 -> 19000 | HN30: 1615000 | HO30: 0 | HP30: 95000 | HQ30: 15737.75 | HR30: 465 | HS30: 847.5 | HT30: =IF(Inputs!E80>0,Inputs!E80*'Fertilizer Numbers 05-10'!HQ30,0) -> 0 | HU30: =IF(Inputs!E80>0,Inputs!E80*'Fertilizer Numbers 05-10'!HR30,0) -> 0 | HV30: =IF(Inputs!E80>0,Inputs!E80*'Fertilizer Numbers 05-10'!HS30,0) -> 0 | HX30: =Soybean!W30 -> 35500 | HY30: 319500 | HZ30: 0 | IA30: 0 | IB30: =Corn!W30 -> 18000 | IC30: 1800000 | ID30: 450000 | IE30: 90000 | IF30: =Sorghum!W30 -> 0 | IG30: 0 | IH30: 0 | II30: 0 | IJ30: =Wheat!AA30 -> 260000 | IK30: 24700000 | IL30: 6500000 | IM30: 0 | IN30: =Wheat!AU30 -> 40000 | IO30: =$IN30*IF(Inputs!$B$6=1,AL30,AP30) -> 800000 | IP30: 0 | IQ30: 0 | IR30: =Alfalfa!S30 -> 11000 | IS30: 0 | IT30: 0 | IU30: 1375000 | IV30: ='All Other Hay'!P30 -> 18000 | IW30: 1530000 | IX30: 0 | IY30: 90000 | IZ30: 14574.75 | JA30: 3475 | JB30: 777.5 | JC30: =IF(Inputs!$F80>0,Inputs!$F80*IZ30,0) -> 0 | JD30: =IF(Inputs!$F80>0,Inputs!$F80*JA30,0) -> 0 | JE30: =IF(Inputs!$F80>0,Inputs!$F80*JB30,0) -> 0 | JF30: =Soybean!Z30 -> 11000 | JG30: 99000 | JH30: 0 | JI30: 0 | JJ30: =Corn!Z30 -> 0 | JK30: 0 | JL30: 0 | JM30: 0 | JN30: =Sorghum!BE30 -> 0 | JO30: 0 | JP30: 0 | JQ30: 0 | JR30: =Wheat!AC30 -> 245000 | JS30: 23275000 | JT30: 6125000 | JU30: 0 | JV30: =Wheat!AV30 -> 50000 | JW30: =JV30*IF(Inputs!$B$6=1,$AL30,$AP30) -> 1000000 | JX30: 0 | JY30: 0 | JZ30: =Alfalfa!U30 -> 7000 | KA30: 0 | KB30: 0 | KC30: 875000 | KD30: ='All Other Hay'!R30 -> 0 | KE30: 0 | KF30: 0 | KG30: 0 | KH30: 12187 | KI30: 3062.5 | KJ30: 437.5 | KK30: =IF(Inputs!$F80>0,Inputs!$F80*KH30,0) -> 0 | KL30: =IF(Inputs!$F80>0,Inputs!$F80*KI30,0) -> 0 | KM30: =IF(Inputs!$F80>0,Inputs!$F80*KJ30,0) -> 0 | KN30: =Soybean!AC30 -> 0 | KO30: 0 | KP30: 0 | KQ30: 0 | KR30: =Corn!BH30 -> 0 | KS30: 0 | KT30: 0 | KU30: 0 | KV30: =Sorghum!AC30 -> 13500 | KW30: 810000 | KX30: 270000 | KY30: 0 | KZ30: =Wheat!AE30 -> 290000 | LA30: 27550000 | LB30: 7250000 | LC30: 0 | LD30: =Wheat!AW30 -> 20000 | LE30: =LD30*IF(Inputs!$B$6=1,$AL30,$AP30) -> 400000 | LF30: 0 | LG30: 0 | LH30: =Alfalfa!W30 -> 6200 | LI30: 0 | LJ30: 0 | LK30: 775000 | LL30: ='All Other Hay'!T30 -> 20000 | LM30: 1700000 | LN30: 0 | LO30: 0 | LP30: 15230 | LQ30: 3760 | LR30: 387.5 | LS30: =IF(Inputs!$F80>0,Inputs!$F80*LP30,0) -> 0 | LT30: =IF(Inputs!$F80>0,Inputs!$F80*LQ30,0) -> 0 | LU30: =IF(Inputs!$F80>0,Inputs!$F80*LR30,0) -> 0 | LV30: =Soybean!AF30 -> 0 | LW30: 0 | LX30: 0 | LY30: 0 | LZ30: =Corn!CP30 -> 0 | MA30: 0 | MB30: 0 | MC30: 0 | MD30: =Sorghum!AF30 -> 13500 | ME30: 810000 | MF30: 270000 | MG30: 0 | MH30: =Wheat!AG30 -> 295000 | MI30: 28025000 | MJ30: 7375000 | MK30: 0 | ML30: =Wheat!AX30 -> 10000 | MM30: =ML30*IF(Inputs!$B$6=1,$AL30,$AP30) -> 200000 | MN30: 0 | MO30: 0 | MP30: =Alfalfa!Z30 -> 8000 | MQ30: 0 | MR30: 0 | MS30: 1000000 | MT30: ='All Other Hay'!W30 -> 32500 | MU30: 2762500 | MV30: 0 | MW30: 0 | MX30: 15898.75 | MY30: 3822.5 | MZ30: 500 | NA30: =IF(Inputs!$F80>0,Inputs!$F80*MX30,0) -> 0 | NB30: =IF(Inputs!$F80>0,Inputs!$F80*MY30,0) -> 0 | NC30: =IF(Inputs!$F80>0,Inputs!$F80*MZ30,0) -> 0
A31: Greer | B31: 10 | C31: 0 | D31: 0 | E31: =IF(Inputs!$B$6=0,Inputs!$D$10,) -> 9 | F31: =IF(Inputs!$B$6=0,Inputs!$D$11,) -> 0 | G31: =IF(Inputs!$B$6=0,Inputs!$D$12,) -> 0 | H31: =IF(Inputs!$B$6=0,'Fertilizer Numbers 05-10'!E31,'Fertilizer Numbers 05-10'!B31) -> 9 | I31: =IF(Inputs!$B$6=0,'Fertilizer Numbers 05-10'!F31,'Fertilizer Numbers 05-10'!C31) -> 0 | J31: =IF(Inputs!$B$6=0,'Fertilizer Numbers 05-10'!G31,'Fertilizer Numbers 05-10'!D31) -> 0 | K31: 80 | L31: 20 | M31: 0 | N31: =Inputs!$F$10 -> 100 | O31: =Inputs!$F$11 -> 25 | P31: =Inputs!$F$12 -> 5 | Q31: =IF(Inputs!$B$6=0,N31,K31) -> 100 | R31: =IF(Inputs!$B$6=0,O31,L31) -> 25 | S31: =IF(Inputs!$B$6=0,P31,M31) -> 5 | T31: 24 | U31: 20 | V31: 0 | W31: =Inputs!$H$10 -> 60 | X31: =Inputs!$H$11 -> 20 | Y31: =Inputs!$H$12 -> 0 | Z31: =IF(Inputs!$B$6=0,W31,T31) -> 60 | AA31: =IF(Inputs!$B$6=0,X31,U31) -> 20 | AB31: =IF(Inputs!$B$6=0,Y31,V31) -> 0 | AC31: =Inputs!$C$10 -> 85 | AD31: =Inputs!$C$11 -> 25 | AE31: =Inputs!$C$12 -> 0 | AF31: =Inputs!$C$10 -> 85 | AG31: =Inputs!$C$11 -> 25 | AH31: =Inputs!$C$12 -> 0 | AI31: =IF(Inputs!$B$6=0,'Fertilizer Numbers 05-10'!AF31,AC31) -> 85 | AJ31: =IF(Inputs!$B$6=0,'Fertilizer Numbers 05-10'!AG31,AD31) -> 25 | AK31: =IF(Inputs!$B$6=0,'Fertilizer Numbers 05-10'!AH31,AE31) -> 0 | AL31: =Inputs!$C$13 -> 20 | AM31: =Inputs!$B$10 -> 95 | AN31: =Inputs!$B$11 -> 25 | AO31: =Inputs!$B$12 -> 0 | AP31: =Inputs!$B$13 -> 20 | AQ31: 0 | AR31: 0 | AS31: =Inputs!$K$10 -> 0 | AT31: =Inputs!$K$11 -> 0 | AU31: =Inputs!$K$12 -> 150 | AV31: =Inputs!$J$10 -> 0 | AW31: =Inputs!J$11 -> 0 | AX31: =Inputs!$J$12 -> 125 | AY31: =IF(Inputs!$B$6=0,AV31,AS31) -> 0 | AZ31: =IF(Inputs!$B$6=0,AW31,AT31) -> 0 | BA31: =IF(Inputs!$B$6=0,AX31,AU31) -> 125 | BB31: 58 | BC31: 0 | BD31: 0 | BE31: =Inputs!$L$10 -> 85 | BF31: =Inputs!$L$11 -> 0 | BG31: =Inputs!$L$12 -> 5 | BH31: =IF(Inputs!$B$6=0,'Fertilizer Numbers 05-10'!BE31,BB31) -> 85 | BI31: =IF(Inputs!$B$6=0,'Fertilizer Numbers 05-10'!BF31,BC31) -> 0 | BJ31: =IF(Inputs!$B$6=0,'Fertilizer Numbers 05-10'!BG31,BD31) -> 5 | BK31: =Soybean!J31 -> 0 | BL31: 0 | BM31: 0 | BN31: 0 | BO31: =Corn!J31 -> 0 | BP31: 0 | BQ31: 0 | BR31: 0 | BS31: =Sorghum!J31 -> 600 | BT31: 36000 | BU31: 12000 | BV31: 0 | BW31: =Wheat!Q31 -> 4500 | BX31: 427500 | BY31: 112500 | BZ31: 0 | CA31: =Wheat!AP31 -> 70500 | CB31: =CA31*IF(Inputs!$B$6=1,AL31,AP31) -> 1410000 | CC31: 0 | CD31: 0 | CE31: =Alfalfa!J31 -> 4000 | CF31: 0 | CG31: 0 | CH31: 500000 | CI31: ='All Other Hay'!I31 -> 7000 | CJ31: 595000 | CK31: 0 | CL31: 35000 | CM31: 529.25 | CN31: 62.25 | CO31: 267.5 | CP31: =Soybean!E31 -> 0 | CQ31: 0 | CR31: 0 | CS31: 0 | CT31: =Corn!L31 -> 0 | CU31: 0 | CV31: 0 | CW31: 0 | CX31: =Sorghum!L31 -> 0 | CY31: 0 | CZ31: 0 | DA31: 0 | DB31: =Wheat!S31 -> 30000 | DC31: 2850000 | DD31: 750000 | DE31: 0 | DF31: =Wheat!AQ31 -> 65000 | DG31: =DF31*IF(Inputs!$B$6=1,AL31,AP31) -> 1300000 | DH31: 0 | DI31: 0 | DJ31: =Alfalfa!M31 -> 5000 | DK31: 0 | DL31: 0 | DM31: 625000 | DN31: ='All Other Hay'!J31 -> 10000 | DO31: 850000 | DP31: 0 | DQ31: 50000 | DR31: 2500 | DS31: 375 | DT31: 337.5 | DU31: =IF(Inputs!B81>0,Inputs!B81*'Fertilizer Numbers 05-10'!DR31,0) -> 0 | DV31: =IF(Inputs!B81>0,Inputs!B81*'Fertilizer Numbers 05-10'!DS31,0) -> 0 | DW31: =IF(Inputs!B81>0,Inputs!B81*'Fertilizer Numbers 05-10'!DT31,0) -> 0 | DX31: =Soybean!N31 -> 0 | DY31: 0 | DZ31: 0 | EA31: 0 | EB31: =Corn!N31 -> 0 | EC31: 100 | ED31: 0 | EE31: 0 | EF31: =Sorghum!N31 -> 0 | EG31: 0 | EH31: 0 | EI31: 0 | EJ31: =Wheat!U31 -> 70000 | EK31: 6650000 | EL31: 1750000 | EM31: 0 | EN31: =Wheat!AR31 -> 25000 | EO31: 500000 | EP31: 0 | EQ31: 0 | ER31: =Alfalfa!F31 -> 4500 | ES31: 0 | ET31: 0 | EU31: 562500 | EV31: ='All Other Hay'!F31 -> 13000 | EW31: 1105000 | EX31: 0 | EY31: 65000 | EZ31: 4127.55 | FA31: 875 | FB31: 313.75 | FC31: =IF(Inputs!C81>0,Inputs!C81*'Fertilizer Numbers 05-10'!EZ31,0) -> 0 | FD31: =IF(Inputs!C81>0,Inputs!C81*'Fertilizer Numbers 05-10'!FA31,0) -> 0 | FE31: =IF(Inputs!C81>0,Inputs!C81*'Fertilizer Numbers 05-10'!FB31,0) -> 0 | FF31: =Soybean!Q31 -> 0 | FG31: 0 | FH31: 0 | FI31: 0 | FJ31: =Corn!Q31 -> 0 | FK31: 0 | FL31: 0 | FM31: 0 | FN31: =Sorghum!Q31 -> 0 | FO31: 0 | FP31: 0 | FQ31: 0 | FR31: =Wheat!W31 -> 85000 | FS31: 8075000 | FT31: 2125000 | FU31: 0 | FV31: =Wheat!AS31 -> 10000 | FW31: =FV31*IF(Inputs!$B$6=1,AL31,AP31) -> 200000 | FX31: 0 | FY31: 0 | FZ31: =Alfalfa!O31 -> 0 | GA31: 0 | GB31: 0 | GC31: 0 | GD31: ='All Other Hay'!L31 -> 13000 | GE31: 1105000 | GF31: 0 | GG31: 65000 | GH31: 4690 | GI31: 1062.5 | GJ31: 32.5 | GK31: =IF(Inputs!D81>0,Inputs!D81*'Fertilizer Numbers 05-10'!GH31,0) -> 0 | GL31: =IF(Inputs!D81>0,Inputs!D81*'Fertilizer Numbers 05-10'!GI31,0) -> 0 | GM31: =IF(Inputs!D81>0,Inputs!D81*'Fertilizer Numbers 05-10'!GJ31,0) -> 0 | GO31: =Soybean!T31 -> 0 | GP31: 0 | GQ31: 0 | GR31: 0 | GS31: =Corn!T31 -> 0 | GT31: 0 | GU31: 0 | GV31: 0 | GW31: =Sorghum!T31 -> 0 | GX31: 0 | GY31: 0 | GZ31: 0 | HA31: =Wheat!Y31 -> 0 | HB31: 0 | HC31: 0 | HD31: 0 | HE31: =Wheat!AT31 -> 0 | HF31: =+HE31*IF(Inputs!$B$6=1,AL31,AP31) -> 0 | HG31: 0 | HH31: 0 | HI31: =Alfalfa!Q31 -> 5000 | HJ31: 0 | HK31: 0 | HL31: 625000 | HM31: ='All Other Hay'!N31 -> 10000 | HN31: 850000 | HO31: 0 | HP31: 50000 | HQ31: 425 | HR31: 0 | HS31: 337.5 | HT31: =IF(Inputs!E81>0,Inputs!E81*'Fertilizer Numbers 05-10'!HQ31,0) -> 0 | HU31: =IF(Inputs!E81>0,Inputs!E81*'Fertilizer Numbers 05-10'!HR31,0) -> 0 | HV31: =IF(Inputs!E81>0,Inputs!E81*'Fertilizer Numbers 05-10'!HS31,0) -> 0 | HX31: =Soybean!W31 -> 0 | HY31: 0 | HZ31: 0 | IA31: 0 | IB31: =Corn!W31 -> 0 | IC31: 0 | ID31: 0 | IE31: 0 | IF31: =Sorghum!W31 -> 0 | IG31: 0 | IH31: 0 | II31: 0 | IJ31: =Wheat!AA31 -> 65000 | IK31: 6175000 | IL31: 1625000 | IM31: 0 | IN31: =Wheat!AU31 -> 35000 | IO31: =$IN31*IF(Inputs!$B$6=1,AL31,AP31) -> 700000 | IP31: 0 | IQ31: 0 | IR31: =Alfalfa!S31 -> 4000 | IS31: 0 | IT31: 0 | IU31: 500000 | IV31: ='All Other Hay'!P31 -> 8000 | IW31: 680000 | IX31: 0 | IY31: 40000 | IZ31: 3777.5 | JA31: 812.5 | JB31: 270 | JC31: =IF(Inputs!$F81>0,Inputs!$F81*IZ31,0) -> 0 | JD31: =IF(Inputs!$F81>0,Inputs!$F81*JA31,0) -> 0 | JE31: =IF(Inputs!$F81>0,Inputs!$F81*JB31,0) -> 0 | JF31: =Soybean!Z31 -> 0 | JG31: 0 | JH31: 0 | JI31: 0 | JJ31: =Corn!Z31 -> 0 | JK31: 0 | JL31: 0 | JM31: 0 | JN31: =Sorghum!BE31 -> 0 | JO31: 0 | JP31: 0 | JQ31: 0 | JR31: =Wheat!AC31 -> 50000 | JS31: 4750000 | JT31: 1250000 | JU31: 0 | JV31: =Wheat!AV31 -> 45000 | JW31: =JV31*IF(Inputs!$B$6=1,$AL31,$AP31) -> 900000 | JX31: 0 | JY31: 0 | JZ31: =Alfalfa!U31 -> 0 | KA31: 0 | KB31: 0 | KC31: 0 | KD31: ='All Other Hay'!R31 -> 7000 | KE31: 595000 | KF31: 0 | KG31: 0 | KH31: 3122.5 | KI31: 625 | KJ31: 0 | KK31: =IF(Inputs!$F81>0,Inputs!$F81*KH31,0) -> 0 | KL31: =IF(Inputs!$F81>0,Inputs!$F81*KI31,0) -> 0 | KM31: =IF(Inputs!$F81>0,Inputs!$F81*KJ31,0) -> 0 | KN31: =Soybean!AC31 -> 0 | KO31: 0 | KP31: 0 | KQ31: 0 | KR31: =Corn!BH31 -> 0 | KS31: 0 | KT31: 0 | KU31: 0 | KV31: =Sorghum!AC31 -> 0 | KW31: 0 | KX31: 0 | KY31: 0 | KZ31: =Wheat!AE31 -> 82000 | LA31: 7790000 | LB31: 2050000 | LC31: 0 | LD31: =Wheat!AW31 -> 18000 | LE31: =LD31*IF(Inputs!$B$6=1,$AL31,$AP31) -> 360000 | LF31: 0 | LG31: 0 | LH31: =Alfalfa!W31 -> 2600 | LI31: 0 | LJ31: 0 | LK31: 325000 | LL31: ='All Other Hay'!T31 -> 0 | LM31: 0 | LN31: 0 | LO31: 0 | LP31: 4075 | LQ31: 1025 | LR31: 162.5 | LS31: =IF(Inputs!$F81>0,Inputs!$F81*LP31,0) -> 0 | LT31: =IF(Inputs!$F81>0,Inputs!$F81*LQ31,0) -> 0 | LU31: =IF(Inputs!$F81>0,Inputs!$F81*LR31,0) -> 0 | LV31: =Soybean!AF31 -> 0 | LW31: 0 | LX31: 0 | LY31: 0 | LZ31: =Corn!CP31 -> 0 | MA31: 0 | MB31: 0 | MC31: 0 | MD31: =Sorghum!AF31 -> 0 | ME31: 0 | MF31: 0 | MG31: 0 | MH31: =Wheat!AG31 -> 55000 | MI31: 5225000 | MJ31: 1375000 | MK31: 0 | ML31: =Wheat!AX31 -> 57000 | MM31: =ML31*IF(Inputs!$B$6=1,$AL31,$AP31) -> 1140000 | MN31: 0 | MO31: 0 | MP31: =Alfalfa!Z31 -> 8200 | MQ31: 0 | MR31: 0 | MS31: 1025000 | MT31: ='All Other Hay'!W31 -> 0 | MU31: 0 | MV31: 0 | MW31: 0 | MX31: 3182.5 | MY31: 687.5 | MZ31: 512.5 | NA31: =IF(Inputs!$F81>0,Inputs!$F81*MX31,0) -> 0 | NB31: =IF(Inputs!$F81>0,Inputs!$F81*MY31,0) -> 0 | NC31: =IF(Inputs!$F81>0,Inputs!$F81*MZ31,0) -> 0
A32: Harmon | B32: 10 | C32: 0 | D32: 0 | E32: =IF(Inputs!$B$6=0,Inputs!$D$10,) -> 9 | F32: =IF(Inputs!$B$6=0,Inputs!$D$11,) -> 0 | G32: =IF(Inputs!$B$6=0,Inputs!$D$12,) -> 0 | H32: =IF(Inputs!$B$6=0,'Fertilizer Numbers 05-10'!E32,'Fertilizer Numbers 05-10'!B32) -> 9 | I32: =IF(Inputs!$B$6=0,'Fertilizer Numbers 05-10'!F32,'Fertilizer Numbers 05-10'!C32) -> 0 | J32: =IF(Inputs!$B$6=0,'Fertilizer Numbers 05-10'!G32,'Fertilizer Numbers 05-10'!D32) -> 0 | K32: 80 | L32: 20 | M32: 0 | N32: =Inputs!$F$10 -> 100 | O32: =Inputs!$F$11 -> 25 | P32: =Inputs!$F$12 -> 5 | Q32: =IF(Inputs!$B$6=0,N32,K32) -> 100 | R32: =IF(Inputs!$B$6=0,O32,L32) -> 25 | S32: =IF(Inputs!$B$6=0,P32,M32) -> 5 | T32: 24 | U32: 20 | V32: 0 | W32: =Inputs!$H$10 -> 60 | X32: =Inputs!$H$11 -> 20 | Y32: =Inputs!$H$12 -> 0 | Z32: =IF(Inputs!$B$6=0,W32,T32) -> 60 | AA32: =IF(Inputs!$B$6=0,X32,U32) -> 20 | AB32: =IF(Inputs!$B$6=0,Y32,V32) -> 0 | AC32: =Inputs!$C$10 -> 85 | AD32: =Inputs!$C$11 -> 25 | AE32: =Inputs!$C$12 -> 0 | AF32: =Inputs!$C$10 -> 85 | AG32: =Inputs!$C$11 -> 25 | AH32: =Inputs!$C$12 -> 0 | AI32: =IF(Inputs!$B$6=0,'Fertilizer Numbers 05-10'!AF32,AC32) -> 85 | AJ32: =IF(Inputs!$B$6=0,'Fertilizer Numbers 05-10'!AG32,AD32) -> 25 | AK32: =IF(Inputs!$B$6=0,'Fertilizer Numbers 05-10'!AH32,AE32) -> 0 | AL32: =Inputs!$C$13 -> 20 | AM32: =Inputs!$B$10 -> 95 | AN32: =Inputs!$B$11 -> 25 | AO32: =Inputs!$B$12 -> 0 | AP32: =Inputs!$B$13 -> 20 | AQ32: 0 | AR32: 0 | AS32: =Inputs!$K$10 -> 0 | AT32: =Inputs!$K$11 -> 0 | AU32: =Inputs!$K$12 -> 150 | AV32: =Inputs!$J$10 -> 0 | AW32: =Inputs!J$11 -> 0 | AX32: =Inputs!$J$12 -> 125 | AY32: =IF(Inputs!$B$6=0,AV32,AS32) -> 0 | AZ32: =IF(Inputs!$B$6=0,AW32,AT32) -> 0 | BA32: =IF(Inputs!$B$6=0,AX32,AU32) -> 125 | BB32: 58 | BC32: 0 | BD32: 0 | BE32: =Inputs!$L$10 -> 85 | BF32: =Inputs!$L$11 -> 0 | BG32: =Inputs!$L$12 -> 5 | BH32: =IF(Inputs!$B$6=0,'Fertilizer Numbers 05-10'!BE32,BB32) -> 85 | BI32: =IF(Inputs!$B$6=0,'Fertilizer Numbers 05-10'!BF32,BC32) -> 0 | BJ32: =IF(Inputs!$B$6=0,'Fertilizer Numbers 05-10'!BG32,BD32) -> 5 | BK32: =Soybean!J32 -> 0 | BL32: 0 | BM32: 0 | BN32: 0 | BO32: =Corn!J32 -> 700 | BP32: 70000 | BQ32: 17500 | BR32: 3500 | BS32: =Sorghum!J32 -> 1300 | BT32: 78000 | BU32: 26000 | BV32: 0 | BW32: =Wheat!Q32 -> 45000 | BX32: 4275000 | BY32: 1125000 | BZ32: 0 | CA32: =Wheat!AP32 -> 30000 | CB32: =CA32*IF(Inputs!$B$6=1,AL32,AP32) -> 600000 | CC32: 0 | CD32: 0 | CE32: =Alfalfa!J32 -> 6500 | CF32: 0 | CG32: 0 | CH32: 812500 | CI32: ='All Other Hay'!I32 -> 7000 | CJ32: 595000 | CK32: 0 | CL32: 35000 | CM32: 2509 | CN32: 584.25 | CO32: 425.5 | CP32: =Soybean!E32 -> 0 | CQ32: 0 | CR32: 0 | CS32: 0 | CT32: =Corn!L32 -> 0 | CU32: 0 | CV32: 0 | CW32: 0 | CX32: =Sorghum!L32 -> 0 | CY32: 0 | CZ32: 0 | DA32: 0 | DB32: =Wheat!S32 -> 25000 | DC32: 2375000 | DD32: 625000 | DE32: 0 | DF32: =Wheat!AQ32 -> 50000 | DG32: =DF32*IF(Inputs!$B$6=1,AL32,AP32) -> 1000000 | DH32: 0 | DI32: 0 | DJ32: =Alfalfa!M32 -> 7000 | DK32: 0 | DL32: 0 | DM32: 875000 | DN32: ='All Other Hay'!J32 -> 9000 | DO32: 765000 | DP32: 0 | DQ32: 45000 | DR32: 2070 | DS32: 312.5 | DT32: 460 | DU32: =IF(Inputs!B82>0,Inputs!B82*'Fertilizer Numbers 05-10'!DR32,0) -> 0 | DV32: =IF(Inputs!B82>0,Inputs!B82*'Fertilizer Numbers 05-10'!DS32,0) -> 0 | DW32: =IF(Inputs!B82>0,Inputs!B82*'Fertilizer Numbers 05-10'!DT32,0) -> 0 | DX32: =Soybean!N32 -> 0 | DY32: 0 | DZ32: 0 | EA32: 0 | EB32: =Corn!N32 -> 1000 | EC32: 100 | ED32: 25000 | EE32: 5000 | EF32: =Sorghum!N32 -> 0 | EG32: 0 | EH32: 0 | EI32: 0 | EJ32: =Wheat!U32 -> 47000 | EK32: 4465000 | EL32: 1175000 | EM32: 0 | EN32: =Wheat!AR32 -> 28000 | EO32: 560000 | EP32: 0 | EQ32: 0 | ER32: =Alfalfa!F32 -> 7500 | ES32: 0 | ET32: 0 | EU32: 937500 | EV32: ='All Other Hay'!F32 -> 5000 | EW32: 425000 | EX32: 0 | EY32: 25000 | EZ32: 2725.05 | FA32: 600 | FB32: 483.75 | FC32: =IF(Inputs!C82>0,Inputs!C82*'Fertilizer Numbers 05-10'!EZ32,0) -> 0 | FD32: =IF(Inputs!C82>0,Inputs!C82*'Fertilizer Numbers 05-10'!FA32,0) -> 0 | FE32: =IF(Inputs!C82>0,Inputs!C82*'Fertilizer Numbers 05-10'!FB32,0) -> 0 | FF32: =Soybean!Q32 -> 0 | FG32: 0 | FH32: 0 | FI32: 0 | FJ32: =Corn!Q32 -> 0 | FK32: 0 | FL32: 0 | FM32: 0 | FN32: =Sorghum!Q32 -> 0 | FO32: 0 | FP32: 0 | FQ32: 0 | FR32: =Wheat!W32 -> 0 | FS32: 0 | FT32: 0 | FU32: 0 | FV32: =Wheat!AS32 -> 0 | FW32: =FV32*IF(Inputs!$B$6=1,AL32,AP32) -> 0 | FX32: 0 | FY32: 0 | FZ32: =Alfalfa!O32 -> 0 | GA32: 0 | GB32: 0 | GC32: 0 | GD32: ='All Other Hay'!L32 -> 0 | GE32: 0 | GF32: 0 | GG32: 0 | GH32: 0 | GI32: 0 | GJ32: 0 | GK32: =IF(Inputs!D82>0,Inputs!D82*'Fertilizer Numbers 05-10'!GH32,0) -> 0 | GL32: =IF(Inputs!D82>0,Inputs!D82*'Fertilizer Numbers 05-10'!GI32,0) -> 0 | GM32: =IF(Inputs!D82>0,Inputs!D82*'Fertilizer Numbers 05-10'!GJ32,0) -> 0 | GO32: =Soybean!T32 -> 0 | GP32: 0 | GQ32: 0 | GR32: 0 | GS32: =Corn!T32 -> 0 | GT32: 0 | GU32: 0 | GV32: 0 | GW32: =Sorghum!T32 -> 0 | GX32: 0 | GY32: 0 | GZ32: 0 | HA32: =Wheat!Y32 -> 0 | HB32: 0 | HC32: 0 | HD32: 0 | HE32: =Wheat!AT32 -> 0 | HF32: =+HE32*IF(Inputs!$B$6=1,AL32,AP32) -> 0 | HG32: 0 | HH32: 0 | HI32: =Alfalfa!Q32 -> 2500 | HJ32: 0 | HK32: 0 | HL32: 312500 | HM32: ='All Other Hay'!N32 -> 0 | HN32: 0 | HO32: 0 | HP32: 0 | HQ32: 0 | HR32: 0 | HS32: 156.25 | HT32: =IF(Inputs!E82>0,Inputs!E82*'Fertilizer Numbers 05-10'!HQ32,0) -> 0 | HU32: =IF(Inputs!E82>0,Inputs!E82*'Fertilizer Numbers 05-10'!HR32,0) -> 0 | HV32: =IF(Inputs!E82>0,Inputs!E82*'Fertilizer Numbers 05-10'!HS32,0) -> 0 | HX32: =Soybean!W32 -> 0 | HY32: 0 | HZ32: 0 | IA32: 0 | IB32: =Corn!W32 -> 0 | IC32: 0 | ID32: 0 | IE32: 0 | IF32: =Sorghum!W32 -> 0 | IG32: 0 | IH32: 0 | II32: 0 | IJ32: =Wheat!AA32 -> 50000 | IK32: 4750000 | IL32: 1250000 | IM32: 0 | IN32: =Wheat!AU32 -> 25000 | IO32: =$IN32*IF(Inputs!$B$6=1,AL32,AP32) -> 500000 | IP32: 0 | IQ32: 0 | IR32: =Alfalfa!S32 -> 1500 | IS32: 0 | IT32: 0 | IU32: 187500 | IV32: ='All Other Hay'!P32 -> 7000 | IW32: 595000 | IX32: 0 | IY32: 35000 | IZ32: 2922.5 | JA32: 625 | JB32: 111.25 | JC32: =IF(Inputs!$F82>0,Inputs!$F82*IZ32,0) -> 0 | JD32: =IF(Inputs!$F82>0,Inputs!$F82*JA32,0) -> 0 | JE32: =IF(Inputs!$F82>0,Inputs!$F82*JB32,0) -> 0 | JF32: =Soybean!Z32 -> 0 | JG32: 0 | JH32: 0 | JI32: 0 | JJ32: =Corn!Z32 -> 0 | JK32: 0 | JL32: 0 | JM32: 0 | JN32: =Sorghum!BE32 -> 0 | JO32: 0 | JP32: 0 | JQ32: 0 | JR32: =Wheat!AC32 -> 20000 | JS32: 1900000 | JT32: 500000 | JU32: 0 | JV32: =Wheat!AV32 -> 45000 | JW32: =JV32*IF(Inputs!$B$6=1,$AL32,$AP32) -> 900000 | JX32: 0 | JY32: 0 | JZ32: =Alfalfa!U32 -> 1200 | KA32: 0 | KB32: 0 | KC32: 150000 | KD32: ='All Other Hay'!R32 -> 0 | KE32: 0 | KF32: 0 | KG32: 0 | KH32: 1400 | KI32: 250 | KJ32: 75 | KK32: =IF(Inputs!$F82>0,Inputs!$F82*KH32,0) -> 0 | KL32: =IF(Inputs!$F82>0,Inputs!$F82*KI32,0) -> 0 | KM32: =IF(Inputs!$F82>0,Inputs!$F82*KJ32,0) -> 0 | KN32: =Soybean!AC32 -> 0 | KO32: 0 | KP32: 0 | KQ32: 0 | KR32: =Corn!BH32 -> 0 | KS32: 0 | KT32: 0 | KU32: 0 | KV32: =Sorghum!AC32 -> 0 | KW32: 0 | KX32: 0 | KY32: 0 | KZ32: =Wheat!AE32 -> 53000 | LA32: 5035000 | LB32: 1325000 | LC32: 0 | LD32: =Wheat!AW32 -> 22000 | LE32: =LD32*IF(Inputs!$B$6=1,$AL32,$AP32) -> 440000 | LF32: 0 | LG32: 0 | LH32: =Alfalfa!W32 -> 1100 | LI32: 0 | LJ32: 0 | LK32: 137500 | LL32: ='All Other Hay'!T32 -> 11000 | LM32: 935000 | LN32: 0 | LO32: 0 | LP32: 3205 | LQ32: 662.5 | LR32: 68.75 | LS32: =IF(Inputs!$F82>0,Inputs!$F82*LP32,0) -> 0 | LT32: =IF(Inputs!$F82>0,Inputs!$F82*LQ32,0) -> 0 | LU32: =IF(Inputs!$F82>0,Inputs!$F82*LR32,0) -> 0 | LV32: =Soybean!AF32 -> 0 | LW32: 0 | LX32: 0 | LY32: 0 | LZ32: =Corn!CP32 -> 0 | MA32: 0 | MB32: 0 | MC32: 0 | MD32: =Sorghum!AF32 -> 0 | ME32: 0 | MF32: 0 | MG32: 0 | MH32: =Wheat!AG32 -> 0 | MI32: 0 | MJ32: 0 | MK32: 0 | ML32: =Wheat!AX32 -> 0 | MM32: =ML32*IF(Inputs!$B$6=1,$AL32,$AP32) -> 0 | MN32: 0 | MO32: 0 | MP32: =Alfalfa!Z32 -> 2100 | MQ32: 0 | MR32: 0 | MS32: 262500 | MT32: ='All Other Hay'!W32 -> 22000 | MU32: 1870000 | MV32: 0 | MW32: 0 | MX32: 935 | MY32: 0 | MZ32: 131.25 | NA32: =IF(Inputs!$F82>0,Inputs!$F82*MX32,0) -> 0 | NB32: =IF(Inputs!$F82>0,Inputs!$F82*MY32,0) -> 0 | NC32: =IF(Inputs!$F82>0,Inputs!$F82*MZ32,0) -> 0
A33: Harper | B33: 10 | C33: 0 | D33: 0 | E33: =IF(Inputs!$B$6=0,Inputs!$D$10,) -> 9 | F33: =IF(Inputs!$B$6=0,Inputs!$D$11,) -> 0 | G33: =IF(Inputs!$B$6=0,Inputs!$D$12,) -> 0 | H33: =IF(Inputs!$B$6=0,'Fertilizer Numbers 05-10'!E33,'Fertilizer Numbers 05-10'!B33) -> 9 | I33: =IF(Inputs!$B$6=0,'Fertilizer Numbers 05-10'!F33,'Fertilizer Numbers 05-10'!C33) -> 0 | J33: =IF(Inputs!$B$6=0,'Fertilizer Numbers 05-10'!G33,'Fertilizer Numbers 05-10'!D33) -> 0 | K33: 70 | L33: 20 | M33: 0 | N33: =Inputs!$F$10 -> 100 | O33: =Inputs!$F$11 -> 25 | P33: =Inputs!$F$12 -> 5 | Q33: =IF(Inputs!$B$6=0,N33,K33) -> 100 | R33: =IF(Inputs!$B$6=0,O33,L33) -> 25 | S33: =IF(Inputs!$B$6=0,P33,M33) -> 5 | T33: 18 | U33: 20 | V33: 0 | W33: =Inputs!$H$10 -> 60 | X33: =Inputs!$H$11 -> 20 | Y33: =Inputs!$H$12 -> 0 | Z33: =IF(Inputs!$B$6=0,W33,T33) -> 60 | AA33: =IF(Inputs!$B$6=0,X33,U33) -> 20 | AB33: =IF(Inputs!$B$6=0,Y33,V33) -> 0 | AC33: =Inputs!$C$10 -> 85 | AD33: =Inputs!$C$11 -> 25 | AE33: =Inputs!$C$12 -> 0 | AF33: =Inputs!$C$10 -> 85 | AG33: =Inputs!$C$11 -> 25 | AH33: =Inputs!$C$12 -> 0 | AI33: =IF(Inputs!$B$6=0,'Fertilizer Numbers 05-10'!AF33,AC33) -> 85 | AJ33: =IF(Inputs!$B$6=0,'Fertilizer Numbers 05-10'!AG33,AD33) -> 25 | AK33: =IF(Inputs!$B$6=0,'Fertilizer Numbers 05-10'!AH33,AE33) -> 0 | AL33: =Inputs!$C$13 -> 20 | AM33: =Inputs!$B$10 -> 95 | AN33: =Inputs!$B$11 -> 25 | AO33: =Inputs!$B$12 -> 0 | AP33: =Inputs!$B$13 -> 20 | AQ33: 0 | AR33: 0 | AS33: =Inputs!$K$10 -> 0 | AT33: =Inputs!$K$11 -> 0 | AU33: =Inputs!$K$12 -> 150 | AV33: =Inputs!$J$10 -> 0 | AW33: =Inputs!J$11 -> 0 | AX33: =Inputs!$J$12 -> 125 | AY33: =IF(Inputs!$B$6=0,AV33,AS33) -> 0 | AZ33: =IF(Inputs!$B$6=0,AW33,AT33) -> 0 | BA33: =IF(Inputs!$B$6=0,AX33,AU33) -> 125 | BB33: 58 | BC33: 0 | BD33: 0 | BE33: =Inputs!$L$10 -> 85 | BF33: =Inputs!$L$11 -> 0 | BG33: =Inputs!$L$12 -> 5 | BH33: =IF(Inputs!$B$6=0,'Fertilizer Numbers 05-10'!BE33,BB33) -> 85 | BI33: =IF(Inputs!$B$6=0,'Fertilizer Numbers 05-10'!BF33,BC33) -> 0 | BJ33: =IF(Inputs!$B$6=0,'Fertilizer Numbers 05-10'!BG33,BD33) -> 5 | BK33: =Soybean!J33 -> 0 | BL33: 0 | BM33: 0 | BN33: 0 | BO33: =Corn!J33 -> 0 | BP33: 0 | BQ33: 0 | BR33: 0 | BS33: =Sorghum!J33 -> 0 | BT33: 0 | BU33: 0 | BV33: 0 | BW33: =Wheat!Q33 -> 265000 | BX33: 25175000 | BY33: 6625000 | BZ33: 0 | CA33: =Wheat!AP33 -> -165000 | CB33: =CA33*IF(Inputs!$B$6=1,AL33,AP33) -> -3300000 | CC33: 0 | CD33: 0 | CE33: =Alfalfa!J33 -> 3000 | CF33: 0 | CG33: 0 | CH33: 375000 | CI33: ='All Other Hay'!I33 -> 10000 | CJ33: 850000 | CK33: 0 | CL33: 50000 | CM33: 13012.5 | CN33: 3312.5 | CO33: 212.5 | CP33: =Soybean!E33 -> 0 | CQ33: 0 | CR33: 0 | CS33: 0 | CT33: =Corn!L33 -> 0 | CU33: 0 | CV33: 0 | CW33: 0 | CX33: =Sorghum!L33 -> 500 | CY33: 30000 | CZ33: 10000 | DA33: 0 | DB33: =Wheat!S33 -> 50000 | DC33: 4750000 | DD33: 1250000 | DE33: 0 | DF33: =Wheat!AQ33 -> 50000 | DG33: =DF33*IF(Inputs!$B$6=1,AL33,AP33) -> 1000000 | DH33: 0 | DI33: 0 | DJ33: =Alfalfa!M33 -> 2000 | DK33: 0 | DL33: 0 | DM33: 250000 | DN33: ='All Other Hay'!J33 -> 7000 | DO33: 595000 | DP33: 0 | DQ33: 35000 | DR33: 3187.5 | DS33: 630 | DT33: 142.5 | DU33: =IF(Inputs!B83>0,Inputs!B83*'Fertilizer Numbers 05-10'!DR33,0) -> 0 | DV33: =IF(Inputs!B83>0,Inputs!B83*'Fertilizer Numbers 05-10'!DS33,0) -> 0 | DW33: =IF(Inputs!B83>0,Inputs!B83*'Fertilizer Numbers 05-10'!DT33,0) -> 0 | DX33: =Soybean!N33 -> 0 | DY33: 0 | DZ33: 0 | EA33: 0 | EB33: =Corn!N33 -> 700 | EC33: 100 | ED33: 17500 | EE33: 3500 | EF33: =Sorghum!N33 -> 900 | EG33: 54000 | EH33: 18000 | EI33: 0 | EJ33: =Wheat!U33 -> 70000 | EK33: 6650000 | EL33: 1750000 | EM33: 0 | EN33: =Wheat!AR33 -> 30000 | EO33: 600000 | EP33: 0 | EQ33: 0 | ER33: =Alfalfa!F33 -> 4200 | ES33: 0 | ET33: 0 | EU33: 525000 | EV33: ='All Other Hay'!F33 -> 17000 | EW33: 1445000 | EX33: 0 | EY33: 85000 | EZ33: 4374.55 | FA33: 892.75 | FB33: 306.75 | FC33: =IF(Inputs!C83>0,Inputs!C83*'Fertilizer Numbers 05-10'!EZ33,0) -> 0 | FD33: =IF(Inputs!C83>0,Inputs!C83*'Fertilizer Numbers 05-10'!FA33,0) -> 0 | FE33: =IF(Inputs!C83>0,Inputs!C83*'Fertilizer Numbers 05-10'!FB33,0) -> 0 | FF33: =Soybean!Q33 -> 0 | FG33: 0 | FH33: 0 | FI33: 0 | FJ33: =Corn!Q33 -> 0 | FK33: 0 | FL33: 0 | FM33: 0 | FN33: =Sorghum!Q33 -> 0 | FO33: 0 | FP33: 0 | FQ33: 0 | FR33: =Wheat!W33 -> 0 | FS33: 0 | FT33: 0 | FU33: 0 | FV33: =Wheat!AS33 -> 0 | FW33: =FV33*IF(Inputs!$B$6=1,AL33,AP33) -> 0 | FX33: 0 | FY33: 0 | FZ33: =Alfalfa!O33 -> 0 | GA33: 0 | GB33: 0 | GC33: 0 | GD33: ='All Other Hay'!L33 -> 0 | GE33: 0 | GF33: 0 | GG33: 0 | GH33: 0 | GI33: 0 | GJ33: 0 | GK33: =IF(Inputs!D83>0,Inputs!D83*'Fertilizer Numbers 05-10'!GH33,0) -> 0 | GL33: =IF(Inputs!D83>0,Inputs!D83*'Fertilizer Numbers 05-10'!GI33,0) -> 0 | GM33: =IF(Inputs!D83>0,Inputs!D83*'Fertilizer Numbers 05-10'!GJ33,0) -> 0 | GO33: =Soybean!T33 -> 0 | GP33: 0 | GQ33: 0 | GR33: 0 | GS33: =Corn!T33 -> 0 | GT33: 0 | GU33: 0 | GV33: 0 | GW33: =Sorghum!T33 -> 3200 | GX33: 192000 | GY33: 64000 | GZ33: 0 | HA33: =Wheat!Y33 -> 70000 | HB33: 6650000 | HC33: 0 | HD33: 0 | HE33: =Wheat!AT33 -> 30000 | HF33: =+HE33*IF(Inputs!$B$6=1,AL33,AP33) -> 600000 | HG33: 0 | HH33: 0 | HI33: =Alfalfa!Q33 -> 0 | HJ33: 0 | HK33: 0 | HL33: 0 | HM33: ='All Other Hay'!N33 -> 20000 | HN33: 1700000 | HO33: 0 | HP33: 100000 | HQ33: 4571 | HR33: 32 | HS33: 50 | HT33: =IF(Inputs!E83>0,Inputs!E83*'Fertilizer Numbers 05-10'!HQ33,0) -> 0 | HU33: =IF(Inputs!E83>0,Inputs!E83*'Fertilizer Numbers 05-10'!HR33,0) -> 0 | HV33: =IF(Inputs!E83>0,Inputs!E83*'Fertilizer Numbers 05-10'!HS33,0) -> 0 | HX33: =Soybean!W33 -> 0 | HY33: 0 | HZ33: 0 | IA33: 0 | IB33: =Corn!W33 -> 0 | IC33: 0 | ID33: 0 | IE33: 0 | IF33: =Sorghum!W33 -> 0 | IG33: 0 | IH33: 0 | II33: 0 | IJ33: =Wheat!AA33 -> 65000 | IK33: 6175000 | IL33: 1625000 | IM33: 0 | IN33: =Wheat!AU33 -> 30000 | IO33: =$IN33*IF(Inputs!$B$6=1,AL33,AP33) -> 600000 | IP33: 0 | IQ33: 0 | IR33: =Alfalfa!S33 -> 0 | IS33: 0 | IT33: 0 | IU33: 0 | IV33: ='All Other Hay'!P33 -> 0 | IW33: 0 | IX33: 0 | IY33: 0 | IZ33: 3387.5 | JA33: 812.5 | JB33: 0 | JC33: =IF(Inputs!$F83>0,Inputs!$F83*IZ33,0) -> 0 | JD33: =IF(Inputs!$F83>0,Inputs!$F83*JA33,0) -> 0 | JE33: =IF(Inputs!$F83>0,Inputs!$F83*JB33,0) -> 0 | JF33: =Soybean!Z33 -> 0 | JG33: 0 | JH33: 0 | JI33: 0 | JJ33: =Corn!Z33 -> 0 | JK33: 0 | JL33: 0 | JM33: 0 | JN33: =Sorghum!BE33 -> 0 | JO33: 0 | JP33: 0 | JQ33: 0 | JR33: =Wheat!AC33 -> 60000 | JS33: 5700000 | JT33: 1500000 | JU33: 0 | JV33: =Wheat!AV33 -> 30000 | JW33: =JV33*IF(Inputs!$B$6=1,$AL33,$AP33) -> 600000 | JX33: 0 | JY33: 0 | JZ33: =Alfalfa!U33 -> 0 | KA33: 0 | KB33: 0 | KC33: 0 | KD33: ='All Other Hay'!R33 -> 0 | KE33: 0 | KF33: 0 | KG33: 0 | KH33: 3150 | KI33: 750 | KJ33: 0 | KK33: =IF(Inputs!$F83>0,Inputs!$F83*KH33,0) -> 0 | KL33: =IF(Inputs!$F83>0,Inputs!$F83*KI33,0) -> 0 | KM33: =IF(Inputs!$F83>0,Inputs!$F83*KJ33,0) -> 0 | KN33: =Soybean!AC33 -> 0 | KO33: 0 | KP33: 0 | KQ33: 0 | KR33: =Corn!BH33 -> 0 | KS33: 0 | KT33: 0 | KU33: 0 | KV33: =Sorghum!AC33 -> 0 | KW33: 0 | KX33: 0 | KY33: 0 | KZ33: =Wheat!AE33 -> 65000 | LA33: 6175000 | LB33: 1625000 | LC33: 0 | LD33: =Wheat!AW33 -> 25000 | LE33: =LD33*IF(Inputs!$B$6=1,$AL33,$AP33) -> 500000 | LF33: 0 | LG33: 0 | LH33: =Alfalfa!W33 -> 4200 | LI33: 0 | LJ33: 0 | LK33: 525000 | LL33: ='All Other Hay'!T33 -> 0 | LM33: 0 | LN33: 0 | LO33: 0 | LP33: 3337.5 | LQ33: 812.5 | LR33: 262.5 | LS33: =IF(Inputs!$F83>0,Inputs!$F83*LP33,0) -> 0 | LT33: =IF(Inputs!$F83>0,Inputs!$F83*LQ33,0) -> 0 | LU33: =IF(Inputs!$F83>0,Inputs!$F83*LR33,0) -> 0 | LV33: =Soybean!AF33 -> 0 | LW33: 0 | LX33: 0 | LY33: 0 | LZ33: =Corn!CP33 -> 0 | MA33: 0 | MB33: 0 | MC33: 0 | MD33: =Sorghum!AF33 -> 0 | ME33: 0 | MF33: 0 | MG33: 0 | MH33: =Wheat!AG33 -> 56000 | MI33: 5320000 | MJ33: 1400000 | MK33: 0 | ML33: =Wheat!AX33 -> 38000 | MM33: =ML33*IF(Inputs!$B$6=1,$AL33,$AP33) -> 760000 | MN33: 0 | MO33: 0 | MP33: =Alfalfa!Z33 -> 6500 | MQ33: 0 | MR33: 0 | MS33: 812500 | MT33: ='All Other Hay'!W33 -> 0 | MU33: 0 | MV33: 0 | MW33: 0 | MX33: 3040 | MY33: 700 | MZ33: 406.25 | NA33: =IF(Inputs!$F83>0,Inputs!$F83*MX33,0) -> 0 | NB33: =IF(Inputs!$F83>0,Inputs!$F83*MY33,0) -> 0 | NC33: =IF(Inputs!$F83>0,Inputs!$F83*MZ33,0) -> 0
A34: Haskell | B34: 10 | C34: 0 | D34: 0 | E34: =IF(Inputs!$B$6=0,Inputs!$D$10,) -> 9 | F34: =IF(Inputs!$B$6=0,Inputs!$D$11,) -> 0 | G34: =IF(Inputs!$B$6=0,Inputs!$D$12,) -> 0 | H34: =IF(Inputs!$B$6=0,'Fertilizer Numbers 05-10'!E34,'Fertilizer Numbers 05-10'!B34) -> 9 | I34: =IF(Inputs!$B$6=0,'Fertilizer Numbers 05-10'!F34,'Fertilizer Numbers 05-10'!C34) -> 0 | J34: =IF(Inputs!$B$6=0,'Fertilizer Numbers 05-10'!G34,'Fertilizer Numbers 05-10'!D34) -> 0 | K34: 106 | L34: 20 | M34: 0 | N34: =Inputs!$F$10 -> 100 | O34: =Inputs!$F$11 -> 25 | P34: =Inputs!$F$12 -> 5 | Q34: =IF(Inputs!$B$6=0,N34,K34) -> 100 | R34: =IF(Inputs!$B$6=0,O34,L34) -> 25 | S34: =IF(Inputs!$B$6=0,P34,M34) -> 5 | T34: 42 | U34: 20 | V34: 0 | W34: =Inputs!$H$10 -> 60 | X34: =Inputs!$H$11 -> 20 | Y34: =Inputs!$H$12 -> 0 | Z34: =IF(Inputs!$B$6=0,W34,T34) -> 60 | AA34: =IF(Inputs!$B$6=0,X34,U34) -> 20 | AB34: =IF(Inputs!$B$6=0,Y34,V34) -> 0 | AC34: =Inputs!$C$10 -> 85 | AD34: =Inputs!$C$11 -> 25 | AE34: =Inputs!$C$12 -> 0 | AF34: =Inputs!$C$10 -> 85 | AG34: =Inputs!$C$11 -> 25 | AH34: =Inputs!$C$12 -> 0 | AI34: =IF(Inputs!$B$6=0,'Fertilizer Numbers 05-10'!AF34,AC34) -> 85 | AJ34: =IF(Inputs!$B$6=0,'Fertilizer Numbers 05-10'!AG34,AD34) -> 25 | AK34: =IF(Inputs!$B$6=0,'Fertilizer Numbers 05-10'!AH34,AE34) -> 0 | AL34: =Inputs!$C$13 -> 20 | AM34: =Inputs!$B$10 -> 95 | AN34: =Inputs!$B$11 -> 25 | AO34: =Inputs!$B$12 -> 0 | AP34: =Inputs!$B$13 -> 20 | AQ34: 0 | AR34: 0 | AS34: =Inputs!$K$10 -> 0 | AT34: =Inputs!$K$11 -> 0 | AU34: =Inputs!$K$12 -> 150 | AV34: =Inputs!$J$10 -> 0 | AW34: =Inputs!J$11 -> 0 | AX34: =Inputs!$J$12 -> 125 | AY34: =IF(Inputs!$B$6=0,AV34,AS34) -> 0 | AZ34: =IF(Inputs!$B$6=0,AW34,AT34) -> 0 | BA34: =IF(Inputs!$B$6=0,AX34,AU34) -> 125 | BB34: 86 | BC34: 0 | BD34: 0 | BE34: =Inputs!$L$10 -> 85 | BF34: =Inputs!$L$11 -> 0 | BG34: =Inputs!$L$12 -> 5 | BH34: =IF(Inputs!$B$6=0,'Fertilizer Numbers 05-10'!BE34,BB34) -> 85 | BI34: =IF(Inputs!$B$6=0,'Fertilizer Numbers 05-10'!BF34,BC34) -> 0 | BJ34: =IF(Inputs!$B$6=0,'Fertilizer Numbers 05-10'!BG34,BD34) -> 5 | BK34: =Soybean!J34 -> 1700 | BL34: 15300 | BM34: 0 | BN34: 0 | BO34: =Corn!J34 -> 1200 | BP34: 120000 | BQ34: 30000 | BR34: 6000 | BS34: =Sorghum!J34 -> 0 | BT34: 0 | BU34: 0 | BV34: 0 | BW34: =Wheat!Q34 -> 50000 | BX34: 4750000 | BY34: 1250000 | BZ34: 0 | CA34: =Wheat!AP34 -> -40700 | CB34: =CA34*IF(Inputs!$B$6=1,AL34,AP34) -> -814000 | CC34: 0 | CD34: 0 | CE34: =Alfalfa!J34 -> 800 | CF34: 0 | CG34: 0 | CH34: 100000 | CI34: ='All Other Hay'!I34 -> 65000 | CJ34: 5525000 | CK34: 0 | CL34: 325000 | CM34: 5198.35 | CN34: 647.65 | CO34: 215.5 | CP34: =Soybean!E34 -> 1300 | CQ34: 11700 | CR34: 0 | CS34: 0 | CT34: =Corn!L34 -> 0 | CU34: 0 | CV34: 0 | CW34: 0 | CX34: =Sorghum!L34 -> 0 | CY34: 0 | CZ34: 0 | DA34: 0 | DB34: =Wheat!S34 -> 0 | DC34: 0 | DD34: 0 | DE34: 0 | DF34: =Wheat!AQ34 -> 0 | DG34: =DF34*IF(Inputs!$B$6=1,AL34,AP34) -> 0 | DH34: 0 | DI34: 0 | DJ34: =Alfalfa!M34 -> 800 | DK34: 0 | DL34: 0 | DM34: 100000 | DN34: ='All Other Hay'!J34 -> 70000 | DO34: 5950000 | DP34: 0 | DQ34: 350000 | DR34: 2980.85 | DS34: 0 | DT34: 225 | DU34: =IF(Inputs!B84>0,Inputs!B84*'Fertilizer Numbers 05-10'!DR34,0) -> 0 | DV34: =IF(Inputs!B84>0,Inputs!B84*'Fertilizer Numbers 05-10'!DS34,0) -> 0 | DW34: =IF(Inputs!B84>0,Inputs!B84*'Fertilizer Numbers 05-10'!DT34,0) -> 0 | DX34: =Soybean!N34 -> 1200 | DY34: 10800 | DZ34: 0 | EA34: 0 | EB34: =Corn!N34 -> 800 | EC34: 100 | ED34: 20000 | EE34: 4000 | EF34: =Sorghum!N34 -> 0 | EG34: 0 | EH34: 0 | EI34: 0 | EJ34: =Wheat!U34 -> 0 | EK34: 0 | EL34: 0 | EM34: 0 | EN34: =Wheat!AR34 -> 0 | EO34: 0 | EP34: 0 | EQ34: 0 | ER34: =Alfalfa!F34 -> 1100 | ES34: 0 | ET34: 0 | EU34: 137500 | EV34: ='All Other Hay'!F34 -> 37000 | EW34: 3145000 | EX34: 0 | EY34: 185000 | EZ34: 1577.95 | FA34: 10 | FB34: 163.25 | FC34: =IF(Inputs!C84>0,Inputs!C84*'Fertilizer Numbers 05-10'!EZ34,0) -> 0 | FD34: =IF(Inputs!C84>0,Inputs!C84*'Fertilizer Numbers 05-10'!FA34,0) -> 0 | FE34: =IF(Inputs!C84>0,Inputs!C84*'Fertilizer Numbers 05-10'!FB34,0) -> 0 | FF34: =Soybean!Q34 -> 0 | FG34: 0 | FH34: 0 | FI34: 0 | FJ34: =Corn!Q34 -> 0 | FK34: 0 | FL34: 0 | FM34: 0 | FN34: =Sorghum!Q34 -> 0 | FO34: 0 | FP34: 0 | FQ34: 0 | FR34: =Wheat!W34 -> 0 | FS34: 0 | FT34: 0 | FU34: 0 | FV34: =Wheat!AS34 -> 0 | FW34: =FV34*IF(Inputs!$B$6=1,AL34,AP34) -> 0 | FX34: 0 | FY34: 0 | FZ34: =Alfalfa!O34 -> 0 | GA34: 0 | GB34: 0 | GC34: 0 | GD34: ='All Other Hay'!L34 -> 0 | GE34: 0 | GF34: 0 | GG34: 0 | GH34: 0 | GI34: 0 | GJ34: 0 | GK34: =IF(Inputs!D84>0,Inputs!D84*'Fertilizer Numbers 05-10'!GH34,0) -> 0 | GL34: =IF(Inputs!D84>0,Inputs!D84*'Fertilizer Numbers 05-10'!GI34,0) -> 0 | GM34: =IF(Inputs!D84>0,Inputs!D84*'Fertilizer Numbers 05-10'!GJ34,0) -> 0 | GO34: =Soybean!T34 -> 0 | GP34: 0 | GQ34: 0 | GR34: 0 | GS34: =Corn!T34 -> 0 | GT34: 0 | GU34: 0 | GV34: 0 | GW34: =Sorghum!T34 -> 0 | GX34: 0 | GY34: 0 | GZ34: 0 | HA34: =Wheat!Y34 -> 0 | HB34: 0 | HC34: 0 | HD34: 0 | HE34: =Wheat!AT34 -> 0 | HF34: =+HE34*IF(Inputs!$B$6=1,AL34,AP34) -> 0 | HG34: 0 | HH34: 0 | HI34: =Alfalfa!Q34 -> 0 | HJ34: 0 | HK34: 0 | HL34: 0 | HM34: ='All Other Hay'!N34 -> 0 | HN34: 0 | HO34: 0 | HP34: 0 | HQ34: 0 | HR34: 0 | HS34: 0 | HT34: =IF(Inputs!E84>0,Inputs!E84*'Fertilizer Numbers 05-10'!HQ34,0) -> 0 | HU34: =IF(Inputs!E84>0,Inputs!E84*'Fertilizer Numbers 05-10'!HR34,0) -> 0 | HV34: =IF(Inputs!E84>0,Inputs!E84*'Fertilizer Numbers 05-10'!HS34,0) -> 0 | HX34: =Soybean!W34 -> 0 | HY34: 0 | HZ34: 0 | IA34: 0 | IB34: =Corn!W34 -> 0 | IC34: 0 | ID34: 0 | IE34: 0 | IF34: =Sorghum!W34 -> 0 | IG34: 0 | IH34: 0 | II34: 0 | IJ34: =Wheat!AA34 -> 0 | IK34: 0 | IL34: 0 | IM34: 0 | IN34: =Wheat!AU34 -> 0 | IO34: =$IN34*IF(Inputs!$B$6=1,AL34,AP34) -> 0 | IP34: 0 | IQ34: 0 | IR34: =Alfalfa!S34 -> 0 | IS34: 0 | IT34: 0 | IU34: 0 | IV34: ='All Other Hay'!P34 -> 0 | IW34: 0 | IX34: 0 | IY34: 0 | IZ34: 0 | JA34: 0 | JB34: 0 | JC34: =IF(Inputs!$F84>0,Inputs!$F84*IZ34,0) -> 0 | JD34: =IF(Inputs!$F84>0,Inputs!$F84*JA34,0) -> 0 | JE34: =IF(Inputs!$F84>0,Inputs!$F84*JB34,0) -> 0 | JF34: =Soybean!Z34 -> 0 | JG34: 0 | JH34: 0 | JI34: 0 | JJ34: =Corn!Z34 -> 0 | JK34: 0 | JL34: 0 | JM34: 0 | JN34: =Sorghum!BE34 -> 0 | JO34: 0 | JP34: 0 | JQ34: 0 | JR34: =Wheat!AC34 -> 0 | JS34: 0 | JT34: 0 | JU34: 0 | JV34: =Wheat!AV34 -> 0 | JW34: =JV34*IF(Inputs!$B$6=1,$AL34,$AP34) -> 0 | JX34: 0 | JY34: 0 | JZ34: =Alfalfa!U34 -> 0 | KA34: 0 | KB34: 0 | KC34: 0 | KD34: ='All Other Hay'!R34 -> 60000 | KE34: 5100000 | KF34: 0 | KG34: 0 | KH34: 2550 | KI34: 0 | KJ34: 0 | KK34: =IF(Inputs!$F84>0,Inputs!$F84*KH34,0) -> 0 | KL34: =IF(Inputs!$F84>0,Inputs!$F84*KI34,0) -> 0 | KM34: =IF(Inputs!$F84>0,Inputs!$F84*KJ34,0) -> 0 | KN34: =Soybean!AC34 -> 0 | KO34: 0 | KP34: 0 | KQ34: 0 | KR34: =Corn!BH34 -> 0 | KS34: 0 | KT34: 0 | KU34: 0 | KV34: =Sorghum!AC34 -> 0 | KW34: 0 | KX34: 0 | KY34: 0 | KZ34: =Wheat!AE34 -> 0 | LA34: 0 | LB34: 0 | LC34: 0 | LD34: =Wheat!AW34 -> 0 | LE34: =LD34*IF(Inputs!$B$6=1,$AL34,$AP34) -> 0 | LF34: 0 | LG34: 0 | LH34: =Alfalfa!W34 -> 0 | LI34: 0 | LJ34: 0 | LK34: 0 | LL34: ='All Other Hay'!T34 -> 0 | LM34: 0 | LN34: 0 | LO34: 0 | LP34: 0 | LQ34: 0 | LR34: 0 | LS34: =IF(Inputs!$F84>0,Inputs!$F84*LP34,0) -> 0 | LT34: =IF(Inputs!$F84>0,Inputs!$F84*LQ34,0) -> 0 | LU34: =IF(Inputs!$F84>0,Inputs!$F84*LR34,0) -> 0 | LV34: =Soybean!AF34 -> 0 | LW34: 0 | LX34: 0 | LY34: 0 | LZ34: =Corn!CP34 -> 0 | MA34: 0 | MB34: 0 | MC34: 0 | MD34: =Sorghum!AF34 -> 0 | ME34: 0 | MF34: 0 | MG34: 0 | MH34: =Wheat!AG34 -> 0 | MI34: 0 | MJ34: 0 | MK34: 0 | ML34: =Wheat!AX34 -> 0 | MM34: =ML34*IF(Inputs!$B$6=1,$AL34,$AP34) -> 0 | MN34: 0 | MO34: 0 | MP34: =Alfalfa!Z34 -> 0 | MQ34: 0 | MR34: 0 | MS34: 0 | MT34: ='All Other Hay'!W34 -> 0 | MU34: 0 | MV34: 0 | MW34: 0 | MX34: 0 | MY34: 0 | MZ34: 0 | NA34: =IF(Inputs!$F84>0,Inputs!$F84*MX34,0) -> 0 | NB34: =IF(Inputs!$F84>0,Inputs!$F84*MY34,0) -> 0 | NC34: =IF(Inputs!$F84>0,Inputs!$F84*MZ34,0) -> 0
A35: Hughes | B35: 10 | C35: 0 | D35: 0 | E35: =IF(Inputs!$B$6=0,Inputs!$D$10,) -> 9 | F35: =IF(Inputs!$B$6=0,Inputs!$D$11,) -> 0 | G35: =IF(Inputs!$B$6=0,Inputs!$D$12,) -> 0 | H35: =IF(Inputs!$B$6=0,'Fertilizer Numbers 05-10'!E35,'Fertilizer Numbers 05-10'!B35) -> 9 | I35: =IF(Inputs!$B$6=0,'Fertilizer Numbers 05-10'!F35,'Fertilizer Numbers 05-10'!C35) -> 0 | J35: =IF(Inputs!$B$6=0,'Fertilizer Numbers 05-10'!G35,'Fertilizer Numbers 05-10'!D35) -> 0 | K35: 106 | L35: 20 | M35: 0 | N35: =Inputs!$F$10 -> 100 | O35: =Inputs!$F$11 -> 25 | P35: =Inputs!$F$12 -> 5 | Q35: =IF(Inputs!$B$6=0,N35,K35) -> 100 | R35: =IF(Inputs!$B$6=0,O35,L35) -> 25 | S35: =IF(Inputs!$B$6=0,P35,M35) -> 5 | T35: 42 | U35: 20 | V35: 0 | W35: =Inputs!$H$10 -> 60 | X35: =Inputs!$H$11 -> 20 | Y35: =Inputs!$H$12 -> 0 | Z35: =IF(Inputs!$B$6=0,W35,T35) -> 60 | AA35: =IF(Inputs!$B$6=0,X35,U35) -> 20 | AB35: =IF(Inputs!$B$6=0,Y35,V35) -> 0 | AC35: =Inputs!$C$10 -> 85 | AD35: =Inputs!$C$11 -> 25 | AE35: =Inputs!$C$12 -> 0 | AF35: =Inputs!$C$10 -> 85 | AG35: =Inputs!$C$11 -> 25 | AH35: =Inputs!$C$12 -> 0 | AI35: =IF(Inputs!$B$6=0,'Fertilizer Numbers 05-10'!AF35,AC35) -> 85 | AJ35: =IF(Inputs!$B$6=0,'Fertilizer Numbers 05-10'!AG35,AD35) -> 25 | AK35: =IF(Inputs!$B$6=0,'Fertilizer Numbers 05-10'!AH35,AE35) -> 0 | AL35: =Inputs!$C$13 -> 20 | AM35: =Inputs!$B$10 -> 95 | AN35: =Inputs!$B$11 -> 25 | AO35: =Inputs!$B$12 -> 0 | AP35: =Inputs!$B$13 -> 20 | AQ35: 0 | AR35: 0 | AS35: =Inputs!$K$10 -> 0 | AT35: =Inputs!$K$11 -> 0 | AU35: =Inputs!$K$12 -> 150 | AV35: =Inputs!$J$10 -> 0 | AW35: =Inputs!J$11 -> 0 | AX35: =Inputs!$J$12 -> 125 | AY35: =IF(Inputs!$B$6=0,AV35,AS35) -> 0 | AZ35: =IF(Inputs!$B$6=0,AW35,AT35) -> 0 | BA35: =IF(Inputs!$B$6=0,AX35,AU35) -> 125 | BB35: 72 | BC35: 0 | BD35: 0 | BE35: =Inputs!$L$10 -> 85 | BF35: =Inputs!$L$11 -> 0 | BG35: =Inputs!$L$12 -> 5 | BH35: =IF(Inputs!$B$6=0,'Fertilizer Numbers 05-10'!BE35,BB35) -> 85 | BI35: =IF(Inputs!$B$6=0,'Fertilizer Numbers 05-10'!BF35,BC35) -> 0 | BJ35: =IF(Inputs!$B$6=0,'Fertilizer Numbers 05-10'!BG35,BD35) -> 5 | BK35: =Soybean!J35 -> 1100 | BL35: 9900 | BM35: 0 | BN35: 0 | BO35: =Corn!J35 -> 600 | BP35: 60000 | BQ35: 15000 | BR35: 3000 | BS35: =Sorghum!J35 -> 0 | BT35: 0 | BU35: 0 | BV35: 0 | BW35: =Wheat!Q35 -> 40000 | BX35: 3800000 | BY35: 1000000 | BZ35: 0 | CA35: =Wheat!AP35 -> -40000 | CB35: =CA35*IF(Inputs!$B$6=1,AL35,AP35) -> -800000 | CC35: 0 | CD35: 0 | CE35: =Alfalfa!J35 -> 800 | CF35: 0 | CG35: 0 | CH35: 100000 | CI35: ='All Other Hay'!I35 -> 55000 | CJ35: 4675000 | CK35: 0 | CL35: 275000 | CM35: 4268.05 | CN35: 512.45 | CO35: 189 | CP35: =Soybean!E35 -> 1000 | CQ35: 9000 | CR35: 0 | CS35: 0 | CT35: =Corn!L35 -> 400 | CU35: 40000 | CV35: 10000 | CW35: 2000 | CX35: =Sorghum!L35 -> 0 | CY35: 0 | CZ35: 0 | DA35: 0 | DB35: =Wheat!S35 -> 1500 | DC35: 142500 | DD35: 37500 | DE35: 0 | DF35: =Wheat!AQ35 -> 8000 | DG35: =DF35*IF(Inputs!$B$6=1,AL35,AP35) -> 160000 | DH35: 0 | DI35: 0 | DJ35: =Alfalfa!M35 -> 800 | DK35: 0 | DL35: 0 | DM35: 100000 | DN35: ='All Other Hay'!J35 -> 45000 | DO35: 3825000 | DP35: 0 | DQ35: 225000 | DR35: 2088.25 | DS35: 23.75 | DT35: 163.5 | DU35: =IF(Inputs!B85>0,Inputs!B85*'Fertilizer Numbers 05-10'!DR35,0) -> 0 | DV35: =IF(Inputs!B85>0,Inputs!B85*'Fertilizer Numbers 05-10'!DS35,0) -> 0 | DW35: =IF(Inputs!B85>0,Inputs!B85*'Fertilizer Numbers 05-10'!DT35,0) -> 0 | DX35: =Soybean!N35 -> 1100 | DY35: 9900 | DZ35: 0 | EA35: 0 | EB35: =Corn!N35 -> 600 | EC35: 100 | ED35: 15000 | EE35: 3000 | EF35: =Sorghum!N35 -> 0 | EG35: 0 | EH35: 0 | EI35: 0 | EJ35: =Wheat!U35 -> 700 | EK35: 66500 | EL35: 17500 | EM35: 0 | EN35: =Wheat!AR35 -> 6500 | EO35: 130000 | EP35: 0 | EQ35: 0 | ER35: =Alfalfa!F35 -> 1200 | ES35: 0 | ET35: 0 | EU35: 150000 | EV35: ='All Other Hay'!F35 -> 41000 | EW35: 3485000 | EX35: 0 | EY35: 205000 | EZ35: 1845.75 | FA35: 16.25 | FB35: 179 | FC35: =IF(Inputs!C85>0,Inputs!C85*'Fertilizer Numbers 05-10'!EZ35,0) -> 0 | FD35: =IF(Inputs!C85>0,Inputs!C85*'Fertilizer Numbers 05-10'!FA35,0) -> 0 | FE35: =IF(Inputs!C85>0,Inputs!C85*'Fertilizer Numbers 05-10'!FB35,0) -> 0 | FF35: =Soybean!Q35 -> 0 | FG35: 0 | FH35: 0 | FI35: 0 | FJ35: =Corn!Q35 -> 0 | FK35: 0 | FL35: 0 | FM35: 0 | FN35: =Sorghum!Q35 -> 0 | FO35: 0 | FP35: 0 | FQ35: 0 | FR35: =Wheat!W35 -> 0 | FS35: 0 | FT35: 0 | FU35: 0 | FV35: =Wheat!AS35 -> 0 | FW35: =FV35*IF(Inputs!$B$6=1,AL35,AP35) -> 0 | FX35: 0 | FY35: 0 | FZ35: =Alfalfa!O35 -> 0 | GA35: 0 | GB35: 0 | GC35: 0 | GD35: ='All Other Hay'!L35 -> 0 | GE35: 0 | GF35: 0 | GG35: 0 | GH35: 0 | GI35: 0 | GJ35: 0 | GK35: =IF(Inputs!D85>0,Inputs!D85*'Fertilizer Numbers 05-10'!GH35,0) -> 0 | GL35: =IF(Inputs!D85>0,Inputs!D85*'Fertilizer Numbers 05-10'!GI35,0) -> 0 | GM35: =IF(Inputs!D85>0,Inputs!D85*'Fertilizer Numbers 05-10'!GJ35,0) -> 0 | GO35: =Soybean!T35 -> 0 | GP35: 0 | GQ35: 0 | GR35: 0 | GS35: =Corn!T35 -> 0 | GT35: 0 | GU35: 0 | GV35: 0 | GW35: =Sorghum!T35 -> 0 | GX35: 0 | GY35: 0 | GZ35: 0 | HA35: =Wheat!Y35 -> 0 | HB35: 0 | HC35: 0 | HD35: 0 | HE35: =Wheat!AT35 -> 0 | HF35: =+HE35*IF(Inputs!$B$6=1,AL35,AP35) -> 0 | HG35: 0 | HH35: 0 | HI35: =Alfalfa!Q35 -> 0 | HJ35: 0 | HK35: 0 | HL35: 0 | HM35: ='All Other Hay'!N35 -> 0 | HN35: 0 | HO35: 0 | HP35: 0 | HQ35: 0 | HR35: 0 | HS35: 0 | HT35: =IF(Inputs!E85>0,Inputs!E85*'Fertilizer Numbers 05-10'!HQ35,0) -> 0 | HU35: =IF(Inputs!E85>0,Inputs!E85*'Fertilizer Numbers 05-10'!HR35,0) -> 0 | HV35: =IF(Inputs!E85>0,Inputs!E85*'Fertilizer Numbers 05-10'!HS35,0) -> 0 | HX35: =Soybean!W35 -> 0 | HY35: 0 | HZ35: 0 | IA35: 0 | IB35: =Corn!W35 -> 0 | IC35: 0 | ID35: 0 | IE35: 0 | IF35: =Sorghum!W35 -> 0 | IG35: 0 | IH35: 0 | II35: 0 | IJ35: =Wheat!AA35 -> 0 | IK35: 0 | IL35: 0 | IM35: 0 | IN35: =Wheat!AU35 -> 0 | IO35: =$IN35*IF(Inputs!$B$6=1,AL35,AP35) -> 0 | IP35: 0 | IQ35: 0 | IR35: =Alfalfa!S35 -> 0 | IS35: 0 | IT35: 0 | IU35: 0 | IV35: ='All Other Hay'!P35 -> 0 | IW35: 0 | IX35: 0 | IY35: 0 | IZ35: 0 | JA35: 0 | JB35: 0 | JC35: =IF(Inputs!$F85>0,Inputs!$F85*IZ35,0) -> 0 | JD35: =IF(Inputs!$F85>0,Inputs!$F85*JA35,0) -> 0 | JE35: =IF(Inputs!$F85>0,Inputs!$F85*JB35,0) -> 0 | JF35: =Soybean!Z35 -> 0 | JG35: 0 | JH35: 0 | JI35: 0 | JJ35: =Corn!Z35 -> 0 | JK35: 0 | JL35: 0 | JM35: 0 | JN35: =Sorghum!BE35 -> 0 | JO35: 0 | JP35: 0 | JQ35: 0 | JR35: =Wheat!AC35 -> 0 | JS35: 0 | JT35: 0 | JU35: 0 | JV35: =Wheat!AV35 -> 0 | JW35: =JV35*IF(Inputs!$B$6=1,$AL35,$AP35) -> 0 | JX35: 0 | JY35: 0 | JZ35: =Alfalfa!U35 -> 0 | KA35: 0 | KB35: 0 | KC35: 0 | KD35: ='All Other Hay'!R35 -> 44000 | KE35: 3740000 | KF35: 0 | KG35: 0 | KH35: 1870 | KI35: 0 | KJ35: 0 | KK35: =IF(Inputs!$F85>0,Inputs!$F85*KH35,0) -> 0 | KL35: =IF(Inputs!$F85>0,Inputs!$F85*KI35,0) -> 0 | KM35: =IF(Inputs!$F85>0,Inputs!$F85*KJ35,0) -> 0 | KN35: =Soybean!AC35 -> 0 | KO35: 0 | KP35: 0 | KQ35: 0 | KR35: =Corn!BH35 -> 0 | KS35: 0 | KT35: 0 | KU35: 0 | KV35: =Sorghum!AC35 -> 0 | KW35: 0 | KX35: 0 | KY35: 0 | KZ35: =Wheat!AE35 -> 0 | LA35: 0 | LB35: 0 | LC35: 0 | LD35: =Wheat!AW35 -> 0 | LE35: =LD35*IF(Inputs!$B$6=1,$AL35,$AP35) -> 0 | LF35: 0 | LG35: 0 | LH35: =Alfalfa!W35 -> 0 | LI35: 0 | LJ35: 0 | LK35: 0 | LL35: ='All Other Hay'!T35 -> 0 | LM35: 0 | LN35: 0 | LO35: 0 | LP35: 0 | LQ35: 0 | LR35: 0 | LS35: =IF(Inputs!$F85>0,Inputs!$F85*LP35,0) -> 0 | LT35: =IF(Inputs!$F85>0,Inputs!$F85*LQ35,0) -> 0 | LU35: =IF(Inputs!$F85>0,Inputs!$F85*LR35,0) -> 0 | LV35: =Soybean!AF35 -> 0 | LW35: 0 | LX35: 0 | LY35: 0 | LZ35: =Corn!CP35 -> 0 | MA35: 0 | MB35: 0 | MC35: 0 | MD35: =Sorghum!AF35 -> 0 | ME35: 0 | MF35: 0 | MG35: 0 | MH35: =Wheat!AG35 -> 0 | MI35: 0 | MJ35: 0 | MK35: 0 | ML35: =Wheat!AX35 -> 0 | MM35: =ML35*IF(Inputs!$B$6=1,$AL35,$AP35) -> 0 | MN35: 0 | MO35: 0 | MP35: =Alfalfa!Z35 -> 0 | MQ35: 0 | MR35: 0 | MS35: 0 | MT35: ='All Other Hay'!W35 -> 0 | MU35: 0 | MV35: 0 | MW35: 0 | MX35: 0 | MY35: 0 | MZ35: 0 | NA35: =IF(Inputs!$F85>0,Inputs!$F85*MX35,0) -> 0 | NB35: =IF(Inputs!$F85>0,Inputs!$F85*MY35,0) -> 0 | NC35: =IF(Inputs!$F85>0,Inputs!$F85*MZ35,0) -> 0
